Workbook

Sheet Data (hidden)
A1: 1 | B1: =A1+1 -> 2 | C1: =B1+1 -> 3 | D1: 4 | E1: 5 | F1: 6 | G1: 7 | H1: 8 | I1: 9 | J1: 10 | K1: 11 | L1: 12 | M1: 13 | N1: 14 | O1: 15 | P1: 16 | Q1: 17 | R1: 18 | S1: 19 | T1: 20 | U1: 21 | V1: 22 | W1: 23 | X1: 24 | Y1: 25 | Z1: =Y1+1 -> 26 | AA1: 27 | AB1: 28 | AC1: 29 | AD1: 30 | AE1: 31 | AF1: 32 | AG1: 33 | AH1: 34 | AI1: 35 | AJ1: 36 | AK1: 37 | AL1: 38 | AM1: 39 | AN1: 40 | AO1: 41 | AP1: 42 | AQ1: 43 | AR1: 44 | AS1: 45 | AT1: 46 | AU1: 47 | AV1: 48 | AW1: 49 | AX1: 50
A3: NO | B3: FN | C3: FAC_NO | D3: FAC_NAME | E3: ID | F3: BEG_DATE | G3: END_DATE | H3: CY | I3: Open/Close_STATUS | J3: COUNTY_NAME | K3: HSA | L3: HFPA | M3: TYPE_CNTRL | N3: TYPE_HOSP | O3: TEACH_RURL | P3: WEB_SITE | Q3: WEB_SITE2 | R3: HEALTH_SYS | S3: PHONE | T3: ADDRESS | U3: CITY | V3: ZIP_CODE | W3: CEO | X3: IN MODEL | Y3: FY | Z3: COMMERCIAL MANAGED CARE - HEALTH PLAN OWNED HOSPITALS | AA3: COMMERCIAL MANAGED CARE | AB3: COMMERCIAL FEE- FOR-SERVICE | AC3: MEDI-CAL MANAGED CARE- HEALTH PLAN OWNED HOSPITALS | AD3: MEDI-CAL MANAGED CARE | AE3: MEDI-CAL FEE-FOR-SERVICE | AF3: HOSPITAL FEE % TO TOTAL FEE | AG3: CHILDREN'S COVERAGE RELATED TO HOSPITAL FEE | AH3: TOTAL ASSESSED FEE | AI3: OUTPATIENT SUPPLEMENTAL PAYMENT | AJ3: INPATIENT SUPPLEMENTAL PAYMENT | AK3: SUBACUTE SUPPLEMENTAL PAYMENT | AL3: PSYCHIATRIC SUPPLEMENTAL PAYMENT | AM3: ACUITY SUPPLEMENTAL PAYMENT | AN3: TRAUMA SUPPLEMENTAL PAYMENT | AO3: TRANSPLANT SUPPLEMENTAL PAYMENT | AP3: ACUITY SUPPMENTAL PAYMENT - RURAL HOSPITALS | AQ3: TOTAL SUPPLEMENTAL PAYMENTS | AR3: MANAGED CARE PASSTHROUGH PAYMENTS | AS3: MANAGED CARE DIRECT PAYMENTS | AT3: TOTAL MANAGED CARE PAYMENTS | AU3: NET REVENUE TO FEE PERCENTAGE | AV3: Taxed Hospital | AW3: Projected Net Revenue | AX3: HEALTH_SYS_CHILDREN
A4: 1 | B4: ADVENTIST HEALTH BAKERSFIELD | C4: 106150788 | D4: ADVENTIST HEALTH BAKERSFIELD | F4: =IFERROR(INDEX('8. 2019 HCAI (FEE) DAYS'!G:G,MATCH(C4,'8. 2019 HCAI (FEE) DAYS'!A:A,0)),0) -> 2019-01-01 | G4: =IFERROR(INDEX('8. 2019 HCAI (FEE) DAYS'!H:H,MATCH(C4,'8. 2019 HCAI (FEE) DAYS'!A:A,0)),0) -> 2019-12-31 | H4: =IFERROR(INDEX('8. 2019 HCAI (FEE) DAYS'!L:L,MATCH(C4,'8. 2019 HCAI (FEE) DAYS'!A:A,0)),0) -> 2019-01-01 | I4: =IFERROR(INDEX('11. Hospital Statuses'!M:M,MATCH(C4,'11. Hospital Statuses'!A:A,0)),"") -> Open | J4: Kern | K4: 9 | L4: 617 | M4: Non-Profit | N4: Comparable | P4: WWW.ADVENTISTHEALTH.ORG/BAKERSFIELD | R4: ADVENTIST HEALTH | S4: 661-395-3000 | T4: 2615 CHESTER AVENUE | U4: BAKERSFIELD | V4: 93301 | W4: SHARLET BRIGGS | X4: =IFERROR(IF(INDEX(#REF!,MATCH(C4,#REF!,0)),"Yes","No"),"") ->  | Y4: CY 2023 | Z4: =IFERROR(IF($Y4="CY 2023",INDEX('6. CY 2023'!S:S,MATCH($C4,'6. CY 2023'!$A:$A,0)),0),0) -> 0 | AA4: =IFERROR(IF($Y4="CY 2023",INDEX('6. CY 2023'!U:U,MATCH($C4,'6. CY 2023'!$A:$A,0)),0),0) -> 9758253.27 | AB4: =IFERROR(IF($Y4="CY 2023",INDEX('6. CY 2023'!W:W,MATCH($C4,'6. CY 2023'!$A:$A,0)),0),0) -> 6389004.58 | AC4: =IFERROR(IF($Y4="CY 2023",INDEX('6. CY 2023'!Y:Y,MATCH($C4,'6. CY 2023'!$A:$A,0)),0),0) -> 0 | AD4: =IFERROR(IF($Y4="CY 2023",INDEX('6. CY 2023'!AA:AA,MATCH($C4,'6. CY 2023'!$A:$A,0)),0),0) -> 8118900 | AE4: =IFERROR(IF($Y4="CY 2023",INDEX('6. CY 2023'!AC:AC,MATCH($C4,'6. CY 2023'!$A:$A,0)),0),0) -> 2209060 | AF4: =IFERROR(IF($Y4="CY 2023",INDEX('6. CY 2023'!AE:AE,MATCH($C4,'6. CY 2023'!$A:$A,0)),0),0) -> 26475217.85 | AG4: =IFERROR(IF(Y4="CY 2023",AF4/'4. Calculated Fee'!$D$32*'4. Calculated Fee'!$D$23,0),0) -> 6749503.118 | AH4: =IFERROR(IF($Y4="CY 2023",INDEX('6. CY 2023'!AE:AE,MATCH($C4,'6. CY 2023'!$A:$A,0)),0),0) -> 26475217.85 | AI4: =IFERROR(IF(Y4="CY 2023",INDEX('6. CY 2023'!AL:AL,MATCH(C4,'6. CY 2023'!A:A,0)),0),0) -> 4500138.091 | AJ4: =IFERROR(IF($Y4="CY 2023",INDEX('6. CY 2023'!AM:AM,MATCH($C4,'6. CY 2023'!$A:$A,0)),0),0) -> 4762441.499 | AK4: =IFERROR(IF($Y4="CY 2023",INDEX('6. CY 2023'!AN:AN,MATCH($C4,'6. CY 2023'!$A:$A,0)),0),0) -> 0 | AL4: =IFERROR(IF($Y4="CY 2023",INDEX('6. CY 2023'!AO:AO,MATCH($C4,'6. CY 2023'!$A:$A,0)),0),0) -> 0 | AM4: =IFERROR(IF($Y4="CY 2023",INDEX('6. CY 2023'!AP:AP,MATCH($C4,'6. CY 2023'!$A:$A,0)),0),0) -> 1530000 | AN4: =IFERROR(IF($Y4="CY 2023",INDEX('6. CY 2023'!AQ:AQ,MATCH($C4,'6. CY 2023'!$A:$A,0)),0),0) -> 0 | AO4: =IFERROR(IF($Y4="CY 2023",INDEX('6. CY 2023'!AR:AR,MATCH($C4,'6. CY 2023'!$A:$A,0)),0),0) -> 0 | AP4: =IFERROR(IF($Y4="CY 2023",INDEX('6. CY 2023'!AS:AS,MATCH($C4,'6. CY 2023'!$A:$A,0)),0),0) -> 0 | AQ4: =IFERROR(IF($Y4="CY 2023",INDEX('6. CY 2023'!AV:AV,MATCH($C4,'6. CY 2023'!$A:$A,0)),0),0) -> 10792579.59 | AR4: =IFERROR(IF($Y4="CY 2023",INDEX('6. CY 2023'!AX:AX,MATCH($C4,'6. CY 2023'!A:A,0)),0),0) -> 4086747.412 | AS4: =IFERROR(IF(Y4="CY 2023",INDEX('6. CY 2023'!AY:AY,MATCH(C4,'6. CY 2023'!A:A,0)),0),0) -> 38181198.85 | AT4: =IFERROR(IF($Y4="CY 2023",INDEX('6. CY 2023'!AZ:AZ,MATCH($C4,'6. CY 2023'!A:A,0)),0),0) -> 42267946.26 | AW4: =IFERROR(IF(Y4="CY 2023",INDEX('6. CY 2023'!H:H,MATCH(C4,'6. CY 2023'!A:A,0)),0),0) -> 542194203.2 | AX4: =SUM(AG4:AG17) -> 26580475.9
A5: 2 | B5: ADVENTIST HEALTH CLEARLAKE | C5: 106171049 | D5: ADVENTIST HEALTH CLEARLAKE | F5: =IFERROR(INDEX('8. 2019 HCAI (FEE) DAYS'!G:G,MATCH(C5,'8. 2019 HCAI (FEE) DAYS'!A:A,0)),0) -> 2019-01-01 | G5: =IFERROR(INDEX('8. 2019 HCAI (FEE) DAYS'!H:H,MATCH(C5,'8. 2019 HCAI (FEE) DAYS'!A:A,0)),0) -> 2019-12-31 | H5: =IFERROR(INDEX('8. 2019 HCAI (FEE) DAYS'!L:L,MATCH(C5,'8. 2019 HCAI (FEE) DAYS'!A:A,0)),0) -> 2019-01-01 | I5: =IFERROR(INDEX('11. Hospital Statuses'!M:M,MATCH(C5,'11. Hospital Statuses'!A:A,0)),"") -> Open | J5: Lake | K5: 1 | L5: 115 | M5: Non-Profit | N5: Comparable | O5: Rural | P5: https://www.adventisthealth.org/clear-lake/ | R5: ADVENTIST HEALTH | S5: 707-995-5705 | T5: 15630 18TH AVENUE | U5: CLEARLAKE | V5: 95422 | W5: DAVID SANTOS | X5: =IFERROR(IF(INDEX(#REF!,MATCH(C5,#REF!,0)),"Yes","No"),"") ->  | Y5: CY 2023 | Z5: =IFERROR(IF($Y5="CY 2023",INDEX('6. CY 2023'!S:S,MATCH($C5,'6. CY 2023'!$A:$A,0)),0),0) -> 0 | AA5: =IFERROR(IF($Y5="CY 2023",INDEX('6. CY 2023'!U:U,MATCH($C5,'6. CY 2023'!$A:$A,0)),0),0) -> 0 | AB5: =IFERROR(IF($Y5="CY 2023",INDEX('6. CY 2023'!W:W,MATCH($C5,'6. CY 2023'!$A:$A,0)),0),0) -> 0 | AC5: =IFERROR(IF($Y5="CY 2023",INDEX('6. CY 2023'!Y:Y,MATCH($C5,'6. CY 2023'!$A:$A,0)),0),0) -> 0 | AD5: =IFERROR(IF($Y5="CY 2023",INDEX('6. CY 2023'!AA:AA,MATCH($C5,'6. CY 2023'!$A:$A,0)),0),0) -> 0 | AE5: =IFERROR(IF($Y5="CY 2023",INDEX('6. CY 2023'!AC:AC,MATCH($C5,'6. CY 2023'!$A:$A,0)),0),0) -> 0 | AF5: =IFERROR(IF($Y5="CY 2023",INDEX('6. CY 2023'!AE:AE,MATCH($C5,'6. CY 2023'!$A:$A,0)),0),0) -> 0 | AG5: =IFERROR(IF(Y5="CY 2023",AF5/'4. Calculated Fee'!$D$32*'4. Calculated Fee'!$D$23,0),0) -> 0 | AH5: =IFERROR(IF($Y5="CY 2023",INDEX('6. CY 2023'!AE:AE,MATCH($C5,'6. CY 2023'!$A:$A,0)),0),0) -> 0 | AI5: =IFERROR(IF(Y5="CY 2023",INDEX('6. CY 2023'!AL:AL,MATCH(C5,'6. CY 2023'!A:A,0)),0),0) -> 671197.1767 | AJ5: =IFERROR(IF($Y5="CY 2023",INDEX('6. CY 2023'!AM:AM,MATCH($C5,'6. CY 2023'!$A:$A,0)),0),0) -> 322731.5224 | AK5: =IFERROR(IF($Y5="CY 2023",INDEX('6. CY 2023'!AN:AN,MATCH($C5,'6. CY 2023'!$A:$A,0)),0),0) -> 0 | AL5: =IFERROR(IF($Y5="CY 2023",INDEX('6. CY 2023'!AO:AO,MATCH($C5,'6. CY 2023'!$A:$A,0)),0),0) -> 0 | AM5: =IFERROR(IF($Y5="CY 2023",INDEX('6. CY 2023'!AP:AP,MATCH($C5,'6. CY 2023'!$A:$A,0)),0),0) -> 0 | AN5: =IFERROR(IF($Y5="CY 2023",INDEX('6. CY 2023'!AQ:AQ,MATCH($C5,'6. CY 2023'!$A:$A,0)),0),0) -> 0 | AO5: =IFERROR(IF($Y5="CY 2023",INDEX('6. CY 2023'!AR:AR,MATCH($C5,'6. CY 2023'!$A:$A,0)),0),0) -> 0 | AP5: =IFERROR(IF($Y5="CY 2023",INDEX('6. CY 2023'!AS:AS,MATCH($C5,'6. CY 2023'!$A:$A,0)),0),0) -> 0 | AQ5: =IFERROR(IF($Y5="CY 2023",INDEX('6. CY 2023'!AV:AV,MATCH($C5,'6. CY 2023'!$A:$A,0)),0),0) -> 993928.6991 | AR5: =IFERROR(IF($Y5="CY 2023",INDEX('6. CY 2023'!AX:AX,MATCH($C5,'6. CY 2023'!A:A,0)),0),0) -> 1757634.863 | AS5: =IFERROR(IF(Y5="CY 2023",INDEX('6. CY 2023'!AY:AY,MATCH(C5,'6. CY 2023'!A:A,0)),0),0) -> 11618821.43 | AT5: =IFERROR(IF($Y5="CY 2023",INDEX('6. CY 2023'!AZ:AZ,MATCH($C5,'6. CY 2023'!A:A,0)),0),0) -> 13376456.3 | AW5: =IFERROR(IF(Y5="CY 2023",INDEX('6. CY 2023'!H:H,MATCH(C5,'6. CY 2023'!A:A,0)),0),0) -> 131702901.2
A6: 3 | B6: ADVENTIST HEALTH FEATHER RIVER | C6: 106040875 | D6: ADVENTIST HEALTH FEATHER RIVER | F6: =IFERROR(INDEX('8. 2019 HCAI (FEE) DAYS'!G:G,MATCH(C6,'8. 2019 HCAI (FEE) DAYS'!A:A,0)),0) -> - | G6: =IFERROR(INDEX('8. 2019 HCAI (FEE) DAYS'!H:H,MATCH(C6,'8. 2019 HCAI (FEE) DAYS'!A:A,0)),0) -> - | H6: =IFERROR(INDEX('8. 2019 HCAI (FEE) DAYS'!L:L,MATCH(C6,'8. 2019 HCAI (FEE) DAYS'!A:A,0)),0) -> 2019-01-01 | I6: =IFERROR(INDEX('11. Hospital Statuses'!M:M,MATCH(C6,'11. Hospital Statuses'!A:A,0)),"") -> Closed | P6: https://www.adventisthealth.org/feather-river/ | X6: =IFERROR(IF(INDEX(#REF!,MATCH(C6,#REF!,0)),"Yes","No"),"") ->  | Y6: CY 2023 | Z6: =IFERROR(IF($Y6="CY 2023",INDEX('6. CY 2023'!S:S,MATCH($C6,'6. CY 2023'!$A:$A,0)),0),0) -> 0 | AA6: =IFERROR(IF($Y6="CY 2023",INDEX('6. CY 2023'!U:U,MATCH($C6,'6. CY 2023'!$A:$A,0)),0),0) -> 0 | AB6: =IFERROR(IF($Y6="CY 2023",INDEX('6. CY 2023'!W:W,MATCH($C6,'6. CY 2023'!$A:$A,0)),0),0) -> 0 | AC6: =IFERROR(IF($Y6="CY 2023",INDEX('6. CY 2023'!Y:Y,MATCH($C6,'6. CY 2023'!$A:$A,0)),0),0) -> 0 | AD6: =IFERROR(IF($Y6="CY 2023",INDEX('6. CY 2023'!AA:AA,MATCH($C6,'6. CY 2023'!$A:$A,0)),0),0) -> 0 | AE6: =IFERROR(IF($Y6="CY 2023",INDEX('6. CY 2023'!AC:AC,MATCH($C6,'6. CY 2023'!$A:$A,0)),0),0) -> 0 | AF6: =IFERROR(IF($Y6="CY 2023",INDEX('6. CY 2023'!AE:AE,MATCH($C6,'6. CY 2023'!$A:$A,0)),0),0) -> 0 | AG6: =IFERROR(IF(Y6="CY 2023",AF6/'4. Calculated Fee'!$D$32*'4. Calculated Fee'!$D$23,0),0) -> 0 | AH6: =IFERROR(IF($Y6="CY 2023",INDEX('6. CY 2023'!AE:AE,MATCH($C6,'6. CY 2023'!$A:$A,0)),0),0) -> 0 | AI6: =IFERROR(IF(Y6="CY 2023",INDEX('6. CY 2023'!AL:AL,MATCH(C6,'6. CY 2023'!A:A,0)),0),0) -> 0 | AJ6: =IFERROR(IF($Y6="CY 2023",INDEX('6. CY 2023'!AM:AM,MATCH($C6,'6. CY 2023'!$A:$A,0)),0),0) -> 0 | AK6: =IFERROR(IF($Y6="CY 2023",INDEX('6. CY 2023'!AN:AN,MATCH($C6,'6. CY 2023'!$A:$A,0)),0),0) -> 0 | AL6: =IFERROR(IF($Y6="CY 2023",INDEX('6. CY 2023'!AO:AO,MATCH($C6,'6. CY 2023'!$A:$A,0)),0),0) -> 0 | AM6: =IFERROR(IF($Y6="CY 2023",INDEX('6. CY 2023'!AP:AP,MATCH($C6,'6. CY 2023'!$A:$A,0)),0),0) -> 0 | AN6: =IFERROR(IF($Y6="CY 2023",INDEX('6. CY 2023'!AQ:AQ,MATCH($C6,'6. CY 2023'!$A:$A,0)),0),0) -> 0 | AO6: =IFERROR(IF($Y6="CY 2023",INDEX('6. CY 2023'!AR:AR,MATCH($C6,'6. CY 2023'!$A:$A,0)),0),0) -> 0 | AP6: =IFERROR(IF($Y6="CY 2023",INDEX('6. CY 2023'!AS:AS,MATCH($C6,'6. CY 2023'!$A:$A,0)),0),0) -> 0 | AQ6: =IFERROR(IF($Y6="CY 2023",INDEX('6. CY 2023'!AV:AV,MATCH($C6,'6. CY 2023'!$A:$A,0)),0),0) -> 0 | AR6: =IFERROR(IF($Y6="CY 2023",INDEX('6. CY 2023'!AX:AX,MATCH($C6,'6. CY 2023'!A:A,0)),0),0) -> 0 | AS6: =IFERROR(IF(Y6="CY 2023",INDEX('6. CY 2023'!AY:AY,MATCH(C6,'6. CY 2023'!A:A,0)),0),0) -> 0 | AT6: =IFERROR(IF($Y6="CY 2023",INDEX('6. CY 2023'!AZ:AZ,MATCH($C6,'6. CY 2023'!A:A,0)),0),0) -> 0 | AW6: =IFERROR(IF(Y6="CY 2023",INDEX('6. CY 2023'!H:H,MATCH(C6,'6. CY 2023'!A:A,0)),0),0) -> 122011734.4
A7: 4 | B7: ADVENTIST HEALTH GLENDALE | C7: 106190323 | D7: ADVENTIST HEALTH GLENDALE | F7: =IFERROR(INDEX('8. 2019 HCAI (FEE) DAYS'!G:G,MATCH(C7,'8. 2019 HCAI (FEE) DAYS'!A:A,0)),0) -> 2019-01-01 | G7: =IFERROR(INDEX('8. 2019 HCAI (FEE) DAYS'!H:H,MATCH(C7,'8. 2019 HCAI (FEE) DAYS'!A:A,0)),0) -> 2019-12-31 | H7: =IFERROR(INDEX('8. 2019 HCAI (FEE) DAYS'!L:L,MATCH(C7,'8. 2019 HCAI (FEE) DAYS'!A:A,0)),0) -> 2019-01-01 | I7: =IFERROR(INDEX('11. Hospital Statuses'!M:M,MATCH(C7,'11. Hospital Statuses'!A:A,0)),"") -> Open | J7: Los Angeles | K7: 11 | L7: 909 | M7: Non-Profit | N7: Comparable | P7: http://www.glendaleadventist.com | R7: ADVENTIST HEALTH | S7: 818-409-8000 | T7: 1509 WILSON TERRACE | U7: GLENDALE | V7: 91206 | W7: ALICE ISSAI | X7: =IFERROR(IF(INDEX(#REF!,MATCH(C7,#REF!,0)),"Yes","No"),"") ->  | Y7: CY 2023 | Z7: =IFERROR(IF($Y7="CY 2023",INDEX('6. CY 2023'!S:S,MATCH($C7,'6. CY 2023'!$A:$A,0)),0),0) -> 0 | AA7: =IFERROR(IF($Y7="CY 2023",INDEX('6. CY 2023'!U:U,MATCH($C7,'6. CY 2023'!$A:$A,0)),0),0) -> 7898408.94 | AB7: =IFERROR(IF($Y7="CY 2023",INDEX('6. CY 2023'!W:W,MATCH($C7,'6. CY 2023'!$A:$A,0)),0),0) -> 17345963.14 | AC7: =IFERROR(IF($Y7="CY 2023",INDEX('6. CY 2023'!Y:Y,MATCH($C7,'6. CY 2023'!$A:$A,0)),0),0) -> 0 | AD7: =IFERROR(IF($Y7="CY 2023",INDEX('6. CY 2023'!AA:AA,MATCH($C7,'6. CY 2023'!$A:$A,0)),0),0) -> 8596300 | AE7: =IFERROR(IF($Y7="CY 2023",INDEX('6. CY 2023'!AC:AC,MATCH($C7,'6. CY 2023'!$A:$A,0)),0),0) -> 7854780 | AF7: =IFERROR(IF($Y7="CY 2023",INDEX('6. CY 2023'!AE:AE,MATCH($C7,'6. CY 2023'!$A:$A,0)),0),0) -> 41695452.08 | AG7: =IFERROR(IF(Y7="CY 2023",AF7/'4. Calculated Fee'!$D$32*'4. Calculated Fee'!$D$23,0),0) -> 10629698.51 | AH7: =IFERROR(IF($Y7="CY 2023",INDEX('6. CY 2023'!AE:AE,MATCH($C7,'6. CY 2023'!$A:$A,0)),0),0) -> 41695452.08 | AI7: =IFERROR(IF(Y7="CY 2023",INDEX('6. CY 2023'!AL:AL,MATCH(C7,'6. CY 2023'!A:A,0)),0),0) -> 2583078.107 | AJ7: =IFERROR(IF($Y7="CY 2023",INDEX('6. CY 2023'!AM:AM,MATCH($C7,'6. CY 2023'!$A:$A,0)),0),0) -> 4651637.01 | AK7: =IFERROR(IF($Y7="CY 2023",INDEX('6. CY 2023'!AN:AN,MATCH($C7,'6. CY 2023'!$A:$A,0)),0),0) -> 0 | AL7: =IFERROR(IF($Y7="CY 2023",INDEX('6. CY 2023'!AO:AO,MATCH($C7,'6. CY 2023'!$A:$A,0)),0),0) -> 609375 | AM7: =IFERROR(IF($Y7="CY 2023",INDEX('6. CY 2023'!AP:AP,MATCH($C7,'6. CY 2023'!$A:$A,0)),0),0) -> 1255000 | AN7: =IFERROR(IF($Y7="CY 2023",INDEX('6. CY 2023'!AQ:AQ,MATCH($C7,'6. CY 2023'!$A:$A,0)),0),0) -> 0 | AO7: =IFERROR(IF($Y7="CY 2023",INDEX('6. CY 2023'!AR:AR,MATCH($C7,'6. CY 2023'!$A:$A,0)),0),0) -> 5000 | AP7: =IFERROR(IF($Y7="CY 2023",INDEX('6. CY 2023'!AS:AS,MATCH($C7,'6. CY 2023'!$A:$A,0)),0),0) -> 0 | AQ7: =IFERROR(IF($Y7="CY 2023",INDEX('6. CY 2023'!AV:AV,MATCH($C7,'6. CY 2023'!$A:$A,0)),0),0) -> 9104090.117 | AR7: =IFERROR(IF($Y7="CY 2023",INDEX('6. CY 2023'!AX:AX,MATCH($C7,'6. CY 2023'!A:A,0)),0),0) -> 12982978.18 | AS7: =IFERROR(IF(Y7="CY 2023",INDEX('6. CY 2023'!AY:AY,MATCH(C7,'6. CY 2023'!A:A,0)),0),0) -> 31125664.93 | AT7: =IFERROR(IF($Y7="CY 2023",INDEX('6. CY 2023'!AZ:AZ,MATCH($C7,'6. CY 2023'!A:A,0)),0),0) -> 44108643.11 | AW7: =IFERROR(IF(Y7="CY 2023",INDEX('6. CY 2023'!H:H,MATCH(C7,'6. CY 2023'!A:A,0)),0),0) -> 592257389.8
A8: 5 | B8: ADVENTIST HEALTH HANFORD | C8: 106164029 | D8: ADVENTIST HEALTH HANFORD | F8: =IFERROR(INDEX('8. 2019 HCAI (FEE) DAYS'!G:G,MATCH(C8,'8. 2019 HCAI (FEE) DAYS'!A:A,0)),0) -> 2019-01-01 | G8: =IFERROR(INDEX('8. 2019 HCAI (FEE) DAYS'!H:H,MATCH(C8,'8. 2019 HCAI (FEE) DAYS'!A:A,0)),0) -> 2019-12-31 | H8: =IFERROR(INDEX('8. 2019 HCAI (FEE) DAYS'!L:L,MATCH(C8,'8. 2019 HCAI (FEE) DAYS'!A:A,0)),0) -> 2019-01-01 | I8: =IFERROR(INDEX('11. Hospital Statuses'!M:M,MATCH(C8,'11. Hospital Statuses'!A:A,0)),"") -> Open | J8: Kings | K8: 9 | L8: 615 | M8: Non-Profit | N8: Comparable | O8: Rural | P8: HTTPS://WWW.ADVENTISTHEALTH.ORG/HANFORD/ | R8: ADVENTIST HEALTH | S8: 559-582-9000 | T8: 115 MALL DRIVE | U8: HANFORD | V8: 93232 | W8: ANDREA KOFL | X8: =IFERROR(IF(INDEX(#REF!,MATCH(C8,#REF!,0)),"Yes","No"),"") ->  | Y8: CY 2023 | Z8: =IFERROR(IF($Y8="CY 2023",INDEX('6. CY 2023'!S:S,MATCH($C8,'6. CY 2023'!$A:$A,0)),0),0) -> 0 | AA8: =IFERROR(IF($Y8="CY 2023",INDEX('6. CY 2023'!U:U,MATCH($C8,'6. CY 2023'!$A:$A,0)),0),0) -> 0 | AB8: =IFERROR(IF($Y8="CY 2023",INDEX('6. CY 2023'!W:W,MATCH($C8,'6. CY 2023'!$A:$A,0)),0),0) -> 0 | AC8: =IFERROR(IF($Y8="CY 2023",INDEX('6. CY 2023'!Y:Y,MATCH($C8,'6. CY 2023'!$A:$A,0)),0),0) -> 0 | AD8: =IFERROR(IF($Y8="CY 2023",INDEX('6. CY 2023'!AA:AA,MATCH($C8,'6. CY 2023'!$A:$A,0)),0),0) -> 0 | AE8: =IFERROR(IF($Y8="CY 2023",INDEX('6. CY 2023'!AC:AC,MATCH($C8,'6. CY 2023'!$A:$A,0)),0),0) -> 0 | AF8: =IFERROR(IF($Y8="CY 2023",INDEX('6. CY 2023'!AE:AE,MATCH($C8,'6. CY 2023'!$A:$A,0)),0),0) -> 0 | AG8: =IFERROR(IF(Y8="CY 2023",AF8/'4. Calculated Fee'!$D$32*'4. Calculated Fee'!$D$23,0),0) -> 0 | AH8: =IFERROR(IF($Y8="CY 2023",INDEX('6. CY 2023'!AE:AE,MATCH($C8,'6. CY 2023'!$A:$A,0)),0),0) -> 0 | AI8: =IFERROR(IF(Y8="CY 2023",INDEX('6. CY 2023'!AL:AL,MATCH(C8,'6. CY 2023'!A:A,0)),0),0) -> 4007225.795 | AJ8: =IFERROR(IF($Y8="CY 2023",INDEX('6. CY 2023'!AM:AM,MATCH($C8,'6. CY 2023'!$A:$A,0)),0),0) -> 4920579.945 | AK8: =IFERROR(IF($Y8="CY 2023",INDEX('6. CY 2023'!AN:AN,MATCH($C8,'6. CY 2023'!$A:$A,0)),0),0) -> 0 | AL8: =IFERROR(IF($Y8="CY 2023",INDEX('6. CY 2023'!AO:AO,MATCH($C8,'6. CY 2023'!$A:$A,0)),0),0) -> 0 | AM8: =IFERROR(IF($Y8="CY 2023",INDEX('6. CY 2023'!AP:AP,MATCH($C8,'6. CY 2023'!$A:$A,0)),0),0) -> 0 | AN8: =IFERROR(IF($Y8="CY 2023",INDEX('6. CY 2023'!AQ:AQ,MATCH($C8,'6. CY 2023'!$A:$A,0)),0),0) -> 0 | AO8: =IFERROR(IF($Y8="CY 2023",INDEX('6. CY 2023'!AR:AR,MATCH($C8,'6. CY 2023'!$A:$A,0)),0),0) -> 0 | AP8: =IFERROR(IF($Y8="CY 2023",INDEX('6. CY 2023'!AS:AS,MATCH($C8,'6. CY 2023'!$A:$A,0)),0),0) -> 725000 | AQ8: =IFERROR(IF($Y8="CY 2023",INDEX('6. CY 2023'!AV:AV,MATCH($C8,'6. CY 2023'!$A:$A,0)),0),0) -> 9652805.74 | AR8: =IFERROR(IF($Y8="CY 2023",INDEX('6. CY 2023'!AX:AX,MATCH($C8,'6. CY 2023'!A:A,0)),0),0) -> 8353034.014 | AS8: =IFERROR(IF(Y8="CY 2023",INDEX('6. CY 2023'!AY:AY,MATCH(C8,'6. CY 2023'!A:A,0)),0),0) -> 41312381.71 | AT8: =IFERROR(IF($Y8="CY 2023",INDEX('6. CY 2023'!AZ:AZ,MATCH($C8,'6. CY 2023'!A:A,0)),0),0) -> 49665415.72 | AW8: =IFERROR(IF(Y8="CY 2023",INDEX('6. CY 2023'!H:H,MATCH(C8,'6. CY 2023'!A:A,0)),0),0) -> 407042608.3
A9: 6 | B9: ADVENTIST HEALTH HOWARD MEMORIAL | C9: 106234038 | D9: ADVENTIST HEALTH HOWARD MEMORIAL | F9: =IFERROR(INDEX('8. 2019 HCAI (FEE) DAYS'!G:G,MATCH(C9,'8. 2019 HCAI (FEE) DAYS'!A:A,0)),0) -> 2019-01-01 | G9: =IFERROR(INDEX('8. 2019 HCAI (FEE) DAYS'!H:H,MATCH(C9,'8. 2019 HCAI (FEE) DAYS'!A:A,0)),0) -> 2019-12-31 | H9: =IFERROR(INDEX('8. 2019 HCAI (FEE) DAYS'!L:L,MATCH(C9,'8. 2019 HCAI (FEE) DAYS'!A:A,0)),0) -> 2019-01-01 | I9: =IFERROR(INDEX('11. Hospital Statuses'!M:M,MATCH(C9,'11. Hospital Statuses'!A:A,0)),"") -> Open | J9: Mendocino | K9: 1 | L9: 112 | M9: Non-Profit | N9: Comparable | O9: Rural | P9: https://www.adventisthealth.org/howard-memorial/ | R9: ADVENTIST HEALTH | S9: 707-459-6801 | T9: 1 MARCELA DRIVE | U9: WILLITS | V9: 95490 | W9: JASON WELLS | X9: =IFERROR(IF(INDEX(#REF!,MATCH(C9,#REF!,0)),"Yes","No"),"") ->  | Y9: CY 2023 | Z9: =IFERROR(IF($Y9="CY 2023",INDEX('6. CY 2023'!S:S,MATCH($C9,'6. CY 2023'!$A:$A,0)),0),0) -> 0 | AA9: =IFERROR(IF($Y9="CY 2023",INDEX('6. CY 2023'!U:U,MATCH($C9,'6. CY 2023'!$A:$A,0)),0),0) -> 0 | AB9: =IFERROR(IF($Y9="CY 2023",INDEX('6. CY 2023'!W:W,MATCH($C9,'6. CY 2023'!$A:$A,0)),0),0) -> 0 | AC9: =IFERROR(IF($Y9="CY 2023",INDEX('6. CY 2023'!Y:Y,MATCH($C9,'6. CY 2023'!$A:$A,0)),0),0) -> 0 | AD9: =IFERROR(IF($Y9="CY 2023",INDEX('6. CY 2023'!AA:AA,MATCH($C9,'6. CY 2023'!$A:$A,0)),0),0) -> 0 | AE9: =IFERROR(IF($Y9="CY 2023",INDEX('6. CY 2023'!AC:AC,MATCH($C9,'6. CY 2023'!$A:$A,0)),0),0) -> 0 | AF9: =IFERROR(IF($Y9="CY 2023",INDEX('6. CY 2023'!AE:AE,MATCH($C9,'6. CY 2023'!$A:$A,0)),0),0) -> 0 | AG9: =IFERROR(IF(Y9="CY 2023",AF9/'4. Calculated Fee'!$D$32*'4. Calculated Fee'!$D$23,0),0) -> 0 | AH9: =IFERROR(IF($Y9="CY 2023",INDEX('6. CY 2023'!AE:AE,MATCH($C9,'6. CY 2023'!$A:$A,0)),0),0) -> 0 | AI9: =IFERROR(IF(Y9="CY 2023",INDEX('6. CY 2023'!AL:AL,MATCH(C9,'6. CY 2023'!A:A,0)),0),0) -> 393137.4365 | AJ9: =IFERROR(IF($Y9="CY 2023",INDEX('6. CY 2023'!AM:AM,MATCH($C9,'6. CY 2023'!$A:$A,0)),0),0) -> 387277.8269 | AK9: =IFERROR(IF($Y9="CY 2023",INDEX('6. CY 2023'!AN:AN,MATCH($C9,'6. CY 2023'!$A:$A,0)),0),0) -> 0 | AL9: =IFERROR(IF($Y9="CY 2023",INDEX('6. CY 2023'!AO:AO,MATCH($C9,'6. CY 2023'!$A:$A,0)),0),0) -> 0 | AM9: =IFERROR(IF($Y9="CY 2023",INDEX('6. CY 2023'!AP:AP,MATCH($C9,'6. CY 2023'!$A:$A,0)),0),0) -> 0 | AN9: =IFERROR(IF($Y9="CY 2023",INDEX('6. CY 2023'!AQ:AQ,MATCH($C9,'6. CY 2023'!$A:$A,0)),0),0) -> 0 | AO9: =IFERROR(IF($Y9="CY 2023",INDEX('6. CY 2023'!AR:AR,MATCH($C9,'6. CY 2023'!$A:$A,0)),0),0) -> 0 | AP9: =IFERROR(IF($Y9="CY 2023",INDEX('6. CY 2023'!AS:AS,MATCH($C9,'6. CY 2023'!$A:$A,0)),0),0) -> 120000 | AQ9: =IFERROR(IF($Y9="CY 2023",INDEX('6. CY 2023'!AV:AV,MATCH($C9,'6. CY 2023'!$A:$A,0)),0),0) -> 900415.2634 | AR9: =IFERROR(IF($Y9="CY 2023",INDEX('6. CY 2023'!AX:AX,MATCH($C9,'6. CY 2023'!A:A,0)),0),0) -> 1064774.964 | AS9: =IFERROR(IF(Y9="CY 2023",INDEX('6. CY 2023'!AY:AY,MATCH(C9,'6. CY 2023'!A:A,0)),0),0) -> 6528163.22 | AT9: =IFERROR(IF($Y9="CY 2023",INDEX('6. CY 2023'!AZ:AZ,MATCH($C9,'6. CY 2023'!A:A,0)),0),0) -> 7592938.184 | AW9: =IFERROR(IF(Y9="CY 2023",INDEX('6. CY 2023'!H:H,MATCH(C9,'6. CY 2023'!A:A,0)),0),0) -> 89165118.78
A10: 7 | B10: ADVENTIST HEALTH LODI MEMORIAL | C10: 106390923 | D10: ADVENTIST HEALTH LODI MEMORIAL | F10: =IFERROR(INDEX('8. 2019 HCAI (FEE) DAYS'!G:G,MATCH(C10,'8. 2019 HCAI (FEE) DAYS'!A:A,0)),0) -> 2019-01-01 | G10: =IFERROR(INDEX('8. 2019 HCAI (FEE) DAYS'!H:H,MATCH(C10,'8. 2019 HCAI (FEE) DAYS'!A:A,0)),0) -> 2019-12-31 | H10: =IFERROR(INDEX('8. 2019 HCAI (FEE) DAYS'!L:L,MATCH(C10,'8. 2019 HCAI (FEE) DAYS'!A:A,0)),0) -> 2019-01-01 | I10: =IFERROR(INDEX('11. Hospital Statuses'!M:M,MATCH(C10,'11. Hospital Statuses'!A:A,0)),"") -> Open | J10: San Joaquin | K10: 6 | L10: 505 | M10: Non-Profit | N10: Comparable | P10: https://www.adventisthealth.org/LODIMEMORIAL/PAGES/HOME | R10: LODI MEMORIAL HOSPITAL ASSOCIATION, INC. | S10: 209-334-3411 | T10: 975 SOUTH FAIRMONT AVENUE | U10: LODI | V10: 95240-5118 | W10: DANIEL WOLCOTT | X10: =IFERROR(IF(INDEX(#REF!,MATCH(C10,#REF!,0)),"Yes","No"),"") ->  | Y10: CY 2023 | Z10: =IFERROR(IF($Y10="CY 2023",INDEX('6. CY 2023'!S:S,MATCH($C10,'6. CY 2023'!$A:$A,0)),0),0) -> 0 | AA10: =IFERROR(IF($Y10="CY 2023",INDEX('6. CY 2023'!U:U,MATCH($C10,'6. CY 2023'!$A:$A,0)),0),0) -> 2682671.28 | AB10: =IFERROR(IF($Y10="CY 2023",INDEX('6. CY 2023'!W:W,MATCH($C10,'6. CY 2023'!$A:$A,0)),0),0) -> 5119743.26 | AC10: =IFERROR(IF($Y10="CY 2023",INDEX('6. CY 2023'!Y:Y,MATCH($C10,'6. CY 2023'!$A:$A,0)),0),0) -> 0 | AD10: =IFERROR(IF($Y10="CY 2023",INDEX('6. CY 2023'!AA:AA,MATCH($C10,'6. CY 2023'!$A:$A,0)),0),0) -> 3977920 | AE10: =IFERROR(IF($Y10="CY 2023",INDEX('6. CY 2023'!AC:AC,MATCH($C10,'6. CY 2023'!$A:$A,0)),0),0) -> 1489860 | AF10: =IFERROR(IF($Y10="CY 2023",INDEX('6. CY 2023'!AE:AE,MATCH($C10,'6. CY 2023'!$A:$A,0)),0),0) -> 13270194.54 | AG10: =IFERROR(IF(Y10="CY 2023",AF10/'4. Calculated Fee'!$D$32*'4. Calculated Fee'!$D$23,0),0) -> 3383058.826 | AH10: =IFERROR(IF($Y10="CY 2023",INDEX('6. CY 2023'!AE:AE,MATCH($C10,'6. CY 2023'!$A:$A,0)),0),0) -> 13270194.54 | AI10: =IFERROR(IF(Y10="CY 2023",INDEX('6. CY 2023'!AL:AL,MATCH(C10,'6. CY 2023'!A:A,0)),0),0) -> 3617574.035 | AJ10: =IFERROR(IF($Y10="CY 2023",INDEX('6. CY 2023'!AM:AM,MATCH($C10,'6. CY 2023'!$A:$A,0)),0),0) -> 3150935.43 | AK10: =IFERROR(IF($Y10="CY 2023",INDEX('6. CY 2023'!AN:AN,MATCH($C10,'6. CY 2023'!$A:$A,0)),0),0) -> 0 | AL10: =IFERROR(IF($Y10="CY 2023",INDEX('6. CY 2023'!AO:AO,MATCH($C10,'6. CY 2023'!$A:$A,0)),0),0) -> 0 | AM10: =IFERROR(IF($Y10="CY 2023",INDEX('6. CY 2023'!AP:AP,MATCH($C10,'6. CY 2023'!$A:$A,0)),0),0) -> 652500 | AN10: =IFERROR(IF($Y10="CY 2023",INDEX('6. CY 2023'!AQ:AQ,MATCH($C10,'6. CY 2023'!$A:$A,0)),0),0) -> 0 | AO10: =IFERROR(IF($Y10="CY 2023",INDEX('6. CY 2023'!AR:AR,MATCH($C10,'6. CY 2023'!$A:$A,0)),0),0) -> 0 | AP10: =IFERROR(IF($Y10="CY 2023",INDEX('6. CY 2023'!AS:AS,MATCH($C10,'6. CY 2023'!$A:$A,0)),0),0) -> 0 | AQ10: =IFERROR(IF($Y10="CY 2023",INDEX('6. CY 2023'!AV:AV,MATCH($C10,'6. CY 2023'!$A:$A,0)),0),0) -> 7421009.466 | AR10: =IFERROR(IF($Y10="CY 2023",INDEX('6. CY 2023'!AX:AX,MATCH($C10,'6. CY 2023'!A:A,0)),0),0) -> 2968455.306 | AS10: =IFERROR(IF(Y10="CY 2023",INDEX('6. CY 2023'!AY:AY,MATCH(C10,'6. CY 2023'!A:A,0)),0),0) -> 33339695.3 | AT10: =IFERROR(IF($Y10="CY 2023",INDEX('6. CY 2023'!AZ:AZ,MATCH($C10,'6. CY 2023'!A:A,0)),0),0) -> 36308150.61 | AW10: =IFERROR(IF(Y10="CY 2023",INDEX('6. CY 2023'!H:H,MATCH(C10,'6. CY 2023'!A:A,0)),0),0) -> 302368635.8
A11: 8 | B11: ADVENTIST HEALTH REEDLEY | C11: 106100797 | D11: ADVENTIST HEALTH REEDLEY | F11: =IFERROR(INDEX('8. 2019 HCAI (FEE) DAYS'!G:G,MATCH(C11,'8. 2019 HCAI (FEE) DAYS'!A:A,0)),0) -> 2019-01-01 | G11: =IFERROR(INDEX('8. 2019 HCAI (FEE) DAYS'!H:H,MATCH(C11,'8. 2019 HCAI (FEE) DAYS'!A:A,0)),0) -> 2019-12-31 | H11: =IFERROR(INDEX('8. 2019 HCAI (FEE) DAYS'!L:L,MATCH(C11,'8. 2019 HCAI (FEE) DAYS'!A:A,0)),0) -> 2019-01-01 | I11: =IFERROR(INDEX('11. Hospital Statuses'!M:M,MATCH(C11,'11. Hospital Statuses'!A:A,0)),"") -> Open | J11: Fresno | K11: 9 | L11: 607 | M11: Non-Profit | N11: Comparable | O11: Rural | P11: HTTPS://WWW.ADVENTISTHEALTH.ORG/REEDLEY/ | R11: ADVENTIST HEALTH | S11: 559-638-8155 | T11: 372 WEST CYPRESS AVENUE | U11: REEDLEY | V11: 93654 | W11: ANDREA KOFL | X11: =IFERROR(IF(INDEX(#REF!,MATCH(C11,#REF!,0)),"Yes","No"),"") ->  | Y11: CY 2023 | Z11: =IFERROR(IF($Y11="CY 2023",INDEX('6. CY 2023'!S:S,MATCH($C11,'6. CY 2023'!$A:$A,0)),0),0) -> 0 | AA11: =IFERROR(IF($Y11="CY 2023",INDEX('6. CY 2023'!U:U,MATCH($C11,'6. CY 2023'!$A:$A,0)),0),0) -> 0 | AB11: =IFERROR(IF($Y11="CY 2023",INDEX('6. CY 2023'!W:W,MATCH($C11,'6. CY 2023'!$A:$A,0)),0),0) -> 0 | AC11: =IFERROR(IF($Y11="CY 2023",INDEX('6. CY 2023'!Y:Y,MATCH($C11,'6. CY 2023'!$A:$A,0)),0),0) -> 0 | AD11: =IFERROR(IF($Y11="CY 2023",INDEX('6. CY 2023'!AA:AA,MATCH($C11,'6. CY 2023'!$A:$A,0)),0),0) -> 0 | AE11: =IFERROR(IF($Y11="CY 2023",INDEX('6. CY 2023'!AC:AC,MATCH($C11,'6. CY 2023'!$A:$A,0)),0),0) -> 0 | AF11: =IFERROR(IF($Y11="CY 2023",INDEX('6. CY 2023'!AE:AE,MATCH($C11,'6. CY 2023'!$A:$A,0)),0),0) -> 0 | AG11: =IFERROR(IF(Y11="CY 2023",AF11/'4. Calculated Fee'!$D$32*'4. Calculated Fee'!$D$23,0),0) -> 0 | AH11: =IFERROR(IF($Y11="CY 2023",INDEX('6. CY 2023'!AE:AE,MATCH($C11,'6. CY 2023'!$A:$A,0)),0),0) -> 0 | AI11: =IFERROR(IF(Y11="CY 2023",INDEX('6. CY 2023'!AL:AL,MATCH(C11,'6. CY 2023'!A:A,0)),0),0) -> 1522512.751 | AJ11: =IFERROR(IF($Y11="CY 2023",INDEX('6. CY 2023'!AM:AM,MATCH($C11,'6. CY 2023'!$A:$A,0)),0),0) -> 1144621.133 | AK11: =IFERROR(IF($Y11="CY 2023",INDEX('6. CY 2023'!AN:AN,MATCH($C11,'6. CY 2023'!$A:$A,0)),0),0) -> 0 | AL11: =IFERROR(IF($Y11="CY 2023",INDEX('6. CY 2023'!AO:AO,MATCH($C11,'6. CY 2023'!$A:$A,0)),0),0) -> 0 | AM11: =IFERROR(IF($Y11="CY 2023",INDEX('6. CY 2023'!AP:AP,MATCH($C11,'6. CY 2023'!$A:$A,0)),0),0) -> 0 | AN11: =IFERROR(IF($Y11="CY 2023",INDEX('6. CY 2023'!AQ:AQ,MATCH($C11,'6. CY 2023'!$A:$A,0)),0),0) -> 0 | AO11: =IFERROR(IF($Y11="CY 2023",INDEX('6. CY 2023'!AR:AR,MATCH($C11,'6. CY 2023'!$A:$A,0)),0),0) -> 0 | AP11: =IFERROR(IF($Y11="CY 2023",INDEX('6. CY 2023'!AS:AS,MATCH($C11,'6. CY 2023'!$A:$A,0)),0),0) -> 0 | AQ11: =IFERROR(IF($Y11="CY 2023",INDEX('6. CY 2023'!AV:AV,MATCH($C11,'6. CY 2023'!$A:$A,0)),0),0) -> 2667133.884 | AR11: =IFERROR(IF($Y11="CY 2023",INDEX('6. CY 2023'!AX:AX,MATCH($C11,'6. CY 2023'!A:A,0)),0),0) -> 1718863.157 | AS11: =IFERROR(IF(Y11="CY 2023",INDEX('6. CY 2023'!AY:AY,MATCH(C11,'6. CY 2023'!A:A,0)),0),0) -> 19190087.32 | AT11: =IFERROR(IF($Y11="CY 2023",INDEX('6. CY 2023'!AZ:AZ,MATCH($C11,'6. CY 2023'!A:A,0)),0),0) -> 20908950.48 | AW11: =IFERROR(IF(Y11="CY 2023",INDEX('6. CY 2023'!H:H,MATCH(C11,'6. CY 2023'!A:A,0)),0),0) -> 216462491.3
A12: 9 | B12: ADVENTIST HEALTH SIMI VALLEY | C12: 106560525 | D12: ADVENTIST HEALTH SIMI VALLEY | F12: =IFERROR(INDEX('8. 2019 HCAI (FEE) DAYS'!G:G,MATCH(C12,'8. 2019 HCAI (FEE) DAYS'!A:A,0)),0) -> 2019-01-01 | G12: =IFERROR(INDEX('8. 2019 HCAI (FEE) DAYS'!H:H,MATCH(C12,'8. 2019 HCAI (FEE) DAYS'!A:A,0)),0) -> 2019-12-31 | H12: =IFERROR(INDEX('8. 2019 HCAI (FEE) DAYS'!L:L,MATCH(C12,'8. 2019 HCAI (FEE) DAYS'!A:A,0)),0) -> 2019-01-01 | I12: =IFERROR(INDEX('11. Hospital Statuses'!M:M,MATCH(C12,'11. Hospital Statuses'!A:A,0)),"") -> Open | J12: Ventura | K12: 10 | L12: 813 | M12: Non-Profit | N12: Comparable | P12: https://www.adventisthealth.org/simi-valley/ | R12: ADVENTIST HEALTH | S12: 805-955-6000 | T12: 2975 N SYCAMORE DRIVE | U12: SIMI VALLEY | V12: 93065 | W12: JENNIFER SWENSON | X12: =IFERROR(IF(INDEX(#REF!,MATCH(C12,#REF!,0)),"Yes","No"),"") ->  | Y12: CY 2023 | Z12: =IFERROR(IF($Y12="CY 2023",INDEX('6. CY 2023'!S:S,MATCH($C12,'6. CY 2023'!$A:$A,0)),0),0) -> 0 | AA12: =IFERROR(IF($Y12="CY 2023",INDEX('6. CY 2023'!U:U,MATCH($C12,'6. CY 2023'!$A:$A,0)),0),0) -> 4094795.58 | AB12: =IFERROR(IF($Y12="CY 2023",INDEX('6. CY 2023'!W:W,MATCH($C12,'6. CY 2023'!$A:$A,0)),0),0) -> 4902968.9 | AC12: =IFERROR(IF($Y12="CY 2023",INDEX('6. CY 2023'!Y:Y,MATCH($C12,'6. CY 2023'!$A:$A,0)),0),0) -> 0 | AD12: =IFERROR(IF($Y12="CY 2023",INDEX('6. CY 2023'!AA:AA,MATCH($C12,'6. CY 2023'!$A:$A,0)),0),0) -> 2356000 | AE12: =IFERROR(IF($Y12="CY 2023",INDEX('6. CY 2023'!AC:AC,MATCH($C12,'6. CY 2023'!$A:$A,0)),0),0) -> 610700 | AF12: =IFERROR(IF($Y12="CY 2023",INDEX('6. CY 2023'!AE:AE,MATCH($C12,'6. CY 2023'!$A:$A,0)),0),0) -> 11964464.48 | AG12: =IFERROR(IF(Y12="CY 2023",AF12/'4. Calculated Fee'!$D$32*'4. Calculated Fee'!$D$23,0),0) -> 3050180.39 | AH12: =IFERROR(IF($Y12="CY 2023",INDEX('6. CY 2023'!AE:AE,MATCH($C12,'6. CY 2023'!$A:$A,0)),0),0) -> 11964464.48 | AI12: =IFERROR(IF(Y12="CY 2023",INDEX('6. CY 2023'!AL:AL,MATCH(C12,'6. CY 2023'!A:A,0)),0),0) -> 811955.2617 | AJ12: =IFERROR(IF($Y12="CY 2023",INDEX('6. CY 2023'!AM:AM,MATCH($C12,'6. CY 2023'!$A:$A,0)),0),0) -> 1286623.003 | AK12: =IFERROR(IF($Y12="CY 2023",INDEX('6. CY 2023'!AN:AN,MATCH($C12,'6. CY 2023'!$A:$A,0)),0),0) -> 0 | AL12: =IFERROR(IF($Y12="CY 2023",INDEX('6. CY 2023'!AO:AO,MATCH($C12,'6. CY 2023'!$A:$A,0)),0),0) -> 0 | AM12: =IFERROR(IF($Y12="CY 2023",INDEX('6. CY 2023'!AP:AP,MATCH($C12,'6. CY 2023'!$A:$A,0)),0),0) -> 332500 | AN12: =IFERROR(IF($Y12="CY 2023",INDEX('6. CY 2023'!AQ:AQ,MATCH($C12,'6. CY 2023'!$A:$A,0)),0),0) -> 0 | AO12: =IFERROR(IF($Y12="CY 2023",INDEX('6. CY 2023'!AR:AR,MATCH($C12,'6. CY 2023'!$A:$A,0)),0),0) -> 0 | AP12: =IFERROR(IF($Y12="CY 2023",INDEX('6. CY 2023'!AS:AS,MATCH($C12,'6. CY 2023'!$A:$A,0)),0),0) -> 0 | AQ12: =IFERROR(IF($Y12="CY 2023",INDEX('6. CY 2023'!AV:AV,MATCH($C12,'6. CY 2023'!$A:$A,0)),0),0) -> 2431078.264 | AR12: =IFERROR(IF($Y12="CY 2023",INDEX('6. CY 2023'!AX:AX,MATCH($C12,'6. CY 2023'!A:A,0)),0),0) -> 1269833.739 | AS12: =IFERROR(IF(Y12="CY 2023",INDEX('6. CY 2023'!AY:AY,MATCH(C12,'6. CY 2023'!A:A,0)),0),0) -> 7929884.991 | AT12: =IFERROR(IF($Y12="CY 2023",INDEX('6. CY 2023'!AZ:AZ,MATCH($C12,'6. CY 2023'!A:A,0)),0),0) -> 9199718.73 | AW12: =IFERROR(IF(Y12="CY 2023",INDEX('6. CY 2023'!H:H,MATCH(C12,'6. CY 2023'!A:A,0)),0),0) -> 210166920.1
A13: 10 | B13: ADVENTIST HEALTH SONORA - GREENLEY | C13: 106554011 | D13: ADVENTIST HEALTH SONORA - GREENLEY | F13: =IFERROR(INDEX('8. 2019 HCAI (FEE) DAYS'!G:G,MATCH(C13,'8. 2019 HCAI (FEE) DAYS'!A:A,0)),0) -> 2019-01-01 | G13: =IFERROR(INDEX('8. 2019 HCAI (FEE) DAYS'!H:H,MATCH(C13,'8. 2019 HCAI (FEE) DAYS'!A:A,0)),0) -> 2019-12-31 | H13: =IFERROR(INDEX('8. 2019 HCAI (FEE) DAYS'!L:L,MATCH(C13,'8. 2019 HCAI (FEE) DAYS'!A:A,0)),0) -> 2019-01-01 | I13: =IFERROR(INDEX('11. Hospital Statuses'!M:M,MATCH(C13,'11. Hospital Statuses'!A:A,0)),"") -> Open | J13: Tuolumne | K13: 6 | L13: 513 | M13: Non-Profit | N13: Comparable | O13: Rural | P13: https://www.adventisthealth.org/sonora/ | R13: ADVENTIST HEALTH | S13: 209-536-5000 | T13: 1000 GREENLEY ROAD | U13: SONORA | V13: 95370 | W13: MICHELLE FUENTES | X13: =IFERROR(IF(INDEX(#REF!,MATCH(C13,#REF!,0)),"Yes","No"),"") ->  | Y13: CY 2023 | Z13: =IFERROR(IF($Y13="CY 2023",INDEX('6. CY 2023'!S:S,MATCH($C13,'6. CY 2023'!$A:$A,0)),0),0) -> 0 | AA13: =IFERROR(IF($Y13="CY 2023",INDEX('6. CY 2023'!U:U,MATCH($C13,'6. CY 2023'!$A:$A,0)),0),0) -> 0 | AB13: =IFERROR(IF($Y13="CY 2023",INDEX('6. CY 2023'!W:W,MATCH($C13,'6. CY 2023'!$A:$A,0)),0),0) -> 0 | AC13: =IFERROR(IF($Y13="CY 2023",INDEX('6. CY 2023'!Y:Y,MATCH($C13,'6. CY 2023'!$A:$A,0)),0),0) -> 0 | AD13: =IFERROR(IF($Y13="CY 2023",INDEX('6. CY 2023'!AA:AA,MATCH($C13,'6. CY 2023'!$A:$A,0)),0),0) -> 0 | AE13: =IFERROR(IF($Y13="CY 2023",INDEX('6. CY 2023'!AC:AC,MATCH($C13,'6. CY 2023'!$A:$A,0)),0),0) -> 0 | AF13: =IFERROR(IF($Y13="CY 2023",INDEX('6. CY 2023'!AE:AE,MATCH($C13,'6. CY 2023'!$A:$A,0)),0),0) -> 0 | AG13: =IFERROR(IF(Y13="CY 2023",AF13/'4. Calculated Fee'!$D$32*'4. Calculated Fee'!$D$23,0),0) -> 0 | AH13: =IFERROR(IF($Y13="CY 2023",INDEX('6. CY 2023'!AE:AE,MATCH($C13,'6. CY 2023'!$A:$A,0)),0),0) -> 0 | AI13: =IFERROR(IF(Y13="CY 2023",INDEX('6. CY 2023'!AL:AL,MATCH(C13,'6. CY 2023'!A:A,0)),0),0) -> 2598993.404 | AJ13: =IFERROR(IF($Y13="CY 2023",INDEX('6. CY 2023'!AM:AM,MATCH($C13,'6. CY 2023'!$A:$A,0)),0),0) -> 1207015.894 | AK13: =IFERROR(IF($Y13="CY 2023",INDEX('6. CY 2023'!AN:AN,MATCH($C13,'6. CY 2023'!$A:$A,0)),0),0) -> 0 | AL13: =IFERROR(IF($Y13="CY 2023",INDEX('6. CY 2023'!AO:AO,MATCH($C13,'6. CY 2023'!$A:$A,0)),0),0) -> 0 | AM13: =IFERROR(IF($Y13="CY 2023",INDEX('6. CY 2023'!AP:AP,MATCH($C13,'6. CY 2023'!$A:$A,0)),0),0) -> 0 | AN13: =IFERROR(IF($Y13="CY 2023",INDEX('6. CY 2023'!AQ:AQ,MATCH($C13,'6. CY 2023'!$A:$A,0)),0),0) -> 0 | AO13: =IFERROR(IF($Y13="CY 2023",INDEX('6. CY 2023'!AR:AR,MATCH($C13,'6. CY 2023'!$A:$A,0)),0),0) -> 0 | AP13: =IFERROR(IF($Y13="CY 2023",INDEX('6. CY 2023'!AS:AS,MATCH($C13,'6. CY 2023'!$A:$A,0)),0),0) -> 157500 | AQ13: =IFERROR(IF($Y13="CY 2023",INDEX('6. CY 2023'!AV:AV,MATCH($C13,'6. CY 2023'!$A:$A,0)),0),0) -> 3963509.298 | AR13: =IFERROR(IF($Y13="CY 2023",INDEX('6. CY 2023'!AX:AX,MATCH($C13,'6. CY 2023'!A:A,0)),0),0) -> 1657820.953 | AS13: =IFERROR(IF(Y13="CY 2023",INDEX('6. CY 2023'!AY:AY,MATCH(C13,'6. CY 2023'!A:A,0)),0),0) -> 13731562 | AT13: =IFERROR(IF($Y13="CY 2023",INDEX('6. CY 2023'!AZ:AZ,MATCH($C13,'6. CY 2023'!A:A,0)),0),0) -> 15389382.95 | AW13: =IFERROR(IF(Y13="CY 2023",INDEX('6. CY 2023'!H:H,MATCH(C13,'6. CY 2023'!A:A,0)),0),0) -> 335608763.1
A14: 11 | B14: ADVENTIST HEALTH ST. HELENA | C14: 106281078 | D14: ADVENTIST HEALTH ST. HELENA | F14: =IFERROR(INDEX('8. 2019 HCAI (FEE) DAYS'!G:G,MATCH(C14,'8. 2019 HCAI (FEE) DAYS'!A:A,0)),0) -> 2019-01-01 | G14: =IFERROR(INDEX('8. 2019 HCAI (FEE) DAYS'!H:H,MATCH(C14,'8. 2019 HCAI (FEE) DAYS'!A:A,0)),0) -> 2019-12-31 | H14: =IFERROR(INDEX('8. 2019 HCAI (FEE) DAYS'!L:L,MATCH(C14,'8. 2019 HCAI (FEE) DAYS'!A:A,0)),0) -> 2019-01-01 | I14: =IFERROR(INDEX('11. Hospital Statuses'!M:M,MATCH(C14,'11. Hospital Statuses'!A:A,0)),"") -> Open | J14: Napa | K14: 3 | L14: 407 | M14: Non-Profit | N14: Comparable | P14: http://www.sthelenahospital.org | R14: ST. HELENA | S14: 707-963-3611 | T14: 10 WOODLAND ROAD | U14: ST. HELENA | V14: 94574 | W14: STEVEN HERBER, M.D. | X14: =IFERROR(IF(INDEX(#REF!,MATCH(C14,#REF!,0)),"Yes","No"),"") ->  | Y14: CY 2023 | Z14: =IFERROR(IF($Y14="CY 2023",INDEX('6. CY 2023'!S:S,MATCH($C14,'6. CY 2023'!$A:$A,0)),0),0) -> 0 | AA14: =IFERROR(IF($Y14="CY 2023",INDEX('6. CY 2023'!U:U,MATCH($C14,'6. CY 2023'!$A:$A,0)),0),0) -> 1572311.01 | AB14: =IFERROR(IF($Y14="CY 2023",INDEX('6. CY 2023'!W:W,MATCH($C14,'6. CY 2023'!$A:$A,0)),0),0) -> 4797866.18 | AC14: =IFERROR(IF($Y14="CY 2023",INDEX('6. CY 2023'!Y:Y,MATCH($C14,'6. CY 2023'!$A:$A,0)),0),0) -> 0 | AD14: =IFERROR(IF($Y14="CY 2023",INDEX('6. CY 2023'!AA:AA,MATCH($C14,'6. CY 2023'!$A:$A,0)),0),0) -> 1631840 | AE14: =IFERROR(IF($Y14="CY 2023",INDEX('6. CY 2023'!AC:AC,MATCH($C14,'6. CY 2023'!$A:$A,0)),0),0) -> 2855720 | AF14: =IFERROR(IF($Y14="CY 2023",INDEX('6. CY 2023'!AE:AE,MATCH($C14,'6. CY 2023'!$A:$A,0)),0),0) -> 10857737.19 | AG14: =IFERROR(IF(Y14="CY 2023",AF14/'4. Calculated Fee'!$D$32*'4. Calculated Fee'!$D$23,0),0) -> 2768035.052 | AH14: =IFERROR(IF($Y14="CY 2023",INDEX('6. CY 2023'!AE:AE,MATCH($C14,'6. CY 2023'!$A:$A,0)),0),0) -> 10857737.19 | AI14: =IFERROR(IF(Y14="CY 2023",INDEX('6. CY 2023'!AL:AL,MATCH(C14,'6. CY 2023'!A:A,0)),0),0) -> 332609.6715 | AJ14: =IFERROR(IF($Y14="CY 2023",INDEX('6. CY 2023'!AM:AM,MATCH($C14,'6. CY 2023'!$A:$A,0)),0),0) -> 887511.6866 | AK14: =IFERROR(IF($Y14="CY 2023",INDEX('6. CY 2023'!AN:AN,MATCH($C14,'6. CY 2023'!$A:$A,0)),0),0) -> 0 | AL14: =IFERROR(IF($Y14="CY 2023",INDEX('6. CY 2023'!AO:AO,MATCH($C14,'6. CY 2023'!$A:$A,0)),0),0) -> 515775 | AM14: =IFERROR(IF($Y14="CY 2023",INDEX('6. CY 2023'!AP:AP,MATCH($C14,'6. CY 2023'!$A:$A,0)),0),0) -> 317500 | AN14: =IFERROR(IF($Y14="CY 2023",INDEX('6. CY 2023'!AQ:AQ,MATCH($C14,'6. CY 2023'!$A:$A,0)),0),0) -> 0 | AO14: =IFERROR(IF($Y14="CY 2023",INDEX('6. CY 2023'!AR:AR,MATCH($C14,'6. CY 2023'!$A:$A,0)),0),0) -> 0 | AP14: =IFERROR(IF($Y14="CY 2023",INDEX('6. CY 2023'!AS:AS,MATCH($C14,'6. CY 2023'!$A:$A,0)),0),0) -> 0 | AQ14: =IFERROR(IF($Y14="CY 2023",INDEX('6. CY 2023'!AV:AV,MATCH($C14,'6. CY 2023'!$A:$A,0)),0),0) -> 2053396.358 | AR14: =IFERROR(IF($Y14="CY 2023",INDEX('6. CY 2023'!AX:AX,MATCH($C14,'6. CY 2023'!A:A,0)),0),0) -> 6467491.897 | AS14: =IFERROR(IF(Y14="CY 2023",INDEX('6. CY 2023'!AY:AY,MATCH(C14,'6. CY 2023'!A:A,0)),0),0) -> 7835238.012 | AT14: =IFERROR(IF($Y14="CY 2023",INDEX('6. CY 2023'!AZ:AZ,MATCH($C14,'6. CY 2023'!A:A,0)),0),0) -> 14302729.91 | AW14: =IFERROR(IF(Y14="CY 2023",INDEX('6. CY 2023'!H:H,MATCH(C14,'6. CY 2023'!A:A,0)),0),0) -> 269847638.6
A15: 12 | B15: ADVENTIST HEALTH TEHACHAPI VALLEY | C15: 106154168 | D15: ADVENTIST HEALTH TEHACHAPI VALLEY | F15: =IFERROR(INDEX('8. 2019 HCAI (FEE) DAYS'!G:G,MATCH(C15,'8. 2019 HCAI (FEE) DAYS'!A:A,0)),0) -> 2019-01-01 | G15: =IFERROR(INDEX('8. 2019 HCAI (FEE) DAYS'!H:H,MATCH(C15,'8. 2019 HCAI (FEE) DAYS'!A:A,0)),0) -> 2019-12-31 | H15: =IFERROR(INDEX('8. 2019 HCAI (FEE) DAYS'!L:L,MATCH(C15,'8. 2019 HCAI (FEE) DAYS'!A:A,0)),0) -> 2019-01-01 | I15: =IFERROR(INDEX('11. Hospital Statuses'!M:M,MATCH(C15,'11. Hospital Statuses'!A:A,0)),"") -> Open | J15: Kern | K15: 9 | L15: 623 | M15: Non-Profit | N15: Comparable | O15: Rural | P15: https://www.adventisthealth.org/tehachapi-valley/ | R15: ADVENTIST HEALTH | S15: 661-771-8600 | T15: 1100 MAGELLAN DRIVE | U15: TEHACHAPI | V15: 93561 | W15: JEFF LINGERFELT | X15: =IFERROR(IF(INDEX(#REF!,MATCH(C15,#REF!,0)),"Yes","No"),"") ->  | Y15: CY 2023 | Z15: =IFERROR(IF($Y15="CY 2023",INDEX('6. CY 2023'!S:S,MATCH($C15,'6. CY 2023'!$A:$A,0)),0),0) -> 0 | AA15: =IFERROR(IF($Y15="CY 2023",INDEX('6. CY 2023'!U:U,MATCH($C15,'6. CY 2023'!$A:$A,0)),0),0) -> 0 | AB15: =IFERROR(IF($Y15="CY 2023",INDEX('6. CY 2023'!W:W,MATCH($C15,'6. CY 2023'!$A:$A,0)),0),0) -> 0 | AC15: =IFERROR(IF($Y15="CY 2023",INDEX('6. CY 2023'!Y:Y,MATCH($C15,'6. CY 2023'!$A:$A,0)),0),0) -> 0 | AD15: =IFERROR(IF($Y15="CY 2023",INDEX('6. CY 2023'!AA:AA,MATCH($C15,'6. CY 2023'!$A:$A,0)),0),0) -> 0 | AE15: =IFERROR(IF($Y15="CY 2023",INDEX('6. CY 2023'!AC:AC,MATCH($C15,'6. CY 2023'!$A:$A,0)),0),0) -> 0 | AF15: =IFERROR(IF($Y15="CY 2023",INDEX('6. CY 2023'!AE:AE,MATCH($C15,'6. CY 2023'!$A:$A,0)),0),0) -> 0 | AG15: =IFERROR(IF(Y15="CY 2023",AF15/'4. Calculated Fee'!$D$32*'4. Calculated Fee'!$D$23,0),0) -> 0 | AH15: =IFERROR(IF($Y15="CY 2023",INDEX('6. CY 2023'!AE:AE,MATCH($C15,'6. CY 2023'!$A:$A,0)),0),0) -> 0 | AI15: =IFERROR(IF(Y15="CY 2023",INDEX('6. CY 2023'!AL:AL,MATCH(C15,'6. CY 2023'!A:A,0)),0),0) -> 756732.5225 | AJ15: =IFERROR(IF($Y15="CY 2023",INDEX('6. CY 2023'!AM:AM,MATCH($C15,'6. CY 2023'!$A:$A,0)),0),0) -> 149532.2721 | AK15: =IFERROR(IF($Y15="CY 2023",INDEX('6. CY 2023'!AN:AN,MATCH($C15,'6. CY 2023'!$A:$A,0)),0),0) -> 0 | AL15: =IFERROR(IF($Y15="CY 2023",INDEX('6. CY 2023'!AO:AO,MATCH($C15,'6. CY 2023'!$A:$A,0)),0),0) -> 0 | AM15: =IFERROR(IF($Y15="CY 2023",INDEX('6. CY 2023'!AP:AP,MATCH($C15,'6. CY 2023'!$A:$A,0)),0),0) -> 0 | AN15: =IFERROR(IF($Y15="CY 2023",INDEX('6. CY 2023'!AQ:AQ,MATCH($C15,'6. CY 2023'!$A:$A,0)),0),0) -> 0 | AO15: =IFERROR(IF($Y15="CY 2023",INDEX('6. CY 2023'!AR:AR,MATCH($C15,'6. CY 2023'!$A:$A,0)),0),0) -> 0 | AP15: =IFERROR(IF($Y15="CY 2023",INDEX('6. CY 2023'!AS:AS,MATCH($C15,'6. CY 2023'!$A:$A,0)),0),0) -> 22500 | AQ15: =IFERROR(IF($Y15="CY 2023",INDEX('6. CY 2023'!AV:AV,MATCH($C15,'6. CY 2023'!$A:$A,0)),0),0) -> 928764.7945 | AR15: =IFERROR(IF($Y15="CY 2023",INDEX('6. CY 2023'!AX:AX,MATCH($C15,'6. CY 2023'!A:A,0)),0),0) -> 479945.0349 | AS15: =IFERROR(IF(Y15="CY 2023",INDEX('6. CY 2023'!AY:AY,MATCH(C15,'6. CY 2023'!A:A,0)),0),0) -> 3391933.254 | AT15: =IFERROR(IF($Y15="CY 2023",INDEX('6. CY 2023'!AZ:AZ,MATCH($C15,'6. CY 2023'!A:A,0)),0),0) -> 3871878.289 | AW15: =IFERROR(IF(Y15="CY 2023",INDEX('6. CY 2023'!H:H,MATCH(C15,'6. CY 2023'!A:A,0)),0),0) -> 47194951.04
A16: 13 | B16: ADVENTIST HEALTH UKIAH VALLEY | C16: 106231396 | D16: ADVENTIST HEALTH UKIAH VALLEY | F16: =IFERROR(INDEX('8. 2019 HCAI (FEE) DAYS'!G:G,MATCH(C16,'8. 2019 HCAI (FEE) DAYS'!A:A,0)),0) -> 2019-01-01 | G16: =IFERROR(INDEX('8. 2019 HCAI (FEE) DAYS'!H:H,MATCH(C16,'8. 2019 HCAI (FEE) DAYS'!A:A,0)),0) -> 2019-12-31 | H16: =IFERROR(INDEX('8. 2019 HCAI (FEE) DAYS'!L:L,MATCH(C16,'8. 2019 HCAI (FEE) DAYS'!A:A,0)),0) -> 2019-01-01 | I16: =IFERROR(INDEX('11. Hospital Statuses'!M:M,MATCH(C16,'11. Hospital Statuses'!A:A,0)),"") -> Open | J16: Mendocino | K16: 1 | L16: 113 | M16: Non-Profit | N16: Comparable | O16: Rural | P16: http://www.adventisthealth.org/UKIAH-VALLEY | R16: ADVENTIST HEALTH | S16: 707-462-3111 | T16: 275 HOSPITAL DRIVE | U16: UKIAH | V16: 95482 | W16: JASON WELLS | X16: =IFERROR(IF(INDEX(#REF!,MATCH(C16,#REF!,0)),"Yes","No"),"") ->  | Y16: CY 2023 | Z16: =IFERROR(IF($Y16="CY 2023",INDEX('6. CY 2023'!S:S,MATCH($C16,'6. CY 2023'!$A:$A,0)),0),0) -> 0 | AA16: =IFERROR(IF($Y16="CY 2023",INDEX('6. CY 2023'!U:U,MATCH($C16,'6. CY 2023'!$A:$A,0)),0),0) -> 0 | AB16: =IFERROR(IF($Y16="CY 2023",INDEX('6. CY 2023'!W:W,MATCH($C16,'6. CY 2023'!$A:$A,0)),0),0) -> 0 | AC16: =IFERROR(IF($Y16="CY 2023",INDEX('6. CY 2023'!Y:Y,MATCH($C16,'6. CY 2023'!$A:$A,0)),0),0) -> 0 | AD16: =IFERROR(IF($Y16="CY 2023",INDEX('6. CY 2023'!AA:AA,MATCH($C16,'6. CY 2023'!$A:$A,0)),0),0) -> 0 | AE16: =IFERROR(IF($Y16="CY 2023",INDEX('6. CY 2023'!AC:AC,MATCH($C16,'6. CY 2023'!$A:$A,0)),0),0) -> 0 | AF16: =IFERROR(IF($Y16="CY 2023",INDEX('6. CY 2023'!AE:AE,MATCH($C16,'6. CY 2023'!$A:$A,0)),0),0) -> 0 | AG16: =IFERROR(IF(Y16="CY 2023",AF16/'4. Calculated Fee'!$D$32*'4. Calculated Fee'!$D$23,0),0) -> 0 | AH16: =IFERROR(IF($Y16="CY 2023",INDEX('6. CY 2023'!AE:AE,MATCH($C16,'6. CY 2023'!$A:$A,0)),0),0) -> 0 | AI16: =IFERROR(IF(Y16="CY 2023",INDEX('6. CY 2023'!AL:AL,MATCH(C16,'6. CY 2023'!A:A,0)),0),0) -> 1393289.251 | AJ16: =IFERROR(IF($Y16="CY 2023",INDEX('6. CY 2023'!AM:AM,MATCH($C16,'6. CY 2023'!$A:$A,0)),0),0) -> 1123105.698 | AK16: =IFERROR(IF($Y16="CY 2023",INDEX('6. CY 2023'!AN:AN,MATCH($C16,'6. CY 2023'!$A:$A,0)),0),0) -> 0 | AL16: =IFERROR(IF($Y16="CY 2023",INDEX('6. CY 2023'!AO:AO,MATCH($C16,'6. CY 2023'!$A:$A,0)),0),0) -> 0 | AM16: =IFERROR(IF($Y16="CY 2023",INDEX('6. CY 2023'!AP:AP,MATCH($C16,'6. CY 2023'!$A:$A,0)),0),0) -> 0 | AN16: =IFERROR(IF($Y16="CY 2023",INDEX('6. CY 2023'!AQ:AQ,MATCH($C16,'6. CY 2023'!$A:$A,0)),0),0) -> 0 | AO16: =IFERROR(IF($Y16="CY 2023",INDEX('6. CY 2023'!AR:AR,MATCH($C16,'6. CY 2023'!$A:$A,0)),0),0) -> 0 | AP16: =IFERROR(IF($Y16="CY 2023",INDEX('6. CY 2023'!AS:AS,MATCH($C16,'6. CY 2023'!$A:$A,0)),0),0) -> 135000 | AQ16: =IFERROR(IF($Y16="CY 2023",INDEX('6. CY 2023'!AV:AV,MATCH($C16,'6. CY 2023'!$A:$A,0)),0),0) -> 2651394.949 | AR16: =IFERROR(IF($Y16="CY 2023",INDEX('6. CY 2023'!AX:AX,MATCH($C16,'6. CY 2023'!A:A,0)),0),0) -> 2778546.779 | AS16: =IFERROR(IF(Y16="CY 2023",INDEX('6. CY 2023'!AY:AY,MATCH(C16,'6. CY 2023'!A:A,0)),0),0) -> 15485498.55 | AT16: =IFERROR(IF($Y16="CY 2023",INDEX('6. CY 2023'!AZ:AZ,MATCH($C16,'6. CY 2023'!A:A,0)),0),0) -> 18264045.33 | AW16: =IFERROR(IF(Y16="CY 2023",INDEX('6. CY 2023'!H:H,MATCH(C16,'6. CY 2023'!A:A,0)),0),0) -> 191719314.5
A17: 14 | B17: ADVENTIST HEALTH VALLEJO | C17: 106481015 | D17: ADVENTIST HEALTH VALLEJO | F17: =IFERROR(INDEX('8. 2019 HCAI (FEE) DAYS'!G:G,MATCH(C17,'8. 2019 HCAI (FEE) DAYS'!A:A,0)),0) -> 2019-01-01 | G17: =IFERROR(INDEX('8. 2019 HCAI (FEE) DAYS'!H:H,MATCH(C17,'8. 2019 HCAI (FEE) DAYS'!A:A,0)),0) -> 2019-12-31 | H17: =IFERROR(INDEX('8. 2019 HCAI (FEE) DAYS'!L:L,MATCH(C17,'8. 2019 HCAI (FEE) DAYS'!A:A,0)),0) -> 2019-01-01 | I17: =IFERROR(INDEX('11. Hospital Statuses'!M:M,MATCH(C17,'11. Hospital Statuses'!A:A,0)),"") -> Open | J17: Solano | K17: 3 | L17: 409 | M17: Non-Profit | N17: Comparable | P17: https://www.adventisthealth.org/vallejo/ | R17: ST. HELENA HOSPITAL | S17: 707-648-2200 | T17: 525 OREGON STREET | U17: VALLEJO | V17: 94590 | W17: STEVEN HERBER, M.D. | X17: =IFERROR(IF(INDEX(#REF!,MATCH(C17,#REF!,0)),"Yes","No"),"") ->  | Y17: CY 2023 | Z17: =IFERROR(IF($Y17="CY 2023",INDEX('6. CY 2023'!S:S,MATCH($C17,'6. CY 2023'!$A:$A,0)),0),0) -> 0 | AA17: =IFERROR(IF($Y17="CY 2023",INDEX('6. CY 2023'!U:U,MATCH($C17,'6. CY 2023'!$A:$A,0)),0),0) -> 0 | AB17: =IFERROR(IF($Y17="CY 2023",INDEX('6. CY 2023'!W:W,MATCH($C17,'6. CY 2023'!$A:$A,0)),0),0) -> 0 | AC17: =IFERROR(IF($Y17="CY 2023",INDEX('6. CY 2023'!Y:Y,MATCH($C17,'6. CY 2023'!$A:$A,0)),0),0) -> 0 | AD17: =IFERROR(IF($Y17="CY 2023",INDEX('6. CY 2023'!AA:AA,MATCH($C17,'6. CY 2023'!$A:$A,0)),0),0) -> 0 | AE17: =IFERROR(IF($Y17="CY 2023",INDEX('6. CY 2023'!AC:AC,MATCH($C17,'6. CY 2023'!$A:$A,0)),0),0) -> 0 | AF17: =IFERROR(IF($Y17="CY 2023",INDEX('6. CY 2023'!AE:AE,MATCH($C17,'6. CY 2023'!$A:$A,0)),0),0) -> 0 | AG17: =IFERROR(IF(Y17="CY 2023",AF17/'4. Calculated Fee'!$D$32*'4. Calculated Fee'!$D$23,0),0) -> 0 | AH17: =IFERROR(IF($Y17="CY 2023",INDEX('6. CY 2023'!AE:AE,MATCH($C17,'6. CY 2023'!$A:$A,0)),0),0) -> 0 | AI17: =IFERROR(IF(Y17="CY 2023",INDEX('6. CY 2023'!AL:AL,MATCH(C17,'6. CY 2023'!A:A,0)),0),0) -> 0 | AJ17: =IFERROR(IF($Y17="CY 2023",INDEX('6. CY 2023'!AM:AM,MATCH($C17,'6. CY 2023'!$A:$A,0)),0),0) -> 0 | AK17: =IFERROR(IF($Y17="CY 2023",INDEX('6. CY 2023'!AN:AN,MATCH($C17,'6. CY 2023'!$A:$A,0)),0),0) -> 0 | AL17: =IFERROR(IF($Y17="CY 2023",INDEX('6. CY 2023'!AO:AO,MATCH($C17,'6. CY 2023'!$A:$A,0)),0),0) -> 0 | AM17: =IFERROR(IF($Y17="CY 2023",INDEX('6. CY 2023'!AP:AP,MATCH($C17,'6. CY 2023'!$A:$A,0)),0),0) -> 0 | AN17: =IFERROR(IF($Y17="CY 2023",INDEX('6. CY 2023'!AQ:AQ,MATCH($C17,'6. CY 2023'!$A:$A,0)),0),0) -> 0 | AO17: =IFERROR(IF($Y17="CY 2023",INDEX('6. CY 2023'!AR:AR,MATCH($C17,'6. CY 2023'!$A:$A,0)),0),0) -> 0 | AP17: =IFERROR(IF($Y17="CY 2023",INDEX('6. CY 2023'!AS:AS,MATCH($C17,'6. CY 2023'!$A:$A,0)),0),0) -> 0 | AQ17: =IFERROR(IF($Y17="CY 2023",INDEX('6. CY 2023'!AV:AV,MATCH($C17,'6. CY 2023'!$A:$A,0)),0),0) -> 0 | AR17: =IFERROR(IF($Y17="CY 2023",INDEX('6. CY 2023'!AX:AX,MATCH($C17,'6. CY 2023'!A:A,0)),0),0) -> 0 | AS17: =IFERROR(IF(Y17="CY 2023",INDEX('6. CY 2023'!AY:AY,MATCH(C17,'6. CY 2023'!A:A,0)),0),0) -> 0 | AT17: =IFERROR(IF($Y17="CY 2023",INDEX('6. CY 2023'!AZ:AZ,MATCH($C17,'6. CY 2023'!A:A,0)),0),0) -> 0 | AW17: =IFERROR(IF(Y17="CY 2023",INDEX('6. CY 2023'!H:H,MATCH(C17,'6. CY 2023'!A:A,0)),0),0) -> 34788844.65
A18: 15 | B18: ADVENTIST HEALTH WHITE MEMORIAL | C18: 106190878 | D18: ADVENTIST HEALTH WHITE MEMORIAL | F18: =IFERROR(INDEX('8. 2019 HCAI (FEE) DAYS'!G:G,MATCH(C18,'8. 2019 HCAI (FEE) DAYS'!A:A,0)),0) -> 2019-01-01 | G18: =IFERROR(INDEX('8. 2019 HCAI (FEE) DAYS'!H:H,MATCH(C18,'8. 2019 HCAI (FEE) DAYS'!A:A,0)),0) -> 2019-12-31 | H18: =IFERROR(INDEX('8. 2019 HCAI (FEE) DAYS'!L:L,MATCH(C18,'8. 2019 HCAI (FEE) DAYS'!A:A,0)),0) -> 2019-01-01 | I18: =IFERROR(INDEX('11. Hospital Statuses'!M:M,MATCH(C18,'11. Hospital Statuses'!A:A,0)),"") -> Open | J18: Los Angeles | K18: 11 | L18: 925 | M18: Non-Profit | N18: Comparable | O18: Teaching | P18: https://www.adventisthealth.org/white-memorial/ | R18: ADVENTIST HEALTH | S18: 323-268-5000 | T18: 1720 CESAR E. CHAVEZ AVENUE | U18: LOS ANGELES | V18: 90033-2462 | W18: JOHN RAFFOUL | X18: =IFERROR(IF(INDEX(#REF!,MATCH(C18,#REF!,0)),"Yes","No"),"") ->  | Y18: CY 2023 | Z18: =IFERROR(IF($Y18="CY 2023",INDEX('6. CY 2023'!S:S,MATCH($C18,'6. CY 2023'!$A:$A,0)),0),0) -> 0 | AA18: =IFERROR(IF($Y18="CY 2023",INDEX('6. CY 2023'!U:U,MATCH($C18,'6. CY 2023'!$A:$A,0)),0),0) -> 5527718.61 | AB18: =IFERROR(IF($Y18="CY 2023",INDEX('6. CY 2023'!W:W,MATCH($C18,'6. CY 2023'!$A:$A,0)),0),0) -> 7342957.74 | AC18: =IFERROR(IF($Y18="CY 2023",INDEX('6. CY 2023'!Y:Y,MATCH($C18,'6. CY 2023'!$A:$A,0)),0),0) -> 0 | AD18: =IFERROR(IF($Y18="CY 2023",INDEX('6. CY 2023'!AA:AA,MATCH($C18,'6. CY 2023'!$A:$A,0)),0),0) -> 17080380 | AE18: =IFERROR(IF($Y18="CY 2023",INDEX('6. CY 2023'!AC:AC,MATCH($C18,'6. CY 2023'!$A:$A,0)),0),0) -> 13314500 | AF18: =IFERROR(IF($Y18="CY 2023",INDEX('6. CY 2023'!AE:AE,MATCH($C18,'6. CY 2023'!$A:$A,0)),0),0) -> 43265556.35 | AG18: =IFERROR(IF(Y18="CY 2023",AF18/'4. Calculated Fee'!$D$32*'4. Calculated Fee'!$D$23,0),0) -> 11029975.62 | AH18: =IFERROR(IF($Y18="CY 2023",INDEX('6. CY 2023'!AE:AE,MATCH($C18,'6. CY 2023'!$A:$A,0)),0),0) -> 43265556.35 | AI18: =IFERROR(IF(Y18="CY 2023",INDEX('6. CY 2023'!AL:AL,MATCH(C18,'6. CY 2023'!A:A,0)),0),0) -> 5680385.119 | AJ18: =IFERROR(IF($Y18="CY 2023",INDEX('6. CY 2023'!AM:AM,MATCH($C18,'6. CY 2023'!$A:$A,0)),0),0) -> 14337885.77 | AK18: =IFERROR(IF($Y18="CY 2023",INDEX('6. CY 2023'!AN:AN,MATCH($C18,'6. CY 2023'!$A:$A,0)),0),0) -> 0 | AL18: =IFERROR(IF($Y18="CY 2023",INDEX('6. CY 2023'!AO:AO,MATCH($C18,'6. CY 2023'!$A:$A,0)),0),0) -> 1128075 | AM18: =IFERROR(IF($Y18="CY 2023",INDEX('6. CY 2023'!AP:AP,MATCH($C18,'6. CY 2023'!$A:$A,0)),0),0) -> 0 | AN18: =IFERROR(IF($Y18="CY 2023",INDEX('6. CY 2023'!AQ:AQ,MATCH($C18,'6. CY 2023'!$A:$A,0)),0),0) -> 0 | AO18: =IFERROR(IF($Y18="CY 2023",INDEX('6. CY 2023'!AR:AR,MATCH($C18,'6. CY 2023'!$A:$A,0)),0),0) -> 0 | AP18: =IFERROR(IF($Y18="CY 2023",INDEX('6. CY 2023'!AS:AS,MATCH($C18,'6. CY 2023'!$A:$A,0)),0),0) -> 0 | AQ18: =IFERROR(IF($Y18="CY 2023",INDEX('6. CY 2023'!AV:AV,MATCH($C18,'6. CY 2023'!$A:$A,0)),0),0) -> 21146345.89 | AR18: =IFERROR(IF($Y18="CY 2023",INDEX('6. CY 2023'!AX:AX,MATCH($C18,'6. CY 2023'!A:A,0)),0),0) -> 19860551.31 | AS18: =IFERROR(IF(Y18="CY 2023",INDEX('6. CY 2023'!AY:AY,MATCH(C18,'6. CY 2023'!A:A,0)),0),0) -> 55684926.91 | AT18: =IFERROR(IF($Y18="CY 2023",INDEX('6. CY 2023'!AZ:AZ,MATCH($C18,'6. CY 2023'!A:A,0)),0),0) -> 75545478.21 | AW18: =IFERROR(IF(Y18="CY 2023",INDEX('6. CY 2023'!H:H,MATCH(C18,'6. CY 2023'!A:A,0)),0),0) -> 519577743.4
A19: 16 | B19: AHMC ANAHEIM REGIONAL MEDICAL CENTER | C19: 106301098 | D19: AHMC ANAHEIM REGIONAL MEDICAL CENTER | F19: =IFERROR(INDEX('8. 2019 HCAI (FEE) DAYS'!G:G,MATCH(C19,'8. 2019 HCAI (FEE) DAYS'!A:A,0)),0) -> 2018-07-01 | G19: =IFERROR(INDEX('8. 2019 HCAI (FEE) DAYS'!H:H,MATCH(C19,'8. 2019 HCAI (FEE) DAYS'!A:A,0)),0) -> 2019-06-30 | H19: =IFERROR(INDEX('8. 2019 HCAI (FEE) DAYS'!L:L,MATCH(C19,'8. 2019 HCAI (FEE) DAYS'!A:A,0)),0) -> 2018-07-01 | I19: =IFERROR(INDEX('11. Hospital Statuses'!M:M,MATCH(C19,'11. Hospital Statuses'!A:A,0)),"") -> Open | J19: Orange | K19: 13 | L19: 1012 | M19: Investor | N19: Comparable | P19: https://www.anaheimregionalmc.com/ | R19: AHMC HEALTHCARE INC | S19: 714-774-1450 | T19: 111 WEST LA PALMA AVENUE | U19: ANAHEIM | V19: 92801 | W19: MARGARET PETERSON | X19: =IFERROR(IF(INDEX(#REF!,MATCH(C19,#REF!,0)),"Yes","No"),"") ->  | Y19: CY 2023 | Z19: =IFERROR(IF($Y19="CY 2023",INDEX('6. CY 2023'!S:S,MATCH($C19,'6. CY 2023'!$A:$A,0)),0),0) -> 0 | AA19: =IFERROR(IF($Y19="CY 2023",INDEX('6. CY 2023'!U:U,MATCH($C19,'6. CY 2023'!$A:$A,0)),0),0) -> 4851942.33 | AB19: =IFERROR(IF($Y19="CY 2023",INDEX('6. CY 2023'!W:W,MATCH($C19,'6. CY 2023'!$A:$A,0)),0),0) -> 4904793.6 | AC19: =IFERROR(IF($Y19="CY 2023",INDEX('6. CY 2023'!Y:Y,MATCH($C19,'6. CY 2023'!$A:$A,0)),0),0) -> 0 | AD19: =IFERROR(IF($Y19="CY 2023",INDEX('6. CY 2023'!AA:AA,MATCH($C19,'6. CY 2023'!$A:$A,0)),0),0) -> 7132480 | AE19: =IFERROR(IF($Y19="CY 2023",INDEX('6. CY 2023'!AC:AC,MATCH($C19,'6. CY 2023'!$A:$A,0)),0),0) -> 3912200 | AF19: =IFERROR(IF($Y19="CY 2023",INDEX('6. CY 2023'!AE:AE,MATCH($C19,'6. CY 2023'!$A:$A,0)),0),0) -> 20801415.93 | AG19: =IFERROR(IF(Y19="CY 2023",AF19/'4. Calculated Fee'!$D$32*'4. Calculated Fee'!$D$23,0),0) -> 5303043.113 | AH19: =IFERROR(IF($Y19="CY 2023",INDEX('6. CY 2023'!AE:AE,MATCH($C19,'6. CY 2023'!$A:$A,0)),0),0) -> 20801415.93 | AI19: =IFERROR(IF(Y19="CY 2023",INDEX('6. CY 2023'!AL:AL,MATCH(C19,'6. CY 2023'!A:A,0)),0),0) -> 3115443.295 | AJ19: =IFERROR(IF($Y19="CY 2023",INDEX('6. CY 2023'!AM:AM,MATCH($C19,'6. CY 2023'!$A:$A,0)),0),0) -> 5489663.196 | AK19: =IFERROR(IF($Y19="CY 2023",INDEX('6. CY 2023'!AN:AN,MATCH($C19,'6. CY 2023'!$A:$A,0)),0),0) -> 0 | AL19: =IFERROR(IF($Y19="CY 2023",INDEX('6. CY 2023'!AO:AO,MATCH($C19,'6. CY 2023'!$A:$A,0)),0),0) -> 0 | AM19: =IFERROR(IF($Y19="CY 2023",INDEX('6. CY 2023'!AP:AP,MATCH($C19,'6. CY 2023'!$A:$A,0)),0),0) -> 1572500 | AN19: =IFERROR(IF($Y19="CY 2023",INDEX('6. CY 2023'!AQ:AQ,MATCH($C19,'6. CY 2023'!$A:$A,0)),0),0) -> 0 | AO19: =IFERROR(IF($Y19="CY 2023",INDEX('6. CY 2023'!AR:AR,MATCH($C19,'6. CY 2023'!$A:$A,0)),0),0) -> 0 | AP19: =IFERROR(IF($Y19="CY 2023",INDEX('6. CY 2023'!AS:AS,MATCH($C19,'6. CY 2023'!$A:$A,0)),0),0) -> 0 | AQ19: =IFERROR(IF($Y19="CY 2023",INDEX('6. CY 2023'!AV:AV,MATCH($C19,'6. CY 2023'!$A:$A,0)),0),0) -> 10177606.49 | AR19: =IFERROR(IF($Y19="CY 2023",INDEX('6. CY 2023'!AX:AX,MATCH($C19,'6. CY 2023'!A:A,0)),0),0) -> 3391666.258 | AS19: =IFERROR(IF(Y19="CY 2023",INDEX('6. CY 2023'!AY:AY,MATCH(C19,'6. CY 2023'!A:A,0)),0),0) -> 22038117.59 | AT19: =IFERROR(IF($Y19="CY 2023",INDEX('6. CY 2023'!AZ:AZ,MATCH($C19,'6. CY 2023'!A:A,0)),0),0) -> 25429783.85 | AW19: =IFERROR(IF(Y19="CY 2023",INDEX('6. CY 2023'!H:H,MATCH(C19,'6. CY 2023'!A:A,0)),0),0) -> 231506825.5 | AX19: =SUM(AG19) -> 5303043.113
A20: 17 | B20: ALAMEDA HOSPITAL | C20: 106010735 | D20: ALAMEDA HOSPITAL | F20: =IFERROR(INDEX('8. 2019 HCAI (FEE) DAYS'!G:G,MATCH(C20,'8. 2019 HCAI (FEE) DAYS'!A:A,0)),0) -> 2018-07-01 | G20: =IFERROR(INDEX('8. 2019 HCAI (FEE) DAYS'!H:H,MATCH(C20,'8. 2019 HCAI (FEE) DAYS'!A:A,0)),0) -> 2019-06-30 | H20: =IFERROR(INDEX('8. 2019 HCAI (FEE) DAYS'!L:L,MATCH(C20,'8. 2019 HCAI (FEE) DAYS'!A:A,0)),0) -> 2018-07-01 | I20: =IFERROR(INDEX('11. Hospital Statuses'!M:M,MATCH(C20,'11. Hospital Statuses'!A:A,0)),"") -> Open | J20: Alameda | K20: 5 | L20: 417 | M20: City/County | N20: Comparable | P20: http://www.alamedahealthsystem.org/locations/alameda-hospital/ | R20: ALAMEDA HEALTH SYSTEM | S20: 510-437-4800 | T20: 2070 CLINTON AVENUE | U20: ALAMEDA | V20: 94501 | W20: JAMES JACKSON | X20: =IFERROR(IF(INDEX(#REF!,MATCH(C20,#REF!,0)),"Yes","No"),"") ->  | Y20: CY 2023 | Z20: =IFERROR(IF($Y20="CY 2023",INDEX('6. CY 2023'!S:S,MATCH($C20,'6. CY 2023'!$A:$A,0)),0),0) -> 0 | AA20: =IFERROR(IF($Y20="CY 2023",INDEX('6. CY 2023'!U:U,MATCH($C20,'6. CY 2023'!$A:$A,0)),0),0) -> 0 | AB20: =IFERROR(IF($Y20="CY 2023",INDEX('6. CY 2023'!W:W,MATCH($C20,'6. CY 2023'!$A:$A,0)),0),0) -> 0 | AC20: =IFERROR(IF($Y20="CY 2023",INDEX('6. CY 2023'!Y:Y,MATCH($C20,'6. CY 2023'!$A:$A,0)),0),0) -> 0 | AD20: =IFERROR(IF($Y20="CY 2023",INDEX('6. CY 2023'!AA:AA,MATCH($C20,'6. CY 2023'!$A:$A,0)),0),0) -> 0 | AE20: =IFERROR(IF($Y20="CY 2023",INDEX('6. CY 2023'!AC:AC,MATCH($C20,'6. CY 2023'!$A:$A,0)),0),0) -> 0 | AF20: =IFERROR(IF($Y20="CY 2023",INDEX('6. CY 2023'!AE:AE,MATCH($C20,'6. CY 2023'!$A:$A,0)),0),0) -> 0 | AG20: =IFERROR(IF(Y20="CY 2023",AF20/'4. Calculated Fee'!$D$32*'4. Calculated Fee'!$D$23,0),0) -> 0 | AH20: =IFERROR(IF($Y20="CY 2023",INDEX('6. CY 2023'!AE:AE,MATCH($C20,'6. CY 2023'!$A:$A,0)),0),0) -> 0 | AI20: =IFERROR(IF(Y20="CY 2023",INDEX('6. CY 2023'!AL:AL,MATCH(C20,'6. CY 2023'!A:A,0)),0),0) -> 0 | AJ20: =IFERROR(IF($Y20="CY 2023",INDEX('6. CY 2023'!AM:AM,MATCH($C20,'6. CY 2023'!$A:$A,0)),0),0) -> 0 | AK20: =IFERROR(IF($Y20="CY 2023",INDEX('6. CY 2023'!AN:AN,MATCH($C20,'6. CY 2023'!$A:$A,0)),0),0) -> 0 | AL20: =IFERROR(IF($Y20="CY 2023",INDEX('6. CY 2023'!AO:AO,MATCH($C20,'6. CY 2023'!$A:$A,0)),0),0) -> 0 | AM20: =IFERROR(IF($Y20="CY 2023",INDEX('6. CY 2023'!AP:AP,MATCH($C20,'6. CY 2023'!$A:$A,0)),0),0) -> 0 | AN20: =IFERROR(IF($Y20="CY 2023",INDEX('6. CY 2023'!AQ:AQ,MATCH($C20,'6. CY 2023'!$A:$A,0)),0),0) -> 0 | AO20: =IFERROR(IF($Y20="CY 2023",INDEX('6. CY 2023'!AR:AR,MATCH($C20,'6. CY 2023'!$A:$A,0)),0),0) -> 0 | AP20: =IFERROR(IF($Y20="CY 2023",INDEX('6. CY 2023'!AS:AS,MATCH($C20,'6. CY 2023'!$A:$A,0)),0),0) -> 0 | AQ20: =IFERROR(IF($Y20="CY 2023",INDEX('6. CY 2023'!AV:AV,MATCH($C20,'6. CY 2023'!$A:$A,0)),0),0) -> 0 | AR20: =IFERROR(IF($Y20="CY 2023",INDEX('6. CY 2023'!AX:AX,MATCH($C20,'6. CY 2023'!A:A,0)),0),0) -> 0 | AS20: =IFERROR(IF(Y20="CY 2023",INDEX('6. CY 2023'!AY:AY,MATCH(C20,'6. CY 2023'!A:A,0)),0),0) -> 0 | AT20: =IFERROR(IF($Y20="CY 2023",INDEX('6. CY 2023'!AZ:AZ,MATCH($C20,'6. CY 2023'!A:A,0)),0),0) -> 0 | AW20: =IFERROR(IF(Y20="CY 2023",INDEX('6. CY 2023'!H:H,MATCH(C20,'6. CY 2023'!A:A,0)),0),0) -> 478664670.2 | AX20: =SUM(AG20:AG21) -> 2666772.158
A21: 18 | B21: ALHAMBRA HOSPITAL MEDICAL CENTER | C21: 106190017 | D21: ALHAMBRA HOSPITAL MEDICAL CENTER | F21: =IFERROR(INDEX('8. 2019 HCAI (FEE) DAYS'!G:G,MATCH(C21,'8. 2019 HCAI (FEE) DAYS'!A:A,0)),0) -> 2018-07-01 | G21: =IFERROR(INDEX('8. 2019 HCAI (FEE) DAYS'!H:H,MATCH(C21,'8. 2019 HCAI (FEE) DAYS'!A:A,0)),0) -> 2019-06-30 | H21: =IFERROR(INDEX('8. 2019 HCAI (FEE) DAYS'!L:L,MATCH(C21,'8. 2019 HCAI (FEE) DAYS'!A:A,0)),0) -> 2018-07-01 | I21: =IFERROR(INDEX('11. Hospital Statuses'!M:M,MATCH(C21,'11. Hospital Statuses'!A:A,0)),"") -> Open | J21: Los Angeles | K21: 11 | L21: 913 | M21: Investor | N21: Comparable | P21: https://www.alhambrahospital.com/ | Q21: Link not working | R21: ALHAMBRA HOSPITAL MEDICAL CEMTER LP | S21: 626-570-1606 | T21: 100 SOUTH RAYMOND AVENUE | U21: ALHAMBRA | V21: 91802 | W21: IRIS LAI | X21: =IFERROR(IF(INDEX(#REF!,MATCH(C21,#REF!,0)),"Yes","No"),"") ->  | Y21: CY 2023 | Z21: =IFERROR(IF($Y21="CY 2023",INDEX('6. CY 2023'!S:S,MATCH($C21,'6. CY 2023'!$A:$A,0)),0),0) -> 0 | AA21: =IFERROR(IF($Y21="CY 2023",INDEX('6. CY 2023'!U:U,MATCH($C21,'6. CY 2023'!$A:$A,0)),0),0) -> 2310118.59 | AB21: =IFERROR(IF($Y21="CY 2023",INDEX('6. CY 2023'!W:W,MATCH($C21,'6. CY 2023'!$A:$A,0)),0),0) -> 3524590.52 | AC21: =IFERROR(IF($Y21="CY 2023",INDEX('6. CY 2023'!Y:Y,MATCH($C21,'6. CY 2023'!$A:$A,0)),0),0) -> 0 | AD21: =IFERROR(IF($Y21="CY 2023",INDEX('6. CY 2023'!AA:AA,MATCH($C21,'6. CY 2023'!$A:$A,0)),0),0) -> 4265600 | AE21: =IFERROR(IF($Y21="CY 2023",INDEX('6. CY 2023'!AC:AC,MATCH($C21,'6. CY 2023'!$A:$A,0)),0),0) -> 360220 | AF21: =IFERROR(IF($Y21="CY 2023",INDEX('6. CY 2023'!AE:AE,MATCH($C21,'6. CY 2023'!$A:$A,0)),0),0) -> 10460529.11 | AG21: =IFERROR(IF(Y21="CY 2023",AF21/'4. Calculated Fee'!$D$32*'4. Calculated Fee'!$D$23,0),0) -> 2666772.158 | AH21: =IFERROR(IF($Y21="CY 2023",INDEX('6. CY 2023'!AE:AE,MATCH($C21,'6. CY 2023'!$A:$A,0)),0),0) -> 10460529.11 | AI21: =IFERROR(IF(Y21="CY 2023",INDEX('6. CY 2023'!AL:AL,MATCH(C21,'6. CY 2023'!A:A,0)),0),0) -> 793248.3002 | AJ21: =IFERROR(IF($Y21="CY 2023",INDEX('6. CY 2023'!AM:AM,MATCH($C21,'6. CY 2023'!$A:$A,0)),0),0) -> 707857.8058 | AK21: =IFERROR(IF($Y21="CY 2023",INDEX('6. CY 2023'!AN:AN,MATCH($C21,'6. CY 2023'!$A:$A,0)),0),0) -> 1113024.614 | AL21: =IFERROR(IF($Y21="CY 2023",INDEX('6. CY 2023'!AO:AO,MATCH($C21,'6. CY 2023'!$A:$A,0)),0),0) -> 0 | AM21: =IFERROR(IF($Y21="CY 2023",INDEX('6. CY 2023'!AP:AP,MATCH($C21,'6. CY 2023'!$A:$A,0)),0),0) -> 317500 | AN21: =IFERROR(IF($Y21="CY 2023",INDEX('6. CY 2023'!AQ:AQ,MATCH($C21,'6. CY 2023'!$A:$A,0)),0),0) -> 0 | AO21: =IFERROR(IF($Y21="CY 2023",INDEX('6. CY 2023'!AR:AR,MATCH($C21,'6. CY 2023'!$A:$A,0)),0),0) -> 0 | AP21: =IFERROR(IF($Y21="CY 2023",INDEX('6. CY 2023'!AS:AS,MATCH($C21,'6. CY 2023'!$A:$A,0)),0),0) -> 0 | AQ21: =IFERROR(IF($Y21="CY 2023",INDEX('6. CY 2023'!AV:AV,MATCH($C21,'6. CY 2023'!$A:$A,0)),0),0) -> 2931630.72 | AR21: =IFERROR(IF($Y21="CY 2023",INDEX('6. CY 2023'!AX:AX,MATCH($C21,'6. CY 2023'!A:A,0)),0),0) -> 4828939.325 | AS21: =IFERROR(IF(Y21="CY 2023",INDEX('6. CY 2023'!AY:AY,MATCH(C21,'6. CY 2023'!A:A,0)),0),0) -> 11061914.78 | AT21: =IFERROR(IF($Y21="CY 2023",INDEX('6. CY 2023'!AZ:AZ,MATCH($C21,'6. CY 2023'!A:A,0)),0),0) -> 15890854.11 | AW21: =IFERROR(IF(Y21="CY 2023",INDEX('6. CY 2023'!H:H,MATCH(C21,'6. CY 2023'!A:A,0)),0),0) -> 92425321.64 | AX21: =SUM(AG21) -> 2666772.158
A22: 19 | B22: ALTA BATES SUMMIT MEDICAL CENTER - ALTA BATES CAMPUS | C22: 106010739 | D22: ALTA BATES SUMMIT MEDICAL CENTER - ALTA BATES CAMPUS | F22: =IFERROR(INDEX('8. 2019 HCAI (FEE) DAYS'!G:G,MATCH(C22,'8. 2019 HCAI (FEE) DAYS'!A:A,0)),0) -> 2019-01-01 | G22: =IFERROR(INDEX('8. 2019 HCAI (FEE) DAYS'!H:H,MATCH(C22,'8. 2019 HCAI (FEE) DAYS'!A:A,0)),0) -> 2019-12-31 | H22: =IFERROR(INDEX('8. 2019 HCAI (FEE) DAYS'!L:L,MATCH(C22,'8. 2019 HCAI (FEE) DAYS'!A:A,0)),0) -> 2019-01-01 | I22: =IFERROR(INDEX('11. Hospital Statuses'!M:M,MATCH(C22,'11. Hospital Statuses'!A:A,0)),"") -> Open | J22: Alameda | K22: 5 | L22: 415 | M22: Non-Profit | N22: Comparable | P22: https://www.sutterhealth.org/find-location/facility/alta-bates-summit-medical-center-alta-bates-campus | R22: SUTTER HEALTH | S22: 510-204-4444 | T22: 2450 ASHBY AVENUE | U22: BERKELEY | V22: 94705 | W22: DR. GERALD KOZAI | X22: =IFERROR(IF(INDEX(#REF!,MATCH(C22,#REF!,0)),"Yes","No"),"") ->  | Y22: CY 2023 | Z22: =IFERROR(IF($Y22="CY 2023",INDEX('6. CY 2023'!S:S,MATCH($C22,'6. CY 2023'!$A:$A,0)),0),0) -> 0 | AA22: =IFERROR(IF($Y22="CY 2023",INDEX('6. CY 2023'!U:U,MATCH($C22,'6. CY 2023'!$A:$A,0)),0),0) -> 8943089.01 | AB22: =IFERROR(IF($Y22="CY 2023",INDEX('6. CY 2023'!W:W,MATCH($C22,'6. CY 2023'!$A:$A,0)),0),0) -> 9132623.5 | AC22: =IFERROR(IF($Y22="CY 2023",INDEX('6. CY 2023'!Y:Y,MATCH($C22,'6. CY 2023'!$A:$A,0)),0),0) -> 0 | AD22: =IFERROR(IF($Y22="CY 2023",INDEX('6. CY 2023'!AA:AA,MATCH($C22,'6. CY 2023'!$A:$A,0)),0),0) -> 7267640 | AE22: =IFERROR(IF($Y22="CY 2023",INDEX('6. CY 2023'!AC:AC,MATCH($C22,'6. CY 2023'!$A:$A,0)),0),0) -> 6283080 | AF22: =IFERROR(IF($Y22="CY 2023",INDEX('6. CY 2023'!AE:AE,MATCH($C22,'6. CY 2023'!$A:$A,0)),0),0) -> 31626432.51 | AG22: =IFERROR(IF(Y22="CY 2023",AF22/'4. Calculated Fee'!$D$32*'4. Calculated Fee'!$D$23,0),0) -> 8062736.483 | AH22: =IFERROR(IF($Y22="CY 2023",INDEX('6. CY 2023'!AE:AE,MATCH($C22,'6. CY 2023'!$A:$A,0)),0),0) -> 31626432.51 | AI22: =IFERROR(IF(Y22="CY 2023",INDEX('6. CY 2023'!AL:AL,MATCH(C22,'6. CY 2023'!A:A,0)),0),0) -> 3911026.301 | AJ22: =IFERROR(IF($Y22="CY 2023",INDEX('6. CY 2023'!AM:AM,MATCH($C22,'6. CY 2023'!$A:$A,0)),0),0) -> 12584377.83 | AK22: =IFERROR(IF($Y22="CY 2023",INDEX('6. CY 2023'!AN:AN,MATCH($C22,'6. CY 2023'!$A:$A,0)),0),0) -> 0 | AL22: =IFERROR(IF($Y22="CY 2023",INDEX('6. CY 2023'!AO:AO,MATCH($C22,'6. CY 2023'!$A:$A,0)),0),0) -> 819975 | AM22: =IFERROR(IF($Y22="CY 2023",INDEX('6. CY 2023'!AP:AP,MATCH($C22,'6. CY 2023'!$A:$A,0)),0),0) -> 3797500 | AN22: =IFERROR(IF($Y22="CY 2023",INDEX('6. CY 2023'!AQ:AQ,MATCH($C22,'6. CY 2023'!$A:$A,0)),0),0) -> 0 | AO22: =IFERROR(IF($Y22="CY 2023",INDEX('6. CY 2023'!AR:AR,MATCH($C22,'6. CY 2023'!$A:$A,0)),0),0) -> 0 | AP22: =IFERROR(IF($Y22="CY 2023",INDEX('6. CY 2023'!AS:AS,MATCH($C22,'6. CY 2023'!$A:$A,0)),0),0) -> 0 | AQ22: =IFERROR(IF($Y22="CY 2023",INDEX('6. CY 2023'!AV:AV,MATCH($C22,'6. CY 2023'!$A:$A,0)),0),0) -> 21112879.13 | AR22: =IFERROR(IF($Y22="CY 2023",INDEX('6. CY 2023'!AX:AX,MATCH($C22,'6. CY 2023'!A:A,0)),0),0) -> 14227196.94 | AS22: =IFERROR(IF(Y22="CY 2023",INDEX('6. CY 2023'!AY:AY,MATCH(C22,'6. CY 2023'!A:A,0)),0),0) -> 29937113.19 | AT22: =IFERROR(IF($Y22="CY 2023",INDEX('6. CY 2023'!AZ:AZ,MATCH($C22,'6. CY 2023'!A:A,0)),0),0) -> 44164310.13 | AW22: =IFERROR(IF(Y22="CY 2023",INDEX('6. CY 2023'!H:H,MATCH(C22,'6. CY 2023'!A:A,0)),0),0) -> 835108066.3 | AX22: =SUM(AG22:AG37) -> 32341603.31
A23: 20 | B23: ALTA BATES SUMMIT MEDICAL CENTER - SUMMIT HAWTHORNE | C23: 106010937 | D23: ALTA BATES SUMMIT MEDICAL CENTER - SUMMIT HAWTHORNE | F23: =IFERROR(INDEX('8. 2019 HCAI (FEE) DAYS'!G:G,MATCH(C23,'8. 2019 HCAI (FEE) DAYS'!A:A,0)),0) -> 2019-01-01 | G23: =IFERROR(INDEX('8. 2019 HCAI (FEE) DAYS'!H:H,MATCH(C23,'8. 2019 HCAI (FEE) DAYS'!A:A,0)),0) -> 2019-12-31 | H23: =IFERROR(INDEX('8. 2019 HCAI (FEE) DAYS'!L:L,MATCH(C23,'8. 2019 HCAI (FEE) DAYS'!A:A,0)),0) -> 2019-01-01 | I23: =IFERROR(INDEX('11. Hospital Statuses'!M:M,MATCH(C23,'11. Hospital Statuses'!A:A,0)),"") -> Open | J23: Alameda | K23: 5 | L23: 417 | M23: Non-Profit | N23: Comparable | P23: https://www.sutterhealth.org/find-location/facility/alta-bates-summit-medical-center-summit-campus | R23: SUTTER HEALTH | S23: 510-655-4000 | T23: HAWTHORNE AVE & WEBSTER ST | U23: OAKLAND | V23: 94609 | W23: DR. GERALD KOZAI | X23: =IFERROR(IF(INDEX(#REF!,MATCH(C23,#REF!,0)),"Yes","No"),"") ->  | Y23: CY 2023 | Z23: =IFERROR(IF($Y23="CY 2023",INDEX('6. CY 2023'!S:S,MATCH($C23,'6. CY 2023'!$A:$A,0)),0),0) -> 0 | AA23: =IFERROR(IF($Y23="CY 2023",INDEX('6. CY 2023'!U:U,MATCH($C23,'6. CY 2023'!$A:$A,0)),0),0) -> 5771465.13 | AB23: =IFERROR(IF($Y23="CY 2023",INDEX('6. CY 2023'!W:W,MATCH($C23,'6. CY 2023'!$A:$A,0)),0),0) -> 13094412.14 | AC23: =IFERROR(IF($Y23="CY 2023",INDEX('6. CY 2023'!Y:Y,MATCH($C23,'6. CY 2023'!$A:$A,0)),0),0) -> 0 | AD23: =IFERROR(IF($Y23="CY 2023",INDEX('6. CY 2023'!AA:AA,MATCH($C23,'6. CY 2023'!$A:$A,0)),0),0) -> 7338320 | AE23: =IFERROR(IF($Y23="CY 2023",INDEX('6. CY 2023'!AC:AC,MATCH($C23,'6. CY 2023'!$A:$A,0)),0),0) -> 2959260 | AF23: =IFERROR(IF($Y23="CY 2023",INDEX('6. CY 2023'!AE:AE,MATCH($C23,'6. CY 2023'!$A:$A,0)),0),0) -> 29163457.27 | AG23: =IFERROR(IF(Y23="CY 2023",AF23/'4. Calculated Fee'!$D$32*'4. Calculated Fee'!$D$23,0),0) -> 7434833.847 | AH23: =IFERROR(IF($Y23="CY 2023",INDEX('6. CY 2023'!AE:AE,MATCH($C23,'6. CY 2023'!$A:$A,0)),0),0) -> 29163457.27 | AI23: =IFERROR(IF(Y23="CY 2023",INDEX('6. CY 2023'!AL:AL,MATCH(C23,'6. CY 2023'!A:A,0)),0),0) -> 1249888.093 | AJ23: =IFERROR(IF($Y23="CY 2023",INDEX('6. CY 2023'!AM:AM,MATCH($C23,'6. CY 2023'!$A:$A,0)),0),0) -> 4021234.769 | AK23: =IFERROR(IF($Y23="CY 2023",INDEX('6. CY 2023'!AN:AN,MATCH($C23,'6. CY 2023'!$A:$A,0)),0),0) -> 0 | AL23: =IFERROR(IF($Y23="CY 2023",INDEX('6. CY 2023'!AO:AO,MATCH($C23,'6. CY 2023'!$A:$A,0)),0),0) -> 0 | AM23: =IFERROR(IF($Y23="CY 2023",INDEX('6. CY 2023'!AP:AP,MATCH($C23,'6. CY 2023'!$A:$A,0)),0),0) -> 797500 | AN23: =IFERROR(IF($Y23="CY 2023",INDEX('6. CY 2023'!AQ:AQ,MATCH($C23,'6. CY 2023'!$A:$A,0)),0),0) -> 0 | AO23: =IFERROR(IF($Y23="CY 2023",INDEX('6. CY 2023'!AR:AR,MATCH($C23,'6. CY 2023'!$A:$A,0)),0),0) -> 0 | AP23: =IFERROR(IF($Y23="CY 2023",INDEX('6. CY 2023'!AS:AS,MATCH($C23,'6. CY 2023'!$A:$A,0)),0),0) -> 0 | AQ23: =IFERROR(IF($Y23="CY 2023",INDEX('6. CY 2023'!AV:AV,MATCH($C23,'6. CY 2023'!$A:$A,0)),0),0) -> 6068622.863 | AR23: =IFERROR(IF($Y23="CY 2023",INDEX('6. CY 2023'!AX:AX,MATCH($C23,'6. CY 2023'!A:A,0)),0),0) -> 2611793.867 | AS23: =IFERROR(IF(Y23="CY 2023",INDEX('6. CY 2023'!AY:AY,MATCH(C23,'6. CY 2023'!A:A,0)),0),0) -> 30181357.36 | AT23: =IFERROR(IF($Y23="CY 2023",INDEX('6. CY 2023'!AZ:AZ,MATCH($C23,'6. CY 2023'!A:A,0)),0),0) -> 32793151.22 | AW23: =IFERROR(IF(Y23="CY 2023",INDEX('6. CY 2023'!H:H,MATCH(C23,'6. CY 2023'!A:A,0)),0),0) -> 657333252.9
A24: 21 | B24: ALVARADO HOSPITAL | C24: 106370652 | D24: ALVARADO HOSPITAL | F24: =IFERROR(INDEX('8. 2019 HCAI (FEE) DAYS'!G:G,MATCH(C24,'8. 2019 HCAI (FEE) DAYS'!A:A,0)),0) -> 2019-01-01 | G24: =IFERROR(INDEX('8. 2019 HCAI (FEE) DAYS'!H:H,MATCH(C24,'8. 2019 HCAI (FEE) DAYS'!A:A,0)),0) -> 2019-12-31 | H24: =IFERROR(INDEX('8. 2019 HCAI (FEE) DAYS'!L:L,MATCH(C24,'8. 2019 HCAI (FEE) DAYS'!A:A,0)),0) -> 2019-01-01 | I24: =IFERROR(INDEX('11. Hospital Statuses'!M:M,MATCH(C24,'11. Hospital Statuses'!A:A,0)),"") -> Open | J24: San Diego | K24: 14 | L24: 1418 | M24: Investor | N24: Comparable | P24: https://www.alvaradohospital.com/ | R24: PRIME HEALTHCARE SERVICES, INC. | S24: 619-287-3270 | T24: 6655 ALVARADO ROAD | U24: SAN DIEGO | V24: 92120 | W24: LUIS LEON | X24: =IFERROR(IF(INDEX(#REF!,MATCH(C24,#REF!,0)),"Yes","No"),"") ->  | Y24: CY 2023 | Z24: =IFERROR(IF($Y24="CY 2023",INDEX('6. CY 2023'!S:S,MATCH($C24,'6. CY 2023'!$A:$A,0)),0),0) -> 0 | AA24: =IFERROR(IF($Y24="CY 2023",INDEX('6. CY 2023'!U:U,MATCH($C24,'6. CY 2023'!$A:$A,0)),0),0) -> 2139350.07 | AB24: =IFERROR(IF($Y24="CY 2023",INDEX('6. CY 2023'!W:W,MATCH($C24,'6. CY 2023'!$A:$A,0)),0),0) -> 3913981.5 | AC24: =IFERROR(IF($Y24="CY 2023",INDEX('6. CY 2023'!Y:Y,MATCH($C24,'6. CY 2023'!$A:$A,0)),0),0) -> 0 | AD24: =IFERROR(IF($Y24="CY 2023",INDEX('6. CY 2023'!AA:AA,MATCH($C24,'6. CY 2023'!$A:$A,0)),0),0) -> 2877420 | AE24: =IFERROR(IF($Y24="CY 2023",INDEX('6. CY 2023'!AC:AC,MATCH($C24,'6. CY 2023'!$A:$A,0)),0),0) -> 1852560 | AF24: =IFERROR(IF($Y24="CY 2023",INDEX('6. CY 2023'!AE:AE,MATCH($C24,'6. CY 2023'!$A:$A,0)),0),0) -> 10783311.57 | AG24: =IFERROR(IF(Y24="CY 2023",AF24/'4. Calculated Fee'!$D$32*'4. Calculated Fee'!$D$23,0),0) -> 2749061.235 | AH24: =IFERROR(IF($Y24="CY 2023",INDEX('6. CY 2023'!AE:AE,MATCH($C24,'6. CY 2023'!$A:$A,0)),0),0) -> 10783311.57 | AI24: =IFERROR(IF(Y24="CY 2023",INDEX('6. CY 2023'!AL:AL,MATCH(C24,'6. CY 2023'!A:A,0)),0),0) -> 944806.4013 | AJ24: =IFERROR(IF($Y24="CY 2023",INDEX('6. CY 2023'!AM:AM,MATCH($C24,'6. CY 2023'!$A:$A,0)),0),0) -> 2564639.831 | AK24: =IFERROR(IF($Y24="CY 2023",INDEX('6. CY 2023'!AN:AN,MATCH($C24,'6. CY 2023'!$A:$A,0)),0),0) -> 0 | AL24: =IFERROR(IF($Y24="CY 2023",INDEX('6. CY 2023'!AO:AO,MATCH($C24,'6. CY 2023'!$A:$A,0)),0),0) -> 0 | AM24: =IFERROR(IF($Y24="CY 2023",INDEX('6. CY 2023'!AP:AP,MATCH($C24,'6. CY 2023'!$A:$A,0)),0),0) -> 927500 | AN24: =IFERROR(IF($Y24="CY 2023",INDEX('6. CY 2023'!AQ:AQ,MATCH($C24,'6. CY 2023'!$A:$A,0)),0),0) -> 0 | AO24: =IFERROR(IF($Y24="CY 2023",INDEX('6. CY 2023'!AR:AR,MATCH($C24,'6. CY 2023'!$A:$A,0)),0),0) -> 0 | AP24: =IFERROR(IF($Y24="CY 2023",INDEX('6. CY 2023'!AS:AS,MATCH($C24,'6. CY 2023'!$A:$A,0)),0),0) -> 0 | AQ24: =IFERROR(IF($Y24="CY 2023",INDEX('6. CY 2023'!AV:AV,MATCH($C24,'6. CY 2023'!$A:$A,0)),0),0) -> 4436946.233 | AR24: =IFERROR(IF($Y24="CY 2023",INDEX('6. CY 2023'!AX:AX,MATCH($C24,'6. CY 2023'!A:A,0)),0),0) -> 1967167.098 | AS24: =IFERROR(IF(Y24="CY 2023",INDEX('6. CY 2023'!AY:AY,MATCH(C24,'6. CY 2023'!A:A,0)),0),0) -> 12857827.62 | AT24: =IFERROR(IF($Y24="CY 2023",INDEX('6. CY 2023'!AZ:AZ,MATCH($C24,'6. CY 2023'!A:A,0)),0),0) -> 14824994.71 | AW24: =IFERROR(IF(Y24="CY 2023",INDEX('6. CY 2023'!H:H,MATCH(C24,'6. CY 2023'!A:A,0)),0),0) -> 137877609.7
A25: 22 | B25: ALVARADO PARKWAY INSTITUTE BHS | C25: 106370749 | D25: ALVARADO PARKWAY INSTITUTE BHS | F25: =IFERROR(INDEX('8. 2019 HCAI (FEE) DAYS'!G:G,MATCH(C25,'8. 2019 HCAI (FEE) DAYS'!A:A,0)),0) -> 2019-01-01 | G25: =IFERROR(INDEX('8. 2019 HCAI (FEE) DAYS'!H:H,MATCH(C25,'8. 2019 HCAI (FEE) DAYS'!A:A,0)),0) -> 2019-12-31 | H25: =IFERROR(INDEX('8. 2019 HCAI (FEE) DAYS'!L:L,MATCH(C25,'8. 2019 HCAI (FEE) DAYS'!A:A,0)),0) -> 2019-01-01 | I25: =IFERROR(INDEX('11. Hospital Statuses'!M:M,MATCH(C25,'11. Hospital Statuses'!A:A,0)),"") -> Open | J25: San Diego | K25: 14 | L25: 1422 | M25: Investor | N25: Comparable | P25: https://apibhs.com/ | R25: BH-SD OPCO, LLC | S25: 619-465-4411 | T25: 7050 PARKWAY DRIVE | U25: LA MESA | V25: 92042 | W25: MEGAN MONTGOMERY-WEST | X25: =IFERROR(IF(INDEX(#REF!,MATCH(C25,#REF!,0)),"Yes","No"),"") ->  | Y25: CY 2023 | Z25: =IFERROR(IF($Y25="CY 2023",INDEX('6. CY 2023'!S:S,MATCH($C25,'6. CY 2023'!$A:$A,0)),0),0) -> 0 | AA25: =IFERROR(IF($Y25="CY 2023",INDEX('6. CY 2023'!U:U,MATCH($C25,'6. CY 2023'!$A:$A,0)),0),0) -> 0 | AB25: =IFERROR(IF($Y25="CY 2023",INDEX('6. CY 2023'!W:W,MATCH($C25,'6. CY 2023'!$A:$A,0)),0),0) -> 0 | AC25: =IFERROR(IF($Y25="CY 2023",INDEX('6. CY 2023'!Y:Y,MATCH($C25,'6. CY 2023'!$A:$A,0)),0),0) -> 0 | AD25: =IFERROR(IF($Y25="CY 2023",INDEX('6. CY 2023'!AA:AA,MATCH($C25,'6. CY 2023'!$A:$A,0)),0),0) -> 0 | AE25: =IFERROR(IF($Y25="CY 2023",INDEX('6. CY 2023'!AC:AC,MATCH($C25,'6. CY 2023'!$A:$A,0)),0),0) -> 0 | AF25: =IFERROR(IF($Y25="CY 2023",INDEX('6. CY 2023'!AE:AE,MATCH($C25,'6. CY 2023'!$A:$A,0)),0),0) -> 0 | AG25: =IFERROR(IF(Y25="CY 2023",AF25/'4. Calculated Fee'!$D$32*'4. Calculated Fee'!$D$23,0),0) -> 0 | AH25: =IFERROR(IF($Y25="CY 2023",INDEX('6. CY 2023'!AE:AE,MATCH($C25,'6. CY 2023'!$A:$A,0)),0),0) -> 0 | AI25: =IFERROR(IF(Y25="CY 2023",INDEX('6. CY 2023'!AL:AL,MATCH(C25,'6. CY 2023'!A:A,0)),0),0) -> 0 | AJ25: =IFERROR(IF($Y25="CY 2023",INDEX('6. CY 2023'!AM:AM,MATCH($C25,'6. CY 2023'!$A:$A,0)),0),0) -> 0 | AK25: =IFERROR(IF($Y25="CY 2023",INDEX('6. CY 2023'!AN:AN,MATCH($C25,'6. CY 2023'!$A:$A,0)),0),0) -> 0 | AL25: =IFERROR(IF($Y25="CY 2023",INDEX('6. CY 2023'!AO:AO,MATCH($C25,'6. CY 2023'!$A:$A,0)),0),0) -> 0 | AM25: =IFERROR(IF($Y25="CY 2023",INDEX('6. CY 2023'!AP:AP,MATCH($C25,'6. CY 2023'!$A:$A,0)),0),0) -> 0 | AN25: =IFERROR(IF($Y25="CY 2023",INDEX('6. CY 2023'!AQ:AQ,MATCH($C25,'6. CY 2023'!$A:$A,0)),0),0) -> 0 | AO25: =IFERROR(IF($Y25="CY 2023",INDEX('6. CY 2023'!AR:AR,MATCH($C25,'6. CY 2023'!$A:$A,0)),0),0) -> 0 | AP25: =IFERROR(IF($Y25="CY 2023",INDEX('6. CY 2023'!AS:AS,MATCH($C25,'6. CY 2023'!$A:$A,0)),0),0) -> 0 | AQ25: =IFERROR(IF($Y25="CY 2023",INDEX('6. CY 2023'!AV:AV,MATCH($C25,'6. CY 2023'!$A:$A,0)),0),0) -> 0 | AR25: =IFERROR(IF($Y25="CY 2023",INDEX('6. CY 2023'!AX:AX,MATCH($C25,'6. CY 2023'!A:A,0)),0),0) -> 0 | AS25: =IFERROR(IF(Y25="CY 2023",INDEX('6. CY 2023'!AY:AY,MATCH(C25,'6. CY 2023'!A:A,0)),0),0) -> 0 | AT25: =IFERROR(IF($Y25="CY 2023",INDEX('6. CY 2023'!AZ:AZ,MATCH($C25,'6. CY 2023'!A:A,0)),0),0) -> 0 | AW25: =IFERROR(IF(Y25="CY 2023",INDEX('6. CY 2023'!H:H,MATCH(C25,'6. CY 2023'!A:A,0)),0),0) -> 42467945.86
A26: 23 | B26: ANAHEIM GLOBAL MEDICAL CENTER | C26: 106301188 | D26: ANAHEIM GLOBAL MEDICAL CENTER | F26: =IFERROR(INDEX('8. 2019 HCAI (FEE) DAYS'!G:G,MATCH(C26,'8. 2019 HCAI (FEE) DAYS'!A:A,0)),0) -> 2019-01-01 | G26: =IFERROR(INDEX('8. 2019 HCAI (FEE) DAYS'!H:H,MATCH(C26,'8. 2019 HCAI (FEE) DAYS'!A:A,0)),0) -> 2019-12-31 | H26: =IFERROR(INDEX('8. 2019 HCAI (FEE) DAYS'!L:L,MATCH(C26,'8. 2019 HCAI (FEE) DAYS'!A:A,0)),0) -> 2019-01-01 | I26: =IFERROR(INDEX('11. Hospital Statuses'!M:M,MATCH(C26,'11. Hospital Statuses'!A:A,0)),"") -> Open | J26: Orange | K26: 13 | L26: 1012 | M26: Investor | N26: Comparable | P26: HTTPS://ANAHEIM-GMC.COM/ | R26: KPC HEALTHCARE INC. | S26: 714-533-6220 | T26: 1025 SOUTH ANAHEIM BLVD | U26: ANAHEIM | V26: 92805-5806 | W26: PETER BARONOFF | X26: =IFERROR(IF(INDEX(#REF!,MATCH(C26,#REF!,0)),"Yes","No"),"") ->  | Y26: CY 2023 | Z26: =IFERROR(IF($Y26="CY 2023",INDEX('6. CY 2023'!S:S,MATCH($C26,'6. CY 2023'!$A:$A,0)),0),0) -> 0 | AA26: =IFERROR(IF($Y26="CY 2023",INDEX('6. CY 2023'!U:U,MATCH($C26,'6. CY 2023'!$A:$A,0)),0),0) -> 2060898.72 | AB26: =IFERROR(IF($Y26="CY 2023",INDEX('6. CY 2023'!W:W,MATCH($C26,'6. CY 2023'!$A:$A,0)),0),0) -> 3073159.74 | AC26: =IFERROR(IF($Y26="CY 2023",INDEX('6. CY 2023'!Y:Y,MATCH($C26,'6. CY 2023'!$A:$A,0)),0),0) -> 0 | AD26: =IFERROR(IF($Y26="CY 2023",INDEX('6. CY 2023'!AA:AA,MATCH($C26,'6. CY 2023'!$A:$A,0)),0),0) -> 1858760 | AE26: =IFERROR(IF($Y26="CY 2023",INDEX('6. CY 2023'!AC:AC,MATCH($C26,'6. CY 2023'!$A:$A,0)),0),0) -> 12558720 | AF26: =IFERROR(IF($Y26="CY 2023",INDEX('6. CY 2023'!AE:AE,MATCH($C26,'6. CY 2023'!$A:$A,0)),0),0) -> 19551538.46 | AG26: =IFERROR(IF(Y26="CY 2023",AF26/'4. Calculated Fee'!$D$32*'4. Calculated Fee'!$D$23,0),0) -> 4984403.549 | AH26: =IFERROR(IF($Y26="CY 2023",INDEX('6. CY 2023'!AE:AE,MATCH($C26,'6. CY 2023'!$A:$A,0)),0),0) -> 19551538.46 | AI26: =IFERROR(IF(Y26="CY 2023",INDEX('6. CY 2023'!AL:AL,MATCH(C26,'6. CY 2023'!A:A,0)),0),0) -> 1224244.931 | AJ26: =IFERROR(IF($Y26="CY 2023",INDEX('6. CY 2023'!AM:AM,MATCH($C26,'6. CY 2023'!$A:$A,0)),0),0) -> 2440926.081 | AK26: =IFERROR(IF($Y26="CY 2023",INDEX('6. CY 2023'!AN:AN,MATCH($C26,'6. CY 2023'!$A:$A,0)),0),0) -> 0 | AL26: =IFERROR(IF($Y26="CY 2023",INDEX('6. CY 2023'!AO:AO,MATCH($C26,'6. CY 2023'!$A:$A,0)),0),0) -> 1946100 | AM26: =IFERROR(IF($Y26="CY 2023",INDEX('6. CY 2023'!AP:AP,MATCH($C26,'6. CY 2023'!$A:$A,0)),0),0) -> 500000 | AN26: =IFERROR(IF($Y26="CY 2023",INDEX('6. CY 2023'!AQ:AQ,MATCH($C26,'6. CY 2023'!$A:$A,0)),0),0) -> 0 | AO26: =IFERROR(IF($Y26="CY 2023",INDEX('6. CY 2023'!AR:AR,MATCH($C26,'6. CY 2023'!$A:$A,0)),0),0) -> 0 | AP26: =IFERROR(IF($Y26="CY 2023",INDEX('6. CY 2023'!AS:AS,MATCH($C26,'6. CY 2023'!$A:$A,0)),0),0) -> 0 | AQ26: =IFERROR(IF($Y26="CY 2023",INDEX('6. CY 2023'!AV:AV,MATCH($C26,'6. CY 2023'!$A:$A,0)),0),0) -> 6111271.012 | AR26: =IFERROR(IF($Y26="CY 2023",INDEX('6. CY 2023'!AX:AX,MATCH($C26,'6. CY 2023'!A:A,0)),0),0) -> 26352709.42 | AS26: =IFERROR(IF(Y26="CY 2023",INDEX('6. CY 2023'!AY:AY,MATCH(C26,'6. CY 2023'!A:A,0)),0),0) -> 10255861.95 | AT26: =IFERROR(IF($Y26="CY 2023",INDEX('6. CY 2023'!AZ:AZ,MATCH($C26,'6. CY 2023'!A:A,0)),0),0) -> 36608571.37 | AW26: =IFERROR(IF(Y26="CY 2023",INDEX('6. CY 2023'!H:H,MATCH(C26,'6. CY 2023'!A:A,0)),0),0) -> 103989400.6 | AX26: =SUM(AG26:AG29) -> 4984403.549
A27: 24 | B27: ANTELOPE VALLEY HOSPITAL | C27: 106190034 | D27: ANTELOPE VALLEY HOSPITAL | F27: =IFERROR(INDEX('8. 2019 HCAI (FEE) DAYS'!G:G,MATCH(C27,'8. 2019 HCAI (FEE) DAYS'!A:A,0)),0) -> 2018-07-01 | G27: =IFERROR(INDEX('8. 2019 HCAI (FEE) DAYS'!H:H,MATCH(C27,'8. 2019 HCAI (FEE) DAYS'!A:A,0)),0) -> 2019-06-30 | H27: =IFERROR(INDEX('8. 2019 HCAI (FEE) DAYS'!L:L,MATCH(C27,'8. 2019 HCAI (FEE) DAYS'!A:A,0)),0) -> 2018-07-01 | I27: =IFERROR(INDEX('11. Hospital Statuses'!M:M,MATCH(C27,'11. Hospital Statuses'!A:A,0)),"") -> Open | J27: Los Angeles | K27: 11 | L27: 901 | M27: District | N27: Comparable | P27: https://www.avhospital.org/ | R27: ANTELOPE VALLEY HOSPITAL DISTRICT | S27: 661-949-5000 | T27: 1600 WEST AVENUE J | U27: LANCASTER | V27: 93534 | W27: EDWARD MIRZABEGIAN | X27: =IFERROR(IF(INDEX(#REF!,MATCH(C27,#REF!,0)),"Yes","No"),"") ->  | Y27: CY 2023 | Z27: =IFERROR(IF($Y27="CY 2023",INDEX('6. CY 2023'!S:S,MATCH($C27,'6. CY 2023'!$A:$A,0)),0),0) -> 0 | AA27: =IFERROR(IF($Y27="CY 2023",INDEX('6. CY 2023'!U:U,MATCH($C27,'6. CY 2023'!$A:$A,0)),0),0) -> 0 | AB27: =IFERROR(IF($Y27="CY 2023",INDEX('6. CY 2023'!W:W,MATCH($C27,'6. CY 2023'!$A:$A,0)),0),0) -> 0 | AC27: =IFERROR(IF($Y27="CY 2023",INDEX('6. CY 2023'!Y:Y,MATCH($C27,'6. CY 2023'!$A:$A,0)),0),0) -> 0 | AD27: =IFERROR(IF($Y27="CY 2023",INDEX('6. CY 2023'!AA:AA,MATCH($C27,'6. CY 2023'!$A:$A,0)),0),0) -> 0 | AE27: =IFERROR(IF($Y27="CY 2023",INDEX('6. CY 2023'!AC:AC,MATCH($C27,'6. CY 2023'!$A:$A,0)),0),0) -> 0 | AF27: =IFERROR(IF($Y27="CY 2023",INDEX('6. CY 2023'!AE:AE,MATCH($C27,'6. CY 2023'!$A:$A,0)),0),0) -> 0 | AG27: =IFERROR(IF(Y27="CY 2023",AF27/'4. Calculated Fee'!$D$32*'4. Calculated Fee'!$D$23,0),0) -> 0 | AH27: =IFERROR(IF($Y27="CY 2023",INDEX('6. CY 2023'!AE:AE,MATCH($C27,'6. CY 2023'!$A:$A,0)),0),0) -> 0 | AI27: =IFERROR(IF(Y27="CY 2023",INDEX('6. CY 2023'!AL:AL,MATCH(C27,'6. CY 2023'!A:A,0)),0),0) -> 0 | AJ27: =IFERROR(IF($Y27="CY 2023",INDEX('6. CY 2023'!AM:AM,MATCH($C27,'6. CY 2023'!$A:$A,0)),0),0) -> 0 | AK27: =IFERROR(IF($Y27="CY 2023",INDEX('6. CY 2023'!AN:AN,MATCH($C27,'6. CY 2023'!$A:$A,0)),0),0) -> 0 | AL27: =IFERROR(IF($Y27="CY 2023",INDEX('6. CY 2023'!AO:AO,MATCH($C27,'6. CY 2023'!$A:$A,0)),0),0) -> 0 | AM27: =IFERROR(IF($Y27="CY 2023",INDEX('6. CY 2023'!AP:AP,MATCH($C27,'6. CY 2023'!$A:$A,0)),0),0) -> 0 | AN27: =IFERROR(IF($Y27="CY 2023",INDEX('6. CY 2023'!AQ:AQ,MATCH($C27,'6. CY 2023'!$A:$A,0)),0),0) -> 0 | AO27: =IFERROR(IF($Y27="CY 2023",INDEX('6. CY 2023'!AR:AR,MATCH($C27,'6. CY 2023'!$A:$A,0)),0),0) -> 0 | AP27: =IFERROR(IF($Y27="CY 2023",INDEX('6. CY 2023'!AS:AS,MATCH($C27,'6. CY 2023'!$A:$A,0)),0),0) -> 0 | AQ27: =IFERROR(IF($Y27="CY 2023",INDEX('6. CY 2023'!AV:AV,MATCH($C27,'6. CY 2023'!$A:$A,0)),0),0) -> 0 | AR27: =IFERROR(IF($Y27="CY 2023",INDEX('6. CY 2023'!AX:AX,MATCH($C27,'6. CY 2023'!A:A,0)),0),0) -> 0 | AS27: =IFERROR(IF(Y27="CY 2023",INDEX('6. CY 2023'!AY:AY,MATCH(C27,'6. CY 2023'!A:A,0)),0),0) -> 0 | AT27: =IFERROR(IF($Y27="CY 2023",INDEX('6. CY 2023'!AZ:AZ,MATCH($C27,'6. CY 2023'!A:A,0)),0),0) -> 0 | AW27: =IFERROR(IF(Y27="CY 2023",INDEX('6. CY 2023'!H:H,MATCH(C27,'6. CY 2023'!A:A,0)),0),0) -> 533326571
A28: 25 | B28: ARROWHEAD REGIONAL MEDICAL CENTER | C28: 106364231 | D28: ARROWHEAD REGIONAL MEDICAL CENTER | F28: =IFERROR(INDEX('8. 2019 HCAI (FEE) DAYS'!G:G,MATCH(C28,'8. 2019 HCAI (FEE) DAYS'!A:A,0)),0) -> 2018-07-01 | G28: =IFERROR(INDEX('8. 2019 HCAI (FEE) DAYS'!H:H,MATCH(C28,'8. 2019 HCAI (FEE) DAYS'!A:A,0)),0) -> 2019-06-30 | H28: =IFERROR(INDEX('8. 2019 HCAI (FEE) DAYS'!L:L,MATCH(C28,'8. 2019 HCAI (FEE) DAYS'!A:A,0)),0) -> 2018-07-01 | I28: =IFERROR(INDEX('11. Hospital Statuses'!M:M,MATCH(C28,'11. Hospital Statuses'!A:A,0)),"") -> Open | J28: San Bernardino | K28: 12 | L28: 1209 | M28: City/County | N28: Comparable | O28: Teaching | P28: https://www.arrowheadregional.org/ | R28: COUNTY OF SAN BERNARDINO | S28: 909-580-1000 | T28: 400 N PEPPER AVE | U28: COLTON | V28: 92324 | W28: WILLIAM GILBERT | X28: =IFERROR(IF(INDEX(#REF!,MATCH(C28,#REF!,0)),"Yes","No"),"") ->  | Y28: CY 2023 | Z28: =IFERROR(IF($Y28="CY 2023",INDEX('6. CY 2023'!S:S,MATCH($C28,'6. CY 2023'!$A:$A,0)),0),0) -> 0 | AA28: =IFERROR(IF($Y28="CY 2023",INDEX('6. CY 2023'!U:U,MATCH($C28,'6. CY 2023'!$A:$A,0)),0),0) -> 0 | AB28: =IFERROR(IF($Y28="CY 2023",INDEX('6. CY 2023'!W:W,MATCH($C28,'6. CY 2023'!$A:$A,0)),0),0) -> 0 | AC28: =IFERROR(IF($Y28="CY 2023",INDEX('6. CY 2023'!Y:Y,MATCH($C28,'6. CY 2023'!$A:$A,0)),0),0) -> 0 | AD28: =IFERROR(IF($Y28="CY 2023",INDEX('6. CY 2023'!AA:AA,MATCH($C28,'6. CY 2023'!$A:$A,0)),0),0) -> 0 | AE28: =IFERROR(IF($Y28="CY 2023",INDEX('6. CY 2023'!AC:AC,MATCH($C28,'6. CY 2023'!$A:$A,0)),0),0) -> 0 | AF28: =IFERROR(IF($Y28="CY 2023",INDEX('6. CY 2023'!AE:AE,MATCH($C28,'6. CY 2023'!$A:$A,0)),0),0) -> 0 | AG28: =IFERROR(IF(Y28="CY 2023",AF28/'4. Calculated Fee'!$D$32*'4. Calculated Fee'!$D$23,0),0) -> 0 | AH28: =IFERROR(IF($Y28="CY 2023",INDEX('6. CY 2023'!AE:AE,MATCH($C28,'6. CY 2023'!$A:$A,0)),0),0) -> 0 | AI28: =IFERROR(IF(Y28="CY 2023",INDEX('6. CY 2023'!AL:AL,MATCH(C28,'6. CY 2023'!A:A,0)),0),0) -> 0 | AJ28: =IFERROR(IF($Y28="CY 2023",INDEX('6. CY 2023'!AM:AM,MATCH($C28,'6. CY 2023'!$A:$A,0)),0),0) -> 0 | AK28: =IFERROR(IF($Y28="CY 2023",INDEX('6. CY 2023'!AN:AN,MATCH($C28,'6. CY 2023'!$A:$A,0)),0),0) -> 0 | AL28: =IFERROR(IF($Y28="CY 2023",INDEX('6. CY 2023'!AO:AO,MATCH($C28,'6. CY 2023'!$A:$A,0)),0),0) -> 0 | AM28: =IFERROR(IF($Y28="CY 2023",INDEX('6. CY 2023'!AP:AP,MATCH($C28,'6. CY 2023'!$A:$A,0)),0),0) -> 0 | AN28: =IFERROR(IF($Y28="CY 2023",INDEX('6. CY 2023'!AQ:AQ,MATCH($C28,'6. CY 2023'!$A:$A,0)),0),0) -> 0 | AO28: =IFERROR(IF($Y28="CY 2023",INDEX('6. CY 2023'!AR:AR,MATCH($C28,'6. CY 2023'!$A:$A,0)),0),0) -> 0 | AP28: =IFERROR(IF($Y28="CY 2023",INDEX('6. CY 2023'!AS:AS,MATCH($C28,'6. CY 2023'!$A:$A,0)),0),0) -> 0 | AQ28: =IFERROR(IF($Y28="CY 2023",INDEX('6. CY 2023'!AV:AV,MATCH($C28,'6. CY 2023'!$A:$A,0)),0),0) -> 0 | AR28: =IFERROR(IF($Y28="CY 2023",INDEX('6. CY 2023'!AX:AX,MATCH($C28,'6. CY 2023'!A:A,0)),0),0) -> 0 | AS28: =IFERROR(IF(Y28="CY 2023",INDEX('6. CY 2023'!AY:AY,MATCH(C28,'6. CY 2023'!A:A,0)),0),0) -> 0 | AT28: =IFERROR(IF($Y28="CY 2023",INDEX('6. CY 2023'!AZ:AZ,MATCH($C28,'6. CY 2023'!A:A,0)),0),0) -> 0 | AW28: =IFERROR(IF(Y28="CY 2023",INDEX('6. CY 2023'!H:H,MATCH(C28,'6. CY 2023'!A:A,0)),0),0) -> 428922812.1
A29: 26 | B29: AURORA BEHAVIORAL HEALTHCARE - SANTA ROSA | C29: 106494048 | D29: AURORA BEHAVIORAL HEALTHCARE - SANTA ROSA | F29: =IFERROR(INDEX('8. 2019 HCAI (FEE) DAYS'!G:G,MATCH(C29,'8. 2019 HCAI (FEE) DAYS'!A:A,0)),0) -> 2019-01-01 | G29: =IFERROR(INDEX('8. 2019 HCAI (FEE) DAYS'!H:H,MATCH(C29,'8. 2019 HCAI (FEE) DAYS'!A:A,0)),0) -> 2019-12-31 | H29: =IFERROR(INDEX('8. 2019 HCAI (FEE) DAYS'!L:L,MATCH(C29,'8. 2019 HCAI (FEE) DAYS'!A:A,0)),0) -> 2019-01-01 | I29: =IFERROR(INDEX('11. Hospital Statuses'!M:M,MATCH(C29,'11. Hospital Statuses'!A:A,0)),"") -> Open | J29: Sonoma | K29: 3 | L29: 401 | M29: Investor | N29: Comparable | P29: https://www.aurorasantarosa.com/ | R29: SIGNATURE HEALTHCARE SERVICES | S29: 707-800-7700 | T29: 1287 FULTON ROAD | U29: SANTA ROSA | V29: 95401 | W29: SUSAN ROSE | X29: =IFERROR(IF(INDEX(#REF!,MATCH(C29,#REF!,0)),"Yes","No"),"") ->  | Y29: CY 2023 | Z29: =IFERROR(IF($Y29="CY 2023",INDEX('6. CY 2023'!S:S,MATCH($C29,'6. CY 2023'!$A:$A,0)),0),0) -> 0 | AA29: =IFERROR(IF($Y29="CY 2023",INDEX('6. CY 2023'!U:U,MATCH($C29,'6. CY 2023'!$A:$A,0)),0),0) -> 0 | AB29: =IFERROR(IF($Y29="CY 2023",INDEX('6. CY 2023'!W:W,MATCH($C29,'6. CY 2023'!$A:$A,0)),0),0) -> 0 | AC29: =IFERROR(IF($Y29="CY 2023",INDEX('6. CY 2023'!Y:Y,MATCH($C29,'6. CY 2023'!$A:$A,0)),0),0) -> 0 | AD29: =IFERROR(IF($Y29="CY 2023",INDEX('6. CY 2023'!AA:AA,MATCH($C29,'6. CY 2023'!$A:$A,0)),0),0) -> 0 | AE29: =IFERROR(IF($Y29="CY 2023",INDEX('6. CY 2023'!AC:AC,MATCH($C29,'6. CY 2023'!$A:$A,0)),0),0) -> 0 | AF29: =IFERROR(IF($Y29="CY 2023",INDEX('6. CY 2023'!AE:AE,MATCH($C29,'6. CY 2023'!$A:$A,0)),0),0) -> 0 | AG29: =IFERROR(IF(Y29="CY 2023",AF29/'4. Calculated Fee'!$D$32*'4. Calculated Fee'!$D$23,0),0) -> 0 | AH29: =IFERROR(IF($Y29="CY 2023",INDEX('6. CY 2023'!AE:AE,MATCH($C29,'6. CY 2023'!$A:$A,0)),0),0) -> 0 | AI29: =IFERROR(IF(Y29="CY 2023",INDEX('6. CY 2023'!AL:AL,MATCH(C29,'6. CY 2023'!A:A,0)),0),0) -> 0 | AJ29: =IFERROR(IF($Y29="CY 2023",INDEX('6. CY 2023'!AM:AM,MATCH($C29,'6. CY 2023'!$A:$A,0)),0),0) -> 0 | AK29: =IFERROR(IF($Y29="CY 2023",INDEX('6. CY 2023'!AN:AN,MATCH($C29,'6. CY 2023'!$A:$A,0)),0),0) -> 0 | AL29: =IFERROR(IF($Y29="CY 2023",INDEX('6. CY 2023'!AO:AO,MATCH($C29,'6. CY 2023'!$A:$A,0)),0),0) -> 0 | AM29: =IFERROR(IF($Y29="CY 2023",INDEX('6. CY 2023'!AP:AP,MATCH($C29,'6. CY 2023'!$A:$A,0)),0),0) -> 0 | AN29: =IFERROR(IF($Y29="CY 2023",INDEX('6. CY 2023'!AQ:AQ,MATCH($C29,'6. CY 2023'!$A:$A,0)),0),0) -> 0 | AO29: =IFERROR(IF($Y29="CY 2023",INDEX('6. CY 2023'!AR:AR,MATCH($C29,'6. CY 2023'!$A:$A,0)),0),0) -> 0 | AP29: =IFERROR(IF($Y29="CY 2023",INDEX('6. CY 2023'!AS:AS,MATCH($C29,'6. CY 2023'!$A:$A,0)),0),0) -> 0 | AQ29: =IFERROR(IF($Y29="CY 2023",INDEX('6. CY 2023'!AV:AV,MATCH($C29,'6. CY 2023'!$A:$A,0)),0),0) -> 0 | AR29: =IFERROR(IF($Y29="CY 2023",INDEX('6. CY 2023'!AX:AX,MATCH($C29,'6. CY 2023'!A:A,0)),0),0) -> 0 | AS29: =IFERROR(IF(Y29="CY 2023",INDEX('6. CY 2023'!AY:AY,MATCH(C29,'6. CY 2023'!A:A,0)),0),0) -> 0 | AT29: =IFERROR(IF($Y29="CY 2023",INDEX('6. CY 2023'!AZ:AZ,MATCH($C29,'6. CY 2023'!A:A,0)),0),0) -> 0 | AW29: =IFERROR(IF(Y29="CY 2023",INDEX('6. CY 2023'!H:H,MATCH(C29,'6. CY 2023'!A:A,0)),0),0) -> 47503449.3 | AX29: =SUM(AG29:AG34) -> 0
A30: 27 | B30: AURORA CHARTER OAK | C30: 106190163 | D30: AURORA CHARTER OAK | F30: =IFERROR(INDEX('8. 2019 HCAI (FEE) DAYS'!G:G,MATCH(C30,'8. 2019 HCAI (FEE) DAYS'!A:A,0)),0) -> 2019-01-01 | G30: =IFERROR(INDEX('8. 2019 HCAI (FEE) DAYS'!H:H,MATCH(C30,'8. 2019 HCAI (FEE) DAYS'!A:A,0)),0) -> 2019-12-31 | H30: =IFERROR(INDEX('8. 2019 HCAI (FEE) DAYS'!L:L,MATCH(C30,'8. 2019 HCAI (FEE) DAYS'!A:A,0)),0) -> 2019-01-01 | I30: =IFERROR(INDEX('11. Hospital Statuses'!M:M,MATCH(C30,'11. Hospital Statuses'!A:A,0)),"") -> Open | J30: Los Angeles | K30: 11 | L30: 915 | M30: Investor | N30: Comparable | P30: https://www.charteroakhospital.com/ | R30: SIGNATURE HEALTHCARE SERVICES | S30: 626-966-1632 | T30: 1161 EAST COVINA BOULEVARD | U30: COVINA | V30: 91724 | W30: TODD A SMITH | X30: =IFERROR(IF(INDEX(#REF!,MATCH(C30,#REF!,0)),"Yes","No"),"") ->  | Y30: CY 2023 | Z30: =IFERROR(IF($Y30="CY 2023",INDEX('6. CY 2023'!S:S,MATCH($C30,'6. CY 2023'!$A:$A,0)),0),0) -> 0 | AA30: =IFERROR(IF($Y30="CY 2023",INDEX('6. CY 2023'!U:U,MATCH($C30,'6. CY 2023'!$A:$A,0)),0),0) -> 0 | AB30: =IFERROR(IF($Y30="CY 2023",INDEX('6. CY 2023'!W:W,MATCH($C30,'6. CY 2023'!$A:$A,0)),0),0) -> 0 | AC30: =IFERROR(IF($Y30="CY 2023",INDEX('6. CY 2023'!Y:Y,MATCH($C30,'6. CY 2023'!$A:$A,0)),0),0) -> 0 | AD30: =IFERROR(IF($Y30="CY 2023",INDEX('6. CY 2023'!AA:AA,MATCH($C30,'6. CY 2023'!$A:$A,0)),0),0) -> 0 | AE30: =IFERROR(IF($Y30="CY 2023",INDEX('6. CY 2023'!AC:AC,MATCH($C30,'6. CY 2023'!$A:$A,0)),0),0) -> 0 | AF30: =IFERROR(IF($Y30="CY 2023",INDEX('6. CY 2023'!AE:AE,MATCH($C30,'6. CY 2023'!$A:$A,0)),0),0) -> 0 | AG30: =IFERROR(IF(Y30="CY 2023",AF30/'4. Calculated Fee'!$D$32*'4. Calculated Fee'!$D$23,0),0) -> 0 | AH30: =IFERROR(IF($Y30="CY 2023",INDEX('6. CY 2023'!AE:AE,MATCH($C30,'6. CY 2023'!$A:$A,0)),0),0) -> 0 | AI30: =IFERROR(IF(Y30="CY 2023",INDEX('6. CY 2023'!AL:AL,MATCH(C30,'6. CY 2023'!A:A,0)),0),0) -> 0 | AJ30: =IFERROR(IF($Y30="CY 2023",INDEX('6. CY 2023'!AM:AM,MATCH($C30,'6. CY 2023'!$A:$A,0)),0),0) -> 0 | AK30: =IFERROR(IF($Y30="CY 2023",INDEX('6. CY 2023'!AN:AN,MATCH($C30,'6. CY 2023'!$A:$A,0)),0),0) -> 0 | AL30: =IFERROR(IF($Y30="CY 2023",INDEX('6. CY 2023'!AO:AO,MATCH($C30,'6. CY 2023'!$A:$A,0)),0),0) -> 0 | AM30: =IFERROR(IF($Y30="CY 2023",INDEX('6. CY 2023'!AP:AP,MATCH($C30,'6. CY 2023'!$A:$A,0)),0),0) -> 0 | AN30: =IFERROR(IF($Y30="CY 2023",INDEX('6. CY 2023'!AQ:AQ,MATCH($C30,'6. CY 2023'!$A:$A,0)),0),0) -> 0 | AO30: =IFERROR(IF($Y30="CY 2023",INDEX('6. CY 2023'!AR:AR,MATCH($C30,'6. CY 2023'!$A:$A,0)),0),0) -> 0 | AP30: =IFERROR(IF($Y30="CY 2023",INDEX('6. CY 2023'!AS:AS,MATCH($C30,'6. CY 2023'!$A:$A,0)),0),0) -> 0 | AQ30: =IFERROR(IF($Y30="CY 2023",INDEX('6. CY 2023'!AV:AV,MATCH($C30,'6. CY 2023'!$A:$A,0)),0),0) -> 0 | AR30: =IFERROR(IF($Y30="CY 2023",INDEX('6. CY 2023'!AX:AX,MATCH($C30,'6. CY 2023'!A:A,0)),0),0) -> 0 | AS30: =IFERROR(IF(Y30="CY 2023",INDEX('6. CY 2023'!AY:AY,MATCH(C30,'6. CY 2023'!A:A,0)),0),0) -> 0 | AT30: =IFERROR(IF($Y30="CY 2023",INDEX('6. CY 2023'!AZ:AZ,MATCH($C30,'6. CY 2023'!A:A,0)),0),0) -> 0 | AW30: =IFERROR(IF(Y30="CY 2023",INDEX('6. CY 2023'!H:H,MATCH(C30,'6. CY 2023'!A:A,0)),0),0) -> 53959834.31
A31: 28 | B31: AURORA LAS ENCINAS HOSPITAL | C31: 106190462 | D31: AURORA LAS ENCINAS HOSPITAL | F31: =IFERROR(INDEX('8. 2019 HCAI (FEE) DAYS'!G:G,MATCH(C31,'8. 2019 HCAI (FEE) DAYS'!A:A,0)),0) -> 2019-01-01 | G31: =IFERROR(INDEX('8. 2019 HCAI (FEE) DAYS'!H:H,MATCH(C31,'8. 2019 HCAI (FEE) DAYS'!A:A,0)),0) -> 2019-12-31 | H31: =IFERROR(INDEX('8. 2019 HCAI (FEE) DAYS'!L:L,MATCH(C31,'8. 2019 HCAI (FEE) DAYS'!A:A,0)),0) -> 2019-01-01 | I31: =IFERROR(INDEX('11. Hospital Statuses'!M:M,MATCH(C31,'11. Hospital Statuses'!A:A,0)),"") -> Open | J31: Los Angeles | K31: 11 | L31: 911 | M31: Investor | N31: Comparable | P31: https://www.lasencinashospital.com/ | R31: SIGNATURE HEALTHCARE SERVICES | S31: 626-795-9901 | T31: 2900 E DEL MAR BLVD | U31: PASADENA | V31: 91107 | W31: TOM MAHLE | X31: =IFERROR(IF(INDEX(#REF!,MATCH(C31,#REF!,0)),"Yes","No"),"") ->  | Y31: CY 2023 | Z31: =IFERROR(IF($Y31="CY 2023",INDEX('6. CY 2023'!S:S,MATCH($C31,'6. CY 2023'!$A:$A,0)),0),0) -> 0 | AA31: =IFERROR(IF($Y31="CY 2023",INDEX('6. CY 2023'!U:U,MATCH($C31,'6. CY 2023'!$A:$A,0)),0),0) -> 0 | AB31: =IFERROR(IF($Y31="CY 2023",INDEX('6. CY 2023'!W:W,MATCH($C31,'6. CY 2023'!$A:$A,0)),0),0) -> 0 | AC31: =IFERROR(IF($Y31="CY 2023",INDEX('6. CY 2023'!Y:Y,MATCH($C31,'6. CY 2023'!$A:$A,0)),0),0) -> 0 | AD31: =IFERROR(IF($Y31="CY 2023",INDEX('6. CY 2023'!AA:AA,MATCH($C31,'6. CY 2023'!$A:$A,0)),0),0) -> 0 | AE31: =IFERROR(IF($Y31="CY 2023",INDEX('6. CY 2023'!AC:AC,MATCH($C31,'6. CY 2023'!$A:$A,0)),0),0) -> 0 | AF31: =IFERROR(IF($Y31="CY 2023",INDEX('6. CY 2023'!AE:AE,MATCH($C31,'6. CY 2023'!$A:$A,0)),0),0) -> 0 | AG31: =IFERROR(IF(Y31="CY 2023",AF31/'4. Calculated Fee'!$D$32*'4. Calculated Fee'!$D$23,0),0) -> 0 | AH31: =IFERROR(IF($Y31="CY 2023",INDEX('6. CY 2023'!AE:AE,MATCH($C31,'6. CY 2023'!$A:$A,0)),0),0) -> 0 | AI31: =IFERROR(IF(Y31="CY 2023",INDEX('6. CY 2023'!AL:AL,MATCH(C31,'6. CY 2023'!A:A,0)),0),0) -> 0 | AJ31: =IFERROR(IF($Y31="CY 2023",INDEX('6. CY 2023'!AM:AM,MATCH($C31,'6. CY 2023'!$A:$A,0)),0),0) -> 0 | AK31: =IFERROR(IF($Y31="CY 2023",INDEX('6. CY 2023'!AN:AN,MATCH($C31,'6. CY 2023'!$A:$A,0)),0),0) -> 0 | AL31: =IFERROR(IF($Y31="CY 2023",INDEX('6. CY 2023'!AO:AO,MATCH($C31,'6. CY 2023'!$A:$A,0)),0),0) -> 0 | AM31: =IFERROR(IF($Y31="CY 2023",INDEX('6. CY 2023'!AP:AP,MATCH($C31,'6. CY 2023'!$A:$A,0)),0),0) -> 0 | AN31: =IFERROR(IF($Y31="CY 2023",INDEX('6. CY 2023'!AQ:AQ,MATCH($C31,'6. CY 2023'!$A:$A,0)),0),0) -> 0 | AO31: =IFERROR(IF($Y31="CY 2023",INDEX('6. CY 2023'!AR:AR,MATCH($C31,'6. CY 2023'!$A:$A,0)),0),0) -> 0 | AP31: =IFERROR(IF($Y31="CY 2023",INDEX('6. CY 2023'!AS:AS,MATCH($C31,'6. CY 2023'!$A:$A,0)),0),0) -> 0 | AQ31: =IFERROR(IF($Y31="CY 2023",INDEX('6. CY 2023'!AV:AV,MATCH($C31,'6. CY 2023'!$A:$A,0)),0),0) -> 0 | AR31: =IFERROR(IF($Y31="CY 2023",INDEX('6. CY 2023'!AX:AX,MATCH($C31,'6. CY 2023'!A:A,0)),0),0) -> 0 | AS31: =IFERROR(IF(Y31="CY 2023",INDEX('6. CY 2023'!AY:AY,MATCH(C31,'6. CY 2023'!A:A,0)),0),0) -> 0 | AT31: =IFERROR(IF($Y31="CY 2023",INDEX('6. CY 2023'!AZ:AZ,MATCH($C31,'6. CY 2023'!A:A,0)),0),0) -> 0 | AW31: =IFERROR(IF(Y31="CY 2023",INDEX('6. CY 2023'!H:H,MATCH(C31,'6. CY 2023'!A:A,0)),0),0) -> 36927551.3
A32: 29 | B32: AURORA SAN DIEGO | C32: 106374024 | D32: AURORA SAN DIEGO | F32: =IFERROR(INDEX('8. 2019 HCAI (FEE) DAYS'!G:G,MATCH(C32,'8. 2019 HCAI (FEE) DAYS'!A:A,0)),0) -> 2019-01-01 | G32: =IFERROR(INDEX('8. 2019 HCAI (FEE) DAYS'!H:H,MATCH(C32,'8. 2019 HCAI (FEE) DAYS'!A:A,0)),0) -> 2019-12-31 | H32: =IFERROR(INDEX('8. 2019 HCAI (FEE) DAYS'!L:L,MATCH(C32,'8. 2019 HCAI (FEE) DAYS'!A:A,0)),0) -> 2019-01-01 | I32: =IFERROR(INDEX('11. Hospital Statuses'!M:M,MATCH(C32,'11. Hospital Statuses'!A:A,0)),"") -> Open | J32: San Diego | K32: 14 | L32: 1412 | M32: Investor | N32: Comparable | P32: https://www.aurorasandiego.com/ | R32: SIGNATURE HEALTHCARE SERVICES | S32: 858-487-3200 | T32: 11878 AVENUE OF INDUSTRY | U32: SAN DIEGO | V32: 92128 | W32: ALAIN AZCONA | X32: =IFERROR(IF(INDEX(#REF!,MATCH(C32,#REF!,0)),"Yes","No"),"") ->  | Y32: CY 2023 | Z32: =IFERROR(IF($Y32="CY 2023",INDEX('6. CY 2023'!S:S,MATCH($C32,'6. CY 2023'!$A:$A,0)),0),0) -> 0 | AA32: =IFERROR(IF($Y32="CY 2023",INDEX('6. CY 2023'!U:U,MATCH($C32,'6. CY 2023'!$A:$A,0)),0),0) -> 0 | AB32: =IFERROR(IF($Y32="CY 2023",INDEX('6. CY 2023'!W:W,MATCH($C32,'6. CY 2023'!$A:$A,0)),0),0) -> 0 | AC32: =IFERROR(IF($Y32="CY 2023",INDEX('6. CY 2023'!Y:Y,MATCH($C32,'6. CY 2023'!$A:$A,0)),0),0) -> 0 | AD32: =IFERROR(IF($Y32="CY 2023",INDEX('6. CY 2023'!AA:AA,MATCH($C32,'6. CY 2023'!$A:$A,0)),0),0) -> 0 | AE32: =IFERROR(IF($Y32="CY 2023",INDEX('6. CY 2023'!AC:AC,MATCH($C32,'6. CY 2023'!$A:$A,0)),0),0) -> 0 | AF32: =IFERROR(IF($Y32="CY 2023",INDEX('6. CY 2023'!AE:AE,MATCH($C32,'6. CY 2023'!$A:$A,0)),0),0) -> 0 | AG32: =IFERROR(IF(Y32="CY 2023",AF32/'4. Calculated Fee'!$D$32*'4. Calculated Fee'!$D$23,0),0) -> 0 | AH32: =IFERROR(IF($Y32="CY 2023",INDEX('6. CY 2023'!AE:AE,MATCH($C32,'6. CY 2023'!$A:$A,0)),0),0) -> 0 | AI32: =IFERROR(IF(Y32="CY 2023",INDEX('6. CY 2023'!AL:AL,MATCH(C32,'6. CY 2023'!A:A,0)),0),0) -> 0 | AJ32: =IFERROR(IF($Y32="CY 2023",INDEX('6. CY 2023'!AM:AM,MATCH($C32,'6. CY 2023'!$A:$A,0)),0),0) -> 0 | AK32: =IFERROR(IF($Y32="CY 2023",INDEX('6. CY 2023'!AN:AN,MATCH($C32,'6. CY 2023'!$A:$A,0)),0),0) -> 0 | AL32: =IFERROR(IF($Y32="CY 2023",INDEX('6. CY 2023'!AO:AO,MATCH($C32,'6. CY 2023'!$A:$A,0)),0),0) -> 0 | AM32: =IFERROR(IF($Y32="CY 2023",INDEX('6. CY 2023'!AP:AP,MATCH($C32,'6. CY 2023'!$A:$A,0)),0),0) -> 0 | AN32: =IFERROR(IF($Y32="CY 2023",INDEX('6. CY 2023'!AQ:AQ,MATCH($C32,'6. CY 2023'!$A:$A,0)),0),0) -> 0 | AO32: =IFERROR(IF($Y32="CY 2023",INDEX('6. CY 2023'!AR:AR,MATCH($C32,'6. CY 2023'!$A:$A,0)),0),0) -> 0 | AP32: =IFERROR(IF($Y32="CY 2023",INDEX('6. CY 2023'!AS:AS,MATCH($C32,'6. CY 2023'!$A:$A,0)),0),0) -> 0 | AQ32: =IFERROR(IF($Y32="CY 2023",INDEX('6. CY 2023'!AV:AV,MATCH($C32,'6. CY 2023'!$A:$A,0)),0),0) -> 0 | AR32: =IFERROR(IF($Y32="CY 2023",INDEX('6. CY 2023'!AX:AX,MATCH($C32,'6. CY 2023'!A:A,0)),0),0) -> 0 | AS32: =IFERROR(IF(Y32="CY 2023",INDEX('6. CY 2023'!AY:AY,MATCH(C32,'6. CY 2023'!A:A,0)),0),0) -> 0 | AT32: =IFERROR(IF($Y32="CY 2023",INDEX('6. CY 2023'!AZ:AZ,MATCH($C32,'6. CY 2023'!A:A,0)),0),0) -> 0 | AW32: =IFERROR(IF(Y32="CY 2023",INDEX('6. CY 2023'!H:H,MATCH(C32,'6. CY 2023'!A:A,0)),0),0) -> 44621445.21
A33: 30 | B33: AURORA VISTA DEL MAR HOSPITAL | C33: 106560203 | D33: AURORA VISTA DEL MAR HOSPITAL | F33: =IFERROR(INDEX('8. 2019 HCAI (FEE) DAYS'!G:G,MATCH(C33,'8. 2019 HCAI (FEE) DAYS'!A:A,0)),0) -> 2019-01-01 | G33: =IFERROR(INDEX('8. 2019 HCAI (FEE) DAYS'!H:H,MATCH(C33,'8. 2019 HCAI (FEE) DAYS'!A:A,0)),0) -> 2019-12-31 | H33: =IFERROR(INDEX('8. 2019 HCAI (FEE) DAYS'!L:L,MATCH(C33,'8. 2019 HCAI (FEE) DAYS'!A:A,0)),0) -> 2019-01-01 | I33: =IFERROR(INDEX('11. Hospital Statuses'!M:M,MATCH(C33,'11. Hospital Statuses'!A:A,0)),"") -> Open | J33: Ventura | K33: 10 | L33: 809 | M33: Investor | N33: Comparable | P33: https://www.vistadelmarhospital.com/ | R33: SIGNATURE HEALTHCARE SERVICES | S33: 805-653-6434 | T33: 801 SENECA STREET | U33: VENTURA | V33: 93001 | W33: JENIFER NYHUIS | X33: =IFERROR(IF(INDEX(#REF!,MATCH(C33,#REF!,0)),"Yes","No"),"") ->  | Y33: CY 2023 | Z33: =IFERROR(IF($Y33="CY 2023",INDEX('6. CY 2023'!S:S,MATCH($C33,'6. CY 2023'!$A:$A,0)),0),0) -> 0 | AA33: =IFERROR(IF($Y33="CY 2023",INDEX('6. CY 2023'!U:U,MATCH($C33,'6. CY 2023'!$A:$A,0)),0),0) -> 0 | AB33: =IFERROR(IF($Y33="CY 2023",INDEX('6. CY 2023'!W:W,MATCH($C33,'6. CY 2023'!$A:$A,0)),0),0) -> 0 | AC33: =IFERROR(IF($Y33="CY 2023",INDEX('6. CY 2023'!Y:Y,MATCH($C33,'6. CY 2023'!$A:$A,0)),0),0) -> 0 | AD33: =IFERROR(IF($Y33="CY 2023",INDEX('6. CY 2023'!AA:AA,MATCH($C33,'6. CY 2023'!$A:$A,0)),0),0) -> 0 | AE33: =IFERROR(IF($Y33="CY 2023",INDEX('6. CY 2023'!AC:AC,MATCH($C33,'6. CY 2023'!$A:$A,0)),0),0) -> 0 | AF33: =IFERROR(IF($Y33="CY 2023",INDEX('6. CY 2023'!AE:AE,MATCH($C33,'6. CY 2023'!$A:$A,0)),0),0) -> 0 | AG33: =IFERROR(IF(Y33="CY 2023",AF33/'4. Calculated Fee'!$D$32*'4. Calculated Fee'!$D$23,0),0) -> 0 | AH33: =IFERROR(IF($Y33="CY 2023",INDEX('6. CY 2023'!AE:AE,MATCH($C33,'6. CY 2023'!$A:$A,0)),0),0) -> 0 | AI33: =IFERROR(IF(Y33="CY 2023",INDEX('6. CY 2023'!AL:AL,MATCH(C33,'6. CY 2023'!A:A,0)),0),0) -> 0 | AJ33: =IFERROR(IF($Y33="CY 2023",INDEX('6. CY 2023'!AM:AM,MATCH($C33,'6. CY 2023'!$A:$A,0)),0),0) -> 0 | AK33: =IFERROR(IF($Y33="CY 2023",INDEX('6. CY 2023'!AN:AN,MATCH($C33,'6. CY 2023'!$A:$A,0)),0),0) -> 0 | AL33: =IFERROR(IF($Y33="CY 2023",INDEX('6. CY 2023'!AO:AO,MATCH($C33,'6. CY 2023'!$A:$A,0)),0),0) -> 0 | AM33: =IFERROR(IF($Y33="CY 2023",INDEX('6. CY 2023'!AP:AP,MATCH($C33,'6. CY 2023'!$A:$A,0)),0),0) -> 0 | AN33: =IFERROR(IF($Y33="CY 2023",INDEX('6. CY 2023'!AQ:AQ,MATCH($C33,'6. CY 2023'!$A:$A,0)),0),0) -> 0 | AO33: =IFERROR(IF($Y33="CY 2023",INDEX('6. CY 2023'!AR:AR,MATCH($C33,'6. CY 2023'!$A:$A,0)),0),0) -> 0 | AP33: =IFERROR(IF($Y33="CY 2023",INDEX('6. CY 2023'!AS:AS,MATCH($C33,'6. CY 2023'!$A:$A,0)),0),0) -> 0 | AQ33: =IFERROR(IF($Y33="CY 2023",INDEX('6. CY 2023'!AV:AV,MATCH($C33,'6. CY 2023'!$A:$A,0)),0),0) -> 0 | AR33: =IFERROR(IF($Y33="CY 2023",INDEX('6. CY 2023'!AX:AX,MATCH($C33,'6. CY 2023'!A:A,0)),0),0) -> 0 | AS33: =IFERROR(IF(Y33="CY 2023",INDEX('6. CY 2023'!AY:AY,MATCH(C33,'6. CY 2023'!A:A,0)),0),0) -> 0 | AT33: =IFERROR(IF($Y33="CY 2023",INDEX('6. CY 2023'!AZ:AZ,MATCH($C33,'6. CY 2023'!A:A,0)),0),0) -> 0 | AW33: =IFERROR(IF(Y33="CY 2023",INDEX('6. CY 2023'!H:H,MATCH(C33,'6. CY 2023'!A:A,0)),0),0) -> 18522209.52
A34: 31 | B34: BAKERSFIELD BEHAVIORAL HEALTHCARE HOSPITAL | C34: 106154044 | D34: BAKERSFIELD BEHAVIORAL HEALTHCARE HOSPITAL | F34: =IFERROR(INDEX('8. 2019 HCAI (FEE) DAYS'!G:G,MATCH(C34,'8. 2019 HCAI (FEE) DAYS'!A:A,0)),0) -> 2019-01-01 | G34: =IFERROR(INDEX('8. 2019 HCAI (FEE) DAYS'!H:H,MATCH(C34,'8. 2019 HCAI (FEE) DAYS'!A:A,0)),0) -> 2019-12-31 | H34: =IFERROR(INDEX('8. 2019 HCAI (FEE) DAYS'!L:L,MATCH(C34,'8. 2019 HCAI (FEE) DAYS'!A:A,0)),0) -> 2019-01-01 | I34: =IFERROR(INDEX('11. Hospital Statuses'!M:M,MATCH(C34,'11. Hospital Statuses'!A:A,0)),"") -> Open | J34: Kern | K34: 9 | L34: 617 | M34: Investor | N34: Comparable | P34: https://www.bakersfieldbehavioral.com/ | R34: SIGNATURE HEALTHCARE SERVICES | S34: 877-755-4907 | T34: 5201 WHITE LANE | U34: BAKERSFIELD | V34: 93309-6200 | W34: EUGENE SUKSI | X34: =IFERROR(IF(INDEX(#REF!,MATCH(C34,#REF!,0)),"Yes","No"),"") ->  | Y34: CY 2023 | Z34: =IFERROR(IF($Y34="CY 2023",INDEX('6. CY 2023'!S:S,MATCH($C34,'6. CY 2023'!$A:$A,0)),0),0) -> 0 | AA34: =IFERROR(IF($Y34="CY 2023",INDEX('6. CY 2023'!U:U,MATCH($C34,'6. CY 2023'!$A:$A,0)),0),0) -> 0 | AB34: =IFERROR(IF($Y34="CY 2023",INDEX('6. CY 2023'!W:W,MATCH($C34,'6. CY 2023'!$A:$A,0)),0),0) -> 0 | AC34: =IFERROR(IF($Y34="CY 2023",INDEX('6. CY 2023'!Y:Y,MATCH($C34,'6. CY 2023'!$A:$A,0)),0),0) -> 0 | AD34: =IFERROR(IF($Y34="CY 2023",INDEX('6. CY 2023'!AA:AA,MATCH($C34,'6. CY 2023'!$A:$A,0)),0),0) -> 0 | AE34: =IFERROR(IF($Y34="CY 2023",INDEX('6. CY 2023'!AC:AC,MATCH($C34,'6. CY 2023'!$A:$A,0)),0),0) -> 0 | AF34: =IFERROR(IF($Y34="CY 2023",INDEX('6. CY 2023'!AE:AE,MATCH($C34,'6. CY 2023'!$A:$A,0)),0),0) -> 0 | AG34: =IFERROR(IF(Y34="CY 2023",AF34/'4. Calculated Fee'!$D$32*'4. Calculated Fee'!$D$23,0),0) -> 0 | AH34: =IFERROR(IF($Y34="CY 2023",INDEX('6. CY 2023'!AE:AE,MATCH($C34,'6. CY 2023'!$A:$A,0)),0),0) -> 0 | AI34: =IFERROR(IF(Y34="CY 2023",INDEX('6. CY 2023'!AL:AL,MATCH(C34,'6. CY 2023'!A:A,0)),0),0) -> 0 | AJ34: =IFERROR(IF($Y34="CY 2023",INDEX('6. CY 2023'!AM:AM,MATCH($C34,'6. CY 2023'!$A:$A,0)),0),0) -> 0 | AK34: =IFERROR(IF($Y34="CY 2023",INDEX('6. CY 2023'!AN:AN,MATCH($C34,'6. CY 2023'!$A:$A,0)),0),0) -> 0 | AL34: =IFERROR(IF($Y34="CY 2023",INDEX('6. CY 2023'!AO:AO,MATCH($C34,'6. CY 2023'!$A:$A,0)),0),0) -> 0 | AM34: =IFERROR(IF($Y34="CY 2023",INDEX('6. CY 2023'!AP:AP,MATCH($C34,'6. CY 2023'!$A:$A,0)),0),0) -> 0 | AN34: =IFERROR(IF($Y34="CY 2023",INDEX('6. CY 2023'!AQ:AQ,MATCH($C34,'6. CY 2023'!$A:$A,0)),0),0) -> 0 | AO34: =IFERROR(IF($Y34="CY 2023",INDEX('6. CY 2023'!AR:AR,MATCH($C34,'6. CY 2023'!$A:$A,0)),0),0) -> 0 | AP34: =IFERROR(IF($Y34="CY 2023",INDEX('6. CY 2023'!AS:AS,MATCH($C34,'6. CY 2023'!$A:$A,0)),0),0) -> 0 | AQ34: =IFERROR(IF($Y34="CY 2023",INDEX('6. CY 2023'!AV:AV,MATCH($C34,'6. CY 2023'!$A:$A,0)),0),0) -> 0 | AR34: =IFERROR(IF($Y34="CY 2023",INDEX('6. CY 2023'!AX:AX,MATCH($C34,'6. CY 2023'!A:A,0)),0),0) -> 0 | AS34: =IFERROR(IF(Y34="CY 2023",INDEX('6. CY 2023'!AY:AY,MATCH(C34,'6. CY 2023'!A:A,0)),0),0) -> 0 | AT34: =IFERROR(IF($Y34="CY 2023",INDEX('6. CY 2023'!AZ:AZ,MATCH($C34,'6. CY 2023'!A:A,0)),0),0) -> 0 | AW34: =IFERROR(IF(Y34="CY 2023",INDEX('6. CY 2023'!H:H,MATCH(C34,'6. CY 2023'!A:A,0)),0),0) -> 21000901.98
A35: 32 | B35: BAKERSFIELD HEART HOSPITAL | C35: 106154101 | D35: BAKERSFIELD HEART HOSPITAL | F35: =IFERROR(INDEX('8. 2019 HCAI (FEE) DAYS'!G:G,MATCH(C35,'8. 2019 HCAI (FEE) DAYS'!A:A,0)),0) -> 2019-01-01 | G35: =IFERROR(INDEX('8. 2019 HCAI (FEE) DAYS'!H:H,MATCH(C35,'8. 2019 HCAI (FEE) DAYS'!A:A,0)),0) -> 2019-12-31 | H35: =IFERROR(INDEX('8. 2019 HCAI (FEE) DAYS'!L:L,MATCH(C35,'8. 2019 HCAI (FEE) DAYS'!A:A,0)),0) -> 2019-01-01 | I35: =IFERROR(INDEX('11. Hospital Statuses'!M:M,MATCH(C35,'11. Hospital Statuses'!A:A,0)),"") -> Open | J35: Kern | K35: 9 | L35: 617 | M35: Investor | N35: Comparable | P35: https://bakersfieldhearthospital.com/ | R35: CCG OF CALIFORNIA, LLC & DOCTOR'S HOSPITAL HOLDING, LLC | S35: 661-316-6000 | T35: 3001 SILLECT AVENUE | U35: BAKERSFIELD | V35: 93308 | W35: MICHELLE OXFORD | X35: =IFERROR(IF(INDEX(#REF!,MATCH(C35,#REF!,0)),"Yes","No"),"") ->  | Y35: CY 2023 | Z35: =IFERROR(IF($Y35="CY 2023",INDEX('6. CY 2023'!S:S,MATCH($C35,'6. CY 2023'!$A:$A,0)),0),0) -> 0 | AA35: =IFERROR(IF($Y35="CY 2023",INDEX('6. CY 2023'!U:U,MATCH($C35,'6. CY 2023'!$A:$A,0)),0),0) -> 0 | AB35: =IFERROR(IF($Y35="CY 2023",INDEX('6. CY 2023'!W:W,MATCH($C35,'6. CY 2023'!$A:$A,0)),0),0) -> 0 | AC35: =IFERROR(IF($Y35="CY 2023",INDEX('6. CY 2023'!Y:Y,MATCH($C35,'6. CY 2023'!$A:$A,0)),0),0) -> 0 | AD35: =IFERROR(IF($Y35="CY 2023",INDEX('6. CY 2023'!AA:AA,MATCH($C35,'6. CY 2023'!$A:$A,0)),0),0) -> 0 | AE35: =IFERROR(IF($Y35="CY 2023",INDEX('6. CY 2023'!AC:AC,MATCH($C35,'6. CY 2023'!$A:$A,0)),0),0) -> 0 | AF35: =IFERROR(IF($Y35="CY 2023",INDEX('6. CY 2023'!AE:AE,MATCH($C35,'6. CY 2023'!$A:$A,0)),0),0) -> 0 | AG35: =IFERROR(IF(Y35="CY 2023",AF35/'4. Calculated Fee'!$D$32*'4. Calculated Fee'!$D$23,0),0) -> 0 | AH35: =IFERROR(IF($Y35="CY 2023",INDEX('6. CY 2023'!AE:AE,MATCH($C35,'6. CY 2023'!$A:$A,0)),0),0) -> 0 | AI35: =IFERROR(IF(Y35="CY 2023",INDEX('6. CY 2023'!AL:AL,MATCH(C35,'6. CY 2023'!A:A,0)),0),0) -> 0 | AJ35: =IFERROR(IF($Y35="CY 2023",INDEX('6. CY 2023'!AM:AM,MATCH($C35,'6. CY 2023'!$A:$A,0)),0),0) -> 0 | AK35: =IFERROR(IF($Y35="CY 2023",INDEX('6. CY 2023'!AN:AN,MATCH($C35,'6. CY 2023'!$A:$A,0)),0),0) -> 0 | AL35: =IFERROR(IF($Y35="CY 2023",INDEX('6. CY 2023'!AO:AO,MATCH($C35,'6. CY 2023'!$A:$A,0)),0),0) -> 0 | AM35: =IFERROR(IF($Y35="CY 2023",INDEX('6. CY 2023'!AP:AP,MATCH($C35,'6. CY 2023'!$A:$A,0)),0),0) -> 0 | AN35: =IFERROR(IF($Y35="CY 2023",INDEX('6. CY 2023'!AQ:AQ,MATCH($C35,'6. CY 2023'!$A:$A,0)),0),0) -> 0 | AO35: =IFERROR(IF($Y35="CY 2023",INDEX('6. CY 2023'!AR:AR,MATCH($C35,'6. CY 2023'!$A:$A,0)),0),0) -> 0 | AP35: =IFERROR(IF($Y35="CY 2023",INDEX('6. CY 2023'!AS:AS,MATCH($C35,'6. CY 2023'!$A:$A,0)),0),0) -> 0 | AQ35: =IFERROR(IF($Y35="CY 2023",INDEX('6. CY 2023'!AV:AV,MATCH($C35,'6. CY 2023'!$A:$A,0)),0),0) -> 0 | AR35: =IFERROR(IF($Y35="CY 2023",INDEX('6. CY 2023'!AX:AX,MATCH($C35,'6. CY 2023'!A:A,0)),0),0) -> 0 | AS35: =IFERROR(IF(Y35="CY 2023",INDEX('6. CY 2023'!AY:AY,MATCH(C35,'6. CY 2023'!A:A,0)),0),0) -> 0 | AT35: =IFERROR(IF($Y35="CY 2023",INDEX('6. CY 2023'!AZ:AZ,MATCH($C35,'6. CY 2023'!A:A,0)),0),0) -> 0 | AW35: =IFERROR(IF(Y35="CY 2023",INDEX('6. CY 2023'!H:H,MATCH(C35,'6. CY 2023'!A:A,0)),0),0) -> 102535290
A36: 33 | B36: BAKERSFIELD MEMORIAL HOSPITAL | C36: 106150722 | D36: BAKERSFIELD MEMORIAL HOSPITAL | F36: =IFERROR(INDEX('8. 2019 HCAI (FEE) DAYS'!G:G,MATCH(C36,'8. 2019 HCAI (FEE) DAYS'!A:A,0)),0) -> 2018-07-01 | G36: =IFERROR(INDEX('8. 2019 HCAI (FEE) DAYS'!H:H,MATCH(C36,'8. 2019 HCAI (FEE) DAYS'!A:A,0)),0) -> 2019-06-30 | H36: =IFERROR(INDEX('8. 2019 HCAI (FEE) DAYS'!L:L,MATCH(C36,'8. 2019 HCAI (FEE) DAYS'!A:A,0)),0) -> 2018-07-01 | I36: =IFERROR(INDEX('11. Hospital Statuses'!M:M,MATCH(C36,'11. Hospital Statuses'!A:A,0)),"") -> Open | J36: Kern | K36: 9 | L36: 617 | M36: Non-Profit | N36: Comparable | P36: https://www.dignityhealth.org/central-california/locations/memorial-hospital | R36: DIGNITY HEALTH | S36: 661-327-4647 | T36: 420 34TH STREET | U36: BAKERSFIELD | V36: 93302 | W36: KEN KELLER | X36: =IFERROR(IF(INDEX(#REF!,MATCH(C36,#REF!,0)),"Yes","No"),"") ->  | Y36: CY 2023 | Z36: =IFERROR(IF($Y36="CY 2023",INDEX('6. CY 2023'!S:S,MATCH($C36,'6. CY 2023'!$A:$A,0)),0),0) -> 0 | AA36: =IFERROR(IF($Y36="CY 2023",INDEX('6. CY 2023'!U:U,MATCH($C36,'6. CY 2023'!$A:$A,0)),0),0) -> 7422957.27 | AB36: =IFERROR(IF($Y36="CY 2023",INDEX('6. CY 2023'!W:W,MATCH($C36,'6. CY 2023'!$A:$A,0)),0),0) -> 6353240.46 | AC36: =IFERROR(IF($Y36="CY 2023",INDEX('6. CY 2023'!Y:Y,MATCH($C36,'6. CY 2023'!$A:$A,0)),0),0) -> 0 | AD36: =IFERROR(IF($Y36="CY 2023",INDEX('6. CY 2023'!AA:AA,MATCH($C36,'6. CY 2023'!$A:$A,0)),0),0) -> 13312640 | AE36: =IFERROR(IF($Y36="CY 2023",INDEX('6. CY 2023'!AC:AC,MATCH($C36,'6. CY 2023'!$A:$A,0)),0),0) -> 8647760 | AF36: =IFERROR(IF($Y36="CY 2023",INDEX('6. CY 2023'!AE:AE,MATCH($C36,'6. CY 2023'!$A:$A,0)),0),0) -> 35736597.73 | AG36: =IFERROR(IF(Y36="CY 2023",AF36/'4. Calculated Fee'!$D$32*'4. Calculated Fee'!$D$23,0),0) -> 9110568.2 | AH36: =IFERROR(IF($Y36="CY 2023",INDEX('6. CY 2023'!AE:AE,MATCH($C36,'6. CY 2023'!$A:$A,0)),0),0) -> 35736597.73 | AI36: =IFERROR(IF(Y36="CY 2023",INDEX('6. CY 2023'!AL:AL,MATCH(C36,'6. CY 2023'!A:A,0)),0),0) -> 6062857.905 | AJ36: =IFERROR(IF($Y36="CY 2023",INDEX('6. CY 2023'!AM:AM,MATCH($C36,'6. CY 2023'!$A:$A,0)),0),0) -> 9424836.226 | AK36: =IFERROR(IF($Y36="CY 2023",INDEX('6. CY 2023'!AN:AN,MATCH($C36,'6. CY 2023'!$A:$A,0)),0),0) -> 0 | AL36: =IFERROR(IF($Y36="CY 2023",INDEX('6. CY 2023'!AO:AO,MATCH($C36,'6. CY 2023'!$A:$A,0)),0),0) -> 0 | AM36: =IFERROR(IF($Y36="CY 2023",INDEX('6. CY 2023'!AP:AP,MATCH($C36,'6. CY 2023'!$A:$A,0)),0),0) -> 3072500 | AN36: =IFERROR(IF($Y36="CY 2023",INDEX('6. CY 2023'!AQ:AQ,MATCH($C36,'6. CY 2023'!$A:$A,0)),0),0) -> 0 | AO36: =IFERROR(IF($Y36="CY 2023",INDEX('6. CY 2023'!AR:AR,MATCH($C36,'6. CY 2023'!$A:$A,0)),0),0) -> 0 | AP36: =IFERROR(IF($Y36="CY 2023",INDEX('6. CY 2023'!AS:AS,MATCH($C36,'6. CY 2023'!$A:$A,0)),0),0) -> 0 | AQ36: =IFERROR(IF($Y36="CY 2023",INDEX('6. CY 2023'!AV:AV,MATCH($C36,'6. CY 2023'!$A:$A,0)),0),0) -> 18560194.13 | AR36: =IFERROR(IF($Y36="CY 2023",INDEX('6. CY 2023'!AX:AX,MATCH($C36,'6. CY 2023'!A:A,0)),0),0) -> 15898885.71 | AS36: =IFERROR(IF(Y36="CY 2023",INDEX('6. CY 2023'!AY:AY,MATCH(C36,'6. CY 2023'!A:A,0)),0),0) -> 52737302.33 | AT36: =IFERROR(IF($Y36="CY 2023",INDEX('6. CY 2023'!AZ:AZ,MATCH($C36,'6. CY 2023'!A:A,0)),0),0) -> 68636188.04 | AW36: =IFERROR(IF(Y36="CY 2023",INDEX('6. CY 2023'!H:H,MATCH(C36,'6. CY 2023'!A:A,0)),0),0) -> 1154552587 | AX36: =SUM(AG36:AG60) -> 110722375.6
A37: 34 | B37: BALLARD REHABILITATION HOSPITAL | C37: 106364121 | D37: BALLARD REHABILITATION HOSPITAL | F37: =IFERROR(INDEX('8. 2019 HCAI (FEE) DAYS'!G:G,MATCH(C37,'8. 2019 HCAI (FEE) DAYS'!A:A,0)),0) -> 2018-07-01 | G37: =IFERROR(INDEX('8. 2019 HCAI (FEE) DAYS'!H:H,MATCH(C37,'8. 2019 HCAI (FEE) DAYS'!A:A,0)),0) -> 2019-06-30 | H37: =IFERROR(INDEX('8. 2019 HCAI (FEE) DAYS'!L:L,MATCH(C37,'8. 2019 HCAI (FEE) DAYS'!A:A,0)),0) -> 2018-07-01 | I37: =IFERROR(INDEX('11. Hospital Statuses'!M:M,MATCH(C37,'11. Hospital Statuses'!A:A,0)),"") -> Open | J37: San Bernardino | K37: 12 | L37: 1209 | M37: Investor | N37: Comparable | P37: https://ballardrehab.com/ | R37: VIBRA HEALTHCARE LLC | S37: 619-260-8300 | T37: 1760 W. 16TH ST. | U37: SAN BERNARDINO | V37: 92411 | W37: MARY HUNT | X37: =IFERROR(IF(INDEX(#REF!,MATCH(C37,#REF!,0)),"Yes","No"),"") ->  | Y37: CY 2023 | Z37: =IFERROR(IF($Y37="CY 2023",INDEX('6. CY 2023'!S:S,MATCH($C37,'6. CY 2023'!$A:$A,0)),0),0) -> 0 | AA37: =IFERROR(IF($Y37="CY 2023",INDEX('6. CY 2023'!U:U,MATCH($C37,'6. CY 2023'!$A:$A,0)),0),0) -> 0 | AB37: =IFERROR(IF($Y37="CY 2023",INDEX('6. CY 2023'!W:W,MATCH($C37,'6. CY 2023'!$A:$A,0)),0),0) -> 0 | AC37: =IFERROR(IF($Y37="CY 2023",INDEX('6. CY 2023'!Y:Y,MATCH($C37,'6. CY 2023'!$A:$A,0)),0),0) -> 0 | AD37: =IFERROR(IF($Y37="CY 2023",INDEX('6. CY 2023'!AA:AA,MATCH($C37,'6. CY 2023'!$A:$A,0)),0),0) -> 0 | AE37: =IFERROR(IF($Y37="CY 2023",INDEX('6. CY 2023'!AC:AC,MATCH($C37,'6. CY 2023'!$A:$A,0)),0),0) -> 0 | AF37: =IFERROR(IF($Y37="CY 2023",INDEX('6. CY 2023'!AE:AE,MATCH($C37,'6. CY 2023'!$A:$A,0)),0),0) -> 0 | AG37: =IFERROR(IF(Y37="CY 2023",AF37/'4. Calculated Fee'!$D$32*'4. Calculated Fee'!$D$23,0),0) -> 0 | AH37: =IFERROR(IF($Y37="CY 2023",INDEX('6. CY 2023'!AE:AE,MATCH($C37,'6. CY 2023'!$A:$A,0)),0),0) -> 0 | AI37: =IFERROR(IF(Y37="CY 2023",INDEX('6. CY 2023'!AL:AL,MATCH(C37,'6. CY 2023'!A:A,0)),0),0) -> 0 | AJ37: =IFERROR(IF($Y37="CY 2023",INDEX('6. CY 2023'!AM:AM,MATCH($C37,'6. CY 2023'!$A:$A,0)),0),0) -> 0 | AK37: =IFERROR(IF($Y37="CY 2023",INDEX('6. CY 2023'!AN:AN,MATCH($C37,'6. CY 2023'!$A:$A,0)),0),0) -> 0 | AL37: =IFERROR(IF($Y37="CY 2023",INDEX('6. CY 2023'!AO:AO,MATCH($C37,'6. CY 2023'!$A:$A,0)),0),0) -> 0 | AM37: =IFERROR(IF($Y37="CY 2023",INDEX('6. CY 2023'!AP:AP,MATCH($C37,'6. CY 2023'!$A:$A,0)),0),0) -> 0 | AN37: =IFERROR(IF($Y37="CY 2023",INDEX('6. CY 2023'!AQ:AQ,MATCH($C37,'6. CY 2023'!$A:$A,0)),0),0) -> 0 | AO37: =IFERROR(IF($Y37="CY 2023",INDEX('6. CY 2023'!AR:AR,MATCH($C37,'6. CY 2023'!$A:$A,0)),0),0) -> 0 | AP37: =IFERROR(IF($Y37="CY 2023",INDEX('6. CY 2023'!AS:AS,MATCH($C37,'6. CY 2023'!$A:$A,0)),0),0) -> 0 | AQ37: =IFERROR(IF($Y37="CY 2023",INDEX('6. CY 2023'!AV:AV,MATCH($C37,'6. CY 2023'!$A:$A,0)),0),0) -> 0 | AR37: =IFERROR(IF($Y37="CY 2023",INDEX('6. CY 2023'!AX:AX,MATCH($C37,'6. CY 2023'!A:A,0)),0),0) -> 0 | AS37: =IFERROR(IF(Y37="CY 2023",INDEX('6. CY 2023'!AY:AY,MATCH(C37,'6. CY 2023'!A:A,0)),0),0) -> 0 | AT37: =IFERROR(IF($Y37="CY 2023",INDEX('6. CY 2023'!AZ:AZ,MATCH($C37,'6. CY 2023'!A:A,0)),0),0) -> 0 | AW37: =IFERROR(IF(Y37="CY 2023",INDEX('6. CY 2023'!H:H,MATCH(C37,'6. CY 2023'!A:A,0)),0),0) -> 46989094.99 | AX37: =SUM(AG37:AG42) -> 0
A38: 35 | B38: BANNER LASSEN MEDICAL CENTER | C38: 106184008 | D38: BANNER LASSEN MEDICAL CENTER | F38: =IFERROR(INDEX('8. 2019 HCAI (FEE) DAYS'!G:G,MATCH(C38,'8. 2019 HCAI (FEE) DAYS'!A:A,0)),0) -> 2019-01-01 | G38: =IFERROR(INDEX('8. 2019 HCAI (FEE) DAYS'!H:H,MATCH(C38,'8. 2019 HCAI (FEE) DAYS'!A:A,0)),0) -> 2019-12-31 | H38: =IFERROR(INDEX('8. 2019 HCAI (FEE) DAYS'!L:L,MATCH(C38,'8. 2019 HCAI (FEE) DAYS'!A:A,0)),0) -> 2019-01-01 | I38: =IFERROR(INDEX('11. Hospital Statuses'!M:M,MATCH(C38,'11. Hospital Statuses'!A:A,0)),"") -> Open | J38: Lassen | K38: 1 | L38: 213 | M38: Non-Profit | N38: Comparable | O38: Rural | P38: https://www.bannerhealth.com/locations/susanville/banner-lassen-medical-center | R38: BANNER HEALTH SYSTEM | S38: 530-252-2000 | T38: 1800 SPRING RIDGE DRIVE | U38: SUSANVILLE | V38: 96130 | W38: SANDY DUGGER | X38: =IFERROR(IF(INDEX(#REF!,MATCH(C38,#REF!,0)),"Yes","No"),"") ->  | Y38: CY 2023 | Z38: =IFERROR(IF($Y38="CY 2023",INDEX('6. CY 2023'!S:S,MATCH($C38,'6. CY 2023'!$A:$A,0)),0),0) -> 0 | AA38: =IFERROR(IF($Y38="CY 2023",INDEX('6. CY 2023'!U:U,MATCH($C38,'6. CY 2023'!$A:$A,0)),0),0) -> 0 | AB38: =IFERROR(IF($Y38="CY 2023",INDEX('6. CY 2023'!W:W,MATCH($C38,'6. CY 2023'!$A:$A,0)),0),0) -> 0 | AC38: =IFERROR(IF($Y38="CY 2023",INDEX('6. CY 2023'!Y:Y,MATCH($C38,'6. CY 2023'!$A:$A,0)),0),0) -> 0 | AD38: =IFERROR(IF($Y38="CY 2023",INDEX('6. CY 2023'!AA:AA,MATCH($C38,'6. CY 2023'!$A:$A,0)),0),0) -> 0 | AE38: =IFERROR(IF($Y38="CY 2023",INDEX('6. CY 2023'!AC:AC,MATCH($C38,'6. CY 2023'!$A:$A,0)),0),0) -> 0 | AF38: =IFERROR(IF($Y38="CY 2023",INDEX('6. CY 2023'!AE:AE,MATCH($C38,'6. CY 2023'!$A:$A,0)),0),0) -> 0 | AG38: =IFERROR(IF(Y38="CY 2023",AF38/'4. Calculated Fee'!$D$32*'4. Calculated Fee'!$D$23,0),0) -> 0 | AH38: =IFERROR(IF($Y38="CY 2023",INDEX('6. CY 2023'!AE:AE,MATCH($C38,'6. CY 2023'!$A:$A,0)),0),0) -> 0 | AI38: =IFERROR(IF(Y38="CY 2023",INDEX('6. CY 2023'!AL:AL,MATCH(C38,'6. CY 2023'!A:A,0)),0),0) -> 203536.3966 | AJ38: =IFERROR(IF($Y38="CY 2023",INDEX('6. CY 2023'!AM:AM,MATCH($C38,'6. CY 2023'!$A:$A,0)),0),0) -> 79607.10886 | AK38: =IFERROR(IF($Y38="CY 2023",INDEX('6. CY 2023'!AN:AN,MATCH($C38,'6. CY 2023'!$A:$A,0)),0),0) -> 0 | AL38: =IFERROR(IF($Y38="CY 2023",INDEX('6. CY 2023'!AO:AO,MATCH($C38,'6. CY 2023'!$A:$A,0)),0),0) -> 0 | AM38: =IFERROR(IF($Y38="CY 2023",INDEX('6. CY 2023'!AP:AP,MATCH($C38,'6. CY 2023'!$A:$A,0)),0),0) -> 0 | AN38: =IFERROR(IF($Y38="CY 2023",INDEX('6. CY 2023'!AQ:AQ,MATCH($C38,'6. CY 2023'!$A:$A,0)),0),0) -> 0 | AO38: =IFERROR(IF($Y38="CY 2023",INDEX('6. CY 2023'!AR:AR,MATCH($C38,'6. CY 2023'!$A:$A,0)),0),0) -> 0 | AP38: =IFERROR(IF($Y38="CY 2023",INDEX('6. CY 2023'!AS:AS,MATCH($C38,'6. CY 2023'!$A:$A,0)),0),0) -> 0 | AQ38: =IFERROR(IF($Y38="CY 2023",INDEX('6. CY 2023'!AV:AV,MATCH($C38,'6. CY 2023'!$A:$A,0)),0),0) -> 283143.5054 | AR38: =IFERROR(IF($Y38="CY 2023",INDEX('6. CY 2023'!AX:AX,MATCH($C38,'6. CY 2023'!A:A,0)),0),0) -> 479476.5786 | AS38: =IFERROR(IF(Y38="CY 2023",INDEX('6. CY 2023'!AY:AY,MATCH(C38,'6. CY 2023'!A:A,0)),0),0) -> 3635722.691 | AT38: =IFERROR(IF($Y38="CY 2023",INDEX('6. CY 2023'!AZ:AZ,MATCH($C38,'6. CY 2023'!A:A,0)),0),0) -> 4115199.27 | AW38: =IFERROR(IF(Y38="CY 2023",INDEX('6. CY 2023'!H:H,MATCH(C38,'6. CY 2023'!A:A,0)),0),0) -> 52410162.65
A39: 36 | B39: BARLOW RESPIRATORY HOSPITAL | C39: 106190052 | D39: BARLOW RESPIRATORY HOSPITAL | F39: =IFERROR(INDEX('8. 2019 HCAI (FEE) DAYS'!G:G,MATCH(C39,'8. 2019 HCAI (FEE) DAYS'!A:A,0)),0) -> 2018-09-01 | G39: =IFERROR(INDEX('8. 2019 HCAI (FEE) DAYS'!H:H,MATCH(C39,'8. 2019 HCAI (FEE) DAYS'!A:A,0)),0) -> 2019-08-31 | H39: =IFERROR(INDEX('8. 2019 HCAI (FEE) DAYS'!L:L,MATCH(C39,'8. 2019 HCAI (FEE) DAYS'!A:A,0)),0) -> 2018-09-01 | I39: =IFERROR(INDEX('11. Hospital Statuses'!M:M,MATCH(C39,'11. Hospital Statuses'!A:A,0)),"") -> Open | J39: Los Angeles | K39: 11 | L39: 925 | M39: Non-Profit | N39: Comparable | P39: https://www.barlowhospital.org/ | R39: BARLOW RESPIRATORY HOSPITAL | S39: 213-250-4200 | T39: 2000 STADIUM WAY | U39: LOS ANGELES | V39: 90026 | W39: AMIT MOHAN | X39: =IFERROR(IF(INDEX(#REF!,MATCH(C39,#REF!,0)),"Yes","No"),"") ->  | Y39: CY 2023 | Z39: =IFERROR(IF($Y39="CY 2023",INDEX('6. CY 2023'!S:S,MATCH($C39,'6. CY 2023'!$A:$A,0)),0),0) -> 0 | AA39: =IFERROR(IF($Y39="CY 2023",INDEX('6. CY 2023'!U:U,MATCH($C39,'6. CY 2023'!$A:$A,0)),0),0) -> 0 | AB39: =IFERROR(IF($Y39="CY 2023",INDEX('6. CY 2023'!W:W,MATCH($C39,'6. CY 2023'!$A:$A,0)),0),0) -> 0 | AC39: =IFERROR(IF($Y39="CY 2023",INDEX('6. CY 2023'!Y:Y,MATCH($C39,'6. CY 2023'!$A:$A,0)),0),0) -> 0 | AD39: =IFERROR(IF($Y39="CY 2023",INDEX('6. CY 2023'!AA:AA,MATCH($C39,'6. CY 2023'!$A:$A,0)),0),0) -> 0 | AE39: =IFERROR(IF($Y39="CY 2023",INDEX('6. CY 2023'!AC:AC,MATCH($C39,'6. CY 2023'!$A:$A,0)),0),0) -> 0 | AF39: =IFERROR(IF($Y39="CY 2023",INDEX('6. CY 2023'!AE:AE,MATCH($C39,'6. CY 2023'!$A:$A,0)),0),0) -> 0 | AG39: =IFERROR(IF(Y39="CY 2023",AF39/'4. Calculated Fee'!$D$32*'4. Calculated Fee'!$D$23,0),0) -> 0 | AH39: =IFERROR(IF($Y39="CY 2023",INDEX('6. CY 2023'!AE:AE,MATCH($C39,'6. CY 2023'!$A:$A,0)),0),0) -> 0 | AI39: =IFERROR(IF(Y39="CY 2023",INDEX('6. CY 2023'!AL:AL,MATCH(C39,'6. CY 2023'!A:A,0)),0),0) -> 0 | AJ39: =IFERROR(IF($Y39="CY 2023",INDEX('6. CY 2023'!AM:AM,MATCH($C39,'6. CY 2023'!$A:$A,0)),0),0) -> 0 | AK39: =IFERROR(IF($Y39="CY 2023",INDEX('6. CY 2023'!AN:AN,MATCH($C39,'6. CY 2023'!$A:$A,0)),0),0) -> 0 | AL39: =IFERROR(IF($Y39="CY 2023",INDEX('6. CY 2023'!AO:AO,MATCH($C39,'6. CY 2023'!$A:$A,0)),0),0) -> 0 | AM39: =IFERROR(IF($Y39="CY 2023",INDEX('6. CY 2023'!AP:AP,MATCH($C39,'6. CY 2023'!$A:$A,0)),0),0) -> 0 | AN39: =IFERROR(IF($Y39="CY 2023",INDEX('6. CY 2023'!AQ:AQ,MATCH($C39,'6. CY 2023'!$A:$A,0)),0),0) -> 0 | AO39: =IFERROR(IF($Y39="CY 2023",INDEX('6. CY 2023'!AR:AR,MATCH($C39,'6. CY 2023'!$A:$A,0)),0),0) -> 0 | AP39: =IFERROR(IF($Y39="CY 2023",INDEX('6. CY 2023'!AS:AS,MATCH($C39,'6. CY 2023'!$A:$A,0)),0),0) -> 0 | AQ39: =IFERROR(IF($Y39="CY 2023",INDEX('6. CY 2023'!AV:AV,MATCH($C39,'6. CY 2023'!$A:$A,0)),0),0) -> 0 | AR39: =IFERROR(IF($Y39="CY 2023",INDEX('6. CY 2023'!AX:AX,MATCH($C39,'6. CY 2023'!A:A,0)),0),0) -> 0 | AS39: =IFERROR(IF(Y39="CY 2023",INDEX('6. CY 2023'!AY:AY,MATCH(C39,'6. CY 2023'!A:A,0)),0),0) -> 0 | AT39: =IFERROR(IF($Y39="CY 2023",INDEX('6. CY 2023'!AZ:AZ,MATCH($C39,'6. CY 2023'!A:A,0)),0),0) -> 0 | AW39: =IFERROR(IF(Y39="CY 2023",INDEX('6. CY 2023'!H:H,MATCH(C39,'6. CY 2023'!A:A,0)),0),0) -> 77692721.27
A40: 37 | B40: BARSTOW COMMUNITY HOSPITAL | C40: 106364430 | D40: BARSTOW COMMUNITY HOSPITAL | F40: =IFERROR(INDEX('8. 2019 HCAI (FEE) DAYS'!G:G,MATCH(C40,'8. 2019 HCAI (FEE) DAYS'!A:A,0)),0) -> 2019-01-01 | G40: =IFERROR(INDEX('8. 2019 HCAI (FEE) DAYS'!H:H,MATCH(C40,'8. 2019 HCAI (FEE) DAYS'!A:A,0)),0) -> 2019-12-31 | H40: =IFERROR(INDEX('8. 2019 HCAI (FEE) DAYS'!L:L,MATCH(C40,'8. 2019 HCAI (FEE) DAYS'!A:A,0)),0) -> 2019-01-01 | I40: =IFERROR(INDEX('11. Hospital Statuses'!M:M,MATCH(C40,'11. Hospital Statuses'!A:A,0)),"") -> Open | J40: San Bernardino | K40: 12 | L40: 1213 | M40: Investor | N40: Comparable | O40: Rural | P40: https://www.barstowhospital.com/ | R40: QUORUM HEALTH CORPORATION | S40: 760-256-1761 | T40: 820 EAST MOUNTAIN VIEW STREET | U40: BARSTOW | V40: 92311 | W40: J. KOLBE SHERIDAN | X40: =IFERROR(IF(INDEX(#REF!,MATCH(C40,#REF!,0)),"Yes","No"),"") ->  | Y40: CY 2023 | Z40: =IFERROR(IF($Y40="CY 2023",INDEX('6. CY 2023'!S:S,MATCH($C40,'6. CY 2023'!$A:$A,0)),0),0) -> 0 | AA40: =IFERROR(IF($Y40="CY 2023",INDEX('6. CY 2023'!U:U,MATCH($C40,'6. CY 2023'!$A:$A,0)),0),0) -> 0 | AB40: =IFERROR(IF($Y40="CY 2023",INDEX('6. CY 2023'!W:W,MATCH($C40,'6. CY 2023'!$A:$A,0)),0),0) -> 0 | AC40: =IFERROR(IF($Y40="CY 2023",INDEX('6. CY 2023'!Y:Y,MATCH($C40,'6. CY 2023'!$A:$A,0)),0),0) -> 0 | AD40: =IFERROR(IF($Y40="CY 2023",INDEX('6. CY 2023'!AA:AA,MATCH($C40,'6. CY 2023'!$A:$A,0)),0),0) -> 0 | AE40: =IFERROR(IF($Y40="CY 2023",INDEX('6. CY 2023'!AC:AC,MATCH($C40,'6. CY 2023'!$A:$A,0)),0),0) -> 0 | AF40: =IFERROR(IF($Y40="CY 2023",INDEX('6. CY 2023'!AE:AE,MATCH($C40,'6. CY 2023'!$A:$A,0)),0),0) -> 0 | AG40: =IFERROR(IF(Y40="CY 2023",AF40/'4. Calculated Fee'!$D$32*'4. Calculated Fee'!$D$23,0),0) -> 0 | AH40: =IFERROR(IF($Y40="CY 2023",INDEX('6. CY 2023'!AE:AE,MATCH($C40,'6. CY 2023'!$A:$A,0)),0),0) -> 0 | AI40: =IFERROR(IF(Y40="CY 2023",INDEX('6. CY 2023'!AL:AL,MATCH(C40,'6. CY 2023'!A:A,0)),0),0) -> 3316886.909 | AJ40: =IFERROR(IF($Y40="CY 2023",INDEX('6. CY 2023'!AM:AM,MATCH($C40,'6. CY 2023'!$A:$A,0)),0),0) -> 1162909.252 | AK40: =IFERROR(IF($Y40="CY 2023",INDEX('6. CY 2023'!AN:AN,MATCH($C40,'6. CY 2023'!$A:$A,0)),0),0) -> 0 | AL40: =IFERROR(IF($Y40="CY 2023",INDEX('6. CY 2023'!AO:AO,MATCH($C40,'6. CY 2023'!$A:$A,0)),0),0) -> 0 | AM40: =IFERROR(IF($Y40="CY 2023",INDEX('6. CY 2023'!AP:AP,MATCH($C40,'6. CY 2023'!$A:$A,0)),0),0) -> 0 | AN40: =IFERROR(IF($Y40="CY 2023",INDEX('6. CY 2023'!AQ:AQ,MATCH($C40,'6. CY 2023'!$A:$A,0)),0),0) -> 0 | AO40: =IFERROR(IF($Y40="CY 2023",INDEX('6. CY 2023'!AR:AR,MATCH($C40,'6. CY 2023'!$A:$A,0)),0),0) -> 0 | AP40: =IFERROR(IF($Y40="CY 2023",INDEX('6. CY 2023'!AS:AS,MATCH($C40,'6. CY 2023'!$A:$A,0)),0),0) -> 175000 | AQ40: =IFERROR(IF($Y40="CY 2023",INDEX('6. CY 2023'!AV:AV,MATCH($C40,'6. CY 2023'!$A:$A,0)),0),0) -> 4654796.162 | AR40: =IFERROR(IF($Y40="CY 2023",INDEX('6. CY 2023'!AX:AX,MATCH($C40,'6. CY 2023'!A:A,0)),0),0) -> 852190.0657 | AS40: =IFERROR(IF(Y40="CY 2023",INDEX('6. CY 2023'!AY:AY,MATCH(C40,'6. CY 2023'!A:A,0)),0),0) -> 6175211.369 | AT40: =IFERROR(IF($Y40="CY 2023",INDEX('6. CY 2023'!AZ:AZ,MATCH($C40,'6. CY 2023'!A:A,0)),0),0) -> 7027401.435 | AW40: =IFERROR(IF(Y40="CY 2023",INDEX('6. CY 2023'!H:H,MATCH(C40,'6. CY 2023'!A:A,0)),0),0) -> 76768275.31
A41: 38 | B41: BARTON MEMORIAL HOSPITAL | C41: 106090793 | D41: BARTON MEMORIAL HOSPITAL | F41: =IFERROR(INDEX('8. 2019 HCAI (FEE) DAYS'!G:G,MATCH(C41,'8. 2019 HCAI (FEE) DAYS'!A:A,0)),0) -> 2019-01-01 | G41: =IFERROR(INDEX('8. 2019 HCAI (FEE) DAYS'!H:H,MATCH(C41,'8. 2019 HCAI (FEE) DAYS'!A:A,0)),0) -> 2019-12-31 | H41: =IFERROR(INDEX('8. 2019 HCAI (FEE) DAYS'!L:L,MATCH(C41,'8. 2019 HCAI (FEE) DAYS'!A:A,0)),0) -> 2019-01-01 | I41: =IFERROR(INDEX('11. Hospital Statuses'!M:M,MATCH(C41,'11. Hospital Statuses'!A:A,0)),"") -> Open | J41: El Dorado | K41: 2 | L41: 306 | M41: Non-Profit | N41: Comparable | O41: Rural | P41: https://www.bartonhealth.org/tahoe/home.aspx | R41: BARTON HEALTHCARE SYSTEM | S41: 530-541-3420 | T41: 2170 SOUTH AVENUE | U41: SOUTH LAKE TAHOE | V41: 96150 | W41: CLINT PURVANCE, MD | X41: =IFERROR(IF(INDEX(#REF!,MATCH(C41,#REF!,0)),"Yes","No"),"") ->  | Y41: CY 2023 | Z41: =IFERROR(IF($Y41="CY 2023",INDEX('6. CY 2023'!S:S,MATCH($C41,'6. CY 2023'!$A:$A,0)),0),0) -> 0 | AA41: =IFERROR(IF($Y41="CY 2023",INDEX('6. CY 2023'!U:U,MATCH($C41,'6. CY 2023'!$A:$A,0)),0),0) -> 0 | AB41: =IFERROR(IF($Y41="CY 2023",INDEX('6. CY 2023'!W:W,MATCH($C41,'6. CY 2023'!$A:$A,0)),0),0) -> 0 | AC41: =IFERROR(IF($Y41="CY 2023",INDEX('6. CY 2023'!Y:Y,MATCH($C41,'6. CY 2023'!$A:$A,0)),0),0) -> 0 | AD41: =IFERROR(IF($Y41="CY 2023",INDEX('6. CY 2023'!AA:AA,MATCH($C41,'6. CY 2023'!$A:$A,0)),0),0) -> 0 | AE41: =IFERROR(IF($Y41="CY 2023",INDEX('6. CY 2023'!AC:AC,MATCH($C41,'6. CY 2023'!$A:$A,0)),0),0) -> 0 | AF41: =IFERROR(IF($Y41="CY 2023",INDEX('6. CY 2023'!AE:AE,MATCH($C41,'6. CY 2023'!$A:$A,0)),0),0) -> 0 | AG41: =IFERROR(IF(Y41="CY 2023",AF41/'4. Calculated Fee'!$D$32*'4. Calculated Fee'!$D$23,0),0) -> 0 | AH41: =IFERROR(IF($Y41="CY 2023",INDEX('6. CY 2023'!AE:AE,MATCH($C41,'6. CY 2023'!$A:$A,0)),0),0) -> 0 | AI41: =IFERROR(IF(Y41="CY 2023",INDEX('6. CY 2023'!AL:AL,MATCH(C41,'6. CY 2023'!A:A,0)),0),0) -> 1227822.841 | AJ41: =IFERROR(IF($Y41="CY 2023",INDEX('6. CY 2023'!AM:AM,MATCH($C41,'6. CY 2023'!$A:$A,0)),0),0) -> 531431.2402 | AK41: =IFERROR(IF($Y41="CY 2023",INDEX('6. CY 2023'!AN:AN,MATCH($C41,'6. CY 2023'!$A:$A,0)),0),0) -> 0 | AL41: =IFERROR(IF($Y41="CY 2023",INDEX('6. CY 2023'!AO:AO,MATCH($C41,'6. CY 2023'!$A:$A,0)),0),0) -> 0 | AM41: =IFERROR(IF($Y41="CY 2023",INDEX('6. CY 2023'!AP:AP,MATCH($C41,'6. CY 2023'!$A:$A,0)),0),0) -> 0 | AN41: =IFERROR(IF($Y41="CY 2023",INDEX('6. CY 2023'!AQ:AQ,MATCH($C41,'6. CY 2023'!$A:$A,0)),0),0) -> 0 | AO41: =IFERROR(IF($Y41="CY 2023",INDEX('6. CY 2023'!AR:AR,MATCH($C41,'6. CY 2023'!$A:$A,0)),0),0) -> 0 | AP41: =IFERROR(IF($Y41="CY 2023",INDEX('6. CY 2023'!AS:AS,MATCH($C41,'6. CY 2023'!$A:$A,0)),0),0) -> 60000 | AQ41: =IFERROR(IF($Y41="CY 2023",INDEX('6. CY 2023'!AV:AV,MATCH($C41,'6. CY 2023'!$A:$A,0)),0),0) -> 1819254.082 | AR41: =IFERROR(IF($Y41="CY 2023",INDEX('6. CY 2023'!AX:AX,MATCH($C41,'6. CY 2023'!A:A,0)),0),0) -> 875450.5627 | AS41: =IFERROR(IF(Y41="CY 2023",INDEX('6. CY 2023'!AY:AY,MATCH(C41,'6. CY 2023'!A:A,0)),0),0) -> 6124403.565 | AT41: =IFERROR(IF($Y41="CY 2023",INDEX('6. CY 2023'!AZ:AZ,MATCH($C41,'6. CY 2023'!A:A,0)),0),0) -> 6999854.127 | AW41: =IFERROR(IF(Y41="CY 2023",INDEX('6. CY 2023'!H:H,MATCH(C41,'6. CY 2023'!A:A,0)),0),0) -> 166061068.6
A42: 39 | B42: BEAR VALLEY COMMUNITY HOSPITAL | C42: 106361110 | D42: BEAR VALLEY COMMUNITY HOSPITAL | F42: =IFERROR(INDEX('8. 2019 HCAI (FEE) DAYS'!G:G,MATCH(C42,'8. 2019 HCAI (FEE) DAYS'!A:A,0)),0) -> 2018-07-01 | G42: =IFERROR(INDEX('8. 2019 HCAI (FEE) DAYS'!H:H,MATCH(C42,'8. 2019 HCAI (FEE) DAYS'!A:A,0)),0) -> 2019-06-30 | H42: =IFERROR(INDEX('8. 2019 HCAI (FEE) DAYS'!L:L,MATCH(C42,'8. 2019 HCAI (FEE) DAYS'!A:A,0)),0) -> 2018-07-01 | I42: =IFERROR(INDEX('11. Hospital Statuses'!M:M,MATCH(C42,'11. Hospital Statuses'!A:A,0)),"") -> Open | J42: San Bernardino | K42: 12 | L42: 1217 | M42: District | N42: Comparable | O42: Rural | P42: https://bearvalleycommunityhospital.com/ | Q42: =CONCATENATE("HTTPS.",P42) -> HTTPS.https://bearvalleycommunityhospital.com/ | R42: BEAR VALLEY COMMUNITY HOSPITAL | S42: 909-866-6501 | T42: 41870 GARSTIN, PO BOX 1649 | U42: BIG BEAR | V42: 92315 | W42: JOHN P FRIEL | X42: =IFERROR(IF(INDEX(#REF!,MATCH(C42,#REF!,0)),"Yes","No"),"") ->  | Y42: CY 2023 | Z42: =IFERROR(IF($Y42="CY 2023",INDEX('6. CY 2023'!S:S,MATCH($C42,'6. CY 2023'!$A:$A,0)),0),0) -> 0 | AA42: =IFERROR(IF($Y42="CY 2023",INDEX('6. CY 2023'!U:U,MATCH($C42,'6. CY 2023'!$A:$A,0)),0),0) -> 0 | AB42: =IFERROR(IF($Y42="CY 2023",INDEX('6. CY 2023'!W:W,MATCH($C42,'6. CY 2023'!$A:$A,0)),0),0) -> 0 | AC42: =IFERROR(IF($Y42="CY 2023",INDEX('6. CY 2023'!Y:Y,MATCH($C42,'6. CY 2023'!$A:$A,0)),0),0) -> 0 | AD42: =IFERROR(IF($Y42="CY 2023",INDEX('6. CY 2023'!AA:AA,MATCH($C42,'6. CY 2023'!$A:$A,0)),0),0) -> 0 | AE42: =IFERROR(IF($Y42="CY 2023",INDEX('6. CY 2023'!AC:AC,MATCH($C42,'6. CY 2023'!$A:$A,0)),0),0) -> 0 | AF42: =IFERROR(IF($Y42="CY 2023",INDEX('6. CY 2023'!AE:AE,MATCH($C42,'6. CY 2023'!$A:$A,0)),0),0) -> 0 | AG42: =IFERROR(IF(Y42="CY 2023",AF42/'4. Calculated Fee'!$D$32*'4. Calculated Fee'!$D$23,0),0) -> 0 | AH42: =IFERROR(IF($Y42="CY 2023",INDEX('6. CY 2023'!AE:AE,MATCH($C42,'6. CY 2023'!$A:$A,0)),0),0) -> 0 | AI42: =IFERROR(IF(Y42="CY 2023",INDEX('6. CY 2023'!AL:AL,MATCH(C42,'6. CY 2023'!A:A,0)),0),0) -> 0 | AJ42: =IFERROR(IF($Y42="CY 2023",INDEX('6. CY 2023'!AM:AM,MATCH($C42,'6. CY 2023'!$A:$A,0)),0),0) -> 0 | AK42: =IFERROR(IF($Y42="CY 2023",INDEX('6. CY 2023'!AN:AN,MATCH($C42,'6. CY 2023'!$A:$A,0)),0),0) -> 0 | AL42: =IFERROR(IF($Y42="CY 2023",INDEX('6. CY 2023'!AO:AO,MATCH($C42,'6. CY 2023'!$A:$A,0)),0),0) -> 0 | AM42: =IFERROR(IF($Y42="CY 2023",INDEX('6. CY 2023'!AP:AP,MATCH($C42,'6. CY 2023'!$A:$A,0)),0),0) -> 0 | AN42: =IFERROR(IF($Y42="CY 2023",INDEX('6. CY 2023'!AQ:AQ,MATCH($C42,'6. CY 2023'!$A:$A,0)),0),0) -> 0 | AO42: =IFERROR(IF($Y42="CY 2023",INDEX('6. CY 2023'!AR:AR,MATCH($C42,'6. CY 2023'!$A:$A,0)),0),0) -> 0 | AP42: =IFERROR(IF($Y42="CY 2023",INDEX('6. CY 2023'!AS:AS,MATCH($C42,'6. CY 2023'!$A:$A,0)),0),0) -> 0 | AQ42: =IFERROR(IF($Y42="CY 2023",INDEX('6. CY 2023'!AV:AV,MATCH($C42,'6. CY 2023'!$A:$A,0)),0),0) -> 0 | AR42: =IFERROR(IF($Y42="CY 2023",INDEX('6. CY 2023'!AX:AX,MATCH($C42,'6. CY 2023'!A:A,0)),0),0) -> 0 | AS42: =IFERROR(IF(Y42="CY 2023",INDEX('6. CY 2023'!AY:AY,MATCH(C42,'6. CY 2023'!A:A,0)),0),0) -> 0 | AT42: =IFERROR(IF($Y42="CY 2023",INDEX('6. CY 2023'!AZ:AZ,MATCH($C42,'6. CY 2023'!A:A,0)),0),0) -> 0 | AW42: =IFERROR(IF(Y42="CY 2023",INDEX('6. CY 2023'!H:H,MATCH(C42,'6. CY 2023'!A:A,0)),0),0) -> 33884123.56
A43: 40 | B43: BEVERLY HOSPITAL | C43: 106190081 | D43: BEVERLY HOSPITAL | F43: =IFERROR(INDEX('8. 2019 HCAI (FEE) DAYS'!G:G,MATCH(C43,'8. 2019 HCAI (FEE) DAYS'!A:A,0)),0) -> 2019-01-01 | G43: =IFERROR(INDEX('8. 2019 HCAI (FEE) DAYS'!H:H,MATCH(C43,'8. 2019 HCAI (FEE) DAYS'!A:A,0)),0) -> 2019-12-31 | H43: =IFERROR(INDEX('8. 2019 HCAI (FEE) DAYS'!L:L,MATCH(C43,'8. 2019 HCAI (FEE) DAYS'!A:A,0)),0) -> 2019-01-01 | I43: =IFERROR(INDEX('11. Hospital Statuses'!M:M,MATCH(C43,'11. Hospital Statuses'!A:A,0)),"") -> Open | J43: Los Angeles | K43: 11 | L43: 919 | M43: Non-Profit | N43: Comparable | P43: https://beverly.org/ | Q43: HTTPS.https://beverly.org/ | R43: BEVERLY COMMUNITY HOSPITAL ASSOCIATION | S43: 323-726-1222 | T43: 309 WEST BEVERLY BOULEVARD | U43: MONTEBELLO | V43: 90640 | W43: ALICE CHENG | X43: =IFERROR(IF(INDEX(#REF!,MATCH(C43,#REF!,0)),"Yes","No"),"") ->  | Y43: CY 2023 | Z43: =IFERROR(IF($Y43="CY 2023",INDEX('6. CY 2023'!S:S,MATCH($C43,'6. CY 2023'!$A:$A,0)),0),0) -> 0 | AA43: =IFERROR(IF($Y43="CY 2023",INDEX('6. CY 2023'!U:U,MATCH($C43,'6. CY 2023'!$A:$A,0)),0),0) -> 3585409.14 | AB43: =IFERROR(IF($Y43="CY 2023",INDEX('6. CY 2023'!W:W,MATCH($C43,'6. CY 2023'!$A:$A,0)),0),0) -> 4305927.06 | AC43: =IFERROR(IF($Y43="CY 2023",INDEX('6. CY 2023'!Y:Y,MATCH($C43,'6. CY 2023'!$A:$A,0)),0),0) -> 0 | AD43: =IFERROR(IF($Y43="CY 2023",INDEX('6. CY 2023'!AA:AA,MATCH($C43,'6. CY 2023'!$A:$A,0)),0),0) -> 9456240 | AE43: =IFERROR(IF($Y43="CY 2023",INDEX('6. CY 2023'!AC:AC,MATCH($C43,'6. CY 2023'!$A:$A,0)),0),0) -> 2195420 | AF43: =IFERROR(IF($Y43="CY 2023",INDEX('6. CY 2023'!AE:AE,MATCH($C43,'6. CY 2023'!$A:$A,0)),0),0) -> 19542996.2 | AG43: =IFERROR(IF(Y43="CY 2023",AF43/'4. Calculated Fee'!$D$32*'4. Calculated Fee'!$D$23,0),0) -> 4982225.814 | AH43: =IFERROR(IF($Y43="CY 2023",INDEX('6. CY 2023'!AE:AE,MATCH($C43,'6. CY 2023'!$A:$A,0)),0),0) -> 19542996.2 | AI43: =IFERROR(IF(Y43="CY 2023",INDEX('6. CY 2023'!AL:AL,MATCH(C43,'6. CY 2023'!A:A,0)),0),0) -> 1584226.608 | AJ43: =IFERROR(IF($Y43="CY 2023",INDEX('6. CY 2023'!AM:AM,MATCH($C43,'6. CY 2023'!$A:$A,0)),0),0) -> 3618896.138 | AK43: =IFERROR(IF($Y43="CY 2023",INDEX('6. CY 2023'!AN:AN,MATCH($C43,'6. CY 2023'!$A:$A,0)),0),0) -> 0 | AL43: =IFERROR(IF($Y43="CY 2023",INDEX('6. CY 2023'!AO:AO,MATCH($C43,'6. CY 2023'!$A:$A,0)),0),0) -> 0 | AM43: =IFERROR(IF($Y43="CY 2023",INDEX('6. CY 2023'!AP:AP,MATCH($C43,'6. CY 2023'!$A:$A,0)),0),0) -> 680000 | AN43: =IFERROR(IF($Y43="CY 2023",INDEX('6. CY 2023'!AQ:AQ,MATCH($C43,'6. CY 2023'!$A:$A,0)),0),0) -> 0 | AO43: =IFERROR(IF($Y43="CY 2023",INDEX('6. CY 2023'!AR:AR,MATCH($C43,'6. CY 2023'!$A:$A,0)),0),0) -> 0 | AP43: =IFERROR(IF($Y43="CY 2023",INDEX('6. CY 2023'!AS:AS,MATCH($C43,'6. CY 2023'!$A:$A,0)),0),0) -> 0 | AQ43: =IFERROR(IF($Y43="CY 2023",INDEX('6. CY 2023'!AV:AV,MATCH($C43,'6. CY 2023'!$A:$A,0)),0),0) -> 5883122.746 | AR43: =IFERROR(IF($Y43="CY 2023",INDEX('6. CY 2023'!AX:AX,MATCH($C43,'6. CY 2023'!A:A,0)),0),0) -> 2548593.593 | AS43: =IFERROR(IF(Y43="CY 2023",INDEX('6. CY 2023'!AY:AY,MATCH(C43,'6. CY 2023'!A:A,0)),0),0) -> 24621670.66 | AT43: =IFERROR(IF($Y43="CY 2023",INDEX('6. CY 2023'!AZ:AZ,MATCH($C43,'6. CY 2023'!A:A,0)),0),0) -> 27170264.25 | AW43: =IFERROR(IF(Y43="CY 2023",INDEX('6. CY 2023'!H:H,MATCH(C43,'6. CY 2023'!A:A,0)),0),0) -> 239758892.2
A44: 41 | B44: BHC ALHAMBRA HOSPITAL | C44: 106190020 | D44: BHC ALHAMBRA HOSPITAL | F44: =IFERROR(INDEX('8. 2019 HCAI (FEE) DAYS'!G:G,MATCH(C44,'8. 2019 HCAI (FEE) DAYS'!A:A,0)),0) -> 2019-01-01 | G44: =IFERROR(INDEX('8. 2019 HCAI (FEE) DAYS'!H:H,MATCH(C44,'8. 2019 HCAI (FEE) DAYS'!A:A,0)),0) -> 2019-12-31 | H44: =IFERROR(INDEX('8. 2019 HCAI (FEE) DAYS'!L:L,MATCH(C44,'8. 2019 HCAI (FEE) DAYS'!A:A,0)),0) -> 2019-01-01 | I44: =IFERROR(INDEX('11. Hospital Statuses'!M:M,MATCH(C44,'11. Hospital Statuses'!A:A,0)),"") -> Open | J44: Los Angeles | K44: 11 | L44: 913 | M44: Investor | N44: Comparable | P44: https://www.bhcalhambra.com/ | Q44: HTTPS.https://www.bhcalhambra.com/ | R44: UNIVERSAL HEALTH SERVICES, INC. | S44: 626-286-1191 | T44: 4619 N ROSEMEAD BLVD | U44: ROSEMEAD | V44: 91770 | W44: PEGGY MINNICK | X44: =IFERROR(IF(INDEX(#REF!,MATCH(C44,#REF!,0)),"Yes","No"),"") ->  | Y44: CY 2023 | Z44: =IFERROR(IF($Y44="CY 2023",INDEX('6. CY 2023'!S:S,MATCH($C44,'6. CY 2023'!$A:$A,0)),0),0) -> 0 | AA44: =IFERROR(IF($Y44="CY 2023",INDEX('6. CY 2023'!U:U,MATCH($C44,'6. CY 2023'!$A:$A,0)),0),0) -> 0 | AB44: =IFERROR(IF($Y44="CY 2023",INDEX('6. CY 2023'!W:W,MATCH($C44,'6. CY 2023'!$A:$A,0)),0),0) -> 0 | AC44: =IFERROR(IF($Y44="CY 2023",INDEX('6. CY 2023'!Y:Y,MATCH($C44,'6. CY 2023'!$A:$A,0)),0),0) -> 0 | AD44: =IFERROR(IF($Y44="CY 2023",INDEX('6. CY 2023'!AA:AA,MATCH($C44,'6. CY 2023'!$A:$A,0)),0),0) -> 0 | AE44: =IFERROR(IF($Y44="CY 2023",INDEX('6. CY 2023'!AC:AC,MATCH($C44,'6. CY 2023'!$A:$A,0)),0),0) -> 0 | AF44: =IFERROR(IF($Y44="CY 2023",INDEX('6. CY 2023'!AE:AE,MATCH($C44,'6. CY 2023'!$A:$A,0)),0),0) -> 0 | AG44: =IFERROR(IF(Y44="CY 2023",AF44/'4. Calculated Fee'!$D$32*'4. Calculated Fee'!$D$23,0),0) -> 0 | AH44: =IFERROR(IF($Y44="CY 2023",INDEX('6. CY 2023'!AE:AE,MATCH($C44,'6. CY 2023'!$A:$A,0)),0),0) -> 0 | AI44: =IFERROR(IF(Y44="CY 2023",INDEX('6. CY 2023'!AL:AL,MATCH(C44,'6. CY 2023'!A:A,0)),0),0) -> 0 | AJ44: =IFERROR(IF($Y44="CY 2023",INDEX('6. CY 2023'!AM:AM,MATCH($C44,'6. CY 2023'!$A:$A,0)),0),0) -> 0 | AK44: =IFERROR(IF($Y44="CY 2023",INDEX('6. CY 2023'!AN:AN,MATCH($C44,'6. CY 2023'!$A:$A,0)),0),0) -> 0 | AL44: =IFERROR(IF($Y44="CY 2023",INDEX('6. CY 2023'!AO:AO,MATCH($C44,'6. CY 2023'!$A:$A,0)),0),0) -> 0 | AM44: =IFERROR(IF($Y44="CY 2023",INDEX('6. CY 2023'!AP:AP,MATCH($C44,'6. CY 2023'!$A:$A,0)),0),0) -> 0 | AN44: =IFERROR(IF($Y44="CY 2023",INDEX('6. CY 2023'!AQ:AQ,MATCH($C44,'6. CY 2023'!$A:$A,0)),0),0) -> 0 | AO44: =IFERROR(IF($Y44="CY 2023",INDEX('6. CY 2023'!AR:AR,MATCH($C44,'6. CY 2023'!$A:$A,0)),0),0) -> 0 | AP44: =IFERROR(IF($Y44="CY 2023",INDEX('6. CY 2023'!AS:AS,MATCH($C44,'6. CY 2023'!$A:$A,0)),0),0) -> 0 | AQ44: =IFERROR(IF($Y44="CY 2023",INDEX('6. CY 2023'!AV:AV,MATCH($C44,'6. CY 2023'!$A:$A,0)),0),0) -> 0 | AR44: =IFERROR(IF($Y44="CY 2023",INDEX('6. CY 2023'!AX:AX,MATCH($C44,'6. CY 2023'!A:A,0)),0),0) -> 0 | AS44: =IFERROR(IF(Y44="CY 2023",INDEX('6. CY 2023'!AY:AY,MATCH(C44,'6. CY 2023'!A:A,0)),0),0) -> 0 | AT44: =IFERROR(IF($Y44="CY 2023",INDEX('6. CY 2023'!AZ:AZ,MATCH($C44,'6. CY 2023'!A:A,0)),0),0) -> 0 | AW44: =IFERROR(IF(Y44="CY 2023",INDEX('6. CY 2023'!H:H,MATCH(C44,'6. CY 2023'!A:A,0)),0),0) -> 55452590.51 | AX44: =SUM(AG44:AG53) -> 59784077.23
A45: 42 | B45: CALIFORNIA HOSPITAL MEDICAL CENTER | C45: 106190125 | D45: CALIFORNIA HOSPITAL MEDICAL CENTER | F45: =IFERROR(INDEX('8. 2019 HCAI (FEE) DAYS'!G:G,MATCH(C45,'8. 2019 HCAI (FEE) DAYS'!A:A,0)),0) -> 2018-07-01 | G45: =IFERROR(INDEX('8. 2019 HCAI (FEE) DAYS'!H:H,MATCH(C45,'8. 2019 HCAI (FEE) DAYS'!A:A,0)),0) -> 2019-06-30 | H45: =IFERROR(INDEX('8. 2019 HCAI (FEE) DAYS'!L:L,MATCH(C45,'8. 2019 HCAI (FEE) DAYS'!A:A,0)),0) -> 2018-07-01 | I45: =IFERROR(INDEX('11. Hospital Statuses'!M:M,MATCH(C45,'11. Hospital Statuses'!A:A,0)),"") -> Open | J45: Los Angeles | K45: 11 | L45: 925 | M45: Non-Profit | N45: Comparable | P45: https://www.dignityhealth.org/socal/locations/californiahospital | Q45: HTTPS.https://www.dignityhealth.org/socal/locations/californiahospital | R45: DIGNITY HEALTH | S45: 213-748-2411 | T45: 1401 S. GRAND AVENUE | U45: LOS ANGELES | V45: 90015 | W45: ALINA MORAN | X45: =IFERROR(IF(INDEX(#REF!,MATCH(C45,#REF!,0)),"Yes","No"),"") ->  | Y45: CY 2023 | Z45: =IFERROR(IF($Y45="CY 2023",INDEX('6. CY 2023'!S:S,MATCH($C45,'6. CY 2023'!$A:$A,0)),0),0) -> 0 | AA45: =IFERROR(IF($Y45="CY 2023",INDEX('6. CY 2023'!U:U,MATCH($C45,'6. CY 2023'!$A:$A,0)),0),0) -> 3182570.58 | AB45: =IFERROR(IF($Y45="CY 2023",INDEX('6. CY 2023'!W:W,MATCH($C45,'6. CY 2023'!$A:$A,0)),0),0) -> 2901273 | AC45: =IFERROR(IF($Y45="CY 2023",INDEX('6. CY 2023'!Y:Y,MATCH($C45,'6. CY 2023'!$A:$A,0)),0),0) -> 0 | AD45: =IFERROR(IF($Y45="CY 2023",INDEX('6. CY 2023'!AA:AA,MATCH($C45,'6. CY 2023'!$A:$A,0)),0),0) -> 23744140 | AE45: =IFERROR(IF($Y45="CY 2023",INDEX('6. CY 2023'!AC:AC,MATCH($C45,'6. CY 2023'!$A:$A,0)),0),0) -> 11298880 | AF45: =IFERROR(IF($Y45="CY 2023",INDEX('6. CY 2023'!AE:AE,MATCH($C45,'6. CY 2023'!$A:$A,0)),0),0) -> 41126863.58 | AG45: =IFERROR(IF(Y45="CY 2023",AF45/'4. Calculated Fee'!$D$32*'4. Calculated Fee'!$D$23,0),0) -> 10484744.47 | AH45: =IFERROR(IF($Y45="CY 2023",INDEX('6. CY 2023'!AE:AE,MATCH($C45,'6. CY 2023'!$A:$A,0)),0),0) -> 41126863.58 | AI45: =IFERROR(IF(Y45="CY 2023",INDEX('6. CY 2023'!AL:AL,MATCH(C45,'6. CY 2023'!A:A,0)),0),0) -> 7959295.827 | AJ45: =IFERROR(IF($Y45="CY 2023",INDEX('6. CY 2023'!AM:AM,MATCH($C45,'6. CY 2023'!$A:$A,0)),0),0) -> 18191300.15 | AK45: =IFERROR(IF($Y45="CY 2023",INDEX('6. CY 2023'!AN:AN,MATCH($C45,'6. CY 2023'!$A:$A,0)),0),0) -> 0 | AL45: =IFERROR(IF($Y45="CY 2023",INDEX('6. CY 2023'!AO:AO,MATCH($C45,'6. CY 2023'!$A:$A,0)),0),0) -> 0 | AM45: =IFERROR(IF($Y45="CY 2023",INDEX('6. CY 2023'!AP:AP,MATCH($C45,'6. CY 2023'!$A:$A,0)),0),0) -> 0 | AN45: =IFERROR(IF($Y45="CY 2023",INDEX('6. CY 2023'!AQ:AQ,MATCH($C45,'6. CY 2023'!$A:$A,0)),0),0) -> 0 | AO45: =IFERROR(IF($Y45="CY 2023",INDEX('6. CY 2023'!AR:AR,MATCH($C45,'6. CY 2023'!$A:$A,0)),0),0) -> 0 | AP45: =IFERROR(IF($Y45="CY 2023",INDEX('6. CY 2023'!AS:AS,MATCH($C45,'6. CY 2023'!$A:$A,0)),0),0) -> 0 | AQ45: =IFERROR(IF($Y45="CY 2023",INDEX('6. CY 2023'!AV:AV,MATCH($C45,'6. CY 2023'!$A:$A,0)),0),0) -> 26150595.97 | AR45: =IFERROR(IF($Y45="CY 2023",INDEX('6. CY 2023'!AX:AX,MATCH($C45,'6. CY 2023'!A:A,0)),0),0) -> 11945016.52 | AS45: =IFERROR(IF(Y45="CY 2023",INDEX('6. CY 2023'!AY:AY,MATCH(C45,'6. CY 2023'!A:A,0)),0),0) -> 70359343.37 | AT45: =IFERROR(IF($Y45="CY 2023",INDEX('6. CY 2023'!AZ:AZ,MATCH($C45,'6. CY 2023'!A:A,0)),0),0) -> 82304359.89 | AW45: =IFERROR(IF(Y45="CY 2023",INDEX('6. CY 2023'!H:H,MATCH(C45,'6. CY 2023'!A:A,0)),0),0) -> 599694325.6
A46: 43 | B46: CALIFORNIA PACIFIC MEDICAL CENTER - Mission Bernal | C46: 106384202 | D46: CALIFORNIA PACIFIC MEDICAL CENTER - Mission Bernal | F46: =IFERROR(INDEX('8. 2019 HCAI (FEE) DAYS'!G:G,MATCH(C46,'8. 2019 HCAI (FEE) DAYS'!A:A,0)),0) -> 2019-01-01 | G46: =IFERROR(INDEX('8. 2019 HCAI (FEE) DAYS'!H:H,MATCH(C46,'8. 2019 HCAI (FEE) DAYS'!A:A,0)),0) -> 2019-12-31 | H46: =IFERROR(INDEX('8. 2019 HCAI (FEE) DAYS'!L:L,MATCH(C46,'8. 2019 HCAI (FEE) DAYS'!A:A,0)),0) -> 2019-01-01 | I46: =IFERROR(INDEX('11. Hospital Statuses'!M:M,MATCH(C46,'11. Hospital Statuses'!A:A,0)),"") -> Open | P46: https://www.sutterhealth.org/cpmc | Q46: HTTPS.https://www.sutterhealth.org/cpmc | X46: =IFERROR(IF(INDEX(#REF!,MATCH(C46,#REF!,0)),"Yes","No"),"") ->  | Y46: CY 2023 | Z46: =IFERROR(IF($Y46="CY 2023",INDEX('6. CY 2023'!S:S,MATCH($C46,'6. CY 2023'!$A:$A,0)),0),0) -> 0 | AA46: =IFERROR(IF($Y46="CY 2023",INDEX('6. CY 2023'!U:U,MATCH($C46,'6. CY 2023'!$A:$A,0)),0),0) -> 2752000.38 | AB46: =IFERROR(IF($Y46="CY 2023",INDEX('6. CY 2023'!W:W,MATCH($C46,'6. CY 2023'!$A:$A,0)),0),0) -> 3737715.48 | AC46: =IFERROR(IF($Y46="CY 2023",INDEX('6. CY 2023'!Y:Y,MATCH($C46,'6. CY 2023'!$A:$A,0)),0),0) -> 0 | AD46: =IFERROR(IF($Y46="CY 2023",INDEX('6. CY 2023'!AA:AA,MATCH($C46,'6. CY 2023'!$A:$A,0)),0),0) -> 2742260 | AE46: =IFERROR(IF($Y46="CY 2023",INDEX('6. CY 2023'!AC:AC,MATCH($C46,'6. CY 2023'!$A:$A,0)),0),0) -> 1510320 | AF46: =IFERROR(IF($Y46="CY 2023",INDEX('6. CY 2023'!AE:AE,MATCH($C46,'6. CY 2023'!$A:$A,0)),0),0) -> 10742295.86 | AG46: =IFERROR(IF(Y46="CY 2023",AF46/'4. Calculated Fee'!$D$32*'4. Calculated Fee'!$D$23,0),0) -> 2738604.827 | AH46: =IFERROR(IF($Y46="CY 2023",INDEX('6. CY 2023'!AE:AE,MATCH($C46,'6. CY 2023'!$A:$A,0)),0),0) -> 10742295.86 | AI46: =IFERROR(IF(Y46="CY 2023",INDEX('6. CY 2023'!AL:AL,MATCH(C46,'6. CY 2023'!A:A,0)),0),0) -> 1188899.664 | AJ46: =IFERROR(IF($Y46="CY 2023",INDEX('6. CY 2023'!AM:AM,MATCH($C46,'6. CY 2023'!$A:$A,0)),0),0) -> 3054115.974 | AK46: =IFERROR(IF($Y46="CY 2023",INDEX('6. CY 2023'!AN:AN,MATCH($C46,'6. CY 2023'!$A:$A,0)),0),0) -> 0 | AL46: =IFERROR(IF($Y46="CY 2023",INDEX('6. CY 2023'!AO:AO,MATCH($C46,'6. CY 2023'!$A:$A,0)),0),0) -> 0 | AM46: =IFERROR(IF($Y46="CY 2023",INDEX('6. CY 2023'!AP:AP,MATCH($C46,'6. CY 2023'!$A:$A,0)),0),0) -> 400000 | AN46: =IFERROR(IF($Y46="CY 2023",INDEX('6. CY 2023'!AQ:AQ,MATCH($C46,'6. CY 2023'!$A:$A,0)),0),0) -> 0 | AO46: =IFERROR(IF($Y46="CY 2023",INDEX('6. CY 2023'!AR:AR,MATCH($C46,'6. CY 2023'!$A:$A,0)),0),0) -> 0 | AP46: =IFERROR(IF($Y46="CY 2023",INDEX('6. CY 2023'!AS:AS,MATCH($C46,'6. CY 2023'!$A:$A,0)),0),0) -> 0 | AQ46: =IFERROR(IF($Y46="CY 2023",INDEX('6. CY 2023'!AV:AV,MATCH($C46,'6. CY 2023'!$A:$A,0)),0),0) -> 4643015.638 | AR46: =IFERROR(IF($Y46="CY 2023",INDEX('6. CY 2023'!AX:AX,MATCH($C46,'6. CY 2023'!A:A,0)),0),0) -> 1218947.453 | AS46: =IFERROR(IF(Y46="CY 2023",INDEX('6. CY 2023'!AY:AY,MATCH(C46,'6. CY 2023'!A:A,0)),0),0) -> 30393556.96 | AT46: =IFERROR(IF($Y46="CY 2023",INDEX('6. CY 2023'!AZ:AZ,MATCH($C46,'6. CY 2023'!A:A,0)),0),0) -> 31612504.42 | AW46: =IFERROR(IF(Y46="CY 2023",INDEX('6. CY 2023'!H:H,MATCH(C46,'6. CY 2023'!A:A,0)),0),0) -> 216978689.8
A47: 44 | B47: CALIFORNIA PACIFIC MEDICAL CENTER - Van Ness | C47: 106384176 | D47: CALIFORNIA PACIFIC MEDICAL CENTER - Van Ness | F47: =IFERROR(INDEX('8. 2019 HCAI (FEE) DAYS'!G:G,MATCH(C47,'8. 2019 HCAI (FEE) DAYS'!A:A,0)),0) -> 2019-03-02 | G47: =IFERROR(INDEX('8. 2019 HCAI (FEE) DAYS'!H:H,MATCH(C47,'8. 2019 HCAI (FEE) DAYS'!A:A,0)),0) -> 2019-12-31 | H47: =IFERROR(INDEX('8. 2019 HCAI (FEE) DAYS'!L:L,MATCH(C47,'8. 2019 HCAI (FEE) DAYS'!A:A,0)),0) -> 2019-03-02 | I47: =IFERROR(INDEX('11. Hospital Statuses'!M:M,MATCH(C47,'11. Hospital Statuses'!A:A,0)),"") -> Open | P47: https://www.sutterhealth.org/cpmc | Q47: HTTPS.https://www.sutterhealth.org/cpmc | X47: =IFERROR(IF(INDEX(#REF!,MATCH(C47,#REF!,0)),"Yes","No"),"") ->  | Y47: CY 2023 | Z47: =IFERROR(IF($Y47="CY 2023",INDEX('6. CY 2023'!S:S,MATCH($C47,'6. CY 2023'!$A:$A,0)),0),0) -> 0 | AA47: =IFERROR(IF($Y47="CY 2023",INDEX('6. CY 2023'!U:U,MATCH($C47,'6. CY 2023'!$A:$A,0)),0),0) -> 17176102.08 | AB47: =IFERROR(IF($Y47="CY 2023",INDEX('6. CY 2023'!W:W,MATCH($C47,'6. CY 2023'!$A:$A,0)),0),0) -> 14609643.02 | AC47: =IFERROR(IF($Y47="CY 2023",INDEX('6. CY 2023'!Y:Y,MATCH($C47,'6. CY 2023'!$A:$A,0)),0),0) -> 0 | AD47: =IFERROR(IF($Y47="CY 2023",INDEX('6. CY 2023'!AA:AA,MATCH($C47,'6. CY 2023'!$A:$A,0)),0),0) -> 8922420 | AE47: =IFERROR(IF($Y47="CY 2023",INDEX('6. CY 2023'!AC:AC,MATCH($C47,'6. CY 2023'!$A:$A,0)),0),0) -> 5167080 | AF47: =IFERROR(IF($Y47="CY 2023",INDEX('6. CY 2023'!AE:AE,MATCH($C47,'6. CY 2023'!$A:$A,0)),0),0) -> 45875245.1 | AG47: =IFERROR(IF(Y47="CY 2023",AF47/'4. Calculated Fee'!$D$32*'4. Calculated Fee'!$D$23,0),0) -> 11695280.91 | AH47: =IFERROR(IF($Y47="CY 2023",INDEX('6. CY 2023'!AE:AE,MATCH($C47,'6. CY 2023'!$A:$A,0)),0),0) -> 45875245.1 | AI47: =IFERROR(IF(Y47="CY 2023",INDEX('6. CY 2023'!AL:AL,MATCH(C47,'6. CY 2023'!A:A,0)),0),0) -> 4163627.817 | AJ47: =IFERROR(IF($Y47="CY 2023",INDEX('6. CY 2023'!AM:AM,MATCH($C47,'6. CY 2023'!$A:$A,0)),0),0) -> 7104396.58 | AK47: =IFERROR(IF($Y47="CY 2023",INDEX('6. CY 2023'!AN:AN,MATCH($C47,'6. CY 2023'!$A:$A,0)),0),0) -> 1735831.728 | AL47: =IFERROR(IF($Y47="CY 2023",INDEX('6. CY 2023'!AO:AO,MATCH($C47,'6. CY 2023'!$A:$A,0)),0),0) -> 639600 | AM47: =IFERROR(IF($Y47="CY 2023",INDEX('6. CY 2023'!AP:AP,MATCH($C47,'6. CY 2023'!$A:$A,0)),0),0) -> 2575000 | AN47: =IFERROR(IF($Y47="CY 2023",INDEX('6. CY 2023'!AQ:AQ,MATCH($C47,'6. CY 2023'!$A:$A,0)),0),0) -> 0 | AO47: =IFERROR(IF($Y47="CY 2023",INDEX('6. CY 2023'!AR:AR,MATCH($C47,'6. CY 2023'!$A:$A,0)),0),0) -> 1527500 | AP47: =IFERROR(IF($Y47="CY 2023",INDEX('6. CY 2023'!AS:AS,MATCH($C47,'6. CY 2023'!$A:$A,0)),0),0) -> 0 | AQ47: =IFERROR(IF($Y47="CY 2023",INDEX('6. CY 2023'!AV:AV,MATCH($C47,'6. CY 2023'!$A:$A,0)),0),0) -> 17745956.12 | AR47: =IFERROR(IF($Y47="CY 2023",INDEX('6. CY 2023'!AX:AX,MATCH($C47,'6. CY 2023'!A:A,0)),0),0) -> 6414493.946 | AS47: =IFERROR(IF(Y47="CY 2023",INDEX('6. CY 2023'!AY:AY,MATCH(C47,'6. CY 2023'!A:A,0)),0),0) -> 11235432.97 | AT47: =IFERROR(IF($Y47="CY 2023",INDEX('6. CY 2023'!AZ:AZ,MATCH($C47,'6. CY 2023'!A:A,0)),0),0) -> 17649926.92 | AW47: =IFERROR(IF(Y47="CY 2023",INDEX('6. CY 2023'!H:H,MATCH(C47,'6. CY 2023'!A:A,0)),0),0) -> 1490512782
A48: 45 | B48: CANYON RIDGE HOSPITAL | C48: 106364050 | D48: CANYON RIDGE HOSPITAL | F48: =IFERROR(INDEX('8. 2019 HCAI (FEE) DAYS'!G:G,MATCH(C48,'8. 2019 HCAI (FEE) DAYS'!A:A,0)),0) -> 2019-01-01 | G48: =IFERROR(INDEX('8. 2019 HCAI (FEE) DAYS'!H:H,MATCH(C48,'8. 2019 HCAI (FEE) DAYS'!A:A,0)),0) -> 2019-12-31 | H48: =IFERROR(INDEX('8. 2019 HCAI (FEE) DAYS'!L:L,MATCH(C48,'8. 2019 HCAI (FEE) DAYS'!A:A,0)),0) -> 2019-01-01 | I48: =IFERROR(INDEX('11. Hospital Statuses'!M:M,MATCH(C48,'11. Hospital Statuses'!A:A,0)),"") -> Open | J48: San Bernardino | K48: 12 | L48: 1207 | M48: Investor | N48: Comparable | P48: https://canyonridgehospital.com/ | Q48: HTTPS.https://canyonridgehospital.com/ | R48: UNIVERSAL HEALTH SERVICES, INC. | S48: 909-590-3700 | T48: 5353 G STREET | U48: CHICO | V48: 91710 | W48: STEPHANIE BERNIER | X48: =IFERROR(IF(INDEX(#REF!,MATCH(C48,#REF!,0)),"Yes","No"),"") ->  | Y48: CY 2023 | Z48: =IFERROR(IF($Y48="CY 2023",INDEX('6. CY 2023'!S:S,MATCH($C48,'6. CY 2023'!$A:$A,0)),0),0) -> 0 | AA48: =IFERROR(IF($Y48="CY 2023",INDEX('6. CY 2023'!U:U,MATCH($C48,'6. CY 2023'!$A:$A,0)),0),0) -> 0 | AB48: =IFERROR(IF($Y48="CY 2023",INDEX('6. CY 2023'!W:W,MATCH($C48,'6. CY 2023'!$A:$A,0)),0),0) -> 0 | AC48: =IFERROR(IF($Y48="CY 2023",INDEX('6. CY 2023'!Y:Y,MATCH($C48,'6. CY 2023'!$A:$A,0)),0),0) -> 0 | AD48: =IFERROR(IF($Y48="CY 2023",INDEX('6. CY 2023'!AA:AA,MATCH($C48,'6. CY 2023'!$A:$A,0)),0),0) -> 0 | AE48: =IFERROR(IF($Y48="CY 2023",INDEX('6. CY 2023'!AC:AC,MATCH($C48,'6. CY 2023'!$A:$A,0)),0),0) -> 0 | AF48: =IFERROR(IF($Y48="CY 2023",INDEX('6. CY 2023'!AE:AE,MATCH($C48,'6. CY 2023'!$A:$A,0)),0),0) -> 0 | AG48: =IFERROR(IF(Y48="CY 2023",AF48/'4. Calculated Fee'!$D$32*'4. Calculated Fee'!$D$23,0),0) -> 0 | AH48: =IFERROR(IF($Y48="CY 2023",INDEX('6. CY 2023'!AE:AE,MATCH($C48,'6. CY 2023'!$A:$A,0)),0),0) -> 0 | AI48: =IFERROR(IF(Y48="CY 2023",INDEX('6. CY 2023'!AL:AL,MATCH(C48,'6. CY 2023'!A:A,0)),0),0) -> 0 | AJ48: =IFERROR(IF($Y48="CY 2023",INDEX('6. CY 2023'!AM:AM,MATCH($C48,'6. CY 2023'!$A:$A,0)),0),0) -> 0 | AK48: =IFERROR(IF($Y48="CY 2023",INDEX('6. CY 2023'!AN:AN,MATCH($C48,'6. CY 2023'!$A:$A,0)),0),0) -> 0 | AL48: =IFERROR(IF($Y48="CY 2023",INDEX('6. CY 2023'!AO:AO,MATCH($C48,'6. CY 2023'!$A:$A,0)),0),0) -> 0 | AM48: =IFERROR(IF($Y48="CY 2023",INDEX('6. CY 2023'!AP:AP,MATCH($C48,'6. CY 2023'!$A:$A,0)),0),0) -> 0 | AN48: =IFERROR(IF($Y48="CY 2023",INDEX('6. CY 2023'!AQ:AQ,MATCH($C48,'6. CY 2023'!$A:$A,0)),0),0) -> 0 | AO48: =IFERROR(IF($Y48="CY 2023",INDEX('6. CY 2023'!AR:AR,MATCH($C48,'6. CY 2023'!$A:$A,0)),0),0) -> 0 | AP48: =IFERROR(IF($Y48="CY 2023",INDEX('6. CY 2023'!AS:AS,MATCH($C48,'6. CY 2023'!$A:$A,0)),0),0) -> 0 | AQ48: =IFERROR(IF($Y48="CY 2023",INDEX('6. CY 2023'!AV:AV,MATCH($C48,'6. CY 2023'!$A:$A,0)),0),0) -> 0 | AR48: =IFERROR(IF($Y48="CY 2023",INDEX('6. CY 2023'!AX:AX,MATCH($C48,'6. CY 2023'!A:A,0)),0),0) -> 0 | AS48: =IFERROR(IF(Y48="CY 2023",INDEX('6. CY 2023'!AY:AY,MATCH(C48,'6. CY 2023'!A:A,0)),0),0) -> 0 | AT48: =IFERROR(IF($Y48="CY 2023",INDEX('6. CY 2023'!AZ:AZ,MATCH($C48,'6. CY 2023'!A:A,0)),0),0) -> 0 | AW48: =IFERROR(IF(Y48="CY 2023",INDEX('6. CY 2023'!H:H,MATCH(C48,'6. CY 2023'!A:A,0)),0),0) -> 46862224.34
A49: 46 | B49: CASA COLINA HOSPITAL AND CENTER FOR HEALTH CARE | C49: 106190137 | D49: CASA COLINA HOSPITAL AND CENTER FOR HEALTH CARE | F49: =IFERROR(INDEX('8. 2019 HCAI (FEE) DAYS'!G:G,MATCH(C49,'8. 2019 HCAI (FEE) DAYS'!A:A,0)),0) -> 2019-04-01 | G49: =IFERROR(INDEX('8. 2019 HCAI (FEE) DAYS'!H:H,MATCH(C49,'8. 2019 HCAI (FEE) DAYS'!A:A,0)),0) -> 2020-03-31 | H49: =IFERROR(INDEX('8. 2019 HCAI (FEE) DAYS'!L:L,MATCH(C49,'8. 2019 HCAI (FEE) DAYS'!A:A,0)),0) -> 2019-04-01 | I49: =IFERROR(INDEX('11. Hospital Statuses'!M:M,MATCH(C49,'11. Hospital Statuses'!A:A,0)),"") -> Open | J49: Los Angeles | K49: 11 | L49: 917 | M49: Non-Profit | N49: Comparable | P49: https://www.casacolina.org/ | Q49: HTTPS.https://www.casacolina.org/ | R49: CASA COLINA, INC. | S49: 909-596-7733 | T49: 255 E. BONITA AVE. | U49: POMONA | V49: 91767 | W49: FELICE L. LOVERSO PH.D. | X49: =IFERROR(IF(INDEX(#REF!,MATCH(C49,#REF!,0)),"Yes","No"),"") ->  | Y49: CY 2023 | Z49: =IFERROR(IF($Y49="CY 2023",INDEX('6. CY 2023'!S:S,MATCH($C49,'6. CY 2023'!$A:$A,0)),0),0) -> 0 | AA49: =IFERROR(IF($Y49="CY 2023",INDEX('6. CY 2023'!U:U,MATCH($C49,'6. CY 2023'!$A:$A,0)),0),0) -> 0 | AB49: =IFERROR(IF($Y49="CY 2023",INDEX('6. CY 2023'!W:W,MATCH($C49,'6. CY 2023'!$A:$A,0)),0),0) -> 0 | AC49: =IFERROR(IF($Y49="CY 2023",INDEX('6. CY 2023'!Y:Y,MATCH($C49,'6. CY 2023'!$A:$A,0)),0),0) -> 0 | AD49: =IFERROR(IF($Y49="CY 2023",INDEX('6. CY 2023'!AA:AA,MATCH($C49,'6. CY 2023'!$A:$A,0)),0),0) -> 0 | AE49: =IFERROR(IF($Y49="CY 2023",INDEX('6. CY 2023'!AC:AC,MATCH($C49,'6. CY 2023'!$A:$A,0)),0),0) -> 0 | AF49: =IFERROR(IF($Y49="CY 2023",INDEX('6. CY 2023'!AE:AE,MATCH($C49,'6. CY 2023'!$A:$A,0)),0),0) -> 0 | AG49: =IFERROR(IF(Y49="CY 2023",AF49/'4. Calculated Fee'!$D$32*'4. Calculated Fee'!$D$23,0),0) -> 0 | AH49: =IFERROR(IF($Y49="CY 2023",INDEX('6. CY 2023'!AE:AE,MATCH($C49,'6. CY 2023'!$A:$A,0)),0),0) -> 0 | AI49: =IFERROR(IF(Y49="CY 2023",INDEX('6. CY 2023'!AL:AL,MATCH(C49,'6. CY 2023'!A:A,0)),0),0) -> 0 | AJ49: =IFERROR(IF($Y49="CY 2023",INDEX('6. CY 2023'!AM:AM,MATCH($C49,'6. CY 2023'!$A:$A,0)),0),0) -> 0 | AK49: =IFERROR(IF($Y49="CY 2023",INDEX('6. CY 2023'!AN:AN,MATCH($C49,'6. CY 2023'!$A:$A,0)),0),0) -> 0 | AL49: =IFERROR(IF($Y49="CY 2023",INDEX('6. CY 2023'!AO:AO,MATCH($C49,'6. CY 2023'!$A:$A,0)),0),0) -> 0 | AM49: =IFERROR(IF($Y49="CY 2023",INDEX('6. CY 2023'!AP:AP,MATCH($C49,'6. CY 2023'!$A:$A,0)),0),0) -> 0 | AN49: =IFERROR(IF($Y49="CY 2023",INDEX('6. CY 2023'!AQ:AQ,MATCH($C49,'6. CY 2023'!$A:$A,0)),0),0) -> 0 | AO49: =IFERROR(IF($Y49="CY 2023",INDEX('6. CY 2023'!AR:AR,MATCH($C49,'6. CY 2023'!$A:$A,0)),0),0) -> 0 | AP49: =IFERROR(IF($Y49="CY 2023",INDEX('6. CY 2023'!AS:AS,MATCH($C49,'6. CY 2023'!$A:$A,0)),0),0) -> 0 | AQ49: =IFERROR(IF($Y49="CY 2023",INDEX('6. CY 2023'!AV:AV,MATCH($C49,'6. CY 2023'!$A:$A,0)),0),0) -> 0 | AR49: =IFERROR(IF($Y49="CY 2023",INDEX('6. CY 2023'!AX:AX,MATCH($C49,'6. CY 2023'!A:A,0)),0),0) -> 0 | AS49: =IFERROR(IF(Y49="CY 2023",INDEX('6. CY 2023'!AY:AY,MATCH(C49,'6. CY 2023'!A:A,0)),0),0) -> 0 | AT49: =IFERROR(IF($Y49="CY 2023",INDEX('6. CY 2023'!AZ:AZ,MATCH($C49,'6. CY 2023'!A:A,0)),0),0) -> 0 | AW49: =IFERROR(IF(Y49="CY 2023",INDEX('6. CY 2023'!H:H,MATCH(C49,'6. CY 2023'!A:A,0)),0),0) -> 103885437.6
A50: 47 | B50: CATALINA ISLAND MEDICAL CENTER | C50: 106190045 | D50: CATALINA ISLAND MEDICAL CENTER | F50: =IFERROR(INDEX('8. 2019 HCAI (FEE) DAYS'!G:G,MATCH(C50,'8. 2019 HCAI (FEE) DAYS'!A:A,0)),0) -> 2018-07-01 | G50: =IFERROR(INDEX('8. 2019 HCAI (FEE) DAYS'!H:H,MATCH(C50,'8. 2019 HCAI (FEE) DAYS'!A:A,0)),0) -> 2019-06-30 | H50: =IFERROR(INDEX('8. 2019 HCAI (FEE) DAYS'!L:L,MATCH(C50,'8. 2019 HCAI (FEE) DAYS'!A:A,0)),0) -> 2018-07-01 | I50: =IFERROR(INDEX('11. Hospital Statuses'!M:M,MATCH(C50,'11. Hospital Statuses'!A:A,0)),"") -> Open | J50: Los Angeles | K50: 11 | L50: 933 | M50: Non-Profit | N50: Comparable | O50: Rural | P50: https://cimedicalcenter.org/ | Q50: HTTPS.https://cimedicalcenter.org/ | R50: AVALON MEDICAL DEVELOPMENT CORPORATION | S50: 310-510-0700 | T50: 100 FALLS CANYON ROAD | U50: AVALON | V50: 90704 | W50: JASON PARET | X50: =IFERROR(IF(INDEX(#REF!,MATCH(C50,#REF!,0)),"Yes","No"),"") ->  | Y50: CY 2023 | Z50: =IFERROR(IF($Y50="CY 2023",INDEX('6. CY 2023'!S:S,MATCH($C50,'6. CY 2023'!$A:$A,0)),0),0) -> 0 | AA50: =IFERROR(IF($Y50="CY 2023",INDEX('6. CY 2023'!U:U,MATCH($C50,'6. CY 2023'!$A:$A,0)),0),0) -> 0 | AB50: =IFERROR(IF($Y50="CY 2023",INDEX('6. CY 2023'!W:W,MATCH($C50,'6. CY 2023'!$A:$A,0)),0),0) -> 0 | AC50: =IFERROR(IF($Y50="CY 2023",INDEX('6. CY 2023'!Y:Y,MATCH($C50,'6. CY 2023'!$A:$A,0)),0),0) -> 0 | AD50: =IFERROR(IF($Y50="CY 2023",INDEX('6. CY 2023'!AA:AA,MATCH($C50,'6. CY 2023'!$A:$A,0)),0),0) -> 0 | AE50: =IFERROR(IF($Y50="CY 2023",INDEX('6. CY 2023'!AC:AC,MATCH($C50,'6. CY 2023'!$A:$A,0)),0),0) -> 0 | AF50: =IFERROR(IF($Y50="CY 2023",INDEX('6. CY 2023'!AE:AE,MATCH($C50,'6. CY 2023'!$A:$A,0)),0),0) -> 0 | AG50: =IFERROR(IF(Y50="CY 2023",AF50/'4. Calculated Fee'!$D$32*'4. Calculated Fee'!$D$23,0),0) -> 0 | AH50: =IFERROR(IF($Y50="CY 2023",INDEX('6. CY 2023'!AE:AE,MATCH($C50,'6. CY 2023'!$A:$A,0)),0),0) -> 0 | AI50: =IFERROR(IF(Y50="CY 2023",INDEX('6. CY 2023'!AL:AL,MATCH(C50,'6. CY 2023'!A:A,0)),0),0) -> 434266.0493 | AJ50: =IFERROR(IF($Y50="CY 2023",INDEX('6. CY 2023'!AM:AM,MATCH($C50,'6. CY 2023'!$A:$A,0)),0),0) -> 0 | AK50: =IFERROR(IF($Y50="CY 2023",INDEX('6. CY 2023'!AN:AN,MATCH($C50,'6. CY 2023'!$A:$A,0)),0),0) -> 0 | AL50: =IFERROR(IF($Y50="CY 2023",INDEX('6. CY 2023'!AO:AO,MATCH($C50,'6. CY 2023'!$A:$A,0)),0),0) -> 0 | AM50: =IFERROR(IF($Y50="CY 2023",INDEX('6. CY 2023'!AP:AP,MATCH($C50,'6. CY 2023'!$A:$A,0)),0),0) -> 0 | AN50: =IFERROR(IF($Y50="CY 2023",INDEX('6. CY 2023'!AQ:AQ,MATCH($C50,'6. CY 2023'!$A:$A,0)),0),0) -> 0 | AO50: =IFERROR(IF($Y50="CY 2023",INDEX('6. CY 2023'!AR:AR,MATCH($C50,'6. CY 2023'!$A:$A,0)),0),0) -> 0 | AP50: =IFERROR(IF($Y50="CY 2023",INDEX('6. CY 2023'!AS:AS,MATCH($C50,'6. CY 2023'!$A:$A,0)),0),0) -> 0 | AQ50: =IFERROR(IF($Y50="CY 2023",INDEX('6. CY 2023'!AV:AV,MATCH($C50,'6. CY 2023'!$A:$A,0)),0),0) -> 434266.0493 | AR50: =IFERROR(IF($Y50="CY 2023",INDEX('6. CY 2023'!AX:AX,MATCH($C50,'6. CY 2023'!A:A,0)),0),0) -> 0 | AS50: =IFERROR(IF(Y50="CY 2023",INDEX('6. CY 2023'!AY:AY,MATCH(C50,'6. CY 2023'!A:A,0)),0),0) -> 5683.254995 | AT50: =IFERROR(IF($Y50="CY 2023",INDEX('6. CY 2023'!AZ:AZ,MATCH($C50,'6. CY 2023'!A:A,0)),0),0) -> 5683.254995 | AW50: =IFERROR(IF(Y50="CY 2023",INDEX('6. CY 2023'!H:H,MATCH(C50,'6. CY 2023'!A:A,0)),0),0) -> 11348933.63
A51: 48 | B51: CEDARS-SINAI MEDICAL CENTER | C51: 106190555 | D51: CEDARS-SINAI MEDICAL CENTER | F51: =IFERROR(INDEX('8. 2019 HCAI (FEE) DAYS'!G:G,MATCH(C51,'8. 2019 HCAI (FEE) DAYS'!A:A,0)),0) -> 2018-07-01 | G51: =IFERROR(INDEX('8. 2019 HCAI (FEE) DAYS'!H:H,MATCH(C51,'8. 2019 HCAI (FEE) DAYS'!A:A,0)),0) -> 2019-06-30 | H51: =IFERROR(INDEX('8. 2019 HCAI (FEE) DAYS'!L:L,MATCH(C51,'8. 2019 HCAI (FEE) DAYS'!A:A,0)),0) -> 2018-07-01 | I51: =IFERROR(INDEX('11. Hospital Statuses'!M:M,MATCH(C51,'11. Hospital Statuses'!A:A,0)),"") -> Open | J51: Los Angeles | K51: 11 | L51: 925 | M51: Non-Profit | N51: Comparable | O51: Teaching | P51: https://www.cedars-sinai.org/ | Q51: HTTPS.https://www.cedars-sinai.org/ | R51: CEDARS-SINAI MEDICAL CENTER | S51: 323-568-8504 | T51: 8700 BEVERLY BLVD | U51: LOS ANGELES | V51: 90048-1865 | W51: PRISELAC THOMAS | X51: =IFERROR(IF(INDEX(#REF!,MATCH(C51,#REF!,0)),"Yes","No"),"") ->  | Y51: CY 2023 | Z51: =IFERROR(IF($Y51="CY 2023",INDEX('6. CY 2023'!S:S,MATCH($C51,'6. CY 2023'!$A:$A,0)),0),0) -> 0 | AA51: =IFERROR(IF($Y51="CY 2023",INDEX('6. CY 2023'!U:U,MATCH($C51,'6. CY 2023'!$A:$A,0)),0),0) -> 36904974.6 | AB51: =IFERROR(IF($Y51="CY 2023",INDEX('6. CY 2023'!W:W,MATCH($C51,'6. CY 2023'!$A:$A,0)),0),0) -> 48642122.72 | AC51: =IFERROR(IF($Y51="CY 2023",INDEX('6. CY 2023'!Y:Y,MATCH($C51,'6. CY 2023'!$A:$A,0)),0),0) -> 0 | AD51: =IFERROR(IF($Y51="CY 2023",INDEX('6. CY 2023'!AA:AA,MATCH($C51,'6. CY 2023'!$A:$A,0)),0),0) -> 10264720 | AE51: =IFERROR(IF($Y51="CY 2023",INDEX('6. CY 2023'!AC:AC,MATCH($C51,'6. CY 2023'!$A:$A,0)),0),0) -> 10556740 | AF51: =IFERROR(IF($Y51="CY 2023",INDEX('6. CY 2023'!AE:AE,MATCH($C51,'6. CY 2023'!$A:$A,0)),0),0) -> 106368557.3 | AG51: =IFERROR(IF(Y51="CY 2023",AF51/'4. Calculated Fee'!$D$32*'4. Calculated Fee'!$D$23,0),0) -> 27117242.75 | AH51: =IFERROR(IF($Y51="CY 2023",INDEX('6. CY 2023'!AE:AE,MATCH($C51,'6. CY 2023'!$A:$A,0)),0),0) -> 106368557.3 | AI51: =IFERROR(IF(Y51="CY 2023",INDEX('6. CY 2023'!AL:AL,MATCH(C51,'6. CY 2023'!A:A,0)),0),0) -> 18767773.93 | AJ51: =IFERROR(IF($Y51="CY 2023",INDEX('6. CY 2023'!AM:AM,MATCH($C51,'6. CY 2023'!$A:$A,0)),0),0) -> 20181477.87 | AK51: =IFERROR(IF($Y51="CY 2023",INDEX('6. CY 2023'!AN:AN,MATCH($C51,'6. CY 2023'!$A:$A,0)),0),0) -> 0 | AL51: =IFERROR(IF($Y51="CY 2023",INDEX('6. CY 2023'!AO:AO,MATCH($C51,'6. CY 2023'!$A:$A,0)),0),0) -> 0 | AM51: =IFERROR(IF($Y51="CY 2023",INDEX('6. CY 2023'!AP:AP,MATCH($C51,'6. CY 2023'!$A:$A,0)),0),0) -> 8095000 | AN51: =IFERROR(IF($Y51="CY 2023",INDEX('6. CY 2023'!AQ:AQ,MATCH($C51,'6. CY 2023'!$A:$A,0)),0),0) -> 8095000 | AO51: =IFERROR(IF($Y51="CY 2023",INDEX('6. CY 2023'!AR:AR,MATCH($C51,'6. CY 2023'!$A:$A,0)),0),0) -> 6745000 | AP51: =IFERROR(IF($Y51="CY 2023",INDEX('6. CY 2023'!AS:AS,MATCH($C51,'6. CY 2023'!$A:$A,0)),0),0) -> 0 | AQ51: =IFERROR(IF($Y51="CY 2023",INDEX('6. CY 2023'!AV:AV,MATCH($C51,'6. CY 2023'!$A:$A,0)),0),0) -> 61884251.8 | AR51: =IFERROR(IF($Y51="CY 2023",INDEX('6. CY 2023'!AX:AX,MATCH($C51,'6. CY 2023'!A:A,0)),0),0) -> 6708596.434 | AS51: =IFERROR(IF(Y51="CY 2023",INDEX('6. CY 2023'!AY:AY,MATCH(C51,'6. CY 2023'!A:A,0)),0),0) -> 17721820.86 | AT51: =IFERROR(IF($Y51="CY 2023",INDEX('6. CY 2023'!AZ:AZ,MATCH($C51,'6. CY 2023'!A:A,0)),0),0) -> 24430417.3 | AW51: =IFERROR(IF(Y51="CY 2023",INDEX('6. CY 2023'!H:H,MATCH(C51,'6. CY 2023'!A:A,0)),0),0) -> 4700646272
A52: 49 | B52: CENTINELA HOSPITAL MEDICAL CENTER | C52: 106190148 | D52: CENTINELA HOSPITAL MEDICAL CENTER | F52: =IFERROR(INDEX('8. 2019 HCAI (FEE) DAYS'!G:G,MATCH(C52,'8. 2019 HCAI (FEE) DAYS'!A:A,0)),0) -> 2019-01-01 | G52: =IFERROR(INDEX('8. 2019 HCAI (FEE) DAYS'!H:H,MATCH(C52,'8. 2019 HCAI (FEE) DAYS'!A:A,0)),0) -> 2019-12-31 | H52: =IFERROR(INDEX('8. 2019 HCAI (FEE) DAYS'!L:L,MATCH(C52,'8. 2019 HCAI (FEE) DAYS'!A:A,0)),0) -> 2019-01-01 | I52: =IFERROR(INDEX('11. Hospital Statuses'!M:M,MATCH(C52,'11. Hospital Statuses'!A:A,0)),"") -> Open | J52: Los Angeles | K52: 11 | L52: 929 | M52: Investor | N52: Comparable | P52: https://www.centinelamed.com/ | Q52: HTTPS.https://www.centinelamed.com/ | R52: PRIME HEALTHCARE SERVICES, INC. | S52: 310-680-8200 | T52: 555 EAST HARDY STREET | U52: INGLEWOOD | V52: 90301 | W52: MOHAMMAD ABDELNASER, RN | X52: =IFERROR(IF(INDEX(#REF!,MATCH(C52,#REF!,0)),"Yes","No"),"") ->  | Y52: CY 2023 | Z52: =IFERROR(IF($Y52="CY 2023",INDEX('6. CY 2023'!S:S,MATCH($C52,'6. CY 2023'!$A:$A,0)),0),0) -> 0 | AA52: =IFERROR(IF($Y52="CY 2023",INDEX('6. CY 2023'!U:U,MATCH($C52,'6. CY 2023'!$A:$A,0)),0),0) -> 3384719.64 | AB52: =IFERROR(IF($Y52="CY 2023",INDEX('6. CY 2023'!W:W,MATCH($C52,'6. CY 2023'!$A:$A,0)),0),0) -> 10998926.66 | AC52: =IFERROR(IF($Y52="CY 2023",INDEX('6. CY 2023'!Y:Y,MATCH($C52,'6. CY 2023'!$A:$A,0)),0),0) -> 0 | AD52: =IFERROR(IF($Y52="CY 2023",INDEX('6. CY 2023'!AA:AA,MATCH($C52,'6. CY 2023'!$A:$A,0)),0),0) -> 12112320 | AE52: =IFERROR(IF($Y52="CY 2023",INDEX('6. CY 2023'!AC:AC,MATCH($C52,'6. CY 2023'!$A:$A,0)),0),0) -> 3896700 | AF52: =IFERROR(IF($Y52="CY 2023",INDEX('6. CY 2023'!AE:AE,MATCH($C52,'6. CY 2023'!$A:$A,0)),0),0) -> 30392666.3 | AG52: =IFERROR(IF(Y52="CY 2023",AF52/'4. Calculated Fee'!$D$32*'4. Calculated Fee'!$D$23,0),0) -> 7748204.269 | AH52: =IFERROR(IF($Y52="CY 2023",INDEX('6. CY 2023'!AE:AE,MATCH($C52,'6. CY 2023'!$A:$A,0)),0),0) -> 30392666.3 | AI52: =IFERROR(IF(Y52="CY 2023",INDEX('6. CY 2023'!AL:AL,MATCH(C52,'6. CY 2023'!A:A,0)),0),0) -> 3318297.239 | AJ52: =IFERROR(IF($Y52="CY 2023",INDEX('6. CY 2023'!AM:AM,MATCH($C52,'6. CY 2023'!$A:$A,0)),0),0) -> 5422965.348 | AK52: =IFERROR(IF($Y52="CY 2023",INDEX('6. CY 2023'!AN:AN,MATCH($C52,'6. CY 2023'!$A:$A,0)),0),0) -> 0 | AL52: =IFERROR(IF($Y52="CY 2023",INDEX('6. CY 2023'!AO:AO,MATCH($C52,'6. CY 2023'!$A:$A,0)),0),0) -> 0 | AM52: =IFERROR(IF($Y52="CY 2023",INDEX('6. CY 2023'!AP:AP,MATCH($C52,'6. CY 2023'!$A:$A,0)),0),0) -> 1325000 | AN52: =IFERROR(IF($Y52="CY 2023",INDEX('6. CY 2023'!AQ:AQ,MATCH($C52,'6. CY 2023'!$A:$A,0)),0),0) -> 0 | AO52: =IFERROR(IF($Y52="CY 2023",INDEX('6. CY 2023'!AR:AR,MATCH($C52,'6. CY 2023'!$A:$A,0)),0),0) -> 0 | AP52: =IFERROR(IF($Y52="CY 2023",INDEX('6. CY 2023'!AS:AS,MATCH($C52,'6. CY 2023'!$A:$A,0)),0),0) -> 0 | AQ52: =IFERROR(IF($Y52="CY 2023",INDEX('6. CY 2023'!AV:AV,MATCH($C52,'6. CY 2023'!$A:$A,0)),0),0) -> 10066262.59 | AR52: =IFERROR(IF($Y52="CY 2023",INDEX('6. CY 2023'!AX:AX,MATCH($C52,'6. CY 2023'!A:A,0)),0),0) -> 5474397.969 | AS52: =IFERROR(IF(Y52="CY 2023",INDEX('6. CY 2023'!AY:AY,MATCH(C52,'6. CY 2023'!A:A,0)),0),0) -> 35061220.53 | AT52: =IFERROR(IF($Y52="CY 2023",INDEX('6. CY 2023'!AZ:AZ,MATCH($C52,'6. CY 2023'!A:A,0)),0),0) -> 40535618.5 | AW52: =IFERROR(IF(Y52="CY 2023",INDEX('6. CY 2023'!H:H,MATCH(C52,'6. CY 2023'!A:A,0)),0),0) -> 324012273.5
A53: 50 | B53: CENTRAL VALLEY SPECIALTY HOSPITAL | C53: 106500954 | D53: CENTRAL VALLEY SPECIALTY HOSPITAL | F53: =IFERROR(INDEX('8. 2019 HCAI (FEE) DAYS'!G:G,MATCH(C53,'8. 2019 HCAI (FEE) DAYS'!A:A,0)),0) -> 2019-01-01 | G53: =IFERROR(INDEX('8. 2019 HCAI (FEE) DAYS'!H:H,MATCH(C53,'8. 2019 HCAI (FEE) DAYS'!A:A,0)),0) -> 2019-12-31 | H53: =IFERROR(INDEX('8. 2019 HCAI (FEE) DAYS'!L:L,MATCH(C53,'8. 2019 HCAI (FEE) DAYS'!A:A,0)),0) -> 2019-01-01 | I53: =IFERROR(INDEX('11. Hospital Statuses'!M:M,MATCH(C53,'11. Hospital Statuses'!A:A,0)),"") -> Open | J53: Stanislaus | K53: 6 | L53: 511 | M53: Investor | N53: Comparable | P53: https://healthy.kaiserpermanente.org/northern-california/facilities/central-valley-specialty-hospital-339541 | Q53: HTTPS.https://healthy.kaiserpermanente.org/northern-california/facilities/central-valley-specialty-hospital-339541 | R53: GURPREET SINGH | S53: 209-576-2532 | T53: 730 17TH STREET | U53: MODESTO | V53: 95354-1209 | W53: TAMMY THOMPSON | X53: =IFERROR(IF(INDEX(#REF!,MATCH(C53,#REF!,0)),"Yes","No"),"") ->  | Y53: CY 2023 | Z53: =IFERROR(IF($Y53="CY 2023",INDEX('6. CY 2023'!S:S,MATCH($C53,'6. CY 2023'!$A:$A,0)),0),0) -> 0 | AA53: =IFERROR(IF($Y53="CY 2023",INDEX('6. CY 2023'!U:U,MATCH($C53,'6. CY 2023'!$A:$A,0)),0),0) -> 0 | AB53: =IFERROR(IF($Y53="CY 2023",INDEX('6. CY 2023'!W:W,MATCH($C53,'6. CY 2023'!$A:$A,0)),0),0) -> 0 | AC53: =IFERROR(IF($Y53="CY 2023",INDEX('6. CY 2023'!Y:Y,MATCH($C53,'6. CY 2023'!$A:$A,0)),0),0) -> 0 | AD53: =IFERROR(IF($Y53="CY 2023",INDEX('6. CY 2023'!AA:AA,MATCH($C53,'6. CY 2023'!$A:$A,0)),0),0) -> 0 | AE53: =IFERROR(IF($Y53="CY 2023",INDEX('6. CY 2023'!AC:AC,MATCH($C53,'6. CY 2023'!$A:$A,0)),0),0) -> 0 | AF53: =IFERROR(IF($Y53="CY 2023",INDEX('6. CY 2023'!AE:AE,MATCH($C53,'6. CY 2023'!$A:$A,0)),0),0) -> 0 | AG53: =IFERROR(IF(Y53="CY 2023",AF53/'4. Calculated Fee'!$D$32*'4. Calculated Fee'!$D$23,0),0) -> 0 | AH53: =IFERROR(IF($Y53="CY 2023",INDEX('6. CY 2023'!AE:AE,MATCH($C53,'6. CY 2023'!$A:$A,0)),0),0) -> 0 | AI53: =IFERROR(IF(Y53="CY 2023",INDEX('6. CY 2023'!AL:AL,MATCH(C53,'6. CY 2023'!A:A,0)),0),0) -> 0 | AJ53: =IFERROR(IF($Y53="CY 2023",INDEX('6. CY 2023'!AM:AM,MATCH($C53,'6. CY 2023'!$A:$A,0)),0),0) -> 0 | AK53: =IFERROR(IF($Y53="CY 2023",INDEX('6. CY 2023'!AN:AN,MATCH($C53,'6. CY 2023'!$A:$A,0)),0),0) -> 0 | AL53: =IFERROR(IF($Y53="CY 2023",INDEX('6. CY 2023'!AO:AO,MATCH($C53,'6. CY 2023'!$A:$A,0)),0),0) -> 0 | AM53: =IFERROR(IF($Y53="CY 2023",INDEX('6. CY 2023'!AP:AP,MATCH($C53,'6. CY 2023'!$A:$A,0)),0),0) -> 0 | AN53: =IFERROR(IF($Y53="CY 2023",INDEX('6. CY 2023'!AQ:AQ,MATCH($C53,'6. CY 2023'!$A:$A,0)),0),0) -> 0 | AO53: =IFERROR(IF($Y53="CY 2023",INDEX('6. CY 2023'!AR:AR,MATCH($C53,'6. CY 2023'!$A:$A,0)),0),0) -> 0 | AP53: =IFERROR(IF($Y53="CY 2023",INDEX('6. CY 2023'!AS:AS,MATCH($C53,'6. CY 2023'!$A:$A,0)),0),0) -> 0 | AQ53: =IFERROR(IF($Y53="CY 2023",INDEX('6. CY 2023'!AV:AV,MATCH($C53,'6. CY 2023'!$A:$A,0)),0),0) -> 0 | AR53: =IFERROR(IF($Y53="CY 2023",INDEX('6. CY 2023'!AX:AX,MATCH($C53,'6. CY 2023'!A:A,0)),0),0) -> 0 | AS53: =IFERROR(IF(Y53="CY 2023",INDEX('6. CY 2023'!AY:AY,MATCH(C53,'6. CY 2023'!A:A,0)),0),0) -> 0 | AT53: =IFERROR(IF($Y53="CY 2023",INDEX('6. CY 2023'!AZ:AZ,MATCH($C53,'6. CY 2023'!A:A,0)),0),0) -> 0 | AW53: =IFERROR(IF(Y53="CY 2023",INDEX('6. CY 2023'!H:H,MATCH(C53,'6. CY 2023'!A:A,0)),0),0) -> 56127483.44
A54: 51 | B54: CHAPMAN GLOBAL MEDICAL CENTER | C54: 106301140 | D54: CHAPMAN GLOBAL MEDICAL CENTER | F54: =IFERROR(INDEX('8. 2019 HCAI (FEE) DAYS'!G:G,MATCH(C54,'8. 2019 HCAI (FEE) DAYS'!A:A,0)),0) -> 2019-01-01 | G54: =IFERROR(INDEX('8. 2019 HCAI (FEE) DAYS'!H:H,MATCH(C54,'8. 2019 HCAI (FEE) DAYS'!A:A,0)),0) -> 2019-12-31 | H54: =IFERROR(INDEX('8. 2019 HCAI (FEE) DAYS'!L:L,MATCH(C54,'8. 2019 HCAI (FEE) DAYS'!A:A,0)),0) -> 2019-01-01 | I54: =IFERROR(INDEX('11. Hospital Statuses'!M:M,MATCH(C54,'11. Hospital Statuses'!A:A,0)),"") -> Open | J54: Orange | K54: 13 | L54: 1015 | M54: Investor | N54: Comparable | P54: https://chapmanglobalmedicalcenter.com/ | Q54: HTTPS.https://chapmanglobalmedicalcenter.com/ | R54: KPC HEALTHCARE INC. | S54: 714-633-0011 | T54: 2601 EAST CHAPMAN AVENUE | U54: ORANGE | V54: 92869-3206 | W54: PETER BARONOFF | X54: =IFERROR(IF(INDEX(#REF!,MATCH(C54,#REF!,0)),"Yes","No"),"") ->  | Y54: CY 2023 | Z54: =IFERROR(IF($Y54="CY 2023",INDEX('6. CY 2023'!S:S,MATCH($C54,'6. CY 2023'!$A:$A,0)),0),0) -> 0 | AA54: =IFERROR(IF($Y54="CY 2023",INDEX('6. CY 2023'!U:U,MATCH($C54,'6. CY 2023'!$A:$A,0)),0),0) -> 1349363.22 | AB54: =IFERROR(IF($Y54="CY 2023",INDEX('6. CY 2023'!W:W,MATCH($C54,'6. CY 2023'!$A:$A,0)),0),0) -> 2456046.2 | AC54: =IFERROR(IF($Y54="CY 2023",INDEX('6. CY 2023'!Y:Y,MATCH($C54,'6. CY 2023'!$A:$A,0)),0),0) -> 0 | AD54: =IFERROR(IF($Y54="CY 2023",INDEX('6. CY 2023'!AA:AA,MATCH($C54,'6. CY 2023'!$A:$A,0)),0),0) -> 698120 | AE54: =IFERROR(IF($Y54="CY 2023",INDEX('6. CY 2023'!AC:AC,MATCH($C54,'6. CY 2023'!$A:$A,0)),0),0) -> 166160 | AF54: =IFERROR(IF($Y54="CY 2023",INDEX('6. CY 2023'!AE:AE,MATCH($C54,'6. CY 2023'!$A:$A,0)),0),0) -> 4669689.42 | AG54: =IFERROR(IF(Y54="CY 2023",AF54/'4. Calculated Fee'!$D$32*'4. Calculated Fee'!$D$23,0),0) -> 1190474.937 | AH54: =IFERROR(IF($Y54="CY 2023",INDEX('6. CY 2023'!AE:AE,MATCH($C54,'6. CY 2023'!$A:$A,0)),0),0) -> 4669689.42 | AI54: =IFERROR(IF(Y54="CY 2023",INDEX('6. CY 2023'!AL:AL,MATCH(C54,'6. CY 2023'!A:A,0)),0),0) -> 369026.7443 | AJ54: =IFERROR(IF($Y54="CY 2023",INDEX('6. CY 2023'!AM:AM,MATCH($C54,'6. CY 2023'!$A:$A,0)),0),0) -> 332413.4681 | AK54: =IFERROR(IF($Y54="CY 2023",INDEX('6. CY 2023'!AN:AN,MATCH($C54,'6. CY 2023'!$A:$A,0)),0),0) -> 12762.607 | AL54: =IFERROR(IF($Y54="CY 2023",INDEX('6. CY 2023'!AO:AO,MATCH($C54,'6. CY 2023'!$A:$A,0)),0),0) -> 0 | AM54: =IFERROR(IF($Y54="CY 2023",INDEX('6. CY 2023'!AP:AP,MATCH($C54,'6. CY 2023'!$A:$A,0)),0),0) -> 45000 | AN54: =IFERROR(IF($Y54="CY 2023",INDEX('6. CY 2023'!AQ:AQ,MATCH($C54,'6. CY 2023'!$A:$A,0)),0),0) -> 0 | AO54: =IFERROR(IF($Y54="CY 2023",INDEX('6. CY 2023'!AR:AR,MATCH($C54,'6. CY 2023'!$A:$A,0)),0),0) -> 0 | AP54: =IFERROR(IF($Y54="CY 2023",INDEX('6. CY 2023'!AS:AS,MATCH($C54,'6. CY 2023'!$A:$A,0)),0),0) -> 0 | AQ54: =IFERROR(IF($Y54="CY 2023",INDEX('6. CY 2023'!AV:AV,MATCH($C54,'6. CY 2023'!$A:$A,0)),0),0) -> 759202.8194 | AR54: =IFERROR(IF($Y54="CY 2023",INDEX('6. CY 2023'!AX:AX,MATCH($C54,'6. CY 2023'!A:A,0)),0),0) -> 4134961.293 | AS54: =IFERROR(IF(Y54="CY 2023",INDEX('6. CY 2023'!AY:AY,MATCH(C54,'6. CY 2023'!A:A,0)),0),0) -> 2343289.532 | AT54: =IFERROR(IF($Y54="CY 2023",INDEX('6. CY 2023'!AZ:AZ,MATCH($C54,'6. CY 2023'!A:A,0)),0),0) -> 6478250.825 | AW54: =IFERROR(IF(Y54="CY 2023",INDEX('6. CY 2023'!H:H,MATCH(C54,'6. CY 2023'!A:A,0)),0),0) -> 57984782
A55: 52 | B55: CHILDREN'S HOSPITAL AND RESEARCH CENTER AT OAKLAND | C55: 106010776 | D55: CHILDREN'S HOSPITAL AND RESEARCH CENTER AT OAKLAND | F55: =IFERROR(INDEX('8. 2019 HCAI (FEE) DAYS'!G:G,MATCH(C55,'8. 2019 HCAI (FEE) DAYS'!A:A,0)),0) -> 2018-07-01 | G55: =IFERROR(INDEX('8. 2019 HCAI (FEE) DAYS'!H:H,MATCH(C55,'8. 2019 HCAI (FEE) DAYS'!A:A,0)),0) -> 2019-06-30 | H55: =IFERROR(INDEX('8. 2019 HCAI (FEE) DAYS'!L:L,MATCH(C55,'8. 2019 HCAI (FEE) DAYS'!A:A,0)),0) -> 2018-07-01 | I55: =IFERROR(INDEX('11. Hospital Statuses'!M:M,MATCH(C55,'11. Hospital Statuses'!A:A,0)),"") -> Open | J55: Alameda | K55: 5 | L55: 417 | M55: Non-Profit | N55: Comparable | P55: https://www.ucsfbenioffchildrens.org/ | Q55: HTTPS.https://www.ucsfbenioffchildrens.org/ | R55: CHILDREN'S HOSPITAL & RESEARCH CENTER OAKLAND | S55: 510-428-3000 | T55: 747 52ND STREET | U55: OAKLAND | V55: 94609 | W55: MATTHEW COOK | X55: =IFERROR(IF(INDEX(#REF!,MATCH(C55,#REF!,0)),"Yes","No"),"") ->  | Y55: CY 2023 | Z55: =IFERROR(IF($Y55="CY 2023",INDEX('6. CY 2023'!S:S,MATCH($C55,'6. CY 2023'!$A:$A,0)),0),0) -> 0 | AA55: =IFERROR(IF($Y55="CY 2023",INDEX('6. CY 2023'!U:U,MATCH($C55,'6. CY 2023'!$A:$A,0)),0),0) -> 4052833.23 | AB55: =IFERROR(IF($Y55="CY 2023",INDEX('6. CY 2023'!W:W,MATCH($C55,'6. CY 2023'!$A:$A,0)),0),0) -> 357641.2 | AC55: =IFERROR(IF($Y55="CY 2023",INDEX('6. CY 2023'!Y:Y,MATCH($C55,'6. CY 2023'!$A:$A,0)),0),0) -> 0 | AD55: =IFERROR(IF($Y55="CY 2023",INDEX('6. CY 2023'!AA:AA,MATCH($C55,'6. CY 2023'!$A:$A,0)),0),0) -> 6322140 | AE55: =IFERROR(IF($Y55="CY 2023",INDEX('6. CY 2023'!AC:AC,MATCH($C55,'6. CY 2023'!$A:$A,0)),0),0) -> 14597280 | AF55: =IFERROR(IF($Y55="CY 2023",INDEX('6. CY 2023'!AE:AE,MATCH($C55,'6. CY 2023'!$A:$A,0)),0),0) -> 25329894.43 | AG55: =IFERROR(IF(Y55="CY 2023",AF55/'4. Calculated Fee'!$D$32*'4. Calculated Fee'!$D$23,0),0) -> 6457518.212 | AH55: =IFERROR(IF($Y55="CY 2023",INDEX('6. CY 2023'!AE:AE,MATCH($C55,'6. CY 2023'!$A:$A,0)),0),0) -> 25329894.43 | AI55: =IFERROR(IF(Y55="CY 2023",INDEX('6. CY 2023'!AL:AL,MATCH(C55,'6. CY 2023'!A:A,0)),0),0) -> 52109234.21 | AJ55: =IFERROR(IF($Y55="CY 2023",INDEX('6. CY 2023'!AM:AM,MATCH($C55,'6. CY 2023'!$A:$A,0)),0),0) -> 7476613.603 | AK55: =IFERROR(IF($Y55="CY 2023",INDEX('6. CY 2023'!AN:AN,MATCH($C55,'6. CY 2023'!$A:$A,0)),0),0) -> 0 | AL55: =IFERROR(IF($Y55="CY 2023",INDEX('6. CY 2023'!AO:AO,MATCH($C55,'6. CY 2023'!$A:$A,0)),0),0) -> 0 | AM55: =IFERROR(IF($Y55="CY 2023",INDEX('6. CY 2023'!AP:AP,MATCH($C55,'6. CY 2023'!$A:$A,0)),0),0) -> 3767500 | AN55: =IFERROR(IF($Y55="CY 2023",INDEX('6. CY 2023'!AQ:AQ,MATCH($C55,'6. CY 2023'!$A:$A,0)),0),0) -> 3767500 | AO55: =IFERROR(IF($Y55="CY 2023",INDEX('6. CY 2023'!AR:AR,MATCH($C55,'6. CY 2023'!$A:$A,0)),0),0) -> 267500 | AP55: =IFERROR(IF($Y55="CY 2023",INDEX('6. CY 2023'!AS:AS,MATCH($C55,'6. CY 2023'!$A:$A,0)),0),0) -> 0 | AQ55: =IFERROR(IF($Y55="CY 2023",INDEX('6. CY 2023'!AV:AV,MATCH($C55,'6. CY 2023'!$A:$A,0)),0),0) -> 67388347.81 | AR55: =IFERROR(IF($Y55="CY 2023",INDEX('6. CY 2023'!AX:AX,MATCH($C55,'6. CY 2023'!A:A,0)),0),0) -> 26863795.48 | AS55: =IFERROR(IF(Y55="CY 2023",INDEX('6. CY 2023'!AY:AY,MATCH(C55,'6. CY 2023'!A:A,0)),0),0) -> 26185287.33 | AT55: =IFERROR(IF($Y55="CY 2023",INDEX('6. CY 2023'!AZ:AZ,MATCH($C55,'6. CY 2023'!A:A,0)),0),0) -> 53049082.81 | AW55: =IFERROR(IF(Y55="CY 2023",INDEX('6. CY 2023'!H:H,MATCH(C55,'6. CY 2023'!A:A,0)),0),0) -> 720961370.9
A56: 53 | B56: CHILDREN'S HOSPITAL AT MISSION | C56: 106304113 | D56: CHILDREN'S HOSPITAL AT MISSION | F56: =IFERROR(INDEX('8. 2019 HCAI (FEE) DAYS'!G:G,MATCH(C56,'8. 2019 HCAI (FEE) DAYS'!A:A,0)),0) -> 2018-07-01 | G56: =IFERROR(INDEX('8. 2019 HCAI (FEE) DAYS'!H:H,MATCH(C56,'8. 2019 HCAI (FEE) DAYS'!A:A,0)),0) -> 2019-06-30 | H56: =IFERROR(INDEX('8. 2019 HCAI (FEE) DAYS'!L:L,MATCH(C56,'8. 2019 HCAI (FEE) DAYS'!A:A,0)),0) -> 2018-07-01 | I56: =IFERROR(INDEX('11. Hospital Statuses'!M:M,MATCH(C56,'11. Hospital Statuses'!A:A,0)),"") -> Open | J56: Orange | K56: 13 | L56: 1017 | M56: Non-Profit | N56: Comparable | P56: https://www.choc.org/choc-childrens-mission-hospital/ | Q56: HTTPS.https://www.choc.org/choc-childrens-mission-hospital/ | R56: CHILDREN'S HOSPITAL AT MISSION | S56: 714-509-8471 | T56: 27700 MEDICAL CENTER ROAD | U56: MISSION VIEJO | V56: 92691 | W56: KIMBERLY CRIPE | X56: =IFERROR(IF(INDEX(#REF!,MATCH(C56,#REF!,0)),"Yes","No"),"") ->  | Y56: CY 2023 | Z56: =IFERROR(IF($Y56="CY 2023",INDEX('6. CY 2023'!S:S,MATCH($C56,'6. CY 2023'!$A:$A,0)),0),0) -> 0 | AA56: =IFERROR(IF($Y56="CY 2023",INDEX('6. CY 2023'!U:U,MATCH($C56,'6. CY 2023'!$A:$A,0)),0),0) -> 1584717.27 | AB56: =IFERROR(IF($Y56="CY 2023",INDEX('6. CY 2023'!W:W,MATCH($C56,'6. CY 2023'!$A:$A,0)),0),0) -> 75177.64 | AC56: =IFERROR(IF($Y56="CY 2023",INDEX('6. CY 2023'!Y:Y,MATCH($C56,'6. CY 2023'!$A:$A,0)),0),0) -> 0 | AD56: =IFERROR(IF($Y56="CY 2023",INDEX('6. CY 2023'!AA:AA,MATCH($C56,'6. CY 2023'!$A:$A,0)),0),0) -> 830180 | AE56: =IFERROR(IF($Y56="CY 2023",INDEX('6. CY 2023'!AC:AC,MATCH($C56,'6. CY 2023'!$A:$A,0)),0),0) -> 1187920 | AF56: =IFERROR(IF($Y56="CY 2023",INDEX('6. CY 2023'!AE:AE,MATCH($C56,'6. CY 2023'!$A:$A,0)),0),0) -> 3677994.91 | AG56: =IFERROR(IF(Y56="CY 2023",AF56/'4. Calculated Fee'!$D$32*'4. Calculated Fee'!$D$23,0),0) -> 937655.6694 | AH56: =IFERROR(IF($Y56="CY 2023",INDEX('6. CY 2023'!AE:AE,MATCH($C56,'6. CY 2023'!$A:$A,0)),0),0) -> 3677994.91 | AI56: =IFERROR(IF(Y56="CY 2023",INDEX('6. CY 2023'!AL:AL,MATCH(C56,'6. CY 2023'!A:A,0)),0),0) -> 269140.8342 | AJ56: =IFERROR(IF($Y56="CY 2023",INDEX('6. CY 2023'!AM:AM,MATCH($C56,'6. CY 2023'!$A:$A,0)),0),0) -> 1102666.035 | AK56: =IFERROR(IF($Y56="CY 2023",INDEX('6. CY 2023'!AN:AN,MATCH($C56,'6. CY 2023'!$A:$A,0)),0),0) -> 0 | AL56: =IFERROR(IF($Y56="CY 2023",INDEX('6. CY 2023'!AO:AO,MATCH($C56,'6. CY 2023'!$A:$A,0)),0),0) -> 0 | AM56: =IFERROR(IF($Y56="CY 2023",INDEX('6. CY 2023'!AP:AP,MATCH($C56,'6. CY 2023'!$A:$A,0)),0),0) -> 802500 | AN56: =IFERROR(IF($Y56="CY 2023",INDEX('6. CY 2023'!AQ:AQ,MATCH($C56,'6. CY 2023'!$A:$A,0)),0),0) -> 0 | AO56: =IFERROR(IF($Y56="CY 2023",INDEX('6. CY 2023'!AR:AR,MATCH($C56,'6. CY 2023'!$A:$A,0)),0),0) -> 0 | AP56: =IFERROR(IF($Y56="CY 2023",INDEX('6. CY 2023'!AS:AS,MATCH($C56,'6. CY 2023'!$A:$A,0)),0),0) -> 0 | AQ56: =IFERROR(IF($Y56="CY 2023",INDEX('6. CY 2023'!AV:AV,MATCH($C56,'6. CY 2023'!$A:$A,0)),0),0) -> 2174306.869 | AR56: =IFERROR(IF($Y56="CY 2023",INDEX('6. CY 2023'!AX:AX,MATCH($C56,'6. CY 2023'!A:A,0)),0),0) -> 1517242.6 | AS56: =IFERROR(IF(Y56="CY 2023",INDEX('6. CY 2023'!AY:AY,MATCH(C56,'6. CY 2023'!A:A,0)),0),0) -> 4393326.835 | AT56: =IFERROR(IF($Y56="CY 2023",INDEX('6. CY 2023'!AZ:AZ,MATCH($C56,'6. CY 2023'!A:A,0)),0),0) -> 5910569.435 | AW56: =IFERROR(IF(Y56="CY 2023",INDEX('6. CY 2023'!H:H,MATCH(C56,'6. CY 2023'!A:A,0)),0),0) -> 100884927.6
A57: 54 | B57: CHILDREN'S HOSPITAL LOS ANGELES | C57: 106190170 | D57: CHILDREN'S HOSPITAL LOS ANGELES | F57: =IFERROR(INDEX('8. 2019 HCAI (FEE) DAYS'!G:G,MATCH(C57,'8. 2019 HCAI (FEE) DAYS'!A:A,0)),0) -> 2018-07-01 | G57: =IFERROR(INDEX('8. 2019 HCAI (FEE) DAYS'!H:H,MATCH(C57,'8. 2019 HCAI (FEE) DAYS'!A:A,0)),0) -> 2019-06-30 | H57: =IFERROR(INDEX('8. 2019 HCAI (FEE) DAYS'!L:L,MATCH(C57,'8. 2019 HCAI (FEE) DAYS'!A:A,0)),0) -> 2018-07-01 | I57: =IFERROR(INDEX('11. Hospital Statuses'!M:M,MATCH(C57,'11. Hospital Statuses'!A:A,0)),"") -> Open | J57: Los Angeles | K57: 11 | L57: 925 | M57: Non-Profit | N57: Comparable | O57: Teaching | P57: https://www.chla.org/ | R57: CHILDREN'S HOSPITAL LOS ANGELES | S57: 323-660-2450 | T57: 4650 SUNSET BOULEVARD, MS 21 | U57: LOS ANGELES | V57: 90027 | W57: PAUL VIVIANO | X57: =IFERROR(IF(INDEX(#REF!,MATCH(C57,#REF!,0)),"Yes","No"),"") ->  | Y57: CY 2023 | Z57: =IFERROR(IF($Y57="CY 2023",INDEX('6. CY 2023'!S:S,MATCH($C57,'6. CY 2023'!$A:$A,0)),0),0) -> 0 | AA57: =IFERROR(IF($Y57="CY 2023",INDEX('6. CY 2023'!U:U,MATCH($C57,'6. CY 2023'!$A:$A,0)),0),0) -> 10747834.95 | AB57: =IFERROR(IF($Y57="CY 2023",INDEX('6. CY 2023'!W:W,MATCH($C57,'6. CY 2023'!$A:$A,0)),0),0) -> 1895863.3 | AC57: =IFERROR(IF($Y57="CY 2023",INDEX('6. CY 2023'!Y:Y,MATCH($C57,'6. CY 2023'!$A:$A,0)),0),0) -> 0 | AD57: =IFERROR(IF($Y57="CY 2023",INDEX('6. CY 2023'!AA:AA,MATCH($C57,'6. CY 2023'!$A:$A,0)),0),0) -> 9341540 | AE57: =IFERROR(IF($Y57="CY 2023",INDEX('6. CY 2023'!AC:AC,MATCH($C57,'6. CY 2023'!$A:$A,0)),0),0) -> 42321200 | AF57: =IFERROR(IF($Y57="CY 2023",INDEX('6. CY 2023'!AE:AE,MATCH($C57,'6. CY 2023'!$A:$A,0)),0),0) -> 64306438.25 | AG57: =IFERROR(IF(Y57="CY 2023",AF57/'4. Calculated Fee'!$D$32*'4. Calculated Fee'!$D$23,0),0) -> 16394067.39 | AH57: =IFERROR(IF($Y57="CY 2023",INDEX('6. CY 2023'!AE:AE,MATCH($C57,'6. CY 2023'!$A:$A,0)),0),0) -> 64306438.25 | AI57: =IFERROR(IF(Y57="CY 2023",INDEX('6. CY 2023'!AL:AL,MATCH(C57,'6. CY 2023'!A:A,0)),0),0) -> 191476697.6 | AJ57: =IFERROR(IF($Y57="CY 2023",INDEX('6. CY 2023'!AM:AM,MATCH($C57,'6. CY 2023'!$A:$A,0)),0),0) -> 26049812.72 | AK57: =IFERROR(IF($Y57="CY 2023",INDEX('6. CY 2023'!AN:AN,MATCH($C57,'6. CY 2023'!$A:$A,0)),0),0) -> 0 | AL57: =IFERROR(IF($Y57="CY 2023",INDEX('6. CY 2023'!AO:AO,MATCH($C57,'6. CY 2023'!$A:$A,0)),0),0) -> 0 | AM57: =IFERROR(IF($Y57="CY 2023",INDEX('6. CY 2023'!AP:AP,MATCH($C57,'6. CY 2023'!$A:$A,0)),0),0) -> 0 | AN57: =IFERROR(IF($Y57="CY 2023",INDEX('6. CY 2023'!AQ:AQ,MATCH($C57,'6. CY 2023'!$A:$A,0)),0),0) -> 0 | AO57: =IFERROR(IF($Y57="CY 2023",INDEX('6. CY 2023'!AR:AR,MATCH($C57,'6. CY 2023'!$A:$A,0)),0),0) -> 0 | AP57: =IFERROR(IF($Y57="CY 2023",INDEX('6. CY 2023'!AS:AS,MATCH($C57,'6. CY 2023'!$A:$A,0)),0),0) -> 0 | AQ57: =IFERROR(IF($Y57="CY 2023",INDEX('6. CY 2023'!AV:AV,MATCH($C57,'6. CY 2023'!$A:$A,0)),0),0) -> 217526510.3 | AR57: =IFERROR(IF($Y57="CY 2023",INDEX('6. CY 2023'!AX:AX,MATCH($C57,'6. CY 2023'!A:A,0)),0),0) -> 88193909.82 | AS57: =IFERROR(IF(Y57="CY 2023",INDEX('6. CY 2023'!AY:AY,MATCH(C57,'6. CY 2023'!A:A,0)),0),0) -> 50152001.14 | AT57: =IFERROR(IF($Y57="CY 2023",INDEX('6. CY 2023'!AZ:AZ,MATCH($C57,'6. CY 2023'!A:A,0)),0),0) -> 138345911 | AW57: =IFERROR(IF(Y57="CY 2023",INDEX('6. CY 2023'!H:H,MATCH(C57,'6. CY 2023'!A:A,0)),0),0) -> 1346433946
A58: 55 | B58: CHILDREN'S HOSPITAL OF ORANGE COUNTY | C58: 106300032 | D58: CHILDREN'S HOSPITAL OF ORANGE COUNTY | F58: =IFERROR(INDEX('8. 2019 HCAI (FEE) DAYS'!G:G,MATCH(C58,'8. 2019 HCAI (FEE) DAYS'!A:A,0)),0) -> 2018-07-01 | G58: =IFERROR(INDEX('8. 2019 HCAI (FEE) DAYS'!H:H,MATCH(C58,'8. 2019 HCAI (FEE) DAYS'!A:A,0)),0) -> 2019-06-30 | H58: =IFERROR(INDEX('8. 2019 HCAI (FEE) DAYS'!L:L,MATCH(C58,'8. 2019 HCAI (FEE) DAYS'!A:A,0)),0) -> 2018-07-01 | I58: =IFERROR(INDEX('11. Hospital Statuses'!M:M,MATCH(C58,'11. Hospital Statuses'!A:A,0)),"") -> Open | J58: Orange | K58: 13 | L58: 1015 | M58: Non-Profit | N58: Comparable | P58: https://www.choc.org/choc-childrens-mission-hospital/ | R58: CHILDREN'S HOSPITAL OF ORANGE COUNTY | S58: 714-997-3000 | T58: 1201 W. LA VETA AVE | U58: ORANGE | V58: 92868 | W58: KIMBERLY CRIPE | X58: =IFERROR(IF(INDEX(#REF!,MATCH(C58,#REF!,0)),"Yes","No"),"") ->  | Y58: CY 2023 | Z58: =IFERROR(IF($Y58="CY 2023",INDEX('6. CY 2023'!S:S,MATCH($C58,'6. CY 2023'!$A:$A,0)),0),0) -> 0 | AA58: =IFERROR(IF($Y58="CY 2023",INDEX('6. CY 2023'!U:U,MATCH($C58,'6. CY 2023'!$A:$A,0)),0),0) -> 9414526.89 | AB58: =IFERROR(IF($Y58="CY 2023",INDEX('6. CY 2023'!W:W,MATCH($C58,'6. CY 2023'!$A:$A,0)),0),0) -> 520769.38 | AC58: =IFERROR(IF($Y58="CY 2023",INDEX('6. CY 2023'!Y:Y,MATCH($C58,'6. CY 2023'!$A:$A,0)),0),0) -> 0 | AD58: =IFERROR(IF($Y58="CY 2023",INDEX('6. CY 2023'!AA:AA,MATCH($C58,'6. CY 2023'!$A:$A,0)),0),0) -> 4633260 | AE58: =IFERROR(IF($Y58="CY 2023",INDEX('6. CY 2023'!AC:AC,MATCH($C58,'6. CY 2023'!$A:$A,0)),0),0) -> 22194760 | AF58: =IFERROR(IF($Y58="CY 2023",INDEX('6. CY 2023'!AE:AE,MATCH($C58,'6. CY 2023'!$A:$A,0)),0),0) -> 36763316.27 | AG58: =IFERROR(IF(Y58="CY 2023",AF58/'4. Calculated Fee'!$D$32*'4. Calculated Fee'!$D$23,0),0) -> 9372316.376 | AH58: =IFERROR(IF($Y58="CY 2023",INDEX('6. CY 2023'!AE:AE,MATCH($C58,'6. CY 2023'!$A:$A,0)),0),0) -> 36763316.27 | AI58: =IFERROR(IF(Y58="CY 2023",INDEX('6. CY 2023'!AL:AL,MATCH(C58,'6. CY 2023'!A:A,0)),0),0) -> 59920545.39 | AJ58: =IFERROR(IF($Y58="CY 2023",INDEX('6. CY 2023'!AM:AM,MATCH($C58,'6. CY 2023'!$A:$A,0)),0),0) -> 11436529.38 | AK58: =IFERROR(IF($Y58="CY 2023",INDEX('6. CY 2023'!AN:AN,MATCH($C58,'6. CY 2023'!$A:$A,0)),0),0) -> 0 | AL58: =IFERROR(IF($Y58="CY 2023",INDEX('6. CY 2023'!AO:AO,MATCH($C58,'6. CY 2023'!$A:$A,0)),0),0) -> 205725 | AM58: =IFERROR(IF($Y58="CY 2023",INDEX('6. CY 2023'!AP:AP,MATCH($C58,'6. CY 2023'!$A:$A,0)),0),0) -> 0 | AN58: =IFERROR(IF($Y58="CY 2023",INDEX('6. CY 2023'!AQ:AQ,MATCH($C58,'6. CY 2023'!$A:$A,0)),0),0) -> 0 | AO58: =IFERROR(IF($Y58="CY 2023",INDEX('6. CY 2023'!AR:AR,MATCH($C58,'6. CY 2023'!$A:$A,0)),0),0) -> 0 | AP58: =IFERROR(IF($Y58="CY 2023",INDEX('6. CY 2023'!AS:AS,MATCH($C58,'6. CY 2023'!$A:$A,0)),0),0) -> 0 | AQ58: =IFERROR(IF($Y58="CY 2023",INDEX('6. CY 2023'!AV:AV,MATCH($C58,'6. CY 2023'!$A:$A,0)),0),0) -> 71562799.77 | AR58: =IFERROR(IF($Y58="CY 2023",INDEX('6. CY 2023'!AX:AX,MATCH($C58,'6. CY 2023'!A:A,0)),0),0) -> 35803862.13 | AS58: =IFERROR(IF(Y58="CY 2023",INDEX('6. CY 2023'!AY:AY,MATCH(C58,'6. CY 2023'!A:A,0)),0),0) -> 62655677.87 | AT58: =IFERROR(IF($Y58="CY 2023",INDEX('6. CY 2023'!AZ:AZ,MATCH($C58,'6. CY 2023'!A:A,0)),0),0) -> 98459540 | AW58: =IFERROR(IF(Y58="CY 2023",INDEX('6. CY 2023'!H:H,MATCH(C58,'6. CY 2023'!A:A,0)),0),0) -> 925183359.6
A59: 56 | B59: CHINESE HOSPITAL | C59: 106382715 | D59: CHINESE HOSPITAL | F59: =IFERROR(INDEX('8. 2019 HCAI (FEE) DAYS'!G:G,MATCH(C59,'8. 2019 HCAI (FEE) DAYS'!A:A,0)),0) -> 2019-01-01 | G59: =IFERROR(INDEX('8. 2019 HCAI (FEE) DAYS'!H:H,MATCH(C59,'8. 2019 HCAI (FEE) DAYS'!A:A,0)),0) -> 2019-12-31 | H59: =IFERROR(INDEX('8. 2019 HCAI (FEE) DAYS'!L:L,MATCH(C59,'8. 2019 HCAI (FEE) DAYS'!A:A,0)),0) -> 2019-01-01 | I59: =IFERROR(INDEX('11. Hospital Statuses'!M:M,MATCH(C59,'11. Hospital Statuses'!A:A,0)),"") -> Open | J59: San Francisco | K59: 4 | L59: 423 | M59: Non-Profit | N59: Comparable | P59: https://www.chinesehospital-sf.org/ | R59: CHINESE HOSPITAL ASSOCIATION | S59: 415-982-2400 | T59: 845 JACKSON STREET | U59: SAN FRANCISCO | V59: 94133 | W59: JIAN ZHANG | X59: =IFERROR(IF(INDEX(#REF!,MATCH(C59,#REF!,0)),"Yes","No"),"") ->  | Y59: CY 2023 | Z59: =IFERROR(IF($Y59="CY 2023",INDEX('6. CY 2023'!S:S,MATCH($C59,'6. CY 2023'!$A:$A,0)),0),0) -> 0 | AA59: =IFERROR(IF($Y59="CY 2023",INDEX('6. CY 2023'!U:U,MATCH($C59,'6. CY 2023'!$A:$A,0)),0),0) -> 860045.73 | AB59: =IFERROR(IF($Y59="CY 2023",INDEX('6. CY 2023'!W:W,MATCH($C59,'6. CY 2023'!$A:$A,0)),0),0) -> 1232767.32 | AC59: =IFERROR(IF($Y59="CY 2023",INDEX('6. CY 2023'!Y:Y,MATCH($C59,'6. CY 2023'!$A:$A,0)),0),0) -> 0 | AD59: =IFERROR(IF($Y59="CY 2023",INDEX('6. CY 2023'!AA:AA,MATCH($C59,'6. CY 2023'!$A:$A,0)),0),0) -> 209560 | AE59: =IFERROR(IF($Y59="CY 2023",INDEX('6. CY 2023'!AC:AC,MATCH($C59,'6. CY 2023'!$A:$A,0)),0),0) -> 5580 | AF59: =IFERROR(IF($Y59="CY 2023",INDEX('6. CY 2023'!AE:AE,MATCH($C59,'6. CY 2023'!$A:$A,0)),0),0) -> 2307953.05 | AG59: =IFERROR(IF(Y59="CY 2023",AF59/'4. Calculated Fee'!$D$32*'4. Calculated Fee'!$D$23,0),0) -> 588381.799 | AH59: =IFERROR(IF($Y59="CY 2023",INDEX('6. CY 2023'!AE:AE,MATCH($C59,'6. CY 2023'!$A:$A,0)),0),0) -> 2307953.05 | AI59: =IFERROR(IF(Y59="CY 2023",INDEX('6. CY 2023'!AL:AL,MATCH(C59,'6. CY 2023'!A:A,0)),0),0) -> 64653.10732 | AJ59: =IFERROR(IF($Y59="CY 2023",INDEX('6. CY 2023'!AM:AM,MATCH($C59,'6. CY 2023'!$A:$A,0)),0),0) -> 53788.58707 | AK59: =IFERROR(IF($Y59="CY 2023",INDEX('6. CY 2023'!AN:AN,MATCH($C59,'6. CY 2023'!$A:$A,0)),0),0) -> 0 | AL59: =IFERROR(IF($Y59="CY 2023",INDEX('6. CY 2023'!AO:AO,MATCH($C59,'6. CY 2023'!$A:$A,0)),0),0) -> 0 | AM59: =IFERROR(IF($Y59="CY 2023",INDEX('6. CY 2023'!AP:AP,MATCH($C59,'6. CY 2023'!$A:$A,0)),0),0) -> 20000 | AN59: =IFERROR(IF($Y59="CY 2023",INDEX('6. CY 2023'!AQ:AQ,MATCH($C59,'6. CY 2023'!$A:$A,0)),0),0) -> 0 | AO59: =IFERROR(IF($Y59="CY 2023",INDEX('6. CY 2023'!AR:AR,MATCH($C59,'6. CY 2023'!$A:$A,0)),0),0) -> 0 | AP59: =IFERROR(IF($Y59="CY 2023",INDEX('6. CY 2023'!AS:AS,MATCH($C59,'6. CY 2023'!$A:$A,0)),0),0) -> 0 | AQ59: =IFERROR(IF($Y59="CY 2023",INDEX('6. CY 2023'!AV:AV,MATCH($C59,'6. CY 2023'!$A:$A,0)),0),0) -> 138441.6944 | AR59: =IFERROR(IF($Y59="CY 2023",INDEX('6. CY 2023'!AX:AX,MATCH($C59,'6. CY 2023'!A:A,0)),0),0) -> 128722.4015 | AS59: =IFERROR(IF(Y59="CY 2023",INDEX('6. CY 2023'!AY:AY,MATCH(C59,'6. CY 2023'!A:A,0)),0),0) -> 2037040.645 | AT59: =IFERROR(IF($Y59="CY 2023",INDEX('6. CY 2023'!AZ:AZ,MATCH($C59,'6. CY 2023'!A:A,0)),0),0) -> 2165763.046 | AW59: =IFERROR(IF(Y59="CY 2023",INDEX('6. CY 2023'!H:H,MATCH(C59,'6. CY 2023'!A:A,0)),0),0) -> 119795195.5
A60: 57 | B60: CHINO VALLEY MEDICAL CENTER | C60: 106361144 | D60: CHINO VALLEY MEDICAL CENTER | F60: =IFERROR(INDEX('8. 2019 HCAI (FEE) DAYS'!G:G,MATCH(C60,'8. 2019 HCAI (FEE) DAYS'!A:A,0)),0) -> 2019-01-01 | G60: =IFERROR(INDEX('8. 2019 HCAI (FEE) DAYS'!H:H,MATCH(C60,'8. 2019 HCAI (FEE) DAYS'!A:A,0)),0) -> 2019-12-31 | H60: =IFERROR(INDEX('8. 2019 HCAI (FEE) DAYS'!L:L,MATCH(C60,'8. 2019 HCAI (FEE) DAYS'!A:A,0)),0) -> 2019-01-01 | I60: =IFERROR(INDEX('11. Hospital Statuses'!M:M,MATCH(C60,'11. Hospital Statuses'!A:A,0)),"") -> Open | J60: San Bernardino | K60: 12 | L60: 1207 | M60: Investor | N60: Comparable | P60: https://www.cvmc.com/ | R60: VERITAS HEALTH SERVICES INCORPORATED | S60: 909-464-8600 | T60: 5451 WALNUT AVENUE | U60: CHINO | V60: 91710 | W60: TIMOTHY MORAN | X60: =IFERROR(IF(INDEX(#REF!,MATCH(C60,#REF!,0)),"Yes","No"),"") ->  | Y60: CY 2023 | Z60: =IFERROR(IF($Y60="CY 2023",INDEX('6. CY 2023'!S:S,MATCH($C60,'6. CY 2023'!$A:$A,0)),0),0) -> 0 | AA60: =IFERROR(IF($Y60="CY 2023",INDEX('6. CY 2023'!U:U,MATCH($C60,'6. CY 2023'!$A:$A,0)),0),0) -> 1645289.01 | AB60: =IFERROR(IF($Y60="CY 2023",INDEX('6. CY 2023'!W:W,MATCH($C60,'6. CY 2023'!$A:$A,0)),0),0) -> 1679088.94 | AC60: =IFERROR(IF($Y60="CY 2023",INDEX('6. CY 2023'!Y:Y,MATCH($C60,'6. CY 2023'!$A:$A,0)),0),0) -> 0 | AD60: =IFERROR(IF($Y60="CY 2023",INDEX('6. CY 2023'!AA:AA,MATCH($C60,'6. CY 2023'!$A:$A,0)),0),0) -> 2680260 | AE60: =IFERROR(IF($Y60="CY 2023",INDEX('6. CY 2023'!AC:AC,MATCH($C60,'6. CY 2023'!$A:$A,0)),0),0) -> 1468160 | AF60: =IFERROR(IF($Y60="CY 2023",INDEX('6. CY 2023'!AE:AE,MATCH($C60,'6. CY 2023'!$A:$A,0)),0),0) -> 7472797.95 | AG60: =IFERROR(IF(Y60="CY 2023",AF60/'4. Calculated Fee'!$D$32*'4. Calculated Fee'!$D$23,0),0) -> 1905090.011 | AH60: =IFERROR(IF($Y60="CY 2023",INDEX('6. CY 2023'!AE:AE,MATCH($C60,'6. CY 2023'!$A:$A,0)),0),0) -> 7472797.95 | AI60: =IFERROR(IF(Y60="CY 2023",INDEX('6. CY 2023'!AL:AL,MATCH(C60,'6. CY 2023'!A:A,0)),0),0) -> 2495797.3 | AJ60: =IFERROR(IF($Y60="CY 2023",INDEX('6. CY 2023'!AM:AM,MATCH($C60,'6. CY 2023'!$A:$A,0)),0),0) -> 2436622.994 | AK60: =IFERROR(IF($Y60="CY 2023",INDEX('6. CY 2023'!AN:AN,MATCH($C60,'6. CY 2023'!$A:$A,0)),0),0) -> 0 | AL60: =IFERROR(IF($Y60="CY 2023",INDEX('6. CY 2023'!AO:AO,MATCH($C60,'6. CY 2023'!$A:$A,0)),0),0) -> 0 | AM60: =IFERROR(IF($Y60="CY 2023",INDEX('6. CY 2023'!AP:AP,MATCH($C60,'6. CY 2023'!$A:$A,0)),0),0) -> 360000 | AN60: =IFERROR(IF($Y60="CY 2023",INDEX('6. CY 2023'!AQ:AQ,MATCH($C60,'6. CY 2023'!$A:$A,0)),0),0) -> 0 | AO60: =IFERROR(IF($Y60="CY 2023",INDEX('6. CY 2023'!AR:AR,MATCH($C60,'6. CY 2023'!$A:$A,0)),0),0) -> 0 | AP60: =IFERROR(IF($Y60="CY 2023",INDEX('6. CY 2023'!AS:AS,MATCH($C60,'6. CY 2023'!$A:$A,0)),0),0) -> 0 | AQ60: =IFERROR(IF($Y60="CY 2023",INDEX('6. CY 2023'!AV:AV,MATCH($C60,'6. CY 2023'!$A:$A,0)),0),0) -> 5292420.294 | AR60: =IFERROR(IF($Y60="CY 2023",INDEX('6. CY 2023'!AX:AX,MATCH($C60,'6. CY 2023'!A:A,0)),0),0) -> 1531895.467 | AS60: =IFERROR(IF(Y60="CY 2023",INDEX('6. CY 2023'!AY:AY,MATCH(C60,'6. CY 2023'!A:A,0)),0),0) -> 10166411.57 | AT60: =IFERROR(IF($Y60="CY 2023",INDEX('6. CY 2023'!AZ:AZ,MATCH($C60,'6. CY 2023'!A:A,0)),0),0) -> 11698307.04 | AW60: =IFERROR(IF(Y60="CY 2023",INDEX('6. CY 2023'!H:H,MATCH(C60,'6. CY 2023'!A:A,0)),0),0) -> 106933141.5
A61: 58 | B61: CITY OF HOPE HELFORD CLINICAL RESEARCH HOSPITAL | C61: 106190176 | D61: CITY OF HOPE HELFORD CLINICAL RESEARCH HOSPITAL | F61: =IFERROR(INDEX('8. 2019 HCAI (FEE) DAYS'!G:G,MATCH(C61,'8. 2019 HCAI (FEE) DAYS'!A:A,0)),0) -> 2018-10-01 | G61: =IFERROR(INDEX('8. 2019 HCAI (FEE) DAYS'!H:H,MATCH(C61,'8. 2019 HCAI (FEE) DAYS'!A:A,0)),0) -> 2019-09-30 | H61: =IFERROR(INDEX('8. 2019 HCAI (FEE) DAYS'!L:L,MATCH(C61,'8. 2019 HCAI (FEE) DAYS'!A:A,0)),0) -> 2018-10-01 | I61: =IFERROR(INDEX('11. Hospital Statuses'!M:M,MATCH(C61,'11. Hospital Statuses'!A:A,0)),"") -> Open | J61: Los Angeles | K61: 11 | L61: 913 | M61: Non-Profit | N61: Comparable | P61: https://www.cityofhope.org/homepage | R61: CITY OF HOPE NATIONAL MEDICAL CENTER | S61: 626-256-4673 | T61: 1500 EAST DUARTE ROAD | U61: DUARTE | V61: 91010 | W61: ROBERT W. STONE | X61: =IFERROR(IF(INDEX(#REF!,MATCH(C61,#REF!,0)),"Yes","No"),"") ->  | Y61: CY 2023 | Z61: =IFERROR(IF($Y61="CY 2023",INDEX('6. CY 2023'!S:S,MATCH($C61,'6. CY 2023'!$A:$A,0)),0),0) -> 0 | AA61: =IFERROR(IF($Y61="CY 2023",INDEX('6. CY 2023'!U:U,MATCH($C61,'6. CY 2023'!$A:$A,0)),0),0) -> 12923674.02 | AB61: =IFERROR(IF($Y61="CY 2023",INDEX('6. CY 2023'!W:W,MATCH($C61,'6. CY 2023'!$A:$A,0)),0),0) -> 8573900.36 | AC61: =IFERROR(IF($Y61="CY 2023",INDEX('6. CY 2023'!Y:Y,MATCH($C61,'6. CY 2023'!$A:$A,0)),0),0) -> 0 | AD61: =IFERROR(IF($Y61="CY 2023",INDEX('6. CY 2023'!AA:AA,MATCH($C61,'6. CY 2023'!$A:$A,0)),0),0) -> 2120400 | AE61: =IFERROR(IF($Y61="CY 2023",INDEX('6. CY 2023'!AC:AC,MATCH($C61,'6. CY 2023'!$A:$A,0)),0),0) -> 6960740 | AF61: =IFERROR(IF($Y61="CY 2023",INDEX('6. CY 2023'!AE:AE,MATCH($C61,'6. CY 2023'!$A:$A,0)),0),0) -> 30578714.38 | AG61: =IFERROR(IF(Y61="CY 2023",AF61/'4. Calculated Fee'!$D$32*'4. Calculated Fee'!$D$23,0),0) -> 7795634.742 | AH61: =IFERROR(IF($Y61="CY 2023",INDEX('6. CY 2023'!AE:AE,MATCH($C61,'6. CY 2023'!$A:$A,0)),0),0) -> 30578714.38 | AI61: =IFERROR(IF(Y61="CY 2023",INDEX('6. CY 2023'!AL:AL,MATCH(C61,'6. CY 2023'!A:A,0)),0),0) -> 74093847.29 | AJ61: =IFERROR(IF($Y61="CY 2023",INDEX('6. CY 2023'!AM:AM,MATCH($C61,'6. CY 2023'!$A:$A,0)),0),0) -> 9551777.292 | AK61: =IFERROR(IF($Y61="CY 2023",INDEX('6. CY 2023'!AN:AN,MATCH($C61,'6. CY 2023'!$A:$A,0)),0),0) -> 0 | AL61: =IFERROR(IF($Y61="CY 2023",INDEX('6. CY 2023'!AO:AO,MATCH($C61,'6. CY 2023'!$A:$A,0)),0),0) -> 0 | AM61: =IFERROR(IF($Y61="CY 2023",INDEX('6. CY 2023'!AP:AP,MATCH($C61,'6. CY 2023'!$A:$A,0)),0),0) -> 2130000 | AN61: =IFERROR(IF($Y61="CY 2023",INDEX('6. CY 2023'!AQ:AQ,MATCH($C61,'6. CY 2023'!$A:$A,0)),0),0) -> 0 | AO61: =IFERROR(IF($Y61="CY 2023",INDEX('6. CY 2023'!AR:AR,MATCH($C61,'6. CY 2023'!$A:$A,0)),0),0) -> 9495000 | AP61: =IFERROR(IF($Y61="CY 2023",INDEX('6. CY 2023'!AS:AS,MATCH($C61,'6. CY 2023'!$A:$A,0)),0),0) -> 0 | AQ61: =IFERROR(IF($Y61="CY 2023",INDEX('6. CY 2023'!AV:AV,MATCH($C61,'6. CY 2023'!$A:$A,0)),0),0) -> 95270624.58 | AR61: =IFERROR(IF($Y61="CY 2023",INDEX('6. CY 2023'!AX:AX,MATCH($C61,'6. CY 2023'!A:A,0)),0),0) -> 3327765.834 | AS61: =IFERROR(IF(Y61="CY 2023",INDEX('6. CY 2023'!AY:AY,MATCH(C61,'6. CY 2023'!A:A,0)),0),0) -> 8515486.2 | AT61: =IFERROR(IF($Y61="CY 2023",INDEX('6. CY 2023'!AZ:AZ,MATCH($C61,'6. CY 2023'!A:A,0)),0),0) -> 11843252.03 | AW61: =IFERROR(IF(Y61="CY 2023",INDEX('6. CY 2023'!H:H,MATCH(C61,'6. CY 2023'!A:A,0)),0),0) -> 1577749135
A62: 59 | B62: CLOVIS COMMUNITY MEDICAL CENTER | C62: 106100005 | D62: CLOVIS COMMUNITY MEDICAL CENTER | F62: =IFERROR(INDEX('8. 2019 HCAI (FEE) DAYS'!G:G,MATCH(C62,'8. 2019 HCAI (FEE) DAYS'!A:A,0)),0) -> 2018-09-01 | G62: =IFERROR(INDEX('8. 2019 HCAI (FEE) DAYS'!H:H,MATCH(C62,'8. 2019 HCAI (FEE) DAYS'!A:A,0)),0) -> 2019-08-31 | H62: =IFERROR(INDEX('8. 2019 HCAI (FEE) DAYS'!L:L,MATCH(C62,'8. 2019 HCAI (FEE) DAYS'!A:A,0)),0) -> 2018-09-01 | I62: =IFERROR(INDEX('11. Hospital Statuses'!M:M,MATCH(C62,'11. Hospital Statuses'!A:A,0)),"") -> Open | J62: Fresno | K62: 9 | L62: 605 | M62: Non-Profit | N62: Comparable | P62: https://www.communitymedical.org/home | R62: COMMUNITY MEDICAL CENTERS | S62: 559-324-4000 | T62: 2755 HERNDON AVE | U62: CLOVIS | V62: 93611 | W62: TIM A JOSLIN | X62: =IFERROR(IF(INDEX(#REF!,MATCH(C62,#REF!,0)),"Yes","No"),"") ->  | Y62: CY 2023 | Z62: =IFERROR(IF($Y62="CY 2023",INDEX('6. CY 2023'!S:S,MATCH($C62,'6. CY 2023'!$A:$A,0)),0),0) -> 0 | AA62: =IFERROR(IF($Y62="CY 2023",INDEX('6. CY 2023'!U:U,MATCH($C62,'6. CY 2023'!$A:$A,0)),0),0) -> 9738549.21 | AB62: =IFERROR(IF($Y62="CY 2023",INDEX('6. CY 2023'!W:W,MATCH($C62,'6. CY 2023'!$A:$A,0)),0),0) -> 8893952.74 | AC62: =IFERROR(IF($Y62="CY 2023",INDEX('6. CY 2023'!Y:Y,MATCH($C62,'6. CY 2023'!$A:$A,0)),0),0) -> 0 | AD62: =IFERROR(IF($Y62="CY 2023",INDEX('6. CY 2023'!AA:AA,MATCH($C62,'6. CY 2023'!$A:$A,0)),0),0) -> 8848020 | AE62: =IFERROR(IF($Y62="CY 2023",INDEX('6. CY 2023'!AC:AC,MATCH($C62,'6. CY 2023'!$A:$A,0)),0),0) -> 2727380 | AF62: =IFERROR(IF($Y62="CY 2023",INDEX('6. CY 2023'!AE:AE,MATCH($C62,'6. CY 2023'!$A:$A,0)),0),0) -> 30207901.95 | AG62: =IFERROR(IF(Y62="CY 2023",AF62/'4. Calculated Fee'!$D$32*'4. Calculated Fee'!$D$23,0),0) -> 7701101.066 | AH62: =IFERROR(IF($Y62="CY 2023",INDEX('6. CY 2023'!AE:AE,MATCH($C62,'6. CY 2023'!$A:$A,0)),0),0) -> 30207901.95 | AI62: =IFERROR(IF(Y62="CY 2023",INDEX('6. CY 2023'!AL:AL,MATCH(C62,'6. CY 2023'!A:A,0)),0),0) -> 5582791.757 | AJ62: =IFERROR(IF($Y62="CY 2023",INDEX('6. CY 2023'!AM:AM,MATCH($C62,'6. CY 2023'!$A:$A,0)),0),0) -> 5824228.208 | AK62: =IFERROR(IF($Y62="CY 2023",INDEX('6. CY 2023'!AN:AN,MATCH($C62,'6. CY 2023'!$A:$A,0)),0),0) -> 0 | AL62: =IFERROR(IF($Y62="CY 2023",INDEX('6. CY 2023'!AO:AO,MATCH($C62,'6. CY 2023'!$A:$A,0)),0),0) -> 0 | AM62: =IFERROR(IF($Y62="CY 2023",INDEX('6. CY 2023'!AP:AP,MATCH($C62,'6. CY 2023'!$A:$A,0)),0),0) -> 1087500 | AN62: =IFERROR(IF($Y62="CY 2023",INDEX('6. CY 2023'!AQ:AQ,MATCH($C62,'6. CY 2023'!$A:$A,0)),0),0) -> 0 | AO62: =IFERROR(IF($Y62="CY 2023",INDEX('6. CY 2023'!AR:AR,MATCH($C62,'6. CY 2023'!$A:$A,0)),0),0) -> 0 | AP62: =IFERROR(IF($Y62="CY 2023",INDEX('6. CY 2023'!AS:AS,MATCH($C62,'6. CY 2023'!$A:$A,0)),0),0) -> 0 | AQ62: =IFERROR(IF($Y62="CY 2023",INDEX('6. CY 2023'!AV:AV,MATCH($C62,'6. CY 2023'!$A:$A,0)),0),0) -> 12494519.96 | AR62: =IFERROR(IF($Y62="CY 2023",INDEX('6. CY 2023'!AX:AX,MATCH($C62,'6. CY 2023'!A:A,0)),0),0) -> 5051154.042 | AS62: =IFERROR(IF(Y62="CY 2023",INDEX('6. CY 2023'!AY:AY,MATCH(C62,'6. CY 2023'!A:A,0)),0),0) -> 43462547.93 | AT62: =IFERROR(IF($Y62="CY 2023",INDEX('6. CY 2023'!AZ:AZ,MATCH($C62,'6. CY 2023'!A:A,0)),0),0) -> 48513701.97 | AW62: =IFERROR(IF(Y62="CY 2023",INDEX('6. CY 2023'!H:H,MATCH(C62,'6. CY 2023'!A:A,0)),0),0) -> 569479586.8
A63: 60 | B63: COALINGA REGIONAL MEDICAL CENTER | C63: 106100697 | D63: COALINGA REGIONAL MEDICAL CENTER | F63: =IFERROR(INDEX('8. 2019 HCAI (FEE) DAYS'!G:G,MATCH(C63,'8. 2019 HCAI (FEE) DAYS'!A:A,0)),0) -> 2017-07-01 | G63: =IFERROR(INDEX('8. 2019 HCAI (FEE) DAYS'!H:H,MATCH(C63,'8. 2019 HCAI (FEE) DAYS'!A:A,0)),0) -> 2018-06-30 | H63: =IFERROR(INDEX('8. 2019 HCAI (FEE) DAYS'!L:L,MATCH(C63,'8. 2019 HCAI (FEE) DAYS'!A:A,0)),0) -> 2018-07-01 | I63: =IFERROR(INDEX('11. Hospital Statuses'!M:M,MATCH(C63,'11. Hospital Statuses'!A:A,0)),"") -> Open | X63: =IFERROR(IF(INDEX(#REF!,MATCH(C63,#REF!,0)),"Yes","No"),"") ->  | Y63: CY 2023 | Z63: =IFERROR(IF($Y63="CY 2023",INDEX('6. CY 2023'!S:S,MATCH($C63,'6. CY 2023'!$A:$A,0)),0),0) -> 0 | AA63: =IFERROR(IF($Y63="CY 2023",INDEX('6. CY 2023'!U:U,MATCH($C63,'6. CY 2023'!$A:$A,0)),0),0) -> 0 | AB63: =IFERROR(IF($Y63="CY 2023",INDEX('6. CY 2023'!W:W,MATCH($C63,'6. CY 2023'!$A:$A,0)),0),0) -> 0 | AC63: =IFERROR(IF($Y63="CY 2023",INDEX('6. CY 2023'!Y:Y,MATCH($C63,'6. CY 2023'!$A:$A,0)),0),0) -> 0 | AD63: =IFERROR(IF($Y63="CY 2023",INDEX('6. CY 2023'!AA:AA,MATCH($C63,'6. CY 2023'!$A:$A,0)),0),0) -> 0 | AE63: =IFERROR(IF($Y63="CY 2023",INDEX('6. CY 2023'!AC:AC,MATCH($C63,'6. CY 2023'!$A:$A,0)),0),0) -> 0 | AF63: =IFERROR(IF($Y63="CY 2023",INDEX('6. CY 2023'!AE:AE,MATCH($C63,'6. CY 2023'!$A:$A,0)),0),0) -> 0 | AG63: =IFERROR(IF(Y63="CY 2023",AF63/'4. Calculated Fee'!$D$32*'4. Calculated Fee'!$D$23,0),0) -> 0 | AH63: =IFERROR(IF($Y63="CY 2023",INDEX('6. CY 2023'!AE:AE,MATCH($C63,'6. CY 2023'!$A:$A,0)),0),0) -> 0 | AI63: =IFERROR(IF(Y63="CY 2023",INDEX('6. CY 2023'!AL:AL,MATCH(C63,'6. CY 2023'!A:A,0)),0),0) -> 819470.372 | AJ63: =IFERROR(IF($Y63="CY 2023",INDEX('6. CY 2023'!AM:AM,MATCH($C63,'6. CY 2023'!$A:$A,0)),0),0) -> 68849.39145 | AK63: =IFERROR(IF($Y63="CY 2023",INDEX('6. CY 2023'!AN:AN,MATCH($C63,'6. CY 2023'!$A:$A,0)),0),0) -> 0 | AL63: =IFERROR(IF($Y63="CY 2023",INDEX('6. CY 2023'!AO:AO,MATCH($C63,'6. CY 2023'!$A:$A,0)),0),0) -> 0 | AM63: =IFERROR(IF($Y63="CY 2023",INDEX('6. CY 2023'!AP:AP,MATCH($C63,'6. CY 2023'!$A:$A,0)),0),0) -> 0 | AN63: =IFERROR(IF($Y63="CY 2023",INDEX('6. CY 2023'!AQ:AQ,MATCH($C63,'6. CY 2023'!$A:$A,0)),0),0) -> 0 | AO63: =IFERROR(IF($Y63="CY 2023",INDEX('6. CY 2023'!AR:AR,MATCH($C63,'6. CY 2023'!$A:$A,0)),0),0) -> 0 | AP63: =IFERROR(IF($Y63="CY 2023",INDEX('6. CY 2023'!AS:AS,MATCH($C63,'6. CY 2023'!$A:$A,0)),0),0) -> 0 | AQ63: =IFERROR(IF($Y63="CY 2023",INDEX('6. CY 2023'!AV:AV,MATCH($C63,'6. CY 2023'!$A:$A,0)),0),0) -> 888319.7634 | AR63: =IFERROR(IF($Y63="CY 2023",INDEX('6. CY 2023'!AX:AX,MATCH($C63,'6. CY 2023'!A:A,0)),0),0) -> 351920.1452 | AS63: =IFERROR(IF(Y63="CY 2023",INDEX('6. CY 2023'!AY:AY,MATCH(C63,'6. CY 2023'!A:A,0)),0),0) -> 5257.01087 | AT63: =IFERROR(IF($Y63="CY 2023",INDEX('6. CY 2023'!AZ:AZ,MATCH($C63,'6. CY 2023'!A:A,0)),0),0) -> 357177.1561 | AW63: =IFERROR(IF(Y63="CY 2023",INDEX('6. CY 2023'!H:H,MATCH(C63,'6. CY 2023'!A:A,0)),0),0) -> 16820486.9
A64: 61 | B64: COAST PLAZA HOSPITAL | C64: 106190766 | D64: COAST PLAZA HOSPITAL | F64: =IFERROR(INDEX('8. 2019 HCAI (FEE) DAYS'!G:G,MATCH(C64,'8. 2019 HCAI (FEE) DAYS'!A:A,0)),0) -> 2019-01-01 | G64: =IFERROR(INDEX('8. 2019 HCAI (FEE) DAYS'!H:H,MATCH(C64,'8. 2019 HCAI (FEE) DAYS'!A:A,0)),0) -> 2019-12-31 | H64: =IFERROR(INDEX('8. 2019 HCAI (FEE) DAYS'!L:L,MATCH(C64,'8. 2019 HCAI (FEE) DAYS'!A:A,0)),0) -> 2019-01-01 | I64: =IFERROR(INDEX('11. Hospital Statuses'!M:M,MATCH(C64,'11. Hospital Statuses'!A:A,0)),"") -> Open | J64: Los Angeles | K64: 11 | L64: 921 | M64: Investor | N64: Comparable | P64: https://www.coastplazahospital.com/ | R64: AVANTI HOSPITALS, LLC | S64: 562-868-3751 | T64: 13100 STUDEBAKER ROAD | U64: NORWALK | V64: 90650 | W64: PATRICK RAFFERTY | X64: =IFERROR(IF(INDEX(#REF!,MATCH(C64,#REF!,0)),"Yes","No"),"") ->  | Y64: CY 2023 | Z64: =IFERROR(IF($Y64="CY 2023",INDEX('6. CY 2023'!S:S,MATCH($C64,'6. CY 2023'!$A:$A,0)),0),0) -> 0 | AA64: =IFERROR(IF($Y64="CY 2023",INDEX('6. CY 2023'!U:U,MATCH($C64,'6. CY 2023'!$A:$A,0)),0),0) -> 637827.72 | AB64: =IFERROR(IF($Y64="CY 2023",INDEX('6. CY 2023'!W:W,MATCH($C64,'6. CY 2023'!$A:$A,0)),0),0) -> 1503917.74 | AC64: =IFERROR(IF($Y64="CY 2023",INDEX('6. CY 2023'!Y:Y,MATCH($C64,'6. CY 2023'!$A:$A,0)),0),0) -> 0 | AD64: =IFERROR(IF($Y64="CY 2023",INDEX('6. CY 2023'!AA:AA,MATCH($C64,'6. CY 2023'!$A:$A,0)),0),0) -> 1964160 | AE64: =IFERROR(IF($Y64="CY 2023",INDEX('6. CY 2023'!AC:AC,MATCH($C64,'6. CY 2023'!$A:$A,0)),0),0) -> 786160 | AF64: =IFERROR(IF($Y64="CY 2023",INDEX('6. CY 2023'!AE:AE,MATCH($C64,'6. CY 2023'!$A:$A,0)),0),0) -> 4892065.46 | AG64: =IFERROR(IF(Y64="CY 2023",AF64/'4. Calculated Fee'!$D$32*'4. Calculated Fee'!$D$23,0),0) -> 1247166.738 | AH64: =IFERROR(IF($Y64="CY 2023",INDEX('6. CY 2023'!AE:AE,MATCH($C64,'6. CY 2023'!$A:$A,0)),0),0) -> 4892065.46 | AI64: =IFERROR(IF(Y64="CY 2023",INDEX('6. CY 2023'!AL:AL,MATCH(C64,'6. CY 2023'!A:A,0)),0),0) -> 949122.9647 | AJ64: =IFERROR(IF($Y64="CY 2023",INDEX('6. CY 2023'!AM:AM,MATCH($C64,'6. CY 2023'!$A:$A,0)),0),0) -> 1152151.535 | AK64: =IFERROR(IF($Y64="CY 2023",INDEX('6. CY 2023'!AN:AN,MATCH($C64,'6. CY 2023'!$A:$A,0)),0),0) -> 0 | AL64: =IFERROR(IF($Y64="CY 2023",INDEX('6. CY 2023'!AO:AO,MATCH($C64,'6. CY 2023'!$A:$A,0)),0),0) -> 0 | AM64: =IFERROR(IF($Y64="CY 2023",INDEX('6. CY 2023'!AP:AP,MATCH($C64,'6. CY 2023'!$A:$A,0)),0),0) -> 392500 | AN64: =IFERROR(IF($Y64="CY 2023",INDEX('6. CY 2023'!AQ:AQ,MATCH($C64,'6. CY 2023'!$A:$A,0)),0),0) -> 0 | AO64: =IFERROR(IF($Y64="CY 2023",INDEX('6. CY 2023'!AR:AR,MATCH($C64,'6. CY 2023'!$A:$A,0)),0),0) -> 0 | AP64: =IFERROR(IF($Y64="CY 2023",INDEX('6. CY 2023'!AS:AS,MATCH($C64,'6. CY 2023'!$A:$A,0)),0),0) -> 0 | AQ64: =IFERROR(IF($Y64="CY 2023",INDEX('6. CY 2023'!AV:AV,MATCH($C64,'6. CY 2023'!$A:$A,0)),0),0) -> 2493774.5 | AR64: =IFERROR(IF($Y64="CY 2023",INDEX('6. CY 2023'!AX:AX,MATCH($C64,'6. CY 2023'!A:A,0)),0),0) -> 672978.8961 | AS64: =IFERROR(IF(Y64="CY 2023",INDEX('6. CY 2023'!AY:AY,MATCH(C64,'6. CY 2023'!A:A,0)),0),0) -> 6072250.016 | AT64: =IFERROR(IF($Y64="CY 2023",INDEX('6. CY 2023'!AZ:AZ,MATCH($C64,'6. CY 2023'!A:A,0)),0),0) -> 6745228.912 | AW64: =IFERROR(IF(Y64="CY 2023",INDEX('6. CY 2023'!H:H,MATCH(C64,'6. CY 2023'!A:A,0)),0),0) -> 47408099.73 | AX64: =SUM(AG64:AG67) -> 16518089.96
A65: 62 | B65: COLLEGE HOSPITAL | C65: 106190184 | D65: COLLEGE HOSPITAL | F65: =IFERROR(INDEX('8. 2019 HCAI (FEE) DAYS'!G:G,MATCH(C65,'8. 2019 HCAI (FEE) DAYS'!A:A,0)),0) -> 2019-01-01 | G65: =IFERROR(INDEX('8. 2019 HCAI (FEE) DAYS'!H:H,MATCH(C65,'8. 2019 HCAI (FEE) DAYS'!A:A,0)),0) -> 2019-12-31 | H65: =IFERROR(INDEX('8. 2019 HCAI (FEE) DAYS'!L:L,MATCH(C65,'8. 2019 HCAI (FEE) DAYS'!A:A,0)),0) -> 2019-01-01 | I65: =IFERROR(INDEX('11. Hospital Statuses'!M:M,MATCH(C65,'11. Hospital Statuses'!A:A,0)),"") -> Open | J65: Los Angeles | K65: 11 | L65: 921 | M65: Investor | N65: Comparable | P65: https://www.chc.la/cerHome | R65: CERRITOS TOWNHOUSE INVESTMENT CO. | S65: 562-924-9581 | T65: 10802 COLLEGE PLACE | U65: CERRITOS | V65: 90703-1570 | W65: STEPHEN WITT | X65: =IFERROR(IF(INDEX(#REF!,MATCH(C65,#REF!,0)),"Yes","No"),"") ->  | Y65: CY 2023 | Z65: =IFERROR(IF($Y65="CY 2023",INDEX('6. CY 2023'!S:S,MATCH($C65,'6. CY 2023'!$A:$A,0)),0),0) -> 0 | AA65: =IFERROR(IF($Y65="CY 2023",INDEX('6. CY 2023'!U:U,MATCH($C65,'6. CY 2023'!$A:$A,0)),0),0) -> 0 | AB65: =IFERROR(IF($Y65="CY 2023",INDEX('6. CY 2023'!W:W,MATCH($C65,'6. CY 2023'!$A:$A,0)),0),0) -> 0 | AC65: =IFERROR(IF($Y65="CY 2023",INDEX('6. CY 2023'!Y:Y,MATCH($C65,'6. CY 2023'!$A:$A,0)),0),0) -> 0 | AD65: =IFERROR(IF($Y65="CY 2023",INDEX('6. CY 2023'!AA:AA,MATCH($C65,'6. CY 2023'!$A:$A,0)),0),0) -> 0 | AE65: =IFERROR(IF($Y65="CY 2023",INDEX('6. CY 2023'!AC:AC,MATCH($C65,'6. CY 2023'!$A:$A,0)),0),0) -> 0 | AF65: =IFERROR(IF($Y65="CY 2023",INDEX('6. CY 2023'!AE:AE,MATCH($C65,'6. CY 2023'!$A:$A,0)),0),0) -> 0 | AG65: =IFERROR(IF(Y65="CY 2023",AF65/'4. Calculated Fee'!$D$32*'4. Calculated Fee'!$D$23,0),0) -> 0 | AH65: =IFERROR(IF($Y65="CY 2023",INDEX('6. CY 2023'!AE:AE,MATCH($C65,'6. CY 2023'!$A:$A,0)),0),0) -> 0 | AI65: =IFERROR(IF(Y65="CY 2023",INDEX('6. CY 2023'!AL:AL,MATCH(C65,'6. CY 2023'!A:A,0)),0),0) -> 0 | AJ65: =IFERROR(IF($Y65="CY 2023",INDEX('6. CY 2023'!AM:AM,MATCH($C65,'6. CY 2023'!$A:$A,0)),0),0) -> 0 | AK65: =IFERROR(IF($Y65="CY 2023",INDEX('6. CY 2023'!AN:AN,MATCH($C65,'6. CY 2023'!$A:$A,0)),0),0) -> 0 | AL65: =IFERROR(IF($Y65="CY 2023",INDEX('6. CY 2023'!AO:AO,MATCH($C65,'6. CY 2023'!$A:$A,0)),0),0) -> 0 | AM65: =IFERROR(IF($Y65="CY 2023",INDEX('6. CY 2023'!AP:AP,MATCH($C65,'6. CY 2023'!$A:$A,0)),0),0) -> 0 | AN65: =IFERROR(IF($Y65="CY 2023",INDEX('6. CY 2023'!AQ:AQ,MATCH($C65,'6. CY 2023'!$A:$A,0)),0),0) -> 0 | AO65: =IFERROR(IF($Y65="CY 2023",INDEX('6. CY 2023'!AR:AR,MATCH($C65,'6. CY 2023'!$A:$A,0)),0),0) -> 0 | AP65: =IFERROR(IF($Y65="CY 2023",INDEX('6. CY 2023'!AS:AS,MATCH($C65,'6. CY 2023'!$A:$A,0)),0),0) -> 0 | AQ65: =IFERROR(IF($Y65="CY 2023",INDEX('6. CY 2023'!AV:AV,MATCH($C65,'6. CY 2023'!$A:$A,0)),0),0) -> 0 | AR65: =IFERROR(IF($Y65="CY 2023",INDEX('6. CY 2023'!AX:AX,MATCH($C65,'6. CY 2023'!A:A,0)),0),0) -> 0 | AS65: =IFERROR(IF(Y65="CY 2023",INDEX('6. CY 2023'!AY:AY,MATCH(C65,'6. CY 2023'!A:A,0)),0),0) -> 0 | AT65: =IFERROR(IF($Y65="CY 2023",INDEX('6. CY 2023'!AZ:AZ,MATCH($C65,'6. CY 2023'!A:A,0)),0),0) -> 0 | AW65: =IFERROR(IF(Y65="CY 2023",INDEX('6. CY 2023'!H:H,MATCH(C65,'6. CY 2023'!A:A,0)),0),0) -> 96840533.87
A66: 63 | B66: COLLEGE HOSPITAL COSTA MESA | C66: 106301155 | D66: COLLEGE HOSPITAL COSTA MESA | F66: =IFERROR(INDEX('8. 2019 HCAI (FEE) DAYS'!G:G,MATCH(C66,'8. 2019 HCAI (FEE) DAYS'!A:A,0)),0) -> 2019-01-01 | G66: =IFERROR(INDEX('8. 2019 HCAI (FEE) DAYS'!H:H,MATCH(C66,'8. 2019 HCAI (FEE) DAYS'!A:A,0)),0) -> 2019-12-31 | H66: =IFERROR(INDEX('8. 2019 HCAI (FEE) DAYS'!L:L,MATCH(C66,'8. 2019 HCAI (FEE) DAYS'!A:A,0)),0) -> 2019-01-01 | I66: =IFERROR(INDEX('11. Hospital Statuses'!M:M,MATCH(C66,'11. Hospital Statuses'!A:A,0)),"") -> Open | J66: Orange | K66: 13 | L66: 1016 | M66: Investor | N66: Comparable | P66: https://www.chc.la/index.php?q=cosHome | R66: CHCM, INC. | S66: 949-642-2734 | T66: 301 VICTORIA STREET | U66: COSTA MESA | V66: 92627 | W66: SUSAN L. TAYLOR, JD. | X66: =IFERROR(IF(INDEX(#REF!,MATCH(C66,#REF!,0)),"Yes","No"),"") ->  | Y66: CY 2023 | Z66: =IFERROR(IF($Y66="CY 2023",INDEX('6. CY 2023'!S:S,MATCH($C66,'6. CY 2023'!$A:$A,0)),0),0) -> 0 | AA66: =IFERROR(IF($Y66="CY 2023",INDEX('6. CY 2023'!U:U,MATCH($C66,'6. CY 2023'!$A:$A,0)),0),0) -> 435678.66 | AB66: =IFERROR(IF($Y66="CY 2023",INDEX('6. CY 2023'!W:W,MATCH($C66,'6. CY 2023'!$A:$A,0)),0),0) -> 669299.96 | AC66: =IFERROR(IF($Y66="CY 2023",INDEX('6. CY 2023'!Y:Y,MATCH($C66,'6. CY 2023'!$A:$A,0)),0),0) -> 0 | AD66: =IFERROR(IF($Y66="CY 2023",INDEX('6. CY 2023'!AA:AA,MATCH($C66,'6. CY 2023'!$A:$A,0)),0),0) -> 0 | AE66: =IFERROR(IF($Y66="CY 2023",INDEX('6. CY 2023'!AC:AC,MATCH($C66,'6. CY 2023'!$A:$A,0)),0),0) -> 21248020 | AF66: =IFERROR(IF($Y66="CY 2023",INDEX('6. CY 2023'!AE:AE,MATCH($C66,'6. CY 2023'!$A:$A,0)),0),0) -> 22352998.62 | AG66: =IFERROR(IF(Y66="CY 2023",AF66/'4. Calculated Fee'!$D$32*'4. Calculated Fee'!$D$23,0),0) -> 5698598.393 | AH66: =IFERROR(IF($Y66="CY 2023",INDEX('6. CY 2023'!AE:AE,MATCH($C66,'6. CY 2023'!$A:$A,0)),0),0) -> 22352998.62 | AI66: =IFERROR(IF(Y66="CY 2023",INDEX('6. CY 2023'!AL:AL,MATCH(C66,'6. CY 2023'!A:A,0)),0),0) -> 0 | AJ66: =IFERROR(IF($Y66="CY 2023",INDEX('6. CY 2023'!AM:AM,MATCH($C66,'6. CY 2023'!$A:$A,0)),0),0) -> 1941767.993 | AK66: =IFERROR(IF($Y66="CY 2023",INDEX('6. CY 2023'!AN:AN,MATCH($C66,'6. CY 2023'!$A:$A,0)),0),0) -> 0 | AL66: =IFERROR(IF($Y66="CY 2023",INDEX('6. CY 2023'!AO:AO,MATCH($C66,'6. CY 2023'!$A:$A,0)),0),0) -> 4090125 | AM66: =IFERROR(IF($Y66="CY 2023",INDEX('6. CY 2023'!AP:AP,MATCH($C66,'6. CY 2023'!$A:$A,0)),0),0) -> 0 | AN66: =IFERROR(IF($Y66="CY 2023",INDEX('6. CY 2023'!AQ:AQ,MATCH($C66,'6. CY 2023'!$A:$A,0)),0),0) -> 0 | AO66: =IFERROR(IF($Y66="CY 2023",INDEX('6. CY 2023'!AR:AR,MATCH($C66,'6. CY 2023'!$A:$A,0)),0),0) -> 0 | AP66: =IFERROR(IF($Y66="CY 2023",INDEX('6. CY 2023'!AS:AS,MATCH($C66,'6. CY 2023'!$A:$A,0)),0),0) -> 0 | AQ66: =IFERROR(IF($Y66="CY 2023",INDEX('6. CY 2023'!AV:AV,MATCH($C66,'6. CY 2023'!$A:$A,0)),0),0) -> 6031892.993 | AR66: =IFERROR(IF($Y66="CY 2023",INDEX('6. CY 2023'!AX:AX,MATCH($C66,'6. CY 2023'!A:A,0)),0),0) -> 52096326.5 | AS66: =IFERROR(IF(Y66="CY 2023",INDEX('6. CY 2023'!AY:AY,MATCH(C66,'6. CY 2023'!A:A,0)),0),0) -> 168866.2461 | AT66: =IFERROR(IF($Y66="CY 2023",INDEX('6. CY 2023'!AZ:AZ,MATCH($C66,'6. CY 2023'!A:A,0)),0),0) -> 52265192.75 | AW66: =IFERROR(IF(Y66="CY 2023",INDEX('6. CY 2023'!H:H,MATCH(C66,'6. CY 2023'!A:A,0)),0),0) -> 146114163
A67: 64 | B67: COLLEGE MEDICAL CENTER | C67: 106190587 | D67: COLLEGE MEDICAL CENTER | F67: =IFERROR(INDEX('8. 2019 HCAI (FEE) DAYS'!G:G,MATCH(C67,'8. 2019 HCAI (FEE) DAYS'!A:A,0)),0) -> 2019-01-01 | G67: =IFERROR(INDEX('8. 2019 HCAI (FEE) DAYS'!H:H,MATCH(C67,'8. 2019 HCAI (FEE) DAYS'!A:A,0)),0) -> 2019-12-31 | H67: =IFERROR(INDEX('8. 2019 HCAI (FEE) DAYS'!L:L,MATCH(C67,'8. 2019 HCAI (FEE) DAYS'!A:A,0)),0) -> 2019-01-01 | I67: =IFERROR(INDEX('11. Hospital Statuses'!M:M,MATCH(C67,'11. Hospital Statuses'!A:A,0)),"") -> Open | J67: Los Angeles | K67: 11 | L67: 933 | M67: Investor | N67: Comparable | P67: https://www.collegemedicalcenter.com/ | R67: CHLB, LLC | S67: 562-997-2000 | T67: 2776 PACIFIC AVE | U67: LONG BEACH | V67: 90806 | W67: JOE AVELINO | X67: =IFERROR(IF(INDEX(#REF!,MATCH(C67,#REF!,0)),"Yes","No"),"") ->  | Y67: CY 2023 | Z67: =IFERROR(IF($Y67="CY 2023",INDEX('6. CY 2023'!S:S,MATCH($C67,'6. CY 2023'!$A:$A,0)),0),0) -> 0 | AA67: =IFERROR(IF($Y67="CY 2023",INDEX('6. CY 2023'!U:U,MATCH($C67,'6. CY 2023'!$A:$A,0)),0),0) -> 1038476.94 | AB67: =IFERROR(IF($Y67="CY 2023",INDEX('6. CY 2023'!W:W,MATCH($C67,'6. CY 2023'!$A:$A,0)),0),0) -> 3733701.14 | AC67: =IFERROR(IF($Y67="CY 2023",INDEX('6. CY 2023'!Y:Y,MATCH($C67,'6. CY 2023'!$A:$A,0)),0),0) -> 0 | AD67: =IFERROR(IF($Y67="CY 2023",INDEX('6. CY 2023'!AA:AA,MATCH($C67,'6. CY 2023'!$A:$A,0)),0),0) -> 2799920 | AE67: =IFERROR(IF($Y67="CY 2023",INDEX('6. CY 2023'!AC:AC,MATCH($C67,'6. CY 2023'!$A:$A,0)),0),0) -> 29975760 | AF67: =IFERROR(IF($Y67="CY 2023",INDEX('6. CY 2023'!AE:AE,MATCH($C67,'6. CY 2023'!$A:$A,0)),0),0) -> 37547858.08 | AG67: =IFERROR(IF(Y67="CY 2023",AF67/'4. Calculated Fee'!$D$32*'4. Calculated Fee'!$D$23,0),0) -> 9572324.83 | AH67: =IFERROR(IF($Y67="CY 2023",INDEX('6. CY 2023'!AE:AE,MATCH($C67,'6. CY 2023'!$A:$A,0)),0),0) -> 37547858.08 | AI67: =IFERROR(IF(Y67="CY 2023",INDEX('6. CY 2023'!AL:AL,MATCH(C67,'6. CY 2023'!A:A,0)),0),0) -> 507807.2448 | AJ67: =IFERROR(IF($Y67="CY 2023",INDEX('6. CY 2023'!AM:AM,MATCH($C67,'6. CY 2023'!$A:$A,0)),0),0) -> 2639943.853 | AK67: =IFERROR(IF($Y67="CY 2023",INDEX('6. CY 2023'!AN:AN,MATCH($C67,'6. CY 2023'!$A:$A,0)),0),0) -> 0 | AL67: =IFERROR(IF($Y67="CY 2023",INDEX('6. CY 2023'!AO:AO,MATCH($C67,'6. CY 2023'!$A:$A,0)),0),0) -> 8101275 | AM67: =IFERROR(IF($Y67="CY 2023",INDEX('6. CY 2023'!AP:AP,MATCH($C67,'6. CY 2023'!$A:$A,0)),0),0) -> 0 | AN67: =IFERROR(IF($Y67="CY 2023",INDEX('6. CY 2023'!AQ:AQ,MATCH($C67,'6. CY 2023'!$A:$A,0)),0),0) -> 0 | AO67: =IFERROR(IF($Y67="CY 2023",INDEX('6. CY 2023'!AR:AR,MATCH($C67,'6. CY 2023'!$A:$A,0)),0),0) -> 0 | AP67: =IFERROR(IF($Y67="CY 2023",INDEX('6. CY 2023'!AS:AS,MATCH($C67,'6. CY 2023'!$A:$A,0)),0),0) -> 0 | AQ67: =IFERROR(IF($Y67="CY 2023",INDEX('6. CY 2023'!AV:AV,MATCH($C67,'6. CY 2023'!$A:$A,0)),0),0) -> 11249026.1 | AR67: =IFERROR(IF($Y67="CY 2023",INDEX('6. CY 2023'!AX:AX,MATCH($C67,'6. CY 2023'!A:A,0)),0),0) -> 62931986.03 | AS67: =IFERROR(IF(Y67="CY 2023",INDEX('6. CY 2023'!AY:AY,MATCH(C67,'6. CY 2023'!A:A,0)),0),0) -> 6575314.1 | AT67: =IFERROR(IF($Y67="CY 2023",INDEX('6. CY 2023'!AZ:AZ,MATCH($C67,'6. CY 2023'!A:A,0)),0),0) -> 69507300.13 | AW67: =IFERROR(IF(Y67="CY 2023",INDEX('6. CY 2023'!H:H,MATCH(C67,'6. CY 2023'!A:A,0)),0),0) -> 175994140.6
A68: 65 | B68: COLORADO RIVER MEDICAL CENTER | C68: 106361458 | D68: COLORADO RIVER MEDICAL CENTER | F68: =IFERROR(INDEX('8. 2019 HCAI (FEE) DAYS'!G:G,MATCH(C68,'8. 2019 HCAI (FEE) DAYS'!A:A,0)),0) -> 2019-01-01 | G68: =IFERROR(INDEX('8. 2019 HCAI (FEE) DAYS'!H:H,MATCH(C68,'8. 2019 HCAI (FEE) DAYS'!A:A,0)),0) -> 2019-12-31 | H68: =IFERROR(INDEX('8. 2019 HCAI (FEE) DAYS'!L:L,MATCH(C68,'8. 2019 HCAI (FEE) DAYS'!A:A,0)),0) -> 2019-01-01 | I68: =IFERROR(INDEX('11. Hospital Statuses'!M:M,MATCH(C68,'11. Hospital Statuses'!A:A,0)),"") -> Open | J68: San Bernardino | K68: 12 | L68: 1215 | M68: Non-Profit | N68: Comparable | O68: Rural | P68: https://crmccares.com/ | R68: COMMUNITY HEALTH PARTNER, INC. | S68: 760-326-7267 | T68: 1401 BAILEY AVE | U68: NEEDLES | V68: 92363 | W68: STEVE LOPEZ | X68: =IFERROR(IF(INDEX(#REF!,MATCH(C68,#REF!,0)),"Yes","No"),"") ->  | Y68: CY 2023 | Z68: =IFERROR(IF($Y68="CY 2023",INDEX('6. CY 2023'!S:S,MATCH($C68,'6. CY 2023'!$A:$A,0)),0),0) -> 0 | AA68: =IFERROR(IF($Y68="CY 2023",INDEX('6. CY 2023'!U:U,MATCH($C68,'6. CY 2023'!$A:$A,0)),0),0) -> 0 | AB68: =IFERROR(IF($Y68="CY 2023",INDEX('6. CY 2023'!W:W,MATCH($C68,'6. CY 2023'!$A:$A,0)),0),0) -> 0 | AC68: =IFERROR(IF($Y68="CY 2023",INDEX('6. CY 2023'!Y:Y,MATCH($C68,'6. CY 2023'!$A:$A,0)),0),0) -> 0 | AD68: =IFERROR(IF($Y68="CY 2023",INDEX('6. CY 2023'!AA:AA,MATCH($C68,'6. CY 2023'!$A:$A,0)),0),0) -> 0 | AE68: =IFERROR(IF($Y68="CY 2023",INDEX('6. CY 2023'!AC:AC,MATCH($C68,'6. CY 2023'!$A:$A,0)),0),0) -> 0 | AF68: =IFERROR(IF($Y68="CY 2023",INDEX('6. CY 2023'!AE:AE,MATCH($C68,'6. CY 2023'!$A:$A,0)),0),0) -> 0 | AG68: =IFERROR(IF(Y68="CY 2023",AF68/'4. Calculated Fee'!$D$32*'4. Calculated Fee'!$D$23,0),0) -> 0 | AH68: =IFERROR(IF($Y68="CY 2023",INDEX('6. CY 2023'!AE:AE,MATCH($C68,'6. CY 2023'!$A:$A,0)),0),0) -> 0 | AI68: =IFERROR(IF(Y68="CY 2023",INDEX('6. CY 2023'!AL:AL,MATCH(C68,'6. CY 2023'!A:A,0)),0),0) -> 1655125.014 | AJ68: =IFERROR(IF($Y68="CY 2023",INDEX('6. CY 2023'!AM:AM,MATCH($C68,'6. CY 2023'!$A:$A,0)),0),0) -> 448596.8162 | AK68: =IFERROR(IF($Y68="CY 2023",INDEX('6. CY 2023'!AN:AN,MATCH($C68,'6. CY 2023'!$A:$A,0)),0),0) -> 0 | AL68: =IFERROR(IF($Y68="CY 2023",INDEX('6. CY 2023'!AO:AO,MATCH($C68,'6. CY 2023'!$A:$A,0)),0),0) -> 0 | AM68: =IFERROR(IF($Y68="CY 2023",INDEX('6. CY 2023'!AP:AP,MATCH($C68,'6. CY 2023'!$A:$A,0)),0),0) -> 0 | AN68: =IFERROR(IF($Y68="CY 2023",INDEX('6. CY 2023'!AQ:AQ,MATCH($C68,'6. CY 2023'!$A:$A,0)),0),0) -> 0 | AO68: =IFERROR(IF($Y68="CY 2023",INDEX('6. CY 2023'!AR:AR,MATCH($C68,'6. CY 2023'!$A:$A,0)),0),0) -> 0 | AP68: =IFERROR(IF($Y68="CY 2023",INDEX('6. CY 2023'!AS:AS,MATCH($C68,'6. CY 2023'!$A:$A,0)),0),0) -> 0 | AQ68: =IFERROR(IF($Y68="CY 2023",INDEX('6. CY 2023'!AV:AV,MATCH($C68,'6. CY 2023'!$A:$A,0)),0),0) -> 2103721.83 | AR68: =IFERROR(IF($Y68="CY 2023",INDEX('6. CY 2023'!AX:AX,MATCH($C68,'6. CY 2023'!A:A,0)),0),0) -> 2236.424299 | AS68: =IFERROR(IF(Y68="CY 2023",INDEX('6. CY 2023'!AY:AY,MATCH(C68,'6. CY 2023'!A:A,0)),0),0) -> 782322.1951 | AT68: =IFERROR(IF($Y68="CY 2023",INDEX('6. CY 2023'!AZ:AZ,MATCH($C68,'6. CY 2023'!A:A,0)),0),0) -> 784558.6194 | AW68: =IFERROR(IF(Y68="CY 2023",INDEX('6. CY 2023'!H:H,MATCH(C68,'6. CY 2023'!A:A,0)),0),0) -> 11400546.46
A69: 66 | B69: COLUSA MEDICAL CENTER | C69: 106060870 | D69: COLUSA MEDICAL CENTER | F69: =IFERROR(INDEX('8. 2019 HCAI (FEE) DAYS'!G:G,MATCH(C69,'8. 2019 HCAI (FEE) DAYS'!A:A,0)),0) -> 2019-01-01 | G69: =IFERROR(INDEX('8. 2019 HCAI (FEE) DAYS'!H:H,MATCH(C69,'8. 2019 HCAI (FEE) DAYS'!A:A,0)),0) -> 2019-12-31 | H69: =IFERROR(INDEX('8. 2019 HCAI (FEE) DAYS'!L:L,MATCH(C69,'8. 2019 HCAI (FEE) DAYS'!A:A,0)),0) -> 2019-01-01 | I69: =IFERROR(INDEX('11. Hospital Statuses'!M:M,MATCH(C69,'11. Hospital Statuses'!A:A,0)),"") -> Open | J69: Colusa | K69: 1 | L69: 225 | M69: Non-Profit | N69: Comparable | O69: Rural | P69: https://colusamedcenter.com/ | R69: AMERICAN SPECIALTY HEALTHCARE, INC | S69: 530-619-0800 | T69: 199 E WEBSTER ST | U69: COLUSA | V69: 95932-3310 | W69: SHAMSHER SINGH | X69: =IFERROR(IF(INDEX(#REF!,MATCH(C69,#REF!,0)),"Yes","No"),"") ->  | Y69: CY 2023 | Z69: =IFERROR(IF($Y69="CY 2023",INDEX('6. CY 2023'!S:S,MATCH($C69,'6. CY 2023'!$A:$A,0)),0),0) -> 0 | AA69: =IFERROR(IF($Y69="CY 2023",INDEX('6. CY 2023'!U:U,MATCH($C69,'6. CY 2023'!$A:$A,0)),0),0) -> 0 | AB69: =IFERROR(IF($Y69="CY 2023",INDEX('6. CY 2023'!W:W,MATCH($C69,'6. CY 2023'!$A:$A,0)),0),0) -> 0 | AC69: =IFERROR(IF($Y69="CY 2023",INDEX('6. CY 2023'!Y:Y,MATCH($C69,'6. CY 2023'!$A:$A,0)),0),0) -> 0 | AD69: =IFERROR(IF($Y69="CY 2023",INDEX('6. CY 2023'!AA:AA,MATCH($C69,'6. CY 2023'!$A:$A,0)),0),0) -> 0 | AE69: =IFERROR(IF($Y69="CY 2023",INDEX('6. CY 2023'!AC:AC,MATCH($C69,'6. CY 2023'!$A:$A,0)),0),0) -> 0 | AF69: =IFERROR(IF($Y69="CY 2023",INDEX('6. CY 2023'!AE:AE,MATCH($C69,'6. CY 2023'!$A:$A,0)),0),0) -> 0 | AG69: =IFERROR(IF(Y69="CY 2023",AF69/'4. Calculated Fee'!$D$32*'4. Calculated Fee'!$D$23,0),0) -> 0 | AH69: =IFERROR(IF($Y69="CY 2023",INDEX('6. CY 2023'!AE:AE,MATCH($C69,'6. CY 2023'!$A:$A,0)),0),0) -> 0 | AI69: =IFERROR(IF(Y69="CY 2023",INDEX('6. CY 2023'!AL:AL,MATCH(C69,'6. CY 2023'!A:A,0)),0),0) -> 242135.532 | AJ69: =IFERROR(IF($Y69="CY 2023",INDEX('6. CY 2023'!AM:AM,MATCH($C69,'6. CY 2023'!$A:$A,0)),0),0) -> 160289.9895 | AK69: =IFERROR(IF($Y69="CY 2023",INDEX('6. CY 2023'!AN:AN,MATCH($C69,'6. CY 2023'!$A:$A,0)),0),0) -> 0 | AL69: =IFERROR(IF($Y69="CY 2023",INDEX('6. CY 2023'!AO:AO,MATCH($C69,'6. CY 2023'!$A:$A,0)),0),0) -> 0 | AM69: =IFERROR(IF($Y69="CY 2023",INDEX('6. CY 2023'!AP:AP,MATCH($C69,'6. CY 2023'!$A:$A,0)),0),0) -> 0 | AN69: =IFERROR(IF($Y69="CY 2023",INDEX('6. CY 2023'!AQ:AQ,MATCH($C69,'6. CY 2023'!$A:$A,0)),0),0) -> 0 | AO69: =IFERROR(IF($Y69="CY 2023",INDEX('6. CY 2023'!AR:AR,MATCH($C69,'6. CY 2023'!$A:$A,0)),0),0) -> 0 | AP69: =IFERROR(IF($Y69="CY 2023",INDEX('6. CY 2023'!AS:AS,MATCH($C69,'6. CY 2023'!$A:$A,0)),0),0) -> 0 | AQ69: =IFERROR(IF($Y69="CY 2023",INDEX('6. CY 2023'!AV:AV,MATCH($C69,'6. CY 2023'!$A:$A,0)),0),0) -> 402425.5215 | AR69: =IFERROR(IF($Y69="CY 2023",INDEX('6. CY 2023'!AX:AX,MATCH($C69,'6. CY 2023'!A:A,0)),0),0) -> 315661.2194 | AS69: =IFERROR(IF(Y69="CY 2023",INDEX('6. CY 2023'!AY:AY,MATCH(C69,'6. CY 2023'!A:A,0)),0),0) -> 2045835.226 | AT69: =IFERROR(IF($Y69="CY 2023",INDEX('6. CY 2023'!AZ:AZ,MATCH($C69,'6. CY 2023'!A:A,0)),0),0) -> 2361496.446 | AW69: =IFERROR(IF(Y69="CY 2023",INDEX('6. CY 2023'!H:H,MATCH(C69,'6. CY 2023'!A:A,0)),0),0) -> 24700344.96
A70: 67 | B70: COMMUNITY HOSPITAL OF HUNTINGTON PARK | C70: 106190197 | D70: COMMUNITY HOSPITAL OF HUNTINGTON PARK | F70: =IFERROR(INDEX('8. 2019 HCAI (FEE) DAYS'!G:G,MATCH(C70,'8. 2019 HCAI (FEE) DAYS'!A:A,0)),0) -> 2019-01-01 | G70: =IFERROR(INDEX('8. 2019 HCAI (FEE) DAYS'!H:H,MATCH(C70,'8. 2019 HCAI (FEE) DAYS'!A:A,0)),0) -> 2019-12-31 | H70: =IFERROR(INDEX('8. 2019 HCAI (FEE) DAYS'!L:L,MATCH(C70,'8. 2019 HCAI (FEE) DAYS'!A:A,0)),0) -> 2019-01-01 | I70: =IFERROR(INDEX('11. Hospital Statuses'!M:M,MATCH(C70,'11. Hospital Statuses'!A:A,0)),"") -> Open | J70: Los Angeles | K70: 11 | L70: 923 | M70: Investor | N70: Comparable | P70: https://www.communityhospitalhp.com/ | R70: AVANTI HOSPITALS, LLC | S70: 323-583-1931 | T70: 2623 EAST SLAUSON AVENUE | U70: HUNTINGTON PARK | V70: 90255 | W70: GREG MONETTE | X70: =IFERROR(IF(INDEX(#REF!,MATCH(C70,#REF!,0)),"Yes","No"),"") ->  | Y70: CY 2023 | Z70: =IFERROR(IF($Y70="CY 2023",INDEX('6. CY 2023'!S:S,MATCH($C70,'6. CY 2023'!$A:$A,0)),0),0) -> 0 | AA70: =IFERROR(IF($Y70="CY 2023",INDEX('6. CY 2023'!U:U,MATCH($C70,'6. CY 2023'!$A:$A,0)),0),0) -> 1007461.29 | AB70: =IFERROR(IF($Y70="CY 2023",INDEX('6. CY 2023'!W:W,MATCH($C70,'6. CY 2023'!$A:$A,0)),0),0) -> 1166348.24 | AC70: =IFERROR(IF($Y70="CY 2023",INDEX('6. CY 2023'!Y:Y,MATCH($C70,'6. CY 2023'!$A:$A,0)),0),0) -> 0 | AD70: =IFERROR(IF($Y70="CY 2023",INDEX('6. CY 2023'!AA:AA,MATCH($C70,'6. CY 2023'!$A:$A,0)),0),0) -> 3000180 | AE70: =IFERROR(IF($Y70="CY 2023",INDEX('6. CY 2023'!AC:AC,MATCH($C70,'6. CY 2023'!$A:$A,0)),0),0) -> 2333060 | AF70: =IFERROR(IF($Y70="CY 2023",INDEX('6. CY 2023'!AE:AE,MATCH($C70,'6. CY 2023'!$A:$A,0)),0),0) -> 7507049.53 | AG70: =IFERROR(IF(Y70="CY 2023",AF70/'4. Calculated Fee'!$D$32*'4. Calculated Fee'!$D$23,0),0) -> 1913821.994 | AH70: =IFERROR(IF($Y70="CY 2023",INDEX('6. CY 2023'!AE:AE,MATCH($C70,'6. CY 2023'!$A:$A,0)),0),0) -> 7507049.53 | AI70: =IFERROR(IF(Y70="CY 2023",INDEX('6. CY 2023'!AL:AL,MATCH(C70,'6. CY 2023'!A:A,0)),0),0) -> 5468722.283 | AJ70: =IFERROR(IF($Y70="CY 2023",INDEX('6. CY 2023'!AM:AM,MATCH($C70,'6. CY 2023'!$A:$A,0)),0),0) -> 3893217.932 | AK70: =IFERROR(IF($Y70="CY 2023",INDEX('6. CY 2023'!AN:AN,MATCH($C70,'6. CY 2023'!$A:$A,0)),0),0) -> 0 | AL70: =IFERROR(IF($Y70="CY 2023",INDEX('6. CY 2023'!AO:AO,MATCH($C70,'6. CY 2023'!$A:$A,0)),0),0) -> 0 | AM70: =IFERROR(IF($Y70="CY 2023",INDEX('6. CY 2023'!AP:AP,MATCH($C70,'6. CY 2023'!$A:$A,0)),0),0) -> 0 | AN70: =IFERROR(IF($Y70="CY 2023",INDEX('6. CY 2023'!AQ:AQ,MATCH($C70,'6. CY 2023'!$A:$A,0)),0),0) -> 0 | AO70: =IFERROR(IF($Y70="CY 2023",INDEX('6. CY 2023'!AR:AR,MATCH($C70,'6. CY 2023'!$A:$A,0)),0),0) -> 0 | AP70: =IFERROR(IF($Y70="CY 2023",INDEX('6. CY 2023'!AS:AS,MATCH($C70,'6. CY 2023'!$A:$A,0)),0),0) -> 0 | AQ70: =IFERROR(IF($Y70="CY 2023",INDEX('6. CY 2023'!AV:AV,MATCH($C70,'6. CY 2023'!$A:$A,0)),0),0) -> 9361940.215 | AR70: =IFERROR(IF($Y70="CY 2023",INDEX('6. CY 2023'!AX:AX,MATCH($C70,'6. CY 2023'!A:A,0)),0),0) -> 1585458.466 | AS70: =IFERROR(IF(Y70="CY 2023",INDEX('6. CY 2023'!AY:AY,MATCH(C70,'6. CY 2023'!A:A,0)),0),0) -> 11868957.7 | AT70: =IFERROR(IF($Y70="CY 2023",INDEX('6. CY 2023'!AZ:AZ,MATCH($C70,'6. CY 2023'!A:A,0)),0),0) -> 13454416.16 | AW70: =IFERROR(IF(Y70="CY 2023",INDEX('6. CY 2023'!H:H,MATCH(C70,'6. CY 2023'!A:A,0)),0),0) -> 73106284.24
A71: 68 | B71: COMMUNITY HOSPITAL OF LONG BEACH | C71: 106190475 | D71: COMMUNITY HOSPITAL OF LONG BEACH | F71: =IFERROR(INDEX('8. 2019 HCAI (FEE) DAYS'!G:G,MATCH(C71,'8. 2019 HCAI (FEE) DAYS'!A:A,0)),0) -> - | G71: =IFERROR(INDEX('8. 2019 HCAI (FEE) DAYS'!H:H,MATCH(C71,'8. 2019 HCAI (FEE) DAYS'!A:A,0)),0) -> - | H71: =IFERROR(INDEX('8. 2019 HCAI (FEE) DAYS'!L:L,MATCH(C71,'8. 2019 HCAI (FEE) DAYS'!A:A,0)),0) -> 00:00:00 | I71: =IFERROR(INDEX('11. Hospital Statuses'!M:M,MATCH(C71,'11. Hospital Statuses'!A:A,0)),"") -> Closed | P71: https://chlb.org/ | X71: =IFERROR(IF(INDEX(#REF!,MATCH(C71,#REF!,0)),"Yes","No"),"") ->  | Y71: CY 2023 | Z71: =IFERROR(IF($Y71="CY 2023",INDEX('6. CY 2023'!S:S,MATCH($C71,'6. CY 2023'!$A:$A,0)),0),0) -> 0 | AA71: =IFERROR(IF($Y71="CY 2023",INDEX('6. CY 2023'!U:U,MATCH($C71,'6. CY 2023'!$A:$A,0)),0),0) -> 0 | AB71: =IFERROR(IF($Y71="CY 2023",INDEX('6. CY 2023'!W:W,MATCH($C71,'6. CY 2023'!$A:$A,0)),0),0) -> 0 | AC71: =IFERROR(IF($Y71="CY 2023",INDEX('6. CY 2023'!Y:Y,MATCH($C71,'6. CY 2023'!$A:$A,0)),0),0) -> 0 | AD71: =IFERROR(IF($Y71="CY 2023",INDEX('6. CY 2023'!AA:AA,MATCH($C71,'6. CY 2023'!$A:$A,0)),0),0) -> 0 | AE71: =IFERROR(IF($Y71="CY 2023",INDEX('6. CY 2023'!AC:AC,MATCH($C71,'6. CY 2023'!$A:$A,0)),0),0) -> 0 | AF71: =IFERROR(IF($Y71="CY 2023",INDEX('6. CY 2023'!AE:AE,MATCH($C71,'6. CY 2023'!$A:$A,0)),0),0) -> 0 | AG71: =IFERROR(IF(Y71="CY 2023",AF71/'4. Calculated Fee'!$D$32*'4. Calculated Fee'!$D$23,0),0) -> 0 | AH71: =IFERROR(IF($Y71="CY 2023",INDEX('6. CY 2023'!AE:AE,MATCH($C71,'6. CY 2023'!$A:$A,0)),0),0) -> 0 | AI71: =IFERROR(IF(Y71="CY 2023",INDEX('6. CY 2023'!AL:AL,MATCH(C71,'6. CY 2023'!A:A,0)),0),0) -> 0 | AJ71: =IFERROR(IF($Y71="CY 2023",INDEX('6. CY 2023'!AM:AM,MATCH($C71,'6. CY 2023'!$A:$A,0)),0),0) -> 0 | AK71: =IFERROR(IF($Y71="CY 2023",INDEX('6. CY 2023'!AN:AN,MATCH($C71,'6. CY 2023'!$A:$A,0)),0),0) -> 0 | AL71: =IFERROR(IF($Y71="CY 2023",INDEX('6. CY 2023'!AO:AO,MATCH($C71,'6. CY 2023'!$A:$A,0)),0),0) -> 0 | AM71: =IFERROR(IF($Y71="CY 2023",INDEX('6. CY 2023'!AP:AP,MATCH($C71,'6. CY 2023'!$A:$A,0)),0),0) -> 0 | AN71: =IFERROR(IF($Y71="CY 2023",INDEX('6. CY 2023'!AQ:AQ,MATCH($C71,'6. CY 2023'!$A:$A,0)),0),0) -> 0 | AO71: =IFERROR(IF($Y71="CY 2023",INDEX('6. CY 2023'!AR:AR,MATCH($C71,'6. CY 2023'!$A:$A,0)),0),0) -> 0 | AP71: =IFERROR(IF($Y71="CY 2023",INDEX('6. CY 2023'!AS:AS,MATCH($C71,'6. CY 2023'!$A:$A,0)),0),0) -> 0 | AQ71: =IFERROR(IF($Y71="CY 2023",INDEX('6. CY 2023'!AV:AV,MATCH($C71,'6. CY 2023'!$A:$A,0)),0),0) -> 0 | AR71: =IFERROR(IF($Y71="CY 2023",INDEX('6. CY 2023'!AX:AX,MATCH($C71,'6. CY 2023'!A:A,0)),0),0) -> 0 | AS71: =IFERROR(IF(Y71="CY 2023",INDEX('6. CY 2023'!AY:AY,MATCH(C71,'6. CY 2023'!A:A,0)),0),0) -> 0 | AT71: =IFERROR(IF($Y71="CY 2023",INDEX('6. CY 2023'!AZ:AZ,MATCH($C71,'6. CY 2023'!A:A,0)),0),0) -> 0 | AW71: =IFERROR(IF(Y71="CY 2023",INDEX('6. CY 2023'!H:H,MATCH(C71,'6. CY 2023'!A:A,0)),0),0) -> 0
A72: 69 | B72: COMMUNITY HOSPITAL OF SAN BERNARDINO | C72: 106361323 | D72: COMMUNITY HOSPITAL OF SAN BERNARDINO | F72: =IFERROR(INDEX('8. 2019 HCAI (FEE) DAYS'!G:G,MATCH(C72,'8. 2019 HCAI (FEE) DAYS'!A:A,0)),0) -> 2018-07-01 | G72: =IFERROR(INDEX('8. 2019 HCAI (FEE) DAYS'!H:H,MATCH(C72,'8. 2019 HCAI (FEE) DAYS'!A:A,0)),0) -> 2019-06-30 | H72: =IFERROR(INDEX('8. 2019 HCAI (FEE) DAYS'!L:L,MATCH(C72,'8. 2019 HCAI (FEE) DAYS'!A:A,0)),0) -> 2018-07-01 | I72: =IFERROR(INDEX('11. Hospital Statuses'!M:M,MATCH(C72,'11. Hospital Statuses'!A:A,0)),"") -> Open | J72: San Bernardino | K72: 12 | L72: 1209 | M72: Non-Profit | N72: Comparable | P72: https://www.dignityhealth.org/socal/locations/san-bernardino | R72: DIGNITY HEALTH | S72: 909-887-6333 | T72: 1805 MEDICAL CENTER DRIVE | U72: SAN BERNARDINO | V72: 92411 | W72: JUNE COLLISON | X72: =IFERROR(IF(INDEX(#REF!,MATCH(C72,#REF!,0)),"Yes","No"),"") ->  | Y72: CY 2023 | Z72: =IFERROR(IF($Y72="CY 2023",INDEX('6. CY 2023'!S:S,MATCH($C72,'6. CY 2023'!$A:$A,0)),0),0) -> 0 | AA72: =IFERROR(IF($Y72="CY 2023",INDEX('6. CY 2023'!U:U,MATCH($C72,'6. CY 2023'!$A:$A,0)),0),0) -> 2971299.27 | AB72: =IFERROR(IF($Y72="CY 2023",INDEX('6. CY 2023'!W:W,MATCH($C72,'6. CY 2023'!$A:$A,0)),0),0) -> 2338900.46 | AC72: =IFERROR(IF($Y72="CY 2023",INDEX('6. CY 2023'!Y:Y,MATCH($C72,'6. CY 2023'!$A:$A,0)),0),0) -> 0 | AD72: =IFERROR(IF($Y72="CY 2023",INDEX('6. CY 2023'!AA:AA,MATCH($C72,'6. CY 2023'!$A:$A,0)),0),0) -> 9923720 | AE72: =IFERROR(IF($Y72="CY 2023",INDEX('6. CY 2023'!AC:AC,MATCH($C72,'6. CY 2023'!$A:$A,0)),0),0) -> 11838280 | AF72: =IFERROR(IF($Y72="CY 2023",INDEX('6. CY 2023'!AE:AE,MATCH($C72,'6. CY 2023'!$A:$A,0)),0),0) -> 27072199.73 | AG72: =IFERROR(IF(Y72="CY 2023",AF72/'4. Calculated Fee'!$D$32*'4. Calculated Fee'!$D$23,0),0) -> 6901695.674 | AH72: =IFERROR(IF($Y72="CY 2023",INDEX('6. CY 2023'!AE:AE,MATCH($C72,'6. CY 2023'!$A:$A,0)),0),0) -> 27072199.73 | AI72: =IFERROR(IF(Y72="CY 2023",INDEX('6. CY 2023'!AL:AL,MATCH(C72,'6. CY 2023'!A:A,0)),0),0) -> 4578483.562 | AJ72: =IFERROR(IF($Y72="CY 2023",INDEX('6. CY 2023'!AM:AM,MATCH($C72,'6. CY 2023'!$A:$A,0)),0),0) -> 6640738.959 | AK72: =IFERROR(IF($Y72="CY 2023",INDEX('6. CY 2023'!AN:AN,MATCH($C72,'6. CY 2023'!$A:$A,0)),0),0) -> 8229648.993 | AL72: =IFERROR(IF($Y72="CY 2023",INDEX('6. CY 2023'!AO:AO,MATCH($C72,'6. CY 2023'!$A:$A,0)),0),0) -> 2888925 | AM72: =IFERROR(IF($Y72="CY 2023",INDEX('6. CY 2023'!AP:AP,MATCH($C72,'6. CY 2023'!$A:$A,0)),0),0) -> 0 | AN72: =IFERROR(IF($Y72="CY 2023",INDEX('6. CY 2023'!AQ:AQ,MATCH($C72,'6. CY 2023'!$A:$A,0)),0),0) -> 0 | AO72: =IFERROR(IF($Y72="CY 2023",INDEX('6. CY 2023'!AR:AR,MATCH($C72,'6. CY 2023'!$A:$A,0)),0),0) -> 0 | AP72: =IFERROR(IF($Y72="CY 2023",INDEX('6. CY 2023'!AS:AS,MATCH($C72,'6. CY 2023'!$A:$A,0)),0),0) -> 0 | AQ72: =IFERROR(IF($Y72="CY 2023",INDEX('6. CY 2023'!AV:AV,MATCH($C72,'6. CY 2023'!$A:$A,0)),0),0) -> 22337796.51 | AR72: =IFERROR(IF($Y72="CY 2023",INDEX('6. CY 2023'!AX:AX,MATCH($C72,'6. CY 2023'!A:A,0)),0),0) -> 34011083.79 | AS72: =IFERROR(IF(Y72="CY 2023",INDEX('6. CY 2023'!AY:AY,MATCH(C72,'6. CY 2023'!A:A,0)),0),0) -> 34187779.83 | AT72: =IFERROR(IF($Y72="CY 2023",INDEX('6. CY 2023'!AZ:AZ,MATCH($C72,'6. CY 2023'!A:A,0)),0),0) -> 68198863.63 | AW72: =IFERROR(IF(Y72="CY 2023",INDEX('6. CY 2023'!H:H,MATCH(C72,'6. CY 2023'!A:A,0)),0),0) -> 487049842.7
A73: 70 | B73: COMMUNITY HOSPITAL OF THE MONTEREY PENINSULA | C73: 106270744 | D73: COMMUNITY HOSPITAL OF THE MONTEREY PENINSULA | F73: =IFERROR(INDEX('8. 2019 HCAI (FEE) DAYS'!G:G,MATCH(C73,'8. 2019 HCAI (FEE) DAYS'!A:A,0)),0) -> 2019-01-01 | G73: =IFERROR(INDEX('8. 2019 HCAI (FEE) DAYS'!H:H,MATCH(C73,'8. 2019 HCAI (FEE) DAYS'!A:A,0)),0) -> 2019-12-31 | H73: =IFERROR(INDEX('8. 2019 HCAI (FEE) DAYS'!L:L,MATCH(C73,'8. 2019 HCAI (FEE) DAYS'!A:A,0)),0) -> 2019-01-01 | I73: =IFERROR(INDEX('11. Hospital Statuses'!M:M,MATCH(C73,'11. Hospital Statuses'!A:A,0)),"") -> Open | J73: Monterey | K73: 8 | L73: 707 | M73: Non-Profit | N73: Comparable | P73: https://www.montagehealth.org/locations/profile/community-hospital-monterey-peninsula/ | R73: COMMUNITY HOSPITAL FOUNDATION | S73: 831-624-5311 | T73: 23625 W.R. HOLMAN HIGHWAY | U73: MONTEREY | V73: 93940 | W73: STEVEN PACKER M.D. | X73: =IFERROR(IF(INDEX(#REF!,MATCH(C73,#REF!,0)),"Yes","No"),"") ->  | Y73: CY 2023 | Z73: =IFERROR(IF($Y73="CY 2023",INDEX('6. CY 2023'!S:S,MATCH($C73,'6. CY 2023'!$A:$A,0)),0),0) -> 0 | AA73: =IFERROR(IF($Y73="CY 2023",INDEX('6. CY 2023'!U:U,MATCH($C73,'6. CY 2023'!$A:$A,0)),0),0) -> 5814887.04 | AB73: =IFERROR(IF($Y73="CY 2023",INDEX('6. CY 2023'!W:W,MATCH($C73,'6. CY 2023'!$A:$A,0)),0),0) -> 14164781.16 | AC73: =IFERROR(IF($Y73="CY 2023",INDEX('6. CY 2023'!Y:Y,MATCH($C73,'6. CY 2023'!$A:$A,0)),0),0) -> 0 | AD73: =IFERROR(IF($Y73="CY 2023",INDEX('6. CY 2023'!AA:AA,MATCH($C73,'6. CY 2023'!$A:$A,0)),0),0) -> 4916600 | AE73: =IFERROR(IF($Y73="CY 2023",INDEX('6. CY 2023'!AC:AC,MATCH($C73,'6. CY 2023'!$A:$A,0)),0),0) -> 1912080 | AF73: =IFERROR(IF($Y73="CY 2023",INDEX('6. CY 2023'!AE:AE,MATCH($C73,'6. CY 2023'!$A:$A,0)),0),0) -> 26808348.2 | AG73: =IFERROR(IF(Y73="CY 2023",AF73/'4. Calculated Fee'!$D$32*'4. Calculated Fee'!$D$23,0),0) -> 6834430.251 | AH73: =IFERROR(IF($Y73="CY 2023",INDEX('6. CY 2023'!AE:AE,MATCH($C73,'6. CY 2023'!$A:$A,0)),0),0) -> 26808348.2 | AI73: =IFERROR(IF(Y73="CY 2023",INDEX('6. CY 2023'!AL:AL,MATCH(C73,'6. CY 2023'!A:A,0)),0),0) -> 1700104.122 | AJ73: =IFERROR(IF($Y73="CY 2023",INDEX('6. CY 2023'!AM:AM,MATCH($C73,'6. CY 2023'!$A:$A,0)),0),0) -> 2013844.7 | AK73: =IFERROR(IF($Y73="CY 2023",INDEX('6. CY 2023'!AN:AN,MATCH($C73,'6. CY 2023'!$A:$A,0)),0),0) -> 0 | AL73: =IFERROR(IF($Y73="CY 2023",INDEX('6. CY 2023'!AO:AO,MATCH($C73,'6. CY 2023'!$A:$A,0)),0),0) -> 182325 | AM73: =IFERROR(IF($Y73="CY 2023",INDEX('6. CY 2023'!AP:AP,MATCH($C73,'6. CY 2023'!$A:$A,0)),0),0) -> 282500 | AN73: =IFERROR(IF($Y73="CY 2023",INDEX('6. CY 2023'!AQ:AQ,MATCH($C73,'6. CY 2023'!$A:$A,0)),0),0) -> 0 | AO73: =IFERROR(IF($Y73="CY 2023",INDEX('6. CY 2023'!AR:AR,MATCH($C73,'6. CY 2023'!$A:$A,0)),0),0) -> 0 | AP73: =IFERROR(IF($Y73="CY 2023",INDEX('6. CY 2023'!AS:AS,MATCH($C73,'6. CY 2023'!$A:$A,0)),0),0) -> 0 | AQ73: =IFERROR(IF($Y73="CY 2023",INDEX('6. CY 2023'!AV:AV,MATCH($C73,'6. CY 2023'!$A:$A,0)),0),0) -> 4178773.822 | AR73: =IFERROR(IF($Y73="CY 2023",INDEX('6. CY 2023'!AX:AX,MATCH($C73,'6. CY 2023'!A:A,0)),0),0) -> 5527580.197 | AS73: =IFERROR(IF(Y73="CY 2023",INDEX('6. CY 2023'!AY:AY,MATCH(C73,'6. CY 2023'!A:A,0)),0),0) -> 21569164.06 | AT73: =IFERROR(IF($Y73="CY 2023",INDEX('6. CY 2023'!AZ:AZ,MATCH($C73,'6. CY 2023'!A:A,0)),0),0) -> 27096744.26 | AW73: =IFERROR(IF(Y73="CY 2023",INDEX('6. CY 2023'!H:H,MATCH(C73,'6. CY 2023'!A:A,0)),0),0) -> 847373960.9
A74: 71 | B74: COMMUNITY MEMORIAL HOSPITAL OF SAN BUENAVENTURA | C74: 106560473 | D74: COMMUNITY MEMORIAL HOSPITAL OF SAN BUENAVENTURA | F74: =IFERROR(INDEX('8. 2019 HCAI (FEE) DAYS'!G:G,MATCH(C74,'8. 2019 HCAI (FEE) DAYS'!A:A,0)),0) -> 2019-01-01 | G74: =IFERROR(INDEX('8. 2019 HCAI (FEE) DAYS'!H:H,MATCH(C74,'8. 2019 HCAI (FEE) DAYS'!A:A,0)),0) -> 2019-12-31 | H74: =IFERROR(INDEX('8. 2019 HCAI (FEE) DAYS'!L:L,MATCH(C74,'8. 2019 HCAI (FEE) DAYS'!A:A,0)),0) -> 2019-01-01 | I74: =IFERROR(INDEX('11. Hospital Statuses'!M:M,MATCH(C74,'11. Hospital Statuses'!A:A,0)),"") -> Open | J74: Ventura | K74: 10 | L74: 809 | M74: Non-Profit | N74: Comparable | P74: https://healthy.kaiserpermanente.org/southern-california/facilities/community-memorial-hospital-of-san-buenaventura-100145 | R74: COMMUNITY MEMORIAL HOSPITAL | S74: 805-652-5011 | T74: 147 N. BRENT STREET | U74: VENTURA | V74: 93003-2809 | W74: GARY K. WILDE | X74: =IFERROR(IF(INDEX(#REF!,MATCH(C74,#REF!,0)),"Yes","No"),"") ->  | Y74: CY 2023 | Z74: =IFERROR(IF($Y74="CY 2023",INDEX('6. CY 2023'!S:S,MATCH($C74,'6. CY 2023'!$A:$A,0)),0),0) -> 0 | AA74: =IFERROR(IF($Y74="CY 2023",INDEX('6. CY 2023'!U:U,MATCH($C74,'6. CY 2023'!$A:$A,0)),0),0) -> 8895653.31 | AB74: =IFERROR(IF($Y74="CY 2023",INDEX('6. CY 2023'!W:W,MATCH($C74,'6. CY 2023'!$A:$A,0)),0),0) -> 5694158.82 | AC74: =IFERROR(IF($Y74="CY 2023",INDEX('6. CY 2023'!Y:Y,MATCH($C74,'6. CY 2023'!$A:$A,0)),0),0) -> 0 | AD74: =IFERROR(IF($Y74="CY 2023",INDEX('6. CY 2023'!AA:AA,MATCH($C74,'6. CY 2023'!$A:$A,0)),0),0) -> 6797680 | AE74: =IFERROR(IF($Y74="CY 2023",INDEX('6. CY 2023'!AC:AC,MATCH($C74,'6. CY 2023'!$A:$A,0)),0),0) -> 1672140 | AF74: =IFERROR(IF($Y74="CY 2023",INDEX('6. CY 2023'!AE:AE,MATCH($C74,'6. CY 2023'!$A:$A,0)),0),0) -> 23059632.13 | AG74: =IFERROR(IF(Y74="CY 2023",AF74/'4. Calculated Fee'!$D$32*'4. Calculated Fee'!$D$23,0),0) -> 5878745.167 | AH74: =IFERROR(IF($Y74="CY 2023",INDEX('6. CY 2023'!AE:AE,MATCH($C74,'6. CY 2023'!$A:$A,0)),0),0) -> 23059632.13 | AI74: =IFERROR(IF(Y74="CY 2023",INDEX('6. CY 2023'!AL:AL,MATCH(C74,'6. CY 2023'!A:A,0)),0),0) -> 6443372.019 | AJ74: =IFERROR(IF($Y74="CY 2023",INDEX('6. CY 2023'!AM:AM,MATCH($C74,'6. CY 2023'!$A:$A,0)),0),0) -> 4425724.944 | AK74: =IFERROR(IF($Y74="CY 2023",INDEX('6. CY 2023'!AN:AN,MATCH($C74,'6. CY 2023'!$A:$A,0)),0),0) -> 0 | AL74: =IFERROR(IF($Y74="CY 2023",INDEX('6. CY 2023'!AO:AO,MATCH($C74,'6. CY 2023'!$A:$A,0)),0),0) -> 0 | AM74: =IFERROR(IF($Y74="CY 2023",INDEX('6. CY 2023'!AP:AP,MATCH($C74,'6. CY 2023'!$A:$A,0)),0),0) -> 1032500 | AN74: =IFERROR(IF($Y74="CY 2023",INDEX('6. CY 2023'!AQ:AQ,MATCH($C74,'6. CY 2023'!$A:$A,0)),0),0) -> 0 | AO74: =IFERROR(IF($Y74="CY 2023",INDEX('6. CY 2023'!AR:AR,MATCH($C74,'6. CY 2023'!$A:$A,0)),0),0) -> 0 | AP74: =IFERROR(IF($Y74="CY 2023",INDEX('6. CY 2023'!AS:AS,MATCH($C74,'6. CY 2023'!$A:$A,0)),0),0) -> 0 | AQ74: =IFERROR(IF($Y74="CY 2023",INDEX('6. CY 2023'!AV:AV,MATCH($C74,'6. CY 2023'!$A:$A,0)),0),0) -> 11901596.96 | AR74: =IFERROR(IF($Y74="CY 2023",INDEX('6. CY 2023'!AX:AX,MATCH($C74,'6. CY 2023'!A:A,0)),0),0) -> 5680025.129 | AS74: =IFERROR(IF(Y74="CY 2023",INDEX('6. CY 2023'!AY:AY,MATCH(C74,'6. CY 2023'!A:A,0)),0),0) -> 43243855.13 | AT74: =IFERROR(IF($Y74="CY 2023",INDEX('6. CY 2023'!AZ:AZ,MATCH($C74,'6. CY 2023'!A:A,0)),0),0) -> 48923880.25 | AW74: =IFERROR(IF(Y74="CY 2023",INDEX('6. CY 2023'!H:H,MATCH(C74,'6. CY 2023'!A:A,0)),0),0) -> 579576792.3
A75: 72 | B75: COMMUNITY REGIONAL MEDICAL CENTER - FRESNO | C75: 106100717 | D75: COMMUNITY REGIONAL MEDICAL CENTER - FRESNO | F75: =IFERROR(INDEX('8. 2019 HCAI (FEE) DAYS'!G:G,MATCH(C75,'8. 2019 HCAI (FEE) DAYS'!A:A,0)),0) -> 2018-09-01 | G75: =IFERROR(INDEX('8. 2019 HCAI (FEE) DAYS'!H:H,MATCH(C75,'8. 2019 HCAI (FEE) DAYS'!A:A,0)),0) -> 2019-08-31 | H75: =IFERROR(INDEX('8. 2019 HCAI (FEE) DAYS'!L:L,MATCH(C75,'8. 2019 HCAI (FEE) DAYS'!A:A,0)),0) -> 2018-09-01 | I75: =IFERROR(INDEX('11. Hospital Statuses'!M:M,MATCH(C75,'11. Hospital Statuses'!A:A,0)),"") -> Open | J75: Fresno | K75: 9 | L75: 605 | M75: Non-Profit | N75: Comparable | O75: Teaching | P75: https://www.universitymds.com/medical-practice-locations/community-regional-medical-center/ | R75: COMMUNITY MEDICAL CENTERS | S75: 559-459-6000 | T75: 2823 FRESNO STREET | U75: FRESNO | V75: 93715 | W75: TIM A JOSLIN | X75: =IFERROR(IF(INDEX(#REF!,MATCH(C75,#REF!,0)),"Yes","No"),"") ->  | Y75: CY 2023 | Z75: =IFERROR(IF($Y75="CY 2023",INDEX('6. CY 2023'!S:S,MATCH($C75,'6. CY 2023'!$A:$A,0)),0),0) -> 0 | AA75: =IFERROR(IF($Y75="CY 2023",INDEX('6. CY 2023'!U:U,MATCH($C75,'6. CY 2023'!$A:$A,0)),0),0) -> 16676567.67 | AB75: =IFERROR(IF($Y75="CY 2023",INDEX('6. CY 2023'!W:W,MATCH($C75,'6. CY 2023'!$A:$A,0)),0),0) -> 23131721.9 | AC75: =IFERROR(IF($Y75="CY 2023",INDEX('6. CY 2023'!Y:Y,MATCH($C75,'6. CY 2023'!$A:$A,0)),0),0) -> 0 | AD75: =IFERROR(IF($Y75="CY 2023",INDEX('6. CY 2023'!AA:AA,MATCH($C75,'6. CY 2023'!$A:$A,0)),0),0) -> 43270420 | AE75: =IFERROR(IF($Y75="CY 2023",INDEX('6. CY 2023'!AC:AC,MATCH($C75,'6. CY 2023'!$A:$A,0)),0),0) -> 36506840 | AF75: =IFERROR(IF($Y75="CY 2023",INDEX('6. CY 2023'!AE:AE,MATCH($C75,'6. CY 2023'!$A:$A,0)),0),0) -> 119585549.6 | AG75: =IFERROR(IF(Y75="CY 2023",AF75/'4. Calculated Fee'!$D$32*'4. Calculated Fee'!$D$23,0),0) -> 30486738.36 | AH75: =IFERROR(IF($Y75="CY 2023",INDEX('6. CY 2023'!AE:AE,MATCH($C75,'6. CY 2023'!$A:$A,0)),0),0) -> 119585549.6 | AI75: =IFERROR(IF(Y75="CY 2023",INDEX('6. CY 2023'!AL:AL,MATCH(C75,'6. CY 2023'!A:A,0)),0),0) -> 13263631.14 | AJ75: =IFERROR(IF($Y75="CY 2023",INDEX('6. CY 2023'!AM:AM,MATCH($C75,'6. CY 2023'!$A:$A,0)),0),0) -> 34809822.01 | AK75: =IFERROR(IF($Y75="CY 2023",INDEX('6. CY 2023'!AN:AN,MATCH($C75,'6. CY 2023'!$A:$A,0)),0),0) -> 7566757.094 | AL75: =IFERROR(IF($Y75="CY 2023",INDEX('6. CY 2023'!AO:AO,MATCH($C75,'6. CY 2023'!$A:$A,0)),0),0) -> 2797275 | AM75: =IFERROR(IF($Y75="CY 2023",INDEX('6. CY 2023'!AP:AP,MATCH($C75,'6. CY 2023'!$A:$A,0)),0),0) -> 15060000 | AN75: =IFERROR(IF($Y75="CY 2023",INDEX('6. CY 2023'!AQ:AQ,MATCH($C75,'6. CY 2023'!$A:$A,0)),0),0) -> 15060000 | AO75: =IFERROR(IF($Y75="CY 2023",INDEX('6. CY 2023'!AR:AR,MATCH($C75,'6. CY 2023'!$A:$A,0)),0),0) -> 252500 | AP75: =IFERROR(IF($Y75="CY 2023",INDEX('6. CY 2023'!AS:AS,MATCH($C75,'6. CY 2023'!$A:$A,0)),0),0) -> 0 | AQ75: =IFERROR(IF($Y75="CY 2023",INDEX('6. CY 2023'!AV:AV,MATCH($C75,'6. CY 2023'!$A:$A,0)),0),0) -> 88809985.24 | AR75: =IFERROR(IF($Y75="CY 2023",INDEX('6. CY 2023'!AX:AX,MATCH($C75,'6. CY 2023'!A:A,0)),0),0) -> 58087463.89 | AS75: =IFERROR(IF(Y75="CY 2023",INDEX('6. CY 2023'!AY:AY,MATCH(C75,'6. CY 2023'!A:A,0)),0),0) -> 154760461.4 | AT75: =IFERROR(IF($Y75="CY 2023",INDEX('6. CY 2023'!AZ:AZ,MATCH($C75,'6. CY 2023'!A:A,0)),0),0) -> 212847925.3 | AW75: =IFERROR(IF(Y75="CY 2023",INDEX('6. CY 2023'!H:H,MATCH(C75,'6. CY 2023'!A:A,0)),0),0) -> 2007035875
A76: 73 | B76: CONTRA COSTA REGIONAL MEDICAL CENTER | C76: 106070924 | D76: CONTRA COSTA REGIONAL MEDICAL CENTER | F76: =IFERROR(INDEX('8. 2019 HCAI (FEE) DAYS'!G:G,MATCH(C76,'8. 2019 HCAI (FEE) DAYS'!A:A,0)),0) -> 2018-07-01 | G76: =IFERROR(INDEX('8. 2019 HCAI (FEE) DAYS'!H:H,MATCH(C76,'8. 2019 HCAI (FEE) DAYS'!A:A,0)),0) -> 2019-06-30 | H76: =IFERROR(INDEX('8. 2019 HCAI (FEE) DAYS'!L:L,MATCH(C76,'8. 2019 HCAI (FEE) DAYS'!A:A,0)),0) -> 2018-07-01 | I76: =IFERROR(INDEX('11. Hospital Statuses'!M:M,MATCH(C76,'11. Hospital Statuses'!A:A,0)),"") -> Open | J76: Contra Costa | K76: 5 | L76: 411 | M76: City/County | N76: Comparable | P76: https://cchealth.org/medicalcenter/ | R76: COUNTY OF CONTRA COSTA | S76: 925-370-4222 | T76: 2500 ALHAMBRA STREET | U76: MARTINEZ | V76: 94533 | W76: SAMIR SHAH | X76: =IFERROR(IF(INDEX(#REF!,MATCH(C76,#REF!,0)),"Yes","No"),"") ->  | Y76: CY 2023 | Z76: =IFERROR(IF($Y76="CY 2023",INDEX('6. CY 2023'!S:S,MATCH($C76,'6. CY 2023'!$A:$A,0)),0),0) -> 0 | AA76: =IFERROR(IF($Y76="CY 2023",INDEX('6. CY 2023'!U:U,MATCH($C76,'6. CY 2023'!$A:$A,0)),0),0) -> 0 | AB76: =IFERROR(IF($Y76="CY 2023",INDEX('6. CY 2023'!W:W,MATCH($C76,'6. CY 2023'!$A:$A,0)),0),0) -> 0 | AC76: =IFERROR(IF($Y76="CY 2023",INDEX('6. CY 2023'!Y:Y,MATCH($C76,'6. CY 2023'!$A:$A,0)),0),0) -> 0 | AD76: =IFERROR(IF($Y76="CY 2023",INDEX('6. CY 2023'!AA:AA,MATCH($C76,'6. CY 2023'!$A:$A,0)),0),0) -> 0 | AE76: =IFERROR(IF($Y76="CY 2023",INDEX('6. CY 2023'!AC:AC,MATCH($C76,'6. CY 2023'!$A:$A,0)),0),0) -> 0 | AF76: =IFERROR(IF($Y76="CY 2023",INDEX('6. CY 2023'!AE:AE,MATCH($C76,'6. CY 2023'!$A:$A,0)),0),0) -> 0 | AG76: =IFERROR(IF(Y76="CY 2023",AF76/'4. Calculated Fee'!$D$32*'4. Calculated Fee'!$D$23,0),0) -> 0 | AH76: =IFERROR(IF($Y76="CY 2023",INDEX('6. CY 2023'!AE:AE,MATCH($C76,'6. CY 2023'!$A:$A,0)),0),0) -> 0 | AI76: =IFERROR(IF(Y76="CY 2023",INDEX('6. CY 2023'!AL:AL,MATCH(C76,'6. CY 2023'!A:A,0)),0),0) -> 0 | AJ76: =IFERROR(IF($Y76="CY 2023",INDEX('6. CY 2023'!AM:AM,MATCH($C76,'6. CY 2023'!$A:$A,0)),0),0) -> 0 | AK76: =IFERROR(IF($Y76="CY 2023",INDEX('6. CY 2023'!AN:AN,MATCH($C76,'6. CY 2023'!$A:$A,0)),0),0) -> 0 | AL76: =IFERROR(IF($Y76="CY 2023",INDEX('6. CY 2023'!AO:AO,MATCH($C76,'6. CY 2023'!$A:$A,0)),0),0) -> 0 | AM76: =IFERROR(IF($Y76="CY 2023",INDEX('6. CY 2023'!AP:AP,MATCH($C76,'6. CY 2023'!$A:$A,0)),0),0) -> 0 | AN76: =IFERROR(IF($Y76="CY 2023",INDEX('6. CY 2023'!AQ:AQ,MATCH($C76,'6. CY 2023'!$A:$A,0)),0),0) -> 0 | AO76: =IFERROR(IF($Y76="CY 2023",INDEX('6. CY 2023'!AR:AR,MATCH($C76,'6. CY 2023'!$A:$A,0)),0),0) -> 0 | AP76: =IFERROR(IF($Y76="CY 2023",INDEX('6. CY 2023'!AS:AS,MATCH($C76,'6. CY 2023'!$A:$A,0)),0),0) -> 0 | AQ76: =IFERROR(IF($Y76="CY 2023",INDEX('6. CY 2023'!AV:AV,MATCH($C76,'6. CY 2023'!$A:$A,0)),0),0) -> 0 | AR76: =IFERROR(IF($Y76="CY 2023",INDEX('6. CY 2023'!AX:AX,MATCH($C76,'6. CY 2023'!A:A,0)),0),0) -> 0 | AS76: =IFERROR(IF(Y76="CY 2023",INDEX('6. CY 2023'!AY:AY,MATCH(C76,'6. CY 2023'!A:A,0)),0),0) -> 0 | AT76: =IFERROR(IF($Y76="CY 2023",INDEX('6. CY 2023'!AZ:AZ,MATCH($C76,'6. CY 2023'!A:A,0)),0),0) -> 0 | AW76: =IFERROR(IF(Y76="CY 2023",INDEX('6. CY 2023'!H:H,MATCH(C76,'6. CY 2023'!A:A,0)),0),0) -> 554456746.9
A77: 74 | B77: CORONA REGIONAL MEDICAL CENTER - MAIN | C77: 106331152 | D77: CORONA REGIONAL MEDICAL CENTER - MAIN | F77: =IFERROR(INDEX('8. 2019 HCAI (FEE) DAYS'!G:G,MATCH(C77,'8. 2019 HCAI (FEE) DAYS'!A:A,0)),0) -> 2019-01-01 | G77: =IFERROR(INDEX('8. 2019 HCAI (FEE) DAYS'!H:H,MATCH(C77,'8. 2019 HCAI (FEE) DAYS'!A:A,0)),0) -> 2019-12-31 | H77: =IFERROR(INDEX('8. 2019 HCAI (FEE) DAYS'!L:L,MATCH(C77,'8. 2019 HCAI (FEE) DAYS'!A:A,0)),0) -> 2019-01-01 | I77: =IFERROR(INDEX('11. Hospital Statuses'!M:M,MATCH(C77,'11. Hospital Statuses'!A:A,0)),"") -> Open | J77: Riverside | K77: 12 | L77: 1111 | M77: Investor | N77: Comparable | P77: https://www.coronaregional.com/ | R77: UNIVERSAL HEALTH SERVICES, INC. | S77: 909-737-4343 | T77: 800 SOUTH MAIN STREET | U77: CORONA | V77: 92880 | W77: MARK UFFER | X77: =IFERROR(IF(INDEX(#REF!,MATCH(C77,#REF!,0)),"Yes","No"),"") ->  | Y77: CY 2023 | Z77: =IFERROR(IF($Y77="CY 2023",INDEX('6. CY 2023'!S:S,MATCH($C77,'6. CY 2023'!$A:$A,0)),0),0) -> 0 | AA77: =IFERROR(IF($Y77="CY 2023",INDEX('6. CY 2023'!U:U,MATCH($C77,'6. CY 2023'!$A:$A,0)),0),0) -> 5720745.42 | AB77: =IFERROR(IF($Y77="CY 2023",INDEX('6. CY 2023'!W:W,MATCH($C77,'6. CY 2023'!$A:$A,0)),0),0) -> 4380374.82 | AC77: =IFERROR(IF($Y77="CY 2023",INDEX('6. CY 2023'!Y:Y,MATCH($C77,'6. CY 2023'!$A:$A,0)),0),0) -> 0 | AD77: =IFERROR(IF($Y77="CY 2023",INDEX('6. CY 2023'!AA:AA,MATCH($C77,'6. CY 2023'!$A:$A,0)),0),0) -> 4171980 | AE77: =IFERROR(IF($Y77="CY 2023",INDEX('6. CY 2023'!AC:AC,MATCH($C77,'6. CY 2023'!$A:$A,0)),0),0) -> 4366040 | AF77: =IFERROR(IF($Y77="CY 2023",INDEX('6. CY 2023'!AE:AE,MATCH($C77,'6. CY 2023'!$A:$A,0)),0),0) -> 18639140.24 | AG77: =IFERROR(IF(Y77="CY 2023",AF77/'4. Calculated Fee'!$D$32*'4. Calculated Fee'!$D$23,0),0) -> 4751799.811 | AH77: =IFERROR(IF($Y77="CY 2023",INDEX('6. CY 2023'!AE:AE,MATCH($C77,'6. CY 2023'!$A:$A,0)),0),0) -> 18639140.24 | AI77: =IFERROR(IF(Y77="CY 2023",INDEX('6. CY 2023'!AL:AL,MATCH(C77,'6. CY 2023'!A:A,0)),0),0) -> 3773871.196 | AJ77: =IFERROR(IF($Y77="CY 2023",INDEX('6. CY 2023'!AM:AM,MATCH($C77,'6. CY 2023'!$A:$A,0)),0),0) -> 3119738.05 | AK77: =IFERROR(IF($Y77="CY 2023",INDEX('6. CY 2023'!AN:AN,MATCH($C77,'6. CY 2023'!$A:$A,0)),0),0) -> 2679608.1 | AL77: =IFERROR(IF($Y77="CY 2023",INDEX('6. CY 2023'!AO:AO,MATCH($C77,'6. CY 2023'!$A:$A,0)),0),0) -> 558675 | AM77: =IFERROR(IF($Y77="CY 2023",INDEX('6. CY 2023'!AP:AP,MATCH($C77,'6. CY 2023'!$A:$A,0)),0),0) -> 467500 | AN77: =IFERROR(IF($Y77="CY 2023",INDEX('6. CY 2023'!AQ:AQ,MATCH($C77,'6. CY 2023'!$A:$A,0)),0),0) -> 0 | AO77: =IFERROR(IF($Y77="CY 2023",INDEX('6. CY 2023'!AR:AR,MATCH($C77,'6. CY 2023'!$A:$A,0)),0),0) -> 0 | AP77: =IFERROR(IF($Y77="CY 2023",INDEX('6. CY 2023'!AS:AS,MATCH($C77,'6. CY 2023'!$A:$A,0)),0),0) -> 0 | AQ77: =IFERROR(IF($Y77="CY 2023",INDEX('6. CY 2023'!AV:AV,MATCH($C77,'6. CY 2023'!$A:$A,0)),0),0) -> 10599392.35 | AR77: =IFERROR(IF($Y77="CY 2023",INDEX('6. CY 2023'!AX:AX,MATCH($C77,'6. CY 2023'!A:A,0)),0),0) -> 8251348.167 | AS77: =IFERROR(IF(Y77="CY 2023",INDEX('6. CY 2023'!AY:AY,MATCH(C77,'6. CY 2023'!A:A,0)),0),0) -> 20527427.43 | AT77: =IFERROR(IF($Y77="CY 2023",INDEX('6. CY 2023'!AZ:AZ,MATCH($C77,'6. CY 2023'!A:A,0)),0),0) -> 28778775.6 | AW77: =IFERROR(IF(Y77="CY 2023",INDEX('6. CY 2023'!H:H,MATCH(C77,'6. CY 2023'!A:A,0)),0),0) -> 241003900.4
A78: 75 | B78: DAMERON HOSPITAL ASSOCIATION | C78: 106390846 | D78: DAMERON HOSPITAL ASSOCIATION | F78: =IFERROR(INDEX('8. 2019 HCAI (FEE) DAYS'!G:G,MATCH(C78,'8. 2019 HCAI (FEE) DAYS'!A:A,0)),0) -> 2019-01-01 | G78: =IFERROR(INDEX('8. 2019 HCAI (FEE) DAYS'!H:H,MATCH(C78,'8. 2019 HCAI (FEE) DAYS'!A:A,0)),0) -> 2019-12-31 | H78: =IFERROR(INDEX('8. 2019 HCAI (FEE) DAYS'!L:L,MATCH(C78,'8. 2019 HCAI (FEE) DAYS'!A:A,0)),0) -> 2019-01-01 | I78: =IFERROR(INDEX('11. Hospital Statuses'!M:M,MATCH(C78,'11. Hospital Statuses'!A:A,0)),"") -> Open | J78: San Joaquin | K78: 6 | L78: 507 | M78: Non-Profit | N78: Comparable | P78: https://www.dameronhospital.org/ | R78: DAMERON HOSPITAL ASSOCIATION | S78: 209-944-5550 | T78: 525 WEST ACACIA STREET | U78: STOCKTON | V78: 95203 | W78: LORRAINE AUERBACH | X78: =IFERROR(IF(INDEX(#REF!,MATCH(C78,#REF!,0)),"Yes","No"),"") ->  | Y78: CY 2023 | Z78: =IFERROR(IF($Y78="CY 2023",INDEX('6. CY 2023'!S:S,MATCH($C78,'6. CY 2023'!$A:$A,0)),0),0) -> 0 | AA78: =IFERROR(IF($Y78="CY 2023",INDEX('6. CY 2023'!U:U,MATCH($C78,'6. CY 2023'!$A:$A,0)),0),0) -> 1171296.9 | AB78: =IFERROR(IF($Y78="CY 2023",INDEX('6. CY 2023'!W:W,MATCH($C78,'6. CY 2023'!$A:$A,0)),0),0) -> 1766309.6 | AC78: =IFERROR(IF($Y78="CY 2023",INDEX('6. CY 2023'!Y:Y,MATCH($C78,'6. CY 2023'!$A:$A,0)),0),0) -> 0 | AD78: =IFERROR(IF($Y78="CY 2023",INDEX('6. CY 2023'!AA:AA,MATCH($C78,'6. CY 2023'!$A:$A,0)),0),0) -> 2116680 | AE78: =IFERROR(IF($Y78="CY 2023",INDEX('6. CY 2023'!AC:AC,MATCH($C78,'6. CY 2023'!$A:$A,0)),0),0) -> 778720 | AF78: =IFERROR(IF($Y78="CY 2023",INDEX('6. CY 2023'!AE:AE,MATCH($C78,'6. CY 2023'!$A:$A,0)),0),0) -> 5833006.5 | AG78: =IFERROR(IF(Y78="CY 2023",AF78/'4. Calculated Fee'!$D$32*'4. Calculated Fee'!$D$23,0),0) -> 1487047.086 | AH78: =IFERROR(IF($Y78="CY 2023",INDEX('6. CY 2023'!AE:AE,MATCH($C78,'6. CY 2023'!$A:$A,0)),0),0) -> 5833006.5 | AI78: =IFERROR(IF(Y78="CY 2023",INDEX('6. CY 2023'!AL:AL,MATCH(C78,'6. CY 2023'!A:A,0)),0),0) -> 1508072.404 | AJ78: =IFERROR(IF($Y78="CY 2023",INDEX('6. CY 2023'!AM:AM,MATCH($C78,'6. CY 2023'!$A:$A,0)),0),0) -> 1201637.035 | AK78: =IFERROR(IF($Y78="CY 2023",INDEX('6. CY 2023'!AN:AN,MATCH($C78,'6. CY 2023'!$A:$A,0)),0),0) -> 0 | AL78: =IFERROR(IF($Y78="CY 2023",INDEX('6. CY 2023'!AO:AO,MATCH($C78,'6. CY 2023'!$A:$A,0)),0),0) -> 0 | AM78: =IFERROR(IF($Y78="CY 2023",INDEX('6. CY 2023'!AP:AP,MATCH($C78,'6. CY 2023'!$A:$A,0)),0),0) -> 442500 | AN78: =IFERROR(IF($Y78="CY 2023",INDEX('6. CY 2023'!AQ:AQ,MATCH($C78,'6. CY 2023'!$A:$A,0)),0),0) -> 0 | AO78: =IFERROR(IF($Y78="CY 2023",INDEX('6. CY 2023'!AR:AR,MATCH($C78,'6. CY 2023'!$A:$A,0)),0),0) -> 0 | AP78: =IFERROR(IF($Y78="CY 2023",INDEX('6. CY 2023'!AS:AS,MATCH($C78,'6. CY 2023'!$A:$A,0)),0),0) -> 0 | AQ78: =IFERROR(IF($Y78="CY 2023",INDEX('6. CY 2023'!AV:AV,MATCH($C78,'6. CY 2023'!$A:$A,0)),0),0) -> 3152209.439 | AR78: =IFERROR(IF($Y78="CY 2023",INDEX('6. CY 2023'!AX:AX,MATCH($C78,'6. CY 2023'!A:A,0)),0),0) -> 1485239.091 | AS78: =IFERROR(IF(Y78="CY 2023",INDEX('6. CY 2023'!AY:AY,MATCH(C78,'6. CY 2023'!A:A,0)),0),0) -> 11312468.3 | AT78: =IFERROR(IF($Y78="CY 2023",INDEX('6. CY 2023'!AZ:AZ,MATCH($C78,'6. CY 2023'!A:A,0)),0),0) -> 12797707.39 | AW78: =IFERROR(IF(Y78="CY 2023",INDEX('6. CY 2023'!H:H,MATCH(C78,'6. CY 2023'!A:A,0)),0),0) -> 165456262.5
A79: 76 | B79: DEL AMO HOSPITAL | C79: 106190232 | D79: DEL AMO HOSPITAL | F79: =IFERROR(INDEX('8. 2019 HCAI (FEE) DAYS'!G:G,MATCH(C79,'8. 2019 HCAI (FEE) DAYS'!A:A,0)),0) -> 2019-01-01 | G79: =IFERROR(INDEX('8. 2019 HCAI (FEE) DAYS'!H:H,MATCH(C79,'8. 2019 HCAI (FEE) DAYS'!A:A,0)),0) -> 2019-12-31 | H79: =IFERROR(INDEX('8. 2019 HCAI (FEE) DAYS'!L:L,MATCH(C79,'8. 2019 HCAI (FEE) DAYS'!A:A,0)),0) -> 2019-01-01 | I79: =IFERROR(INDEX('11. Hospital Statuses'!M:M,MATCH(C79,'11. Hospital Statuses'!A:A,0)),"") -> Open | J79: Los Angeles | K79: 11 | L79: 931 | M79: Investor | N79: Comparable | P79: https://delamohospital.com/ | R79: UNIVERSAL HEALTH SERVICES, INC. | S79: 310-530-1151 | T79: 23700 CAMINO DEL SOL | U79: TORRANCE | V79: 90505 | W79: STEVEN HYTRY | X79: =IFERROR(IF(INDEX(#REF!,MATCH(C79,#REF!,0)),"Yes","No"),"") ->  | Y79: CY 2023 | Z79: =IFERROR(IF($Y79="CY 2023",INDEX('6. CY 2023'!S:S,MATCH($C79,'6. CY 2023'!$A:$A,0)),0),0) -> 0 | AA79: =IFERROR(IF($Y79="CY 2023",INDEX('6. CY 2023'!U:U,MATCH($C79,'6. CY 2023'!$A:$A,0)),0),0) -> 0 | AB79: =IFERROR(IF($Y79="CY 2023",INDEX('6. CY 2023'!W:W,MATCH($C79,'6. CY 2023'!$A:$A,0)),0),0) -> 0 | AC79: =IFERROR(IF($Y79="CY 2023",INDEX('6. CY 2023'!Y:Y,MATCH($C79,'6. CY 2023'!$A:$A,0)),0),0) -> 0 | AD79: =IFERROR(IF($Y79="CY 2023",INDEX('6. CY 2023'!AA:AA,MATCH($C79,'6. CY 2023'!$A:$A,0)),0),0) -> 0 | AE79: =IFERROR(IF($Y79="CY 2023",INDEX('6. CY 2023'!AC:AC,MATCH($C79,'6. CY 2023'!$A:$A,0)),0),0) -> 0 | AF79: =IFERROR(IF($Y79="CY 2023",INDEX('6. CY 2023'!AE:AE,MATCH($C79,'6. CY 2023'!$A:$A,0)),0),0) -> 0 | AG79: =IFERROR(IF(Y79="CY 2023",AF79/'4. Calculated Fee'!$D$32*'4. Calculated Fee'!$D$23,0),0) -> 0 | AH79: =IFERROR(IF($Y79="CY 2023",INDEX('6. CY 2023'!AE:AE,MATCH($C79,'6. CY 2023'!$A:$A,0)),0),0) -> 0 | AI79: =IFERROR(IF(Y79="CY 2023",INDEX('6. CY 2023'!AL:AL,MATCH(C79,'6. CY 2023'!A:A,0)),0),0) -> 0 | AJ79: =IFERROR(IF($Y79="CY 2023",INDEX('6. CY 2023'!AM:AM,MATCH($C79,'6. CY 2023'!$A:$A,0)),0),0) -> 0 | AK79: =IFERROR(IF($Y79="CY 2023",INDEX('6. CY 2023'!AN:AN,MATCH($C79,'6. CY 2023'!$A:$A,0)),0),0) -> 0 | AL79: =IFERROR(IF($Y79="CY 2023",INDEX('6. CY 2023'!AO:AO,MATCH($C79,'6. CY 2023'!$A:$A,0)),0),0) -> 0 | AM79: =IFERROR(IF($Y79="CY 2023",INDEX('6. CY 2023'!AP:AP,MATCH($C79,'6. CY 2023'!$A:$A,0)),0),0) -> 0 | AN79: =IFERROR(IF($Y79="CY 2023",INDEX('6. CY 2023'!AQ:AQ,MATCH($C79,'6. CY 2023'!$A:$A,0)),0),0) -> 0 | AO79: =IFERROR(IF($Y79="CY 2023",INDEX('6. CY 2023'!AR:AR,MATCH($C79,'6. CY 2023'!$A:$A,0)),0),0) -> 0 | AP79: =IFERROR(IF($Y79="CY 2023",INDEX('6. CY 2023'!AS:AS,MATCH($C79,'6. CY 2023'!$A:$A,0)),0),0) -> 0 | AQ79: =IFERROR(IF($Y79="CY 2023",INDEX('6. CY 2023'!AV:AV,MATCH($C79,'6. CY 2023'!$A:$A,0)),0),0) -> 0 | AR79: =IFERROR(IF($Y79="CY 2023",INDEX('6. CY 2023'!AX:AX,MATCH($C79,'6. CY 2023'!A:A,0)),0),0) -> 0 | AS79: =IFERROR(IF(Y79="CY 2023",INDEX('6. CY 2023'!AY:AY,MATCH(C79,'6. CY 2023'!A:A,0)),0),0) -> 0 | AT79: =IFERROR(IF($Y79="CY 2023",INDEX('6. CY 2023'!AZ:AZ,MATCH($C79,'6. CY 2023'!A:A,0)),0),0) -> 0 | AW79: =IFERROR(IF(Y79="CY 2023",INDEX('6. CY 2023'!H:H,MATCH(C79,'6. CY 2023'!A:A,0)),0),0) -> 60984418.47
A80: 77 | B80: DELANO REGIONAL MEDICAL CENTER | C80: 106150706 | D80: DELANO REGIONAL MEDICAL CENTER | F80: =IFERROR(INDEX('8. 2019 HCAI (FEE) DAYS'!G:G,MATCH(C80,'8. 2019 HCAI (FEE) DAYS'!A:A,0)),0) -> 2019-01-01 | G80: =IFERROR(INDEX('8. 2019 HCAI (FEE) DAYS'!H:H,MATCH(C80,'8. 2019 HCAI (FEE) DAYS'!A:A,0)),0) -> 2019-12-31 | H80: =IFERROR(INDEX('8. 2019 HCAI (FEE) DAYS'!L:L,MATCH(C80,'8. 2019 HCAI (FEE) DAYS'!A:A,0)),0) -> 2019-01-01 | I80: =IFERROR(INDEX('11. Hospital Statuses'!M:M,MATCH(C80,'11. Hospital Statuses'!A:A,0)),"") -> Open | J80: Kern | K80: 9 | L80: 617 | M80: Non-Profit | N80: Comparable | P80: https://www.adventisthealth.org/delano/ | R80: ADVENTIST HEALTH | S80: 661-725-4800 | T80: 1401 GARCES HIGHWAY | U80: DELANO | V80: 93215 | W80: DAVID A. BUTLER | X80: =IFERROR(IF(INDEX(#REF!,MATCH(C80,#REF!,0)),"Yes","No"),"") ->  | Y80: CY 2023 | Z80: =IFERROR(IF($Y80="CY 2023",INDEX('6. CY 2023'!S:S,MATCH($C80,'6. CY 2023'!$A:$A,0)),0),0) -> 0 | AA80: =IFERROR(IF($Y80="CY 2023",INDEX('6. CY 2023'!U:U,MATCH($C80,'6. CY 2023'!$A:$A,0)),0),0) -> 541131.87 | AB80: =IFERROR(IF($Y80="CY 2023",INDEX('6. CY 2023'!W:W,MATCH($C80,'6. CY 2023'!$A:$A,0)),0),0) -> 1352467.64 | AC80: =IFERROR(IF($Y80="CY 2023",INDEX('6. CY 2023'!Y:Y,MATCH($C80,'6. CY 2023'!$A:$A,0)),0),0) -> 0 | AD80: =IFERROR(IF($Y80="CY 2023",INDEX('6. CY 2023'!AA:AA,MATCH($C80,'6. CY 2023'!$A:$A,0)),0),0) -> 837000 | AE80: =IFERROR(IF($Y80="CY 2023",INDEX('6. CY 2023'!AC:AC,MATCH($C80,'6. CY 2023'!$A:$A,0)),0),0) -> 853740 | AF80: =IFERROR(IF($Y80="CY 2023",INDEX('6. CY 2023'!AE:AE,MATCH($C80,'6. CY 2023'!$A:$A,0)),0),0) -> 3584339.51 | AG80: =IFERROR(IF(Y80="CY 2023",AF80/'4. Calculated Fee'!$D$32*'4. Calculated Fee'!$D$23,0),0) -> 913779.4762 | AH80: =IFERROR(IF($Y80="CY 2023",INDEX('6. CY 2023'!AE:AE,MATCH($C80,'6. CY 2023'!$A:$A,0)),0),0) -> 3584339.51 | AI80: =IFERROR(IF(Y80="CY 2023",INDEX('6. CY 2023'!AL:AL,MATCH(C80,'6. CY 2023'!A:A,0)),0),0) -> 2198365.298 | AJ80: =IFERROR(IF($Y80="CY 2023",INDEX('6. CY 2023'!AM:AM,MATCH($C80,'6. CY 2023'!$A:$A,0)),0),0) -> 2011693.156 | AK80: =IFERROR(IF($Y80="CY 2023",INDEX('6. CY 2023'!AN:AN,MATCH($C80,'6. CY 2023'!$A:$A,0)),0),0) -> 7429050.98 | AL80: =IFERROR(IF($Y80="CY 2023",INDEX('6. CY 2023'!AO:AO,MATCH($C80,'6. CY 2023'!$A:$A,0)),0),0) -> 0 | AM80: =IFERROR(IF($Y80="CY 2023",INDEX('6. CY 2023'!AP:AP,MATCH($C80,'6. CY 2023'!$A:$A,0)),0),0) -> 870000 | AN80: =IFERROR(IF($Y80="CY 2023",INDEX('6. CY 2023'!AQ:AQ,MATCH($C80,'6. CY 2023'!$A:$A,0)),0),0) -> 0 | AO80: =IFERROR(IF($Y80="CY 2023",INDEX('6. CY 2023'!AR:AR,MATCH($C80,'6. CY 2023'!$A:$A,0)),0),0) -> 0 | AP80: =IFERROR(IF($Y80="CY 2023",INDEX('6. CY 2023'!AS:AS,MATCH($C80,'6. CY 2023'!$A:$A,0)),0),0) -> 0 | AQ80: =IFERROR(IF($Y80="CY 2023",INDEX('6. CY 2023'!AV:AV,MATCH($C80,'6. CY 2023'!$A:$A,0)),0),0) -> 12509109.43 | AR80: =IFERROR(IF($Y80="CY 2023",INDEX('6. CY 2023'!AX:AX,MATCH($C80,'6. CY 2023'!A:A,0)),0),0) -> 1471654.727 | AS80: =IFERROR(IF(Y80="CY 2023",INDEX('6. CY 2023'!AY:AY,MATCH(C80,'6. CY 2023'!A:A,0)),0),0) -> 11954706.95 | AT80: =IFERROR(IF($Y80="CY 2023",INDEX('6. CY 2023'!AZ:AZ,MATCH($C80,'6. CY 2023'!A:A,0)),0),0) -> 13426361.67 | AW80: =IFERROR(IF(Y80="CY 2023",INDEX('6. CY 2023'!H:H,MATCH(C80,'6. CY 2023'!A:A,0)),0),0) -> 126712061.7
A81: 78 | B81: DESERT REGIONAL MEDICAL CENTER | C81: 106331164 | D81: DESERT REGIONAL MEDICAL CENTER | F81: =IFERROR(INDEX('8. 2019 HCAI (FEE) DAYS'!G:G,MATCH(C81,'8. 2019 HCAI (FEE) DAYS'!A:A,0)),0) -> 2019-01-01 | G81: =IFERROR(INDEX('8. 2019 HCAI (FEE) DAYS'!H:H,MATCH(C81,'8. 2019 HCAI (FEE) DAYS'!A:A,0)),0) -> 2019-12-31 | H81: =IFERROR(INDEX('8. 2019 HCAI (FEE) DAYS'!L:L,MATCH(C81,'8. 2019 HCAI (FEE) DAYS'!A:A,0)),0) -> 2019-01-01 | I81: =IFERROR(INDEX('11. Hospital Statuses'!M:M,MATCH(C81,'11. Hospital Statuses'!A:A,0)),"") -> Open | J81: Riverside | K81: 12 | L81: 1105 | M81: Investor | N81: Comparable | P81: https://www.desertcarenetwork.com/locations/detail/desert-regional-medical-center | R81: TENET HEALTHCARE CORPORATION | S81: 760-323-6511 | T81: 1150 N INDIAN CANYON DRIVE | U81: PALM SPRINGS | V81: 92262 | W81: MICHELE FINNEY | X81: =IFERROR(IF(INDEX(#REF!,MATCH(C81,#REF!,0)),"Yes","No"),"") ->  | Y81: CY 2023 | Z81: =IFERROR(IF($Y81="CY 2023",INDEX('6. CY 2023'!S:S,MATCH($C81,'6. CY 2023'!$A:$A,0)),0),0) -> 0 | AA81: =IFERROR(IF($Y81="CY 2023",INDEX('6. CY 2023'!U:U,MATCH($C81,'6. CY 2023'!$A:$A,0)),0),0) -> 11382378.66 | AB81: =IFERROR(IF($Y81="CY 2023",INDEX('6. CY 2023'!W:W,MATCH($C81,'6. CY 2023'!$A:$A,0)),0),0) -> 7721400.52 | AC81: =IFERROR(IF($Y81="CY 2023",INDEX('6. CY 2023'!Y:Y,MATCH($C81,'6. CY 2023'!$A:$A,0)),0),0) -> 0 | AD81: =IFERROR(IF($Y81="CY 2023",INDEX('6. CY 2023'!AA:AA,MATCH($C81,'6. CY 2023'!$A:$A,0)),0),0) -> 11372040 | AE81: =IFERROR(IF($Y81="CY 2023",INDEX('6. CY 2023'!AC:AC,MATCH($C81,'6. CY 2023'!$A:$A,0)),0),0) -> 9840020 | AF81: =IFERROR(IF($Y81="CY 2023",INDEX('6. CY 2023'!AE:AE,MATCH($C81,'6. CY 2023'!$A:$A,0)),0),0) -> 40315839.18 | AG81: =IFERROR(IF(Y81="CY 2023",AF81/'4. Calculated Fee'!$D$32*'4. Calculated Fee'!$D$23,0),0) -> 10277984.63 | AH81: =IFERROR(IF($Y81="CY 2023",INDEX('6. CY 2023'!AE:AE,MATCH($C81,'6. CY 2023'!$A:$A,0)),0),0) -> 40315839.18 | AI81: =IFERROR(IF(Y81="CY 2023",INDEX('6. CY 2023'!AL:AL,MATCH(C81,'6. CY 2023'!A:A,0)),0),0) -> 11564355.45 | AJ81: =IFERROR(IF($Y81="CY 2023",INDEX('6. CY 2023'!AM:AM,MATCH($C81,'6. CY 2023'!$A:$A,0)),0),0) -> 14120579.88 | AK81: =IFERROR(IF($Y81="CY 2023",INDEX('6. CY 2023'!AN:AN,MATCH($C81,'6. CY 2023'!$A:$A,0)),0),0) -> 0 | AL81: =IFERROR(IF($Y81="CY 2023",INDEX('6. CY 2023'!AO:AO,MATCH($C81,'6. CY 2023'!$A:$A,0)),0),0) -> 0 | AM81: =IFERROR(IF($Y81="CY 2023",INDEX('6. CY 2023'!AP:AP,MATCH($C81,'6. CY 2023'!$A:$A,0)),0),0) -> 5387500 | AN81: =IFERROR(IF($Y81="CY 2023",INDEX('6. CY 2023'!AQ:AQ,MATCH($C81,'6. CY 2023'!$A:$A,0)),0),0) -> 5387500 | AO81: =IFERROR(IF($Y81="CY 2023",INDEX('6. CY 2023'!AR:AR,MATCH($C81,'6. CY 2023'!$A:$A,0)),0),0) -> 0 | AP81: =IFERROR(IF($Y81="CY 2023",INDEX('6. CY 2023'!AS:AS,MATCH($C81,'6. CY 2023'!$A:$A,0)),0),0) -> 0 | AQ81: =IFERROR(IF($Y81="CY 2023",INDEX('6. CY 2023'!AV:AV,MATCH($C81,'6. CY 2023'!$A:$A,0)),0),0) -> 36459935.33 | AR81: =IFERROR(IF($Y81="CY 2023",INDEX('6. CY 2023'!AX:AX,MATCH($C81,'6. CY 2023'!A:A,0)),0),0) -> 8719612.937 | AS81: =IFERROR(IF(Y81="CY 2023",INDEX('6. CY 2023'!AY:AY,MATCH(C81,'6. CY 2023'!A:A,0)),0),0) -> 43282616.43 | AT81: =IFERROR(IF($Y81="CY 2023",INDEX('6. CY 2023'!AZ:AZ,MATCH($C81,'6. CY 2023'!A:A,0)),0),0) -> 52002229.37 | AW81: =IFERROR(IF(Y81="CY 2023",INDEX('6. CY 2023'!H:H,MATCH(C81,'6. CY 2023'!A:A,0)),0),0) -> 708928103.9 | AX81: =SUM(AG81:AG92) -> 61686928.4
A82: 79 | B82: DESERT VALLEY HOSPITAL | C82: 106364144 | D82: DESERT VALLEY HOSPITAL | F82: =IFERROR(INDEX('8. 2019 HCAI (FEE) DAYS'!G:G,MATCH(C82,'8. 2019 HCAI (FEE) DAYS'!A:A,0)),0) -> 2019-01-01 | G82: =IFERROR(INDEX('8. 2019 HCAI (FEE) DAYS'!H:H,MATCH(C82,'8. 2019 HCAI (FEE) DAYS'!A:A,0)),0) -> 2019-12-31 | H82: =IFERROR(INDEX('8. 2019 HCAI (FEE) DAYS'!L:L,MATCH(C82,'8. 2019 HCAI (FEE) DAYS'!A:A,0)),0) -> 2019-01-01 | I82: =IFERROR(INDEX('11. Hospital Statuses'!M:M,MATCH(C82,'11. Hospital Statuses'!A:A,0)),"") -> Open | J82: San Bernardino | K82: 12 | L82: 1211 | M82: Investor | N82: Comparable | P82: https://www.dvmc.com/ | R82: DR. PREM N. REDDY | S82: 760-241-8000 | T82: 16850 BEAR VALLEY ROAD | U82: VICTORVILLE | V82: 92395 | W82: FRED HUNTER | X82: =IFERROR(IF(INDEX(#REF!,MATCH(C82,#REF!,0)),"Yes","No"),"") ->  | Y82: CY 2023 | Z82: =IFERROR(IF($Y82="CY 2023",INDEX('6. CY 2023'!S:S,MATCH($C82,'6. CY 2023'!$A:$A,0)),0),0) -> 0 | AA82: =IFERROR(IF($Y82="CY 2023",INDEX('6. CY 2023'!U:U,MATCH($C82,'6. CY 2023'!$A:$A,0)),0),0) -> 3864549.99 | AB82: =IFERROR(IF($Y82="CY 2023",INDEX('6. CY 2023'!W:W,MATCH($C82,'6. CY 2023'!$A:$A,0)),0),0) -> 5841959.52 | AC82: =IFERROR(IF($Y82="CY 2023",INDEX('6. CY 2023'!Y:Y,MATCH($C82,'6. CY 2023'!$A:$A,0)),0),0) -> 0 | AD82: =IFERROR(IF($Y82="CY 2023",INDEX('6. CY 2023'!AA:AA,MATCH($C82,'6. CY 2023'!$A:$A,0)),0),0) -> 6458540 | AE82: =IFERROR(IF($Y82="CY 2023",INDEX('6. CY 2023'!AC:AC,MATCH($C82,'6. CY 2023'!$A:$A,0)),0),0) -> 2217120 | AF82: =IFERROR(IF($Y82="CY 2023",INDEX('6. CY 2023'!AE:AE,MATCH($C82,'6. CY 2023'!$A:$A,0)),0),0) -> 18382169.51 | AG82: =IFERROR(IF(Y82="CY 2023",AF82/'4. Calculated Fee'!$D$32*'4. Calculated Fee'!$D$23,0),0) -> 4686288.556 | AH82: =IFERROR(IF($Y82="CY 2023",INDEX('6. CY 2023'!AE:AE,MATCH($C82,'6. CY 2023'!$A:$A,0)),0),0) -> 18382169.51 | AI82: =IFERROR(IF(Y82="CY 2023",INDEX('6. CY 2023'!AL:AL,MATCH(C82,'6. CY 2023'!A:A,0)),0),0) -> 1971313.517 | AJ82: =IFERROR(IF($Y82="CY 2023",INDEX('6. CY 2023'!AM:AM,MATCH($C82,'6. CY 2023'!$A:$A,0)),0),0) -> 3678063.584 | AK82: =IFERROR(IF($Y82="CY 2023",INDEX('6. CY 2023'!AN:AN,MATCH($C82,'6. CY 2023'!$A:$A,0)),0),0) -> 0 | AL82: =IFERROR(IF($Y82="CY 2023",INDEX('6. CY 2023'!AO:AO,MATCH($C82,'6. CY 2023'!$A:$A,0)),0),0) -> 0 | AM82: =IFERROR(IF($Y82="CY 2023",INDEX('6. CY 2023'!AP:AP,MATCH($C82,'6. CY 2023'!$A:$A,0)),0),0) -> 892500 | AN82: =IFERROR(IF($Y82="CY 2023",INDEX('6. CY 2023'!AQ:AQ,MATCH($C82,'6. CY 2023'!$A:$A,0)),0),0) -> 0 | AO82: =IFERROR(IF($Y82="CY 2023",INDEX('6. CY 2023'!AR:AR,MATCH($C82,'6. CY 2023'!$A:$A,0)),0),0) -> 0 | AP82: =IFERROR(IF($Y82="CY 2023",INDEX('6. CY 2023'!AS:AS,MATCH($C82,'6. CY 2023'!$A:$A,0)),0),0) -> 0 | AQ82: =IFERROR(IF($Y82="CY 2023",INDEX('6. CY 2023'!AV:AV,MATCH($C82,'6. CY 2023'!$A:$A,0)),0),0) -> 6541877.101 | AR82: =IFERROR(IF($Y82="CY 2023",INDEX('6. CY 2023'!AX:AX,MATCH($C82,'6. CY 2023'!A:A,0)),0),0) -> 2708959.237 | AS82: =IFERROR(IF(Y82="CY 2023",INDEX('6. CY 2023'!AY:AY,MATCH(C82,'6. CY 2023'!A:A,0)),0),0) -> 22946284.28 | AT82: =IFERROR(IF($Y82="CY 2023",INDEX('6. CY 2023'!AZ:AZ,MATCH($C82,'6. CY 2023'!A:A,0)),0),0) -> 25655243.52 | AW82: =IFERROR(IF(Y82="CY 2023",INDEX('6. CY 2023'!H:H,MATCH(C82,'6. CY 2023'!A:A,0)),0),0) -> 413450184.5
A83: 80 | B83: DOCTORS HOSPITAL OF MANTECA | C83: 106392287 | D83: DOCTORS HOSPITAL OF MANTECA | F83: =IFERROR(INDEX('8. 2019 HCAI (FEE) DAYS'!G:G,MATCH(C83,'8. 2019 HCAI (FEE) DAYS'!A:A,0)),0) -> 2019-01-01 | G83: =IFERROR(INDEX('8. 2019 HCAI (FEE) DAYS'!H:H,MATCH(C83,'8. 2019 HCAI (FEE) DAYS'!A:A,0)),0) -> 2019-12-31 | H83: =IFERROR(INDEX('8. 2019 HCAI (FEE) DAYS'!L:L,MATCH(C83,'8. 2019 HCAI (FEE) DAYS'!A:A,0)),0) -> 2019-01-01 | I83: =IFERROR(INDEX('11. Hospital Statuses'!M:M,MATCH(C83,'11. Hospital Statuses'!A:A,0)),"") -> Open | J83: San Joaquin | K83: 6 | L83: 507 | M83: Investor | N83: Comparable | P83: https://www.doctorsmanteca.com/ | R83: TENET HEALTHCARE CORPORATION | S83: 209-823-3111 | T83: 1205 EAST NORTH STREET | U83: MANTECA | V83: 95336 | W83: MURALI NAIDO | X83: =IFERROR(IF(INDEX(#REF!,MATCH(C83,#REF!,0)),"Yes","No"),"") ->  | Y83: CY 2023 | Z83: =IFERROR(IF($Y83="CY 2023",INDEX('6. CY 2023'!S:S,MATCH($C83,'6. CY 2023'!$A:$A,0)),0),0) -> 0 | AA83: =IFERROR(IF($Y83="CY 2023",INDEX('6. CY 2023'!U:U,MATCH($C83,'6. CY 2023'!$A:$A,0)),0),0) -> 1439855.94 | AB83: =IFERROR(IF($Y83="CY 2023",INDEX('6. CY 2023'!W:W,MATCH($C83,'6. CY 2023'!$A:$A,0)),0),0) -> 2764055.56 | AC83: =IFERROR(IF($Y83="CY 2023",INDEX('6. CY 2023'!Y:Y,MATCH($C83,'6. CY 2023'!$A:$A,0)),0),0) -> 0 | AD83: =IFERROR(IF($Y83="CY 2023",INDEX('6. CY 2023'!AA:AA,MATCH($C83,'6. CY 2023'!$A:$A,0)),0),0) -> 1814740 | AE83: =IFERROR(IF($Y83="CY 2023",INDEX('6. CY 2023'!AC:AC,MATCH($C83,'6. CY 2023'!$A:$A,0)),0),0) -> 750820 | AF83: =IFERROR(IF($Y83="CY 2023",INDEX('6. CY 2023'!AE:AE,MATCH($C83,'6. CY 2023'!$A:$A,0)),0),0) -> 6769471.5 | AG83: =IFERROR(IF(Y83="CY 2023",AF83/'4. Calculated Fee'!$D$32*'4. Calculated Fee'!$D$23,0),0) -> 1725786.328 | AH83: =IFERROR(IF($Y83="CY 2023",INDEX('6. CY 2023'!AE:AE,MATCH($C83,'6. CY 2023'!$A:$A,0)),0),0) -> 6769471.5 | AI83: =IFERROR(IF(Y83="CY 2023",INDEX('6. CY 2023'!AL:AL,MATCH(C83,'6. CY 2023'!A:A,0)),0),0) -> 1021844.489 | AJ83: =IFERROR(IF($Y83="CY 2023",INDEX('6. CY 2023'!AM:AM,MATCH($C83,'6. CY 2023'!$A:$A,0)),0),0) -> 1446912.992 | AK83: =IFERROR(IF($Y83="CY 2023",INDEX('6. CY 2023'!AN:AN,MATCH($C83,'6. CY 2023'!$A:$A,0)),0),0) -> 0 | AL83: =IFERROR(IF($Y83="CY 2023",INDEX('6. CY 2023'!AO:AO,MATCH($C83,'6. CY 2023'!$A:$A,0)),0),0) -> 0 | AM83: =IFERROR(IF($Y83="CY 2023",INDEX('6. CY 2023'!AP:AP,MATCH($C83,'6. CY 2023'!$A:$A,0)),0),0) -> 380000 | AN83: =IFERROR(IF($Y83="CY 2023",INDEX('6. CY 2023'!AQ:AQ,MATCH($C83,'6. CY 2023'!$A:$A,0)),0),0) -> 0 | AO83: =IFERROR(IF($Y83="CY 2023",INDEX('6. CY 2023'!AR:AR,MATCH($C83,'6. CY 2023'!$A:$A,0)),0),0) -> 0 | AP83: =IFERROR(IF($Y83="CY 2023",INDEX('6. CY 2023'!AS:AS,MATCH($C83,'6. CY 2023'!$A:$A,0)),0),0) -> 0 | AQ83: =IFERROR(IF($Y83="CY 2023",INDEX('6. CY 2023'!AV:AV,MATCH($C83,'6. CY 2023'!$A:$A,0)),0),0) -> 2848757.481 | AR83: =IFERROR(IF($Y83="CY 2023",INDEX('6. CY 2023'!AX:AX,MATCH($C83,'6. CY 2023'!A:A,0)),0),0) -> 1457338.85 | AS83: =IFERROR(IF(Y83="CY 2023",INDEX('6. CY 2023'!AY:AY,MATCH(C83,'6. CY 2023'!A:A,0)),0),0) -> 9218911.438 | AT83: =IFERROR(IF($Y83="CY 2023",INDEX('6. CY 2023'!AZ:AZ,MATCH($C83,'6. CY 2023'!A:A,0)),0),0) -> 10676250.29 | AW83: =IFERROR(IF(Y83="CY 2023",INDEX('6. CY 2023'!H:H,MATCH(C83,'6. CY 2023'!A:A,0)),0),0) -> 138235132.6
A84: 81 | B84: DOCTORS MEDICAL CENTER - MODESTO | C84: 106500852 | D84: DOCTORS MEDICAL CENTER - MODESTO | F84: =IFERROR(INDEX('8. 2019 HCAI (FEE) DAYS'!G:G,MATCH(C84,'8. 2019 HCAI (FEE) DAYS'!A:A,0)),0) -> 2019-01-01 | G84: =IFERROR(INDEX('8. 2019 HCAI (FEE) DAYS'!H:H,MATCH(C84,'8. 2019 HCAI (FEE) DAYS'!A:A,0)),0) -> 2019-12-31 | H84: =IFERROR(INDEX('8. 2019 HCAI (FEE) DAYS'!L:L,MATCH(C84,'8. 2019 HCAI (FEE) DAYS'!A:A,0)),0) -> 2019-01-01 | I84: =IFERROR(INDEX('11. Hospital Statuses'!M:M,MATCH(C84,'11. Hospital Statuses'!A:A,0)),"") -> Open | J84: Stanislaus | K84: 6 | L84: 511 | M84: Investor | N84: Comparable | P84: https://www.dmc-modesto.com/ | R84: TENET HEALTHCARE CORPORATION | S84: 209-578-1211 | T84: 1441 FLORIDA AVENUE | U84: MODESTO | V84: 95350 | W84: WARREN KIRK | X84: =IFERROR(IF(INDEX(#REF!,MATCH(C84,#REF!,0)),"Yes","No"),"") ->  | Y84: CY 2023 | Z84: =IFERROR(IF($Y84="CY 2023",INDEX('6. CY 2023'!S:S,MATCH($C84,'6. CY 2023'!$A:$A,0)),0),0) -> 0 | AA84: =IFERROR(IF($Y84="CY 2023",INDEX('6. CY 2023'!U:U,MATCH($C84,'6. CY 2023'!$A:$A,0)),0),0) -> 10317629.64 | AB84: =IFERROR(IF($Y84="CY 2023",INDEX('6. CY 2023'!W:W,MATCH($C84,'6. CY 2023'!$A:$A,0)),0),0) -> 15009252.32 | AC84: =IFERROR(IF($Y84="CY 2023",INDEX('6. CY 2023'!Y:Y,MATCH($C84,'6. CY 2023'!$A:$A,0)),0),0) -> 0 | AD84: =IFERROR(IF($Y84="CY 2023",INDEX('6. CY 2023'!AA:AA,MATCH($C84,'6. CY 2023'!$A:$A,0)),0),0) -> 20296940 | AE84: =IFERROR(IF($Y84="CY 2023",INDEX('6. CY 2023'!AC:AC,MATCH($C84,'6. CY 2023'!$A:$A,0)),0),0) -> 20610660 | AF84: =IFERROR(IF($Y84="CY 2023",INDEX('6. CY 2023'!AE:AE,MATCH($C84,'6. CY 2023'!$A:$A,0)),0),0) -> 66234481.96 | AG84: =IFERROR(IF(Y84="CY 2023",AF84/'4. Calculated Fee'!$D$32*'4. Calculated Fee'!$D$23,0),0) -> 16885596.37 | AH84: =IFERROR(IF($Y84="CY 2023",INDEX('6. CY 2023'!AE:AE,MATCH($C84,'6. CY 2023'!$A:$A,0)),0),0) -> 66234481.96 | AI84: =IFERROR(IF(Y84="CY 2023",INDEX('6. CY 2023'!AL:AL,MATCH(C84,'6. CY 2023'!A:A,0)),0),0) -> 4649192.883 | AJ84: =IFERROR(IF($Y84="CY 2023",INDEX('6. CY 2023'!AM:AM,MATCH($C84,'6. CY 2023'!$A:$A,0)),0),0) -> 16007483.51 | AK84: =IFERROR(IF($Y84="CY 2023",INDEX('6. CY 2023'!AN:AN,MATCH($C84,'6. CY 2023'!$A:$A,0)),0),0) -> 0 | AL84: =IFERROR(IF($Y84="CY 2023",INDEX('6. CY 2023'!AO:AO,MATCH($C84,'6. CY 2023'!$A:$A,0)),0),0) -> 1387425 | AM84: =IFERROR(IF($Y84="CY 2023",INDEX('6. CY 2023'!AP:AP,MATCH($C84,'6. CY 2023'!$A:$A,0)),0),0) -> 5630000 | AN84: =IFERROR(IF($Y84="CY 2023",INDEX('6. CY 2023'!AQ:AQ,MATCH($C84,'6. CY 2023'!$A:$A,0)),0),0) -> 5630000 | AO84: =IFERROR(IF($Y84="CY 2023",INDEX('6. CY 2023'!AR:AR,MATCH($C84,'6. CY 2023'!$A:$A,0)),0),0) -> 0 | AP84: =IFERROR(IF($Y84="CY 2023",INDEX('6. CY 2023'!AS:AS,MATCH($C84,'6. CY 2023'!$A:$A,0)),0),0) -> 0 | AQ84: =IFERROR(IF($Y84="CY 2023",INDEX('6. CY 2023'!AV:AV,MATCH($C84,'6. CY 2023'!$A:$A,0)),0),0) -> 33304101.39 | AR84: =IFERROR(IF($Y84="CY 2023",INDEX('6. CY 2023'!AX:AX,MATCH($C84,'6. CY 2023'!A:A,0)),0),0) -> 23164534.29 | AS84: =IFERROR(IF(Y84="CY 2023",INDEX('6. CY 2023'!AY:AY,MATCH(C84,'6. CY 2023'!A:A,0)),0),0) -> 74205849.92 | AT84: =IFERROR(IF($Y84="CY 2023",INDEX('6. CY 2023'!AZ:AZ,MATCH($C84,'6. CY 2023'!A:A,0)),0),0) -> 97370384.21 | AW84: =IFERROR(IF(Y84="CY 2023",INDEX('6. CY 2023'!H:H,MATCH(C84,'6. CY 2023'!A:A,0)),0),0) -> 927416733.6
A85: 82 | B85: DOMINICAN HOSPITAL | C85: 106440755 | D85: DOMINICAN HOSPITAL | F85: =IFERROR(INDEX('8. 2019 HCAI (FEE) DAYS'!G:G,MATCH(C85,'8. 2019 HCAI (FEE) DAYS'!A:A,0)),0) -> 2018-07-01 | G85: =IFERROR(INDEX('8. 2019 HCAI (FEE) DAYS'!H:H,MATCH(C85,'8. 2019 HCAI (FEE) DAYS'!A:A,0)),0) -> 2019-06-30 | H85: =IFERROR(INDEX('8. 2019 HCAI (FEE) DAYS'!L:L,MATCH(C85,'8. 2019 HCAI (FEE) DAYS'!A:A,0)),0) -> 2018-07-01 | I85: =IFERROR(INDEX('11. Hospital Statuses'!M:M,MATCH(C85,'11. Hospital Statuses'!A:A,0)),"") -> Open | J85: Santa Cruz | K85: 8 | L85: 703 | M85: Non-Profit | N85: Comparable | P85: https://www.dignityhealth.org/bayarea/locations/dominican | R85: DIGNITY HEALTH | S85: 831-462-7700 | T85: 1555 SOQUEL DRIVE | U85: SANTA CRUZ | V85: 95065 | W85: NANETTE MICKIEWICZ, MD | X85: =IFERROR(IF(INDEX(#REF!,MATCH(C85,#REF!,0)),"Yes","No"),"") ->  | Y85: CY 2023 | Z85: =IFERROR(IF($Y85="CY 2023",INDEX('6. CY 2023'!S:S,MATCH($C85,'6. CY 2023'!$A:$A,0)),0),0) -> 0 | AA85: =IFERROR(IF($Y85="CY 2023",INDEX('6. CY 2023'!U:U,MATCH($C85,'6. CY 2023'!$A:$A,0)),0),0) -> 3820763.19 | AB85: =IFERROR(IF($Y85="CY 2023",INDEX('6. CY 2023'!W:W,MATCH($C85,'6. CY 2023'!$A:$A,0)),0),0) -> 10315029.1 | AC85: =IFERROR(IF($Y85="CY 2023",INDEX('6. CY 2023'!Y:Y,MATCH($C85,'6. CY 2023'!$A:$A,0)),0),0) -> 0 | AD85: =IFERROR(IF($Y85="CY 2023",INDEX('6. CY 2023'!AA:AA,MATCH($C85,'6. CY 2023'!$A:$A,0)),0),0) -> 6482720 | AE85: =IFERROR(IF($Y85="CY 2023",INDEX('6. CY 2023'!AC:AC,MATCH($C85,'6. CY 2023'!$A:$A,0)),0),0) -> 1868680 | AF85: =IFERROR(IF($Y85="CY 2023",INDEX('6. CY 2023'!AE:AE,MATCH($C85,'6. CY 2023'!$A:$A,0)),0),0) -> 22487192.29 | AG85: =IFERROR(IF(Y85="CY 2023",AF85/'4. Calculated Fee'!$D$32*'4. Calculated Fee'!$D$23,0),0) -> 5732809.276 | AH85: =IFERROR(IF($Y85="CY 2023",INDEX('6. CY 2023'!AE:AE,MATCH($C85,'6. CY 2023'!$A:$A,0)),0),0) -> 22487192.29 | AI85: =IFERROR(IF(Y85="CY 2023",INDEX('6. CY 2023'!AL:AL,MATCH(C85,'6. CY 2023'!A:A,0)),0),0) -> 1196429.413 | AJ85: =IFERROR(IF($Y85="CY 2023",INDEX('6. CY 2023'!AM:AM,MATCH($C85,'6. CY 2023'!$A:$A,0)),0),0) -> 3441393.801 | AK85: =IFERROR(IF($Y85="CY 2023",INDEX('6. CY 2023'!AN:AN,MATCH($C85,'6. CY 2023'!$A:$A,0)),0),0) -> 0 | AL85: =IFERROR(IF($Y85="CY 2023",INDEX('6. CY 2023'!AO:AO,MATCH($C85,'6. CY 2023'!$A:$A,0)),0),0) -> 0 | AM85: =IFERROR(IF($Y85="CY 2023",INDEX('6. CY 2023'!AP:AP,MATCH($C85,'6. CY 2023'!$A:$A,0)),0),0) -> 1092500 | AN85: =IFERROR(IF($Y85="CY 2023",INDEX('6. CY 2023'!AQ:AQ,MATCH($C85,'6. CY 2023'!$A:$A,0)),0),0) -> 0 | AO85: =IFERROR(IF($Y85="CY 2023",INDEX('6. CY 2023'!AR:AR,MATCH($C85,'6. CY 2023'!$A:$A,0)),0),0) -> 0 | AP85: =IFERROR(IF($Y85="CY 2023",INDEX('6. CY 2023'!AS:AS,MATCH($C85,'6. CY 2023'!$A:$A,0)),0),0) -> 0 | AQ85: =IFERROR(IF($Y85="CY 2023",INDEX('6. CY 2023'!AV:AV,MATCH($C85,'6. CY 2023'!$A:$A,0)),0),0) -> 5730323.214 | AR85: =IFERROR(IF($Y85="CY 2023",INDEX('6. CY 2023'!AX:AX,MATCH($C85,'6. CY 2023'!A:A,0)),0),0) -> 2934943.837 | AS85: =IFERROR(IF(Y85="CY 2023",INDEX('6. CY 2023'!AY:AY,MATCH(C85,'6. CY 2023'!A:A,0)),0),0) -> 24469678.23 | AT85: =IFERROR(IF($Y85="CY 2023",INDEX('6. CY 2023'!AZ:AZ,MATCH($C85,'6. CY 2023'!A:A,0)),0),0) -> 27404622.07 | AW85: =IFERROR(IF(Y85="CY 2023",INDEX('6. CY 2023'!H:H,MATCH(C85,'6. CY 2023'!A:A,0)),0),0) -> 574971554.8
A86: 83 | B86: EARL AND LORRAINE MILLER CHILDRENS HOSPITAL | C86: 106196168 | D86: EARL AND LORRAINE MILLER CHILDRENS HOSPITAL | F86: =IFERROR(INDEX('8. 2019 HCAI (FEE) DAYS'!G:G,MATCH(C86,'8. 2019 HCAI (FEE) DAYS'!A:A,0)),0) -> 2018-07-01 | G86: =IFERROR(INDEX('8. 2019 HCAI (FEE) DAYS'!H:H,MATCH(C86,'8. 2019 HCAI (FEE) DAYS'!A:A,0)),0) -> 2019-06-30 | H86: =IFERROR(INDEX('8. 2019 HCAI (FEE) DAYS'!L:L,MATCH(C86,'8. 2019 HCAI (FEE) DAYS'!A:A,0)),0) -> 2018-07-01 | I86: =IFERROR(INDEX('11. Hospital Statuses'!M:M,MATCH(C86,'11. Hospital Statuses'!A:A,0)),"") -> Open | J86: Los Angeles | K86: 11 | L86: 933 | M86: Non-Profit | N86: Comparable | O86: Teaching | P86: https://www.memorialcare.org/ | R86: MEMORIAL HEALTH SERVICES | S86: 562-933-2000 | T86: 2801 ATLANTIC AVENUE | U86: LONG BEACH | V86: 90806 | W86: JOHN BISHOP | X86: =IFERROR(IF(INDEX(#REF!,MATCH(C86,#REF!,0)),"Yes","No"),"") ->  | Y86: CY 2023 | Z86: =IFERROR(IF($Y86="CY 2023",INDEX('6. CY 2023'!S:S,MATCH($C86,'6. CY 2023'!$A:$A,0)),0),0) -> 0 | AA86: =IFERROR(IF($Y86="CY 2023",INDEX('6. CY 2023'!U:U,MATCH($C86,'6. CY 2023'!$A:$A,0)),0),0) -> 8399767.8 | AB86: =IFERROR(IF($Y86="CY 2023",INDEX('6. CY 2023'!W:W,MATCH($C86,'6. CY 2023'!$A:$A,0)),0),0) -> 903591.44 | AC86: =IFERROR(IF($Y86="CY 2023",INDEX('6. CY 2023'!Y:Y,MATCH($C86,'6. CY 2023'!$A:$A,0)),0),0) -> 0 | AD86: =IFERROR(IF($Y86="CY 2023",INDEX('6. CY 2023'!AA:AA,MATCH($C86,'6. CY 2023'!$A:$A,0)),0),0) -> 9236760 | AE86: =IFERROR(IF($Y86="CY 2023",INDEX('6. CY 2023'!AC:AC,MATCH($C86,'6. CY 2023'!$A:$A,0)),0),0) -> 16816260 | AF86: =IFERROR(IF($Y86="CY 2023",INDEX('6. CY 2023'!AE:AE,MATCH($C86,'6. CY 2023'!$A:$A,0)),0),0) -> 35356379.24 | AG86: =IFERROR(IF(Y86="CY 2023",AF86/'4. Calculated Fee'!$D$32*'4. Calculated Fee'!$D$23,0),0) -> 9013636.575 | AH86: =IFERROR(IF($Y86="CY 2023",INDEX('6. CY 2023'!AE:AE,MATCH($C86,'6. CY 2023'!$A:$A,0)),0),0) -> 35356379.24 | AI86: =IFERROR(IF(Y86="CY 2023",INDEX('6. CY 2023'!AL:AL,MATCH(C86,'6. CY 2023'!A:A,0)),0),0) -> 25897092.4 | AJ86: =IFERROR(IF($Y86="CY 2023",INDEX('6. CY 2023'!AM:AM,MATCH($C86,'6. CY 2023'!$A:$A,0)),0),0) -> 15467446.1 | AK86: =IFERROR(IF($Y86="CY 2023",INDEX('6. CY 2023'!AN:AN,MATCH($C86,'6. CY 2023'!$A:$A,0)),0),0) -> 0 | AL86: =IFERROR(IF($Y86="CY 2023",INDEX('6. CY 2023'!AO:AO,MATCH($C86,'6. CY 2023'!$A:$A,0)),0),0) -> 0 | AM86: =IFERROR(IF($Y86="CY 2023",INDEX('6. CY 2023'!AP:AP,MATCH($C86,'6. CY 2023'!$A:$A,0)),0),0) -> 0 | AN86: =IFERROR(IF($Y86="CY 2023",INDEX('6. CY 2023'!AQ:AQ,MATCH($C86,'6. CY 2023'!$A:$A,0)),0),0) -> 0 | AO86: =IFERROR(IF($Y86="CY 2023",INDEX('6. CY 2023'!AR:AR,MATCH($C86,'6. CY 2023'!$A:$A,0)),0),0) -> 0 | AP86: =IFERROR(IF($Y86="CY 2023",INDEX('6. CY 2023'!AS:AS,MATCH($C86,'6. CY 2023'!$A:$A,0)),0),0) -> 0 | AQ86: =IFERROR(IF($Y86="CY 2023",INDEX('6. CY 2023'!AV:AV,MATCH($C86,'6. CY 2023'!$A:$A,0)),0),0) -> 41364538.5 | AR86: =IFERROR(IF($Y86="CY 2023",INDEX('6. CY 2023'!AX:AX,MATCH($C86,'6. CY 2023'!A:A,0)),0),0) -> 25871136.2 | AS86: =IFERROR(IF(Y86="CY 2023",INDEX('6. CY 2023'!AY:AY,MATCH(C86,'6. CY 2023'!A:A,0)),0),0) -> 36949340.65 | AT86: =IFERROR(IF($Y86="CY 2023",INDEX('6. CY 2023'!AZ:AZ,MATCH($C86,'6. CY 2023'!A:A,0)),0),0) -> 62820476.84 | AW86: =IFERROR(IF(Y86="CY 2023",INDEX('6. CY 2023'!H:H,MATCH(C86,'6. CY 2023'!A:A,0)),0),0) -> 645087820.9 | AX86: =SUM(AG86:AG89) -> 15179116.86
A87: 84 | B87: EAST LOS ANGELES DOCTOR'S HOSPITAL | C87: 106190256 | D87: EAST LOS ANGELES DOCTOR'S HOSPITAL | F87: =IFERROR(INDEX('8. 2019 HCAI (FEE) DAYS'!G:G,MATCH(C87,'8. 2019 HCAI (FEE) DAYS'!A:A,0)),0) -> 2019-01-01 | G87: =IFERROR(INDEX('8. 2019 HCAI (FEE) DAYS'!H:H,MATCH(C87,'8. 2019 HCAI (FEE) DAYS'!A:A,0)),0) -> 2019-12-31 | H87: =IFERROR(INDEX('8. 2019 HCAI (FEE) DAYS'!L:L,MATCH(C87,'8. 2019 HCAI (FEE) DAYS'!A:A,0)),0) -> 2019-01-01 | I87: =IFERROR(INDEX('11. Hospital Statuses'!M:M,MATCH(C87,'11. Hospital Statuses'!A:A,0)),"") -> Open | J87: Los Angeles | K87: 11 | L87: 925 | M87: Investor | N87: Comparable | P87: https://www.pipelinehealth.us/locations/ | R87: AVANTI HOSPITALS, LLC | S87: 323-268-5514 | T87: 4060 WHITTIER BOULEVARD | U87: LOS ANGELES | V87: 90023 | W87: VICTOR CARRASCO | X87: =IFERROR(IF(INDEX(#REF!,MATCH(C87,#REF!,0)),"Yes","No"),"") ->  | Y87: CY 2023 | Z87: =IFERROR(IF($Y87="CY 2023",INDEX('6. CY 2023'!S:S,MATCH($C87,'6. CY 2023'!$A:$A,0)),0),0) -> 0 | AA87: =IFERROR(IF($Y87="CY 2023",INDEX('6. CY 2023'!U:U,MATCH($C87,'6. CY 2023'!$A:$A,0)),0),0) -> 533104.29 | AB87: =IFERROR(IF($Y87="CY 2023",INDEX('6. CY 2023'!W:W,MATCH($C87,'6. CY 2023'!$A:$A,0)),0),0) -> 915999.4 | AC87: =IFERROR(IF($Y87="CY 2023",INDEX('6. CY 2023'!Y:Y,MATCH($C87,'6. CY 2023'!$A:$A,0)),0),0) -> 0 | AD87: =IFERROR(IF($Y87="CY 2023",INDEX('6. CY 2023'!AA:AA,MATCH($C87,'6. CY 2023'!$A:$A,0)),0),0) -> 3350480 | AE87: =IFERROR(IF($Y87="CY 2023",INDEX('6. CY 2023'!AC:AC,MATCH($C87,'6. CY 2023'!$A:$A,0)),0),0) -> 1653540 | AF87: =IFERROR(IF($Y87="CY 2023",INDEX('6. CY 2023'!AE:AE,MATCH($C87,'6. CY 2023'!$A:$A,0)),0),0) -> 6453123.69 | AG87: =IFERROR(IF(Y87="CY 2023",AF87/'4. Calculated Fee'!$D$32*'4. Calculated Fee'!$D$23,0),0) -> 1645137.68 | AH87: =IFERROR(IF($Y87="CY 2023",INDEX('6. CY 2023'!AE:AE,MATCH($C87,'6. CY 2023'!$A:$A,0)),0),0) -> 6453123.69 | AI87: =IFERROR(IF(Y87="CY 2023",INDEX('6. CY 2023'!AL:AL,MATCH(C87,'6. CY 2023'!A:A,0)),0),0) -> 1926049.73 | AJ87: =IFERROR(IF($Y87="CY 2023",INDEX('6. CY 2023'!AM:AM,MATCH($C87,'6. CY 2023'!$A:$A,0)),0),0) -> 3860944.78 | AK87: =IFERROR(IF($Y87="CY 2023",INDEX('6. CY 2023'!AN:AN,MATCH($C87,'6. CY 2023'!$A:$A,0)),0),0) -> 1302346.929 | AL87: =IFERROR(IF($Y87="CY 2023",INDEX('6. CY 2023'!AO:AO,MATCH($C87,'6. CY 2023'!$A:$A,0)),0),0) -> 0 | AM87: =IFERROR(IF($Y87="CY 2023",INDEX('6. CY 2023'!AP:AP,MATCH($C87,'6. CY 2023'!$A:$A,0)),0),0) -> 0 | AN87: =IFERROR(IF($Y87="CY 2023",INDEX('6. CY 2023'!AQ:AQ,MATCH($C87,'6. CY 2023'!$A:$A,0)),0),0) -> 0 | AO87: =IFERROR(IF($Y87="CY 2023",INDEX('6. CY 2023'!AR:AR,MATCH($C87,'6. CY 2023'!$A:$A,0)),0),0) -> 0 | AP87: =IFERROR(IF($Y87="CY 2023",INDEX('6. CY 2023'!AS:AS,MATCH($C87,'6. CY 2023'!$A:$A,0)),0),0) -> 0 | AQ87: =IFERROR(IF($Y87="CY 2023",INDEX('6. CY 2023'!AV:AV,MATCH($C87,'6. CY 2023'!$A:$A,0)),0),0) -> 7089341.438 | AR87: =IFERROR(IF($Y87="CY 2023",INDEX('6. CY 2023'!AX:AX,MATCH($C87,'6. CY 2023'!A:A,0)),0),0) -> 4452970.172 | AS87: =IFERROR(IF(Y87="CY 2023",INDEX('6. CY 2023'!AY:AY,MATCH(C87,'6. CY 2023'!A:A,0)),0),0) -> 11678688.45 | AT87: =IFERROR(IF($Y87="CY 2023",INDEX('6. CY 2023'!AZ:AZ,MATCH($C87,'6. CY 2023'!A:A,0)),0),0) -> 16131658.62 | AW87: =IFERROR(IF(Y87="CY 2023",INDEX('6. CY 2023'!H:H,MATCH(C87,'6. CY 2023'!A:A,0)),0),0) -> 94960379.45
A88: 85 | B88: EASTERN PLUMAS HEALTH CARE | C88: 106320859 | D88: EASTERN PLUMAS HEALTH CARE | F88: =IFERROR(INDEX('8. 2019 HCAI (FEE) DAYS'!G:G,MATCH(C88,'8. 2019 HCAI (FEE) DAYS'!A:A,0)),0) -> 2018-07-01 | G88: =IFERROR(INDEX('8. 2019 HCAI (FEE) DAYS'!H:H,MATCH(C88,'8. 2019 HCAI (FEE) DAYS'!A:A,0)),0) -> 2019-06-30 | H88: =IFERROR(INDEX('8. 2019 HCAI (FEE) DAYS'!L:L,MATCH(C88,'8. 2019 HCAI (FEE) DAYS'!A:A,0)),0) -> 2018-07-01 | I88: =IFERROR(INDEX('11. Hospital Statuses'!M:M,MATCH(C88,'11. Hospital Statuses'!A:A,0)),"") -> Open | J88: Plumas | K88: 1 | L88: 217 | M88: District | N88: Comparable | O88: Rural | P88: http://www.ephc.org/ | R88: EASTERN PLUMAS HEALTH CARE | S88: 530-832-6500 | T88: 500 FIRST AVE | U88: PORTOLA | V88: 96122 | W88: DOUGLAS MCCOY | X88: =IFERROR(IF(INDEX(#REF!,MATCH(C88,#REF!,0)),"Yes","No"),"") ->  | Y88: CY 2023 | Z88: =IFERROR(IF($Y88="CY 2023",INDEX('6. CY 2023'!S:S,MATCH($C88,'6. CY 2023'!$A:$A,0)),0),0) -> 0 | AA88: =IFERROR(IF($Y88="CY 2023",INDEX('6. CY 2023'!U:U,MATCH($C88,'6. CY 2023'!$A:$A,0)),0),0) -> 0 | AB88: =IFERROR(IF($Y88="CY 2023",INDEX('6. CY 2023'!W:W,MATCH($C88,'6. CY 2023'!$A:$A,0)),0),0) -> 0 | AC88: =IFERROR(IF($Y88="CY 2023",INDEX('6. CY 2023'!Y:Y,MATCH($C88,'6. CY 2023'!$A:$A,0)),0),0) -> 0 | AD88: =IFERROR(IF($Y88="CY 2023",INDEX('6. CY 2023'!AA:AA,MATCH($C88,'6. CY 2023'!$A:$A,0)),0),0) -> 0 | AE88: =IFERROR(IF($Y88="CY 2023",INDEX('6. CY 2023'!AC:AC,MATCH($C88,'6. CY 2023'!$A:$A,0)),0),0) -> 0 | AF88: =IFERROR(IF($Y88="CY 2023",INDEX('6. CY 2023'!AE:AE,MATCH($C88,'6. CY 2023'!$A:$A,0)),0),0) -> 0 | AG88: =IFERROR(IF(Y88="CY 2023",AF88/'4. Calculated Fee'!$D$32*'4. Calculated Fee'!$D$23,0),0) -> 0 | AH88: =IFERROR(IF($Y88="CY 2023",INDEX('6. CY 2023'!AE:AE,MATCH($C88,'6. CY 2023'!$A:$A,0)),0),0) -> 0 | AI88: =IFERROR(IF(Y88="CY 2023",INDEX('6. CY 2023'!AL:AL,MATCH(C88,'6. CY 2023'!A:A,0)),0),0) -> 0 | AJ88: =IFERROR(IF($Y88="CY 2023",INDEX('6. CY 2023'!AM:AM,MATCH($C88,'6. CY 2023'!$A:$A,0)),0),0) -> 0 | AK88: =IFERROR(IF($Y88="CY 2023",INDEX('6. CY 2023'!AN:AN,MATCH($C88,'6. CY 2023'!$A:$A,0)),0),0) -> 0 | AL88: =IFERROR(IF($Y88="CY 2023",INDEX('6. CY 2023'!AO:AO,MATCH($C88,'6. CY 2023'!$A:$A,0)),0),0) -> 0 | AM88: =IFERROR(IF($Y88="CY 2023",INDEX('6. CY 2023'!AP:AP,MATCH($C88,'6. CY 2023'!$A:$A,0)),0),0) -> 0 | AN88: =IFERROR(IF($Y88="CY 2023",INDEX('6. CY 2023'!AQ:AQ,MATCH($C88,'6. CY 2023'!$A:$A,0)),0),0) -> 0 | AO88: =IFERROR(IF($Y88="CY 2023",INDEX('6. CY 2023'!AR:AR,MATCH($C88,'6. CY 2023'!$A:$A,0)),0),0) -> 0 | AP88: =IFERROR(IF($Y88="CY 2023",INDEX('6. CY 2023'!AS:AS,MATCH($C88,'6. CY 2023'!$A:$A,0)),0),0) -> 0 | AQ88: =IFERROR(IF($Y88="CY 2023",INDEX('6. CY 2023'!AV:AV,MATCH($C88,'6. CY 2023'!$A:$A,0)),0),0) -> 0 | AR88: =IFERROR(IF($Y88="CY 2023",INDEX('6. CY 2023'!AX:AX,MATCH($C88,'6. CY 2023'!A:A,0)),0),0) -> 0 | AS88: =IFERROR(IF(Y88="CY 2023",INDEX('6. CY 2023'!AY:AY,MATCH(C88,'6. CY 2023'!A:A,0)),0),0) -> 0 | AT88: =IFERROR(IF($Y88="CY 2023",INDEX('6. CY 2023'!AZ:AZ,MATCH($C88,'6. CY 2023'!A:A,0)),0),0) -> 0 | AW88: =IFERROR(IF(Y88="CY 2023",INDEX('6. CY 2023'!H:H,MATCH(C88,'6. CY 2023'!A:A,0)),0),0) -> 39578749.24
A89: 86 | B89: EDEN MEDICAL CENTER | C89: 106014233 | D89: EDEN MEDICAL CENTER | F89: =IFERROR(INDEX('8. 2019 HCAI (FEE) DAYS'!G:G,MATCH(C89,'8. 2019 HCAI (FEE) DAYS'!A:A,0)),0) -> 2019-01-01 | G89: =IFERROR(INDEX('8. 2019 HCAI (FEE) DAYS'!H:H,MATCH(C89,'8. 2019 HCAI (FEE) DAYS'!A:A,0)),0) -> 2019-12-31 | H89: =IFERROR(INDEX('8. 2019 HCAI (FEE) DAYS'!L:L,MATCH(C89,'8. 2019 HCAI (FEE) DAYS'!A:A,0)),0) -> 2019-01-01 | I89: =IFERROR(INDEX('11. Hospital Statuses'!M:M,MATCH(C89,'11. Hospital Statuses'!A:A,0)),"") -> Open | J89: Alameda | K89: 5 | L89: 421 | M89: Non-Profit | N89: Comparable | P89: https://www.sutterhealth.org/eden | R89: SUTTER HEALTH | S89: 510-537-1234 | T89: 20103 LAKE CHABOT ROAD | U89: CASTRO VALLEY | V89: 94546 | W89: STEPHEN GRAY | X89: =IFERROR(IF(INDEX(#REF!,MATCH(C89,#REF!,0)),"Yes","No"),"") ->  | Y89: CY 2023 | Z89: =IFERROR(IF($Y89="CY 2023",INDEX('6. CY 2023'!S:S,MATCH($C89,'6. CY 2023'!$A:$A,0)),0),0) -> 0 | AA89: =IFERROR(IF($Y89="CY 2023",INDEX('6. CY 2023'!U:U,MATCH($C89,'6. CY 2023'!$A:$A,0)),0),0) -> 3995180.61 | AB89: =IFERROR(IF($Y89="CY 2023",INDEX('6. CY 2023'!W:W,MATCH($C89,'6. CY 2023'!$A:$A,0)),0),0) -> 6302878.74 | AC89: =IFERROR(IF($Y89="CY 2023",INDEX('6. CY 2023'!Y:Y,MATCH($C89,'6. CY 2023'!$A:$A,0)),0),0) -> 0 | AD89: =IFERROR(IF($Y89="CY 2023",INDEX('6. CY 2023'!AA:AA,MATCH($C89,'6. CY 2023'!$A:$A,0)),0),0) -> 4595440 | AE89: =IFERROR(IF($Y89="CY 2023",INDEX('6. CY 2023'!AC:AC,MATCH($C89,'6. CY 2023'!$A:$A,0)),0),0) -> 2837740 | AF89: =IFERROR(IF($Y89="CY 2023",INDEX('6. CY 2023'!AE:AE,MATCH($C89,'6. CY 2023'!$A:$A,0)),0),0) -> 17731239.35 | AG89: =IFERROR(IF(Y89="CY 2023",AF89/'4. Calculated Fee'!$D$32*'4. Calculated Fee'!$D$23,0),0) -> 4520342.607 | AH89: =IFERROR(IF($Y89="CY 2023",INDEX('6. CY 2023'!AE:AE,MATCH($C89,'6. CY 2023'!$A:$A,0)),0),0) -> 17731239.35 | AI89: =IFERROR(IF(Y89="CY 2023",INDEX('6. CY 2023'!AL:AL,MATCH(C89,'6. CY 2023'!A:A,0)),0),0) -> 3200209.861 | AJ89: =IFERROR(IF($Y89="CY 2023",INDEX('6. CY 2023'!AM:AM,MATCH($C89,'6. CY 2023'!$A:$A,0)),0),0) -> 4890458.336 | AK89: =IFERROR(IF($Y89="CY 2023",INDEX('6. CY 2023'!AN:AN,MATCH($C89,'6. CY 2023'!$A:$A,0)),0),0) -> 0 | AL89: =IFERROR(IF($Y89="CY 2023",INDEX('6. CY 2023'!AO:AO,MATCH($C89,'6. CY 2023'!$A:$A,0)),0),0) -> 0 | AM89: =IFERROR(IF($Y89="CY 2023",INDEX('6. CY 2023'!AP:AP,MATCH($C89,'6. CY 2023'!$A:$A,0)),0),0) -> 1785000 | AN89: =IFERROR(IF($Y89="CY 2023",INDEX('6. CY 2023'!AQ:AQ,MATCH($C89,'6. CY 2023'!$A:$A,0)),0),0) -> 1785000 | AO89: =IFERROR(IF($Y89="CY 2023",INDEX('6. CY 2023'!AR:AR,MATCH($C89,'6. CY 2023'!$A:$A,0)),0),0) -> 0 | AP89: =IFERROR(IF($Y89="CY 2023",INDEX('6. CY 2023'!AS:AS,MATCH($C89,'6. CY 2023'!$A:$A,0)),0),0) -> 0 | AQ89: =IFERROR(IF($Y89="CY 2023",INDEX('6. CY 2023'!AV:AV,MATCH($C89,'6. CY 2023'!$A:$A,0)),0),0) -> 11660668.2 | AR89: =IFERROR(IF($Y89="CY 2023",INDEX('6. CY 2023'!AX:AX,MATCH($C89,'6. CY 2023'!A:A,0)),0),0) -> 1925262.358 | AS89: =IFERROR(IF(Y89="CY 2023",INDEX('6. CY 2023'!AY:AY,MATCH(C89,'6. CY 2023'!A:A,0)),0),0) -> 16689686.62 | AT89: =IFERROR(IF($Y89="CY 2023",INDEX('6. CY 2023'!AZ:AZ,MATCH($C89,'6. CY 2023'!A:A,0)),0),0) -> 18614948.97 | AW89: =IFERROR(IF(Y89="CY 2023",INDEX('6. CY 2023'!H:H,MATCH(C89,'6. CY 2023'!A:A,0)),0),0) -> 453946247.7
A90: 87 | B90: EISENHOWER MEDICAL CENTER | C90: 106331168 | D90: EISENHOWER MEDICAL CENTER | F90: =IFERROR(INDEX('8. 2019 HCAI (FEE) DAYS'!G:G,MATCH(C90,'8. 2019 HCAI (FEE) DAYS'!A:A,0)),0) -> 2018-07-01 | G90: =IFERROR(INDEX('8. 2019 HCAI (FEE) DAYS'!H:H,MATCH(C90,'8. 2019 HCAI (FEE) DAYS'!A:A,0)),0) -> 2019-06-30 | H90: =IFERROR(INDEX('8. 2019 HCAI (FEE) DAYS'!L:L,MATCH(C90,'8. 2019 HCAI (FEE) DAYS'!A:A,0)),0) -> 2018-07-01 | I90: =IFERROR(INDEX('11. Hospital Statuses'!M:M,MATCH(C90,'11. Hospital Statuses'!A:A,0)),"") -> Open | J90: Riverside | K90: 12 | L90: 1105 | M90: Non-Profit | N90: Comparable | P90: https://eisenhowerhealth.org/ | R90: EISENHOWER MEDICAL CENTER | S90: 760-340-3911 | T90: 39000 BOB HOPE DRIVE | U90: RANCHO MIRAGE | V90: 92270 | W90: G. AUBREY SERFLING | X90: =IFERROR(IF(INDEX(#REF!,MATCH(C90,#REF!,0)),"Yes","No"),"") ->  | Y90: CY 2023 | Z90: =IFERROR(IF($Y90="CY 2023",INDEX('6. CY 2023'!S:S,MATCH($C90,'6. CY 2023'!$A:$A,0)),0),0) -> 0 | AA90: =IFERROR(IF($Y90="CY 2023",INDEX('6. CY 2023'!U:U,MATCH($C90,'6. CY 2023'!$A:$A,0)),0),0) -> 8232648.18 | AB90: =IFERROR(IF($Y90="CY 2023",INDEX('6. CY 2023'!W:W,MATCH($C90,'6. CY 2023'!$A:$A,0)),0),0) -> 12777279.28 | AC90: =IFERROR(IF($Y90="CY 2023",INDEX('6. CY 2023'!Y:Y,MATCH($C90,'6. CY 2023'!$A:$A,0)),0),0) -> 0 | AD90: =IFERROR(IF($Y90="CY 2023",INDEX('6. CY 2023'!AA:AA,MATCH($C90,'6. CY 2023'!$A:$A,0)),0),0) -> 5560780 | AE90: =IFERROR(IF($Y90="CY 2023",INDEX('6. CY 2023'!AC:AC,MATCH($C90,'6. CY 2023'!$A:$A,0)),0),0) -> 1669040 | AF90: =IFERROR(IF($Y90="CY 2023",INDEX('6. CY 2023'!AE:AE,MATCH($C90,'6. CY 2023'!$A:$A,0)),0),0) -> 28239747.46 | AG90: =IFERROR(IF(Y90="CY 2023",AF90/'4. Calculated Fee'!$D$32*'4. Calculated Fee'!$D$23,0),0) -> 7199346.371 | AH90: =IFERROR(IF($Y90="CY 2023",INDEX('6. CY 2023'!AE:AE,MATCH($C90,'6. CY 2023'!$A:$A,0)),0),0) -> 28239747.46 | AI90: =IFERROR(IF(Y90="CY 2023",INDEX('6. CY 2023'!AL:AL,MATCH(C90,'6. CY 2023'!A:A,0)),0),0) -> 3173105.885 | AJ90: =IFERROR(IF($Y90="CY 2023",INDEX('6. CY 2023'!AM:AM,MATCH($C90,'6. CY 2023'!$A:$A,0)),0),0) -> 2956220.745 | AK90: =IFERROR(IF($Y90="CY 2023",INDEX('6. CY 2023'!AN:AN,MATCH($C90,'6. CY 2023'!$A:$A,0)),0),0) -> 0 | AL90: =IFERROR(IF($Y90="CY 2023",INDEX('6. CY 2023'!AO:AO,MATCH($C90,'6. CY 2023'!$A:$A,0)),0),0) -> 0 | AM90: =IFERROR(IF($Y90="CY 2023",INDEX('6. CY 2023'!AP:AP,MATCH($C90,'6. CY 2023'!$A:$A,0)),0),0) -> 675000 | AN90: =IFERROR(IF($Y90="CY 2023",INDEX('6. CY 2023'!AQ:AQ,MATCH($C90,'6. CY 2023'!$A:$A,0)),0),0) -> 0 | AO90: =IFERROR(IF($Y90="CY 2023",INDEX('6. CY 2023'!AR:AR,MATCH($C90,'6. CY 2023'!$A:$A,0)),0),0) -> 0 | AP90: =IFERROR(IF($Y90="CY 2023",INDEX('6. CY 2023'!AS:AS,MATCH($C90,'6. CY 2023'!$A:$A,0)),0),0) -> 0 | AQ90: =IFERROR(IF($Y90="CY 2023",INDEX('6. CY 2023'!AV:AV,MATCH($C90,'6. CY 2023'!$A:$A,0)),0),0) -> 6804326.631 | AR90: =IFERROR(IF($Y90="CY 2023",INDEX('6. CY 2023'!AX:AX,MATCH($C90,'6. CY 2023'!A:A,0)),0),0) -> 2572172.312 | AS90: =IFERROR(IF(Y90="CY 2023",INDEX('6. CY 2023'!AY:AY,MATCH(C90,'6. CY 2023'!A:A,0)),0),0) -> 27149007.31 | AT90: =IFERROR(IF($Y90="CY 2023",INDEX('6. CY 2023'!AZ:AZ,MATCH($C90,'6. CY 2023'!A:A,0)),0),0) -> 29721179.62 | AW90: =IFERROR(IF(Y90="CY 2023",INDEX('6. CY 2023'!H:H,MATCH(C90,'6. CY 2023'!A:A,0)),0),0) -> 926939035.9
A91: 88 | B91: EL CAMINO HOSPITAL | C91: 106430763 | D91: EL CAMINO HOSPITAL | F91: =IFERROR(INDEX('8. 2019 HCAI (FEE) DAYS'!G:G,MATCH(C91,'8. 2019 HCAI (FEE) DAYS'!A:A,0)),0) -> 2018-07-01 | G91: =IFERROR(INDEX('8. 2019 HCAI (FEE) DAYS'!H:H,MATCH(C91,'8. 2019 HCAI (FEE) DAYS'!A:A,0)),0) -> 2019-06-30 | H91: =IFERROR(INDEX('8. 2019 HCAI (FEE) DAYS'!L:L,MATCH(C91,'8. 2019 HCAI (FEE) DAYS'!A:A,0)),0) -> 2018-07-01 | I91: =IFERROR(INDEX('11. Hospital Statuses'!M:M,MATCH(C91,'11. Hospital Statuses'!A:A,0)),"") -> Open | J91: Santa Clara | K91: 7 | L91: 429 | M91: Non-Profit | N91: Comparable | P91: https://www.elcaminohealth.org/ | R91: EL CAMINO HOSPITAL DISTRICT | S91: 650-940-7300 | T91: 2500 GRANT ROAD | U91: MOUNTAIN VIEW | V91: 94040 | W91: DAN WOODS | X91: =IFERROR(IF(INDEX(#REF!,MATCH(C91,#REF!,0)),"Yes","No"),"") ->  | Y91: CY 2023 | Z91: =IFERROR(IF($Y91="CY 2023",INDEX('6. CY 2023'!S:S,MATCH($C91,'6. CY 2023'!$A:$A,0)),0),0) -> 0 | AA91: =IFERROR(IF($Y91="CY 2023",INDEX('6. CY 2023'!U:U,MATCH($C91,'6. CY 2023'!$A:$A,0)),0),0) -> 0 | AB91: =IFERROR(IF($Y91="CY 2023",INDEX('6. CY 2023'!W:W,MATCH($C91,'6. CY 2023'!$A:$A,0)),0),0) -> 0 | AC91: =IFERROR(IF($Y91="CY 2023",INDEX('6. CY 2023'!Y:Y,MATCH($C91,'6. CY 2023'!$A:$A,0)),0),0) -> 0 | AD91: =IFERROR(IF($Y91="CY 2023",INDEX('6. CY 2023'!AA:AA,MATCH($C91,'6. CY 2023'!$A:$A,0)),0),0) -> 0 | AE91: =IFERROR(IF($Y91="CY 2023",INDEX('6. CY 2023'!AC:AC,MATCH($C91,'6. CY 2023'!$A:$A,0)),0),0) -> 0 | AF91: =IFERROR(IF($Y91="CY 2023",INDEX('6. CY 2023'!AE:AE,MATCH($C91,'6. CY 2023'!$A:$A,0)),0),0) -> 0 | AG91: =IFERROR(IF(Y91="CY 2023",AF91/'4. Calculated Fee'!$D$32*'4. Calculated Fee'!$D$23,0),0) -> 0 | AH91: =IFERROR(IF($Y91="CY 2023",INDEX('6. CY 2023'!AE:AE,MATCH($C91,'6. CY 2023'!$A:$A,0)),0),0) -> 0 | AI91: =IFERROR(IF(Y91="CY 2023",INDEX('6. CY 2023'!AL:AL,MATCH(C91,'6. CY 2023'!A:A,0)),0),0) -> 0 | AJ91: =IFERROR(IF($Y91="CY 2023",INDEX('6. CY 2023'!AM:AM,MATCH($C91,'6. CY 2023'!$A:$A,0)),0),0) -> 0 | AK91: =IFERROR(IF($Y91="CY 2023",INDEX('6. CY 2023'!AN:AN,MATCH($C91,'6. CY 2023'!$A:$A,0)),0),0) -> 0 | AL91: =IFERROR(IF($Y91="CY 2023",INDEX('6. CY 2023'!AO:AO,MATCH($C91,'6. CY 2023'!$A:$A,0)),0),0) -> 0 | AM91: =IFERROR(IF($Y91="CY 2023",INDEX('6. CY 2023'!AP:AP,MATCH($C91,'6. CY 2023'!$A:$A,0)),0),0) -> 0 | AN91: =IFERROR(IF($Y91="CY 2023",INDEX('6. CY 2023'!AQ:AQ,MATCH($C91,'6. CY 2023'!$A:$A,0)),0),0) -> 0 | AO91: =IFERROR(IF($Y91="CY 2023",INDEX('6. CY 2023'!AR:AR,MATCH($C91,'6. CY 2023'!$A:$A,0)),0),0) -> 0 | AP91: =IFERROR(IF($Y91="CY 2023",INDEX('6. CY 2023'!AS:AS,MATCH($C91,'6. CY 2023'!$A:$A,0)),0),0) -> 0 | AQ91: =IFERROR(IF($Y91="CY 2023",INDEX('6. CY 2023'!AV:AV,MATCH($C91,'6. CY 2023'!$A:$A,0)),0),0) -> 0 | AR91: =IFERROR(IF($Y91="CY 2023",INDEX('6. CY 2023'!AX:AX,MATCH($C91,'6. CY 2023'!A:A,0)),0),0) -> 0 | AS91: =IFERROR(IF(Y91="CY 2023",INDEX('6. CY 2023'!AY:AY,MATCH(C91,'6. CY 2023'!A:A,0)),0),0) -> 0 | AT91: =IFERROR(IF($Y91="CY 2023",INDEX('6. CY 2023'!AZ:AZ,MATCH($C91,'6. CY 2023'!A:A,0)),0),0) -> 0 | AW91: =IFERROR(IF(Y91="CY 2023",INDEX('6. CY 2023'!H:H,MATCH(C91,'6. CY 2023'!A:A,0)),0),0) -> 1208977386
A92: 89 | B92: EL CENTRO REGIONAL MEDICAL CENTER | C92: 106130699 | D92: EL CENTRO REGIONAL MEDICAL CENTER | F92: =IFERROR(INDEX('8. 2019 HCAI (FEE) DAYS'!G:G,MATCH(C92,'8. 2019 HCAI (FEE) DAYS'!A:A,0)),0) -> 2018-07-01 | G92: =IFERROR(INDEX('8. 2019 HCAI (FEE) DAYS'!H:H,MATCH(C92,'8. 2019 HCAI (FEE) DAYS'!A:A,0)),0) -> 2019-06-30 | H92: =IFERROR(INDEX('8. 2019 HCAI (FEE) DAYS'!L:L,MATCH(C92,'8. 2019 HCAI (FEE) DAYS'!A:A,0)),0) -> 2018-07-01 | I92: =IFERROR(INDEX('11. Hospital Statuses'!M:M,MATCH(C92,'11. Hospital Statuses'!A:A,0)),"") -> Open | J92: Imperial | K92: 14 | L92: 1424 | M92: City/County | N92: Comparable | P92: https://www.ecrmc.org/ | R92: CITY OF EL CENTRO | S92: 619-339-7100 | T92: 1415 ROSS AVENUE | U92: EL CENTRO | V92: 92243 | W92: DR. ADOLPHE EDWARD | X92: =IFERROR(IF(INDEX(#REF!,MATCH(C92,#REF!,0)),"Yes","No"),"") ->  | Y92: CY 2023 | Z92: =IFERROR(IF($Y92="CY 2023",INDEX('6. CY 2023'!S:S,MATCH($C92,'6. CY 2023'!$A:$A,0)),0),0) -> 0 | AA92: =IFERROR(IF($Y92="CY 2023",INDEX('6. CY 2023'!U:U,MATCH($C92,'6. CY 2023'!$A:$A,0)),0),0) -> 0 | AB92: =IFERROR(IF($Y92="CY 2023",INDEX('6. CY 2023'!W:W,MATCH($C92,'6. CY 2023'!$A:$A,0)),0),0) -> 0 | AC92: =IFERROR(IF($Y92="CY 2023",INDEX('6. CY 2023'!Y:Y,MATCH($C92,'6. CY 2023'!$A:$A,0)),0),0) -> 0 | AD92: =IFERROR(IF($Y92="CY 2023",INDEX('6. CY 2023'!AA:AA,MATCH($C92,'6. CY 2023'!$A:$A,0)),0),0) -> 0 | AE92: =IFERROR(IF($Y92="CY 2023",INDEX('6. CY 2023'!AC:AC,MATCH($C92,'6. CY 2023'!$A:$A,0)),0),0) -> 0 | AF92: =IFERROR(IF($Y92="CY 2023",INDEX('6. CY 2023'!AE:AE,MATCH($C92,'6. CY 2023'!$A:$A,0)),0),0) -> 0 | AG92: =IFERROR(IF(Y92="CY 2023",AF92/'4. Calculated Fee'!$D$32*'4. Calculated Fee'!$D$23,0),0) -> 0 | AH92: =IFERROR(IF($Y92="CY 2023",INDEX('6. CY 2023'!AE:AE,MATCH($C92,'6. CY 2023'!$A:$A,0)),0),0) -> 0 | AI92: =IFERROR(IF(Y92="CY 2023",INDEX('6. CY 2023'!AL:AL,MATCH(C92,'6. CY 2023'!A:A,0)),0),0) -> 0 | AJ92: =IFERROR(IF($Y92="CY 2023",INDEX('6. CY 2023'!AM:AM,MATCH($C92,'6. CY 2023'!$A:$A,0)),0),0) -> 0 | AK92: =IFERROR(IF($Y92="CY 2023",INDEX('6. CY 2023'!AN:AN,MATCH($C92,'6. CY 2023'!$A:$A,0)),0),0) -> 0 | AL92: =IFERROR(IF($Y92="CY 2023",INDEX('6. CY 2023'!AO:AO,MATCH($C92,'6. CY 2023'!$A:$A,0)),0),0) -> 0 | AM92: =IFERROR(IF($Y92="CY 2023",INDEX('6. CY 2023'!AP:AP,MATCH($C92,'6. CY 2023'!$A:$A,0)),0),0) -> 0 | AN92: =IFERROR(IF($Y92="CY 2023",INDEX('6. CY 2023'!AQ:AQ,MATCH($C92,'6. CY 2023'!$A:$A,0)),0),0) -> 0 | AO92: =IFERROR(IF($Y92="CY 2023",INDEX('6. CY 2023'!AR:AR,MATCH($C92,'6. CY 2023'!$A:$A,0)),0),0) -> 0 | AP92: =IFERROR(IF($Y92="CY 2023",INDEX('6. CY 2023'!AS:AS,MATCH($C92,'6. CY 2023'!$A:$A,0)),0),0) -> 0 | AQ92: =IFERROR(IF($Y92="CY 2023",INDEX('6. CY 2023'!AV:AV,MATCH($C92,'6. CY 2023'!$A:$A,0)),0),0) -> 0 | AR92: =IFERROR(IF($Y92="CY 2023",INDEX('6. CY 2023'!AX:AX,MATCH($C92,'6. CY 2023'!A:A,0)),0),0) -> 0 | AS92: =IFERROR(IF(Y92="CY 2023",INDEX('6. CY 2023'!AY:AY,MATCH(C92,'6. CY 2023'!A:A,0)),0),0) -> 0 | AT92: =IFERROR(IF($Y92="CY 2023",INDEX('6. CY 2023'!AZ:AZ,MATCH($C92,'6. CY 2023'!A:A,0)),0),0) -> 0 | AW92: =IFERROR(IF(Y92="CY 2023",INDEX('6. CY 2023'!H:H,MATCH(C92,'6. CY 2023'!A:A,0)),0),0) -> 185104199.4
A93: 90 | B93: EMANATE HEALTH FOOTHILL PRESBYTERIAN HOSPITAL | C93: 106190298 | D93: EMANATE HEALTH FOOTHILL PRESBYTERIAN HOSPITAL | F93: =IFERROR(INDEX('8. 2019 HCAI (FEE) DAYS'!G:G,MATCH(C93,'8. 2019 HCAI (FEE) DAYS'!A:A,0)),0) -> 2019-01-01 | G93: =IFERROR(INDEX('8. 2019 HCAI (FEE) DAYS'!H:H,MATCH(C93,'8. 2019 HCAI (FEE) DAYS'!A:A,0)),0) -> 2019-12-31 | H93: =IFERROR(INDEX('8. 2019 HCAI (FEE) DAYS'!L:L,MATCH(C93,'8. 2019 HCAI (FEE) DAYS'!A:A,0)),0) -> 2019-01-01 | I93: =IFERROR(INDEX('11. Hospital Statuses'!M:M,MATCH(C93,'11. Hospital Statuses'!A:A,0)),"") -> Open | J93: Los Angeles | K93: 11 | L93: 915 | M93: Non-Profit | N93: Comparable | P93: https://www.emanatehealth.org/locations/emanate-health-foothill-presbyterian-hospital/ | R93: EMANATE HEALTH | S93: 626-858-8541 | T93: 250 SO. GRAND AVE | U93: GLENDORA | V93: 91741 | W93: ROBERT CURRY | X93: =IFERROR(IF(INDEX(#REF!,MATCH(C93,#REF!,0)),"Yes","No"),"") ->  | Y93: CY 2023 | Z93: =IFERROR(IF($Y93="CY 2023",INDEX('6. CY 2023'!S:S,MATCH($C93,'6. CY 2023'!$A:$A,0)),0),0) -> 0 | AA93: =IFERROR(IF($Y93="CY 2023",INDEX('6. CY 2023'!U:U,MATCH($C93,'6. CY 2023'!$A:$A,0)),0),0) -> 3727351.35 | AB93: =IFERROR(IF($Y93="CY 2023",INDEX('6. CY 2023'!W:W,MATCH($C93,'6. CY 2023'!$A:$A,0)),0),0) -> 2639246.08 | AC93: =IFERROR(IF($Y93="CY 2023",INDEX('6. CY 2023'!Y:Y,MATCH($C93,'6. CY 2023'!$A:$A,0)),0),0) -> 0 | AD93: =IFERROR(IF($Y93="CY 2023",INDEX('6. CY 2023'!AA:AA,MATCH($C93,'6. CY 2023'!$A:$A,0)),0),0) -> 2745980 | AE93: =IFERROR(IF($Y93="CY 2023",INDEX('6. CY 2023'!AC:AC,MATCH($C93,'6. CY 2023'!$A:$A,0)),0),0) -> 953560 | AF93: =IFERROR(IF($Y93="CY 2023",INDEX('6. CY 2023'!AE:AE,MATCH($C93,'6. CY 2023'!$A:$A,0)),0),0) -> 10066137.43 | AG93: =IFERROR(IF(Y93="CY 2023",AF93/'4. Calculated Fee'!$D$32*'4. Calculated Fee'!$D$23,0),0) -> 2566227.268 | AH93: =IFERROR(IF($Y93="CY 2023",INDEX('6. CY 2023'!AE:AE,MATCH($C93,'6. CY 2023'!$A:$A,0)),0),0) -> 10066137.43 | AI93: =IFERROR(IF(Y93="CY 2023",INDEX('6. CY 2023'!AL:AL,MATCH(C93,'6. CY 2023'!A:A,0)),0),0) -> 1216981.264 | AJ93: =IFERROR(IF($Y93="CY 2023",INDEX('6. CY 2023'!AM:AM,MATCH($C93,'6. CY 2023'!$A:$A,0)),0),0) -> 1670673.514 | AK93: =IFERROR(IF($Y93="CY 2023",INDEX('6. CY 2023'!AN:AN,MATCH($C93,'6. CY 2023'!$A:$A,0)),0),0) -> 0 | AL93: =IFERROR(IF($Y93="CY 2023",INDEX('6. CY 2023'!AO:AO,MATCH($C93,'6. CY 2023'!$A:$A,0)),0),0) -> 0 | AM93: =IFERROR(IF($Y93="CY 2023",INDEX('6. CY 2023'!AP:AP,MATCH($C93,'6. CY 2023'!$A:$A,0)),0),0) -> 455000 | AN93: =IFERROR(IF($Y93="CY 2023",INDEX('6. CY 2023'!AQ:AQ,MATCH($C93,'6. CY 2023'!$A:$A,0)),0),0) -> 0 | AO93: =IFERROR(IF($Y93="CY 2023",INDEX('6. CY 2023'!AR:AR,MATCH($C93,'6. CY 2023'!$A:$A,0)),0),0) -> 0 | AP93: =IFERROR(IF($Y93="CY 2023",INDEX('6. CY 2023'!AS:AS,MATCH($C93,'6. CY 2023'!$A:$A,0)),0),0) -> 0 | AQ93: =IFERROR(IF($Y93="CY 2023",INDEX('6. CY 2023'!AV:AV,MATCH($C93,'6. CY 2023'!$A:$A,0)),0),0) -> 3342654.778 | AR93: =IFERROR(IF($Y93="CY 2023",INDEX('6. CY 2023'!AX:AX,MATCH($C93,'6. CY 2023'!A:A,0)),0),0) -> 1543093.569 | AS93: =IFERROR(IF(Y93="CY 2023",INDEX('6. CY 2023'!AY:AY,MATCH(C93,'6. CY 2023'!A:A,0)),0),0) -> 10505438.03 | AT93: =IFERROR(IF($Y93="CY 2023",INDEX('6. CY 2023'!AZ:AZ,MATCH($C93,'6. CY 2023'!A:A,0)),0),0) -> 12048531.6 | AW93: =IFERROR(IF(Y93="CY 2023",INDEX('6. CY 2023'!H:H,MATCH(C93,'6. CY 2023'!A:A,0)),0),0) -> 145147941.9
A94: 91 | B94: EMANATE HEALTH QUEEN OF THE VALLEY HOSPITAL | C94: 106190636 | D94: EMANATE HEALTH QUEEN OF THE VALLEY HOSPITAL | F94: =IFERROR(INDEX('8. 2019 HCAI (FEE) DAYS'!G:G,MATCH(C94,'8. 2019 HCAI (FEE) DAYS'!A:A,0)),0) -> 2019-01-01 | G94: =IFERROR(INDEX('8. 2019 HCAI (FEE) DAYS'!H:H,MATCH(C94,'8. 2019 HCAI (FEE) DAYS'!A:A,0)),0) -> 2019-12-31 | H94: =IFERROR(INDEX('8. 2019 HCAI (FEE) DAYS'!L:L,MATCH(C94,'8. 2019 HCAI (FEE) DAYS'!A:A,0)),0) -> 2019-01-01 | I94: =IFERROR(INDEX('11. Hospital Statuses'!M:M,MATCH(C94,'11. Hospital Statuses'!A:A,0)),"") -> Open | J94: Los Angeles | K94: 11 | L94: 915 | M94: Non-Profit | N94: Comparable | P94: https://www.emanatehealth.org/locations/emanate-health-queen-of-the-valley-hospital/ | R94: EMANATE HEALTH | S94: 626-858-8541 | T94: 1115 SO. SUNSET AVE | U94: WEST COVINA | V94: 91790 | W94: ROBERT CURRY | X94: =IFERROR(IF(INDEX(#REF!,MATCH(C94,#REF!,0)),"Yes","No"),"") ->  | Y94: CY 2023 | Z94: =IFERROR(IF($Y94="CY 2023",INDEX('6. CY 2023'!S:S,MATCH($C94,'6. CY 2023'!$A:$A,0)),0),0) -> 0 | AA94: =IFERROR(IF($Y94="CY 2023",INDEX('6. CY 2023'!U:U,MATCH($C94,'6. CY 2023'!$A:$A,0)),0),0) -> 10501534.2 | AB94: =IFERROR(IF($Y94="CY 2023",INDEX('6. CY 2023'!W:W,MATCH($C94,'6. CY 2023'!$A:$A,0)),0),0) -> 10112852.34 | AC94: =IFERROR(IF($Y94="CY 2023",INDEX('6. CY 2023'!Y:Y,MATCH($C94,'6. CY 2023'!$A:$A,0)),0),0) -> 0 | AD94: =IFERROR(IF($Y94="CY 2023",INDEX('6. CY 2023'!AA:AA,MATCH($C94,'6. CY 2023'!$A:$A,0)),0),0) -> 15339420 | AE94: =IFERROR(IF($Y94="CY 2023",INDEX('6. CY 2023'!AC:AC,MATCH($C94,'6. CY 2023'!$A:$A,0)),0),0) -> 11905240 | AF94: =IFERROR(IF($Y94="CY 2023",INDEX('6. CY 2023'!AE:AE,MATCH($C94,'6. CY 2023'!$A:$A,0)),0),0) -> 47859046.54 | AG94: =IFERROR(IF(Y94="CY 2023",AF94/'4. Calculated Fee'!$D$32*'4. Calculated Fee'!$D$23,0),0) -> 12201024.58 | AH94: =IFERROR(IF($Y94="CY 2023",INDEX('6. CY 2023'!AE:AE,MATCH($C94,'6. CY 2023'!$A:$A,0)),0),0) -> 47859046.54 | AI94: =IFERROR(IF(Y94="CY 2023",INDEX('6. CY 2023'!AL:AL,MATCH(C94,'6. CY 2023'!A:A,0)),0),0) -> 5064564.394 | AJ94: =IFERROR(IF($Y94="CY 2023",INDEX('6. CY 2023'!AM:AM,MATCH($C94,'6. CY 2023'!$A:$A,0)),0),0) -> 14241066.31 | AK94: =IFERROR(IF($Y94="CY 2023",INDEX('6. CY 2023'!AN:AN,MATCH($C94,'6. CY 2023'!$A:$A,0)),0),0) -> 0 | AL94: =IFERROR(IF($Y94="CY 2023",INDEX('6. CY 2023'!AO:AO,MATCH($C94,'6. CY 2023'!$A:$A,0)),0),0) -> 715650 | AM94: =IFERROR(IF($Y94="CY 2023",INDEX('6. CY 2023'!AP:AP,MATCH($C94,'6. CY 2023'!$A:$A,0)),0),0) -> 6607500 | AN94: =IFERROR(IF($Y94="CY 2023",INDEX('6. CY 2023'!AQ:AQ,MATCH($C94,'6. CY 2023'!$A:$A,0)),0),0) -> 0 | AO94: =IFERROR(IF($Y94="CY 2023",INDEX('6. CY 2023'!AR:AR,MATCH($C94,'6. CY 2023'!$A:$A,0)),0),0) -> 0 | AP94: =IFERROR(IF($Y94="CY 2023",INDEX('6. CY 2023'!AS:AS,MATCH($C94,'6. CY 2023'!$A:$A,0)),0),0) -> 0 | AQ94: =IFERROR(IF($Y94="CY 2023",INDEX('6. CY 2023'!AV:AV,MATCH($C94,'6. CY 2023'!$A:$A,0)),0),0) -> 26628780.71 | AR94: =IFERROR(IF($Y94="CY 2023",INDEX('6. CY 2023'!AX:AX,MATCH($C94,'6. CY 2023'!A:A,0)),0),0) -> 16971306.82 | AS94: =IFERROR(IF(Y94="CY 2023",INDEX('6. CY 2023'!AY:AY,MATCH(C94,'6. CY 2023'!A:A,0)),0),0) -> 51943354.52 | AT94: =IFERROR(IF($Y94="CY 2023",INDEX('6. CY 2023'!AZ:AZ,MATCH($C94,'6. CY 2023'!A:A,0)),0),0) -> 68914661.34 | AW94: =IFERROR(IF(Y94="CY 2023",INDEX('6. CY 2023'!H:H,MATCH(C94,'6. CY 2023'!A:A,0)),0),0) -> 621275549.1
